Workbook

Sheet T
B85: N | C85: G | D85: 1 | E85: 2 | F85: NN | G85: DN | H85: M | I85: Date | J85: Start | K85: V | L85: B | M85: Room | N85: Name | O85: Max | P85: T | Q85: K | R85: A | S85: GTD | T85: Bounty | U85: Win | V85: R | W85: F | X85: B$ | Y85: KO$ | Z85: WIN$ | AA85: Profit | AB85: AFS | AC85: Grafik | AD85: 12
A86: =A85+1 -> 1 | B86: 1 | C86: =IFERROR(VLOOKUP(B86,Baza[],2,0),"") -> 2021 | D86: =IF( TOT[[#This Row],[NN]]="","",TEXT( TOT[[#This Row],[Start]],"ч:мм")&" "&TOT[[#This Row],[V]]& TOT[[#This Row],[B]]&" "&"["& TOT[[#This Row],[Room]]&"] "& TOT[[#This Row],[Name]]) -> 11:00 $1,1 [PP] Bounty Hunter | E86: =TOT[[#This Row],[V]]& TOT[[#This Row],[B]] -> $1,1 | F86: =IFERROR(VLOOKUP(B86,Baza[],3,0),"") -> 1 | G86: =IFERROR(VLOOKUP(B86,Baza[],4,0),"") -> пятница | H86: =IFERROR(VLOOKUP(B86,Baza[],5,0),"") -> январь | I86: =IFERROR(VLOOKUP(B86,Baza[],6,0),"") -> 2021-01-01 | J86: =IFERROR(VLOOKUP(B86,Baza[],7,0),"") -> 11:00:00 | K86: =IFERROR(VLOOKUP(B86,Baza[],8,0),"") -> $ | L86: =IFERROR(VLOOKUP(B86,Baza[],9,0),"") -> 1.1 | M86: =IFERROR(VLOOKUP(B86,Baza[],10,0),"") -> PP | N86: =IFERROR(VLOOKUP(B86,Baza[],12,0),"") -> Bounty Hunter | O86: =IFERROR(VLOOKUP(B86,Baza[],14,0),"") -> 8 | P86: =IFERROR(VLOOKUP(B86,Baza[],15,0),"") -> - | Q86: =IFERROR(VLOOKUP(B86,Baza[],16,0),"") -> K | R86: =IFERROR(VLOOKUP(B86,Baza[],17,0),"") -> - | S86: =IFERROR(VLOOKUP(B86,Baza[],18,0),"") -> 50 | T86: =IFERROR(IF((VLOOKUP(B86,Baza[],19,0)+VLOOKUP(B86,Baza[],20,0))=0,"-",VLOOKUP(B86,Baza[],19,0)+VLOOKUP(B86,Baza[],20,0)),"") -> - | U86: =IFERROR(IF(VLOOKUP(B86,Baza[],21,0)=0,"-",VLOOKUP(B86,Baza[],21,0)),"") -> - | V86: =IFERROR(VLOOKUP(B86,Baza[],22,0),"") -> 0 | W86: =IFERROR(VLOOKUP(B86,Baza[],23,0),"") -> - | X86: =IFERROR(VLOOKUP(B86,Baza[],24,0),"") -> 1.1 | Y86: =IFERROR(IF(VLOOKUP(B86,Baza[],25,0)=0,"-",VLOOKUP(B86,Baza[],25,0)),"") -> - | Z86: =IFERROR(IF(VLOOKUP(B86,Baza[],26,0)=0,"-",VLOOKUP(B86,Baza[],26,0)),"") -> - | AA86: =IFERROR(VLOOKUP(B86,Baza[],27,0),"") -> -1.1 | AB86: =IFERROR(VLOOKUP(B86,Baza[],28,0),"") -> 60 | AC86: =IF(TOT[[#This Row],[Profit]]="","#Н/Д",SUM($AA$85:AA86)) -> -1.1 | AD86: =IF(TOT[[#This Row],[Grafik]]="#Н/Д",FALSE,TRUE) -> TRUE
A87: 2 | B87: 2 | C87: =IFERROR(VLOOKUP(B87,Baza[],2,0),"") -> 2021 | D87: =IF( TOT[[#This Row],[NN]]="","",TEXT( TOT[[#This Row],[Start]],"ч:мм")&" "&TOT[[#This Row],[V]]& TOT[[#This Row],[B]]&" "&"["& TOT[[#This Row],[Room]]&"] "& TOT[[#This Row],[Name]]) -> 11:00 €1 [WN] Monster Stack | E87: =TOT[[#This Row],[V]]& TOT[[#This Row],[B]] -> €1 | F87: =IFERROR(VLOOKUP(B87,Baza[],3,0),"") -> 1 | G87: =IFERROR(VLOOKUP(B87,Baza[],4,0),"") -> пятница | H87: =IFERROR(VLOOKUP(B87,Baza[],5,0),"") -> январь | I87: =IFERROR(VLOOKUP(B87,Baza[],6,0),"") -> 2021-01-01 | J87: =IFERROR(VLOOKUP(B87,Baza[],7,0),"") -> 11:00:00 | K87: =IFERROR(VLOOKUP(B87,Baza[],8,0),"") -> € | L87: =IFERROR(VLOOKUP(B87,Baza[],9,0),"") -> 1 | M87: =IFERROR(VLOOKUP(B87,Baza[],10,0),"") -> WN | N87: =IFERROR(VLOOKUP(B87,Baza[],12,0),"") -> Monster Stack | O87: =IFERROR(VLOOKUP(B87,Baza[],14,0),"") -> 6 | P87: =IFERROR(VLOOKUP(B87,Baza[],15,0),"") -> - | Q87: =IFERROR(VLOOKUP(B87,Baza[],16,0),"") -> - | R87: =IFERROR(VLOOKUP(B87,Baza[],17,0),"") -> - | S87: =IFERROR(VLOOKUP(B87,Baza[],18,0),"") -> 150 | T87: =IFERROR(IF((VLOOKUP(B87,Baza[],19,0)+VLOOKUP(B87,Baza[],20,0))=0,"-",VLOOKUP(B87,Baza[],19,0)+VLOOKUP(B87,Baza[],20,0)),"") -> - | U87: =IFERROR(IF(VLOOKUP(B87,Baza[],21,0)=0,"-",VLOOKUP(B87,Baza[],21,0)),"") -> - | V87: =IFERROR(VLOOKUP(B87,Baza[],22,0),"") -> 0 | W87: =IFERROR(VLOOKUP(B87,Baza[],23,0),"") -> - | X87: =IFERROR(VLOOKUP(B87,Baza[],24,0),"") -> 1.123595506 | Y87: =IFERROR(IF(VLOOKUP(B87,Baza[],25,0)=0,"-",VLOOKUP(B87,Baza[],25,0)),"") -> - | Z87: =IFERROR(IF(VLOOKUP(B87,Baza[],26,0)=0,"-",VLOOKUP(B87,Baza[],26,0)),"") -> - | AA87: =IFERROR(VLOOKUP(B87,Baza[],27,0),"") -> -1.123595506 | AB87: =IFERROR(VLOOKUP(B87,Baza[],28,0),"") -> 198 | AC87: =IF(TOT[[#This Row],[Profit]]="","#Н/Д",SUM($AA$85:AA87)) -> -2.223595506 | AD87: =IF(TOT[[#This Row],[Grafik]]="#Н/Д",FALSE,TRUE) -> TRUE
A88: 3 | B88: 3 | C88: =IFERROR(VLOOKUP(B88,Baza[],2,0),"") -> 2021 | D88: =IF( TOT[[#This Row],[NN]]="","",TEXT( TOT[[#This Row],[Start]],"ч:мм")&" "&TOT[[#This Row],[V]]& TOT[[#This Row],[B]]&" "&"["& TOT[[#This Row],[Room]]&"] "& TOT[[#This Row],[Name]]) -> 11:15 $2,2 [PP] Deepstack | E88: =TOT[[#This Row],[V]]& TOT[[#This Row],[B]] -> $2,2 | F88: =IFERROR(VLOOKUP(B88,Baza[],3,0),"") -> 1 | G88: =IFERROR(VLOOKUP(B88,Baza[],4,0),"") -> пятница | H88: =IFERROR(VLOOKUP(B88,Baza[],5,0),"") -> январь | I88: =IFERROR(VLOOKUP(B88,Baza[],6,0),"") -> 2021-01-01 | J88: =IFERROR(VLOOKUP(B88,Baza[],7,0),"") -> 11:15:00 | K88: =IFERROR(VLOOKUP(B88,Baza[],8,0),"") -> $ | L88: =IFERROR(VLOOKUP(B88,Baza[],9,0),"") -> 2.2 | M88: =IFERROR(VLOOKUP(B88,Baza[],10,0),"") -> PP | N88: =IFERROR(VLOOKUP(B88,Baza[],12,0),"") -> Deepstack | O88: =IFERROR(VLOOKUP(B88,Baza[],14,0),"") -> 8 | P88: =IFERROR(VLOOKUP(B88,Baza[],15,0),"") -> - | Q88: =IFERROR(VLOOKUP(B88,Baza[],16,0),"") -> - | R88: =IFERROR(VLOOKUP(B88,Baza[],17,0),"") -> - | S88: =IFERROR(VLOOKUP(B88,Baza[],18,0),"") -> 200 | T88: =IFERROR(IF((VLOOKUP(B88,Baza[],19,0)+VLOOKUP(B88,Baza[],20,0))=0,"-",VLOOKUP(B88,Baza[],19,0)+VLOOKUP(B88,Baza[],20,0)),"") -> - | U88: =IFERROR(IF(VLOOKUP(B88,Baza[],21,0)=0,"-",VLOOKUP(B88,Baza[],21,0)),"") -> - | V88: =IFERROR(VLOOKUP(B88,Baza[],22,0),"") -> 0 | W88: =IFERROR(VLOOKUP(B88,Baza[],23,0),"") -> - | X88: =IFERROR(VLOOKUP(B88,Baza[],24,0),"") -> 2.2 | Y88: =IFERROR(IF(VLOOKUP(B88,Baza[],25,0)=0,"-",VLOOKUP(B88,Baza[],25,0)),"") -> - | Z88: =IFERROR(IF(VLOOKUP(B88,Baza[],26,0)=0,"-",VLOOKUP(B88,Baza[],26,0)),"") -> - | AA88: =IFERROR(VLOOKUP(B88,Baza[],27,0),"") -> -2.2 | AB88: =IFERROR(VLOOKUP(B88,Baza[],28,0),"") -> 120 | AC88: =IF(TOT[[#This Row],[Profit]]="","#Н/Д",SUM($AA$85:AA88)) -> -4.423595506 | AD88: =IF(TOT[[#This Row],[Grafik]]="#Н/Д",FALSE,TRUE) -> TRUE
A89: 4 | B89: 4 | C89: =IFERROR(VLOOKUP(B89,Baza[],2,0),"") -> 2021 | D89: =IF( TOT[[#This Row],[NN]]="","",TEXT( TOT[[#This Row],[Start]],"ч:мм")&" "&TOT[[#This Row],[V]]& TOT[[#This Row],[B]]&" "&"["& TOT[[#This Row],[Room]]&"] "& TOT[[#This Row],[Name]]) -> 11:30 $2,1 [GG] Bounty Hunters | E89: =TOT[[#This Row],[V]]& TOT[[#This Row],[B]] -> $2,1 | F89: =IFERROR(VLOOKUP(B89,Baza[],3,0),"") -> 1 | G89: =IFERROR(VLOOKUP(B89,Baza[],4,0),"") -> пятница | H89: =IFERROR(VLOOKUP(B89,Baza[],5,0),"") -> январь | I89: =IFERROR(VLOOKUP(B89,Baza[],6,0),"") -> 2021-01-01 | J89: =IFERROR(VLOOKUP(B89,Baza[],7,0),"") -> 11:30:00 | K89: =IFERROR(VLOOKUP(B89,Baza[],8,0),"") -> $ | L89: =IFERROR(VLOOKUP(B89,Baza[],9,0),"") -> 2.1 | M89: =IFERROR(VLOOKUP(B89,Baza[],10,0),"") -> GG | N89: =IFERROR(VLOOKUP(B89,Baza[],12,0),"") -> Bounty Hunters | O89: =IFERROR(VLOOKUP(B89,Baza[],14,0),"") -> 8 | P89: =IFERROR(VLOOKUP(B89,Baza[],15,0),"") -> - | Q89: =IFERROR(VLOOKUP(B89,Baza[],16,0),"") -> K | R89: =IFERROR(VLOOKUP(B89,Baza[],17,0),"") -> - | S89: =IFERROR(VLOOKUP(B89,Baza[],18,0),"") -> 1200 | T89: =IFERROR(IF((VLOOKUP(B89,Baza[],19,0)+VLOOKUP(B89,Baza[],20,0))=0,"-",VLOOKUP(B89,Baza[],19,0)+VLOOKUP(B89,Baza[],20,0)),"") -> - | U89: =IFERROR(IF(VLOOKUP(B89,Baza[],21,0)=0,"-",VLOOKUP(B89,Baza[],21,0)),"") -> - | V89: =IFERROR(VLOOKUP(B89,Baza[],22,0),"") -> 0 | W89: =IFERROR(VLOOKUP(B89,Baza[],23,0),"") -> - | X89: =IFERROR(VLOOKUP(B89,Baza[],24,0),"") -> 2.1 | Y89: =IFERROR(IF(VLOOKUP(B89,Baza[],25,0)=0,"-",VLOOKUP(B89,Baza[],25,0)),"") -> - | Z89: =IFERROR(IF(VLOOKUP(B89,Baza[],26,0)=0,"-",VLOOKUP(B89,Baza[],26,0)),"") -> - | AA89: =IFERROR(VLOOKUP(B89,Baza[],27,0),"") -> -2.1 | AB89: =IFERROR(VLOOKUP(B89,Baza[],28,0),"") -> 754.2857143 | AC89: =IF(TOT[[#This Row],[Profit]]="","#Н/Д",SUM($AA$85:AA89)) -> -6.523595506 | AD89: =IF(TOT[[#This Row],[Grafik]]="#Н/Д",FALSE,TRUE) -> TRUE
A90: 5 | B90: 5 | C90: =IFERROR(VLOOKUP(B90,Baza[],2,0),"") -> 2021 | D90: =IF( TOT[[#This Row],[NN]]="","",TEXT( TOT[[#This Row],[Start]],"ч:мм")&" "&TOT[[#This Row],[V]]& TOT[[#This Row],[B]]&" "&"["& TOT[[#This Row],[Room]]&"] "& TOT[[#This Row],[Name]]) -> 12:00 $1,1 [PP] Deepstack | E90: =TOT[[#This Row],[V]]& TOT[[#This Row],[B]] -> $1,1 | F90: =IFERROR(VLOOKUP(B90,Baza[],3,0),"") -> 1 | G90: =IFERROR(VLOOKUP(B90,Baza[],4,0),"") -> пятница | H90: =IFERROR(VLOOKUP(B90,Baza[],5,0),"") -> январь | I90: =IFERROR(VLOOKUP(B90,Baza[],6,0),"") -> 2021-01-01 | J90: =IFERROR(VLOOKUP(B90,Baza[],7,0),"") -> 12:00:00 | K90: =IFERROR(VLOOKUP(B90,Baza[],8,0),"") -> $ | L90: =IFERROR(VLOOKUP(B90,Baza[],9,0),"") -> 1.1 | M90: =IFERROR(VLOOKUP(B90,Baza[],10,0),"") -> PP | N90: =IFERROR(VLOOKUP(B90,Baza[],12,0),"") -> Deepstack | O90: =IFERROR(VLOOKUP(B90,Baza[],14,0),"") -> 8 | P90: =IFERROR(VLOOKUP(B90,Baza[],15,0),"") -> - | Q90: =IFERROR(VLOOKUP(B90,Baza[],16,0),"") -> - | R90: =IFERROR(VLOOKUP(B90,Baza[],17,0),"") -> - | S90: =IFERROR(VLOOKUP(B90,Baza[],18,0),"") -> 150 | T90: =IFERROR(IF((VLOOKUP(B90,Baza[],19,0)+VLOOKUP(B90,Baza[],20,0))=0,"-",VLOOKUP(B90,Baza[],19,0)+VLOOKUP(B90,Baza[],20,0)),"") -> - | U90: =IFERROR(IF(VLOOKUP(B90,Baza[],21,0)=0,"-",VLOOKUP(B90,Baza[],21,0)),"") -> - | V90: =IFERROR(VLOOKUP(B90,Baza[],22,0),"") -> 0 | W90: =IFERROR(VLOOKUP(B90,Baza[],23,0),"") -> - | X90: =IFERROR(VLOOKUP(B90,Baza[],24,0),"") -> 1.1 | Y90: =IFERROR(IF(VLOOKUP(B90,Baza[],25,0)=0,"-",VLOOKUP(B90,Baza[],25,0)),"") -> - | Z90: =IFERROR(IF(VLOOKUP(B90,Baza[],26,0)=0,"-",VLOOKUP(B90,Baza[],26,0)),"") -> - | AA90: =IFERROR(VLOOKUP(B90,Baza[],27,0),"") -> -1.1 | AB90: =IFERROR(VLOOKUP(B90,Baza[],28,0),"") -> 180 | AC90: =IF(TOT[[#This Row],[Profit]]="","#Н/Д",SUM($AA$85:AA90)) -> -7.623595506 | AD90: =IF(TOT[[#This Row],[Grafik]]="#Н/Д",FALSE,TRUE) -> TRUE
A91: 6 | B91: 6 | C91: =IFERROR(VLOOKUP(B91,Baza[],2,0),"") -> 2021 | D91: =IF( TOT[[#This Row],[NN]]="","",TEXT( TOT[[#This Row],[Start]],"ч:мм")&" "&TOT[[#This Row],[V]]& TOT[[#This Row],[B]]&" "&"["& TOT[[#This Row],[Room]]&"] "& TOT[[#This Row],[Name]]) -> 12:00 $1,1 [PS] Big | E91: =TOT[[#This Row],[V]]& TOT[[#This Row],[B]] -> $1,1 | F91: =IFERROR(VLOOKUP(B91,Baza[],3,0),"") -> 1 | G91: =IFERROR(VLOOKUP(B91,Baza[],4,0),"") -> пятница | H91: =IFERROR(VLOOKUP(B91,Baza[],5,0),"") -> январь | I91: =IFERROR(VLOOKUP(B91,Baza[],6,0),"") -> 2021-01-01 | J91: =IFERROR(VLOOKUP(B91,Baza[],7,0),"") -> 12:00:00 | K91: =IFERROR(VLOOKUP(B91,Baza[],8,0),"") -> $ | L91: =IFERROR(VLOOKUP(B91,Baza[],9,0),"") -> 1.1 | M91: =IFERROR(VLOOKUP(B91,Baza[],10,0),"") -> PS | N91: =IFERROR(VLOOKUP(B91,Baza[],12,0),"") -> Big | O91: =IFERROR(VLOOKUP(B91,Baza[],14,0),"") -> 9 | P91: =IFERROR(VLOOKUP(B91,Baza[],15,0),"") -> - | Q91: =IFERROR(VLOOKUP(B91,Baza[],16,0),"") -> - | R91: =IFERROR(VLOOKUP(B91,Baza[],17,0),"") -> - | S91: =IFERROR(VLOOKUP(B91,Baza[],18,0),"") -> 500 | T91: =IFERROR(IF((VLOOKUP(B91,Baza[],19,0)+VLOOKUP(B91,Baza[],20,0))=0,"-",VLOOKUP(B91,Baza[],19,0)+VLOOKUP(B91,Baza[],20,0)),"") -> - | U91: =IFERROR(IF(VLOOKUP(B91,Baza[],21,0)=0,"-",VLOOKUP(B91,Baza[],21,0)),"") -> 6.26 | V91: =IFERROR(VLOOKUP(B91,Baza[],22,0),"") -> 0 | W91: =IFERROR(VLOOKUP(B91,Baza[],23,0),"") -> 42 | X91: =IFERROR(VLOOKUP(B91,Baza[],24,0),"") -> 1.1 | Y91: =IFERROR(IF(VLOOKUP(B91,Baza[],25,0)=0,"-",VLOOKUP(B91,Baza[],25,0)),"") -> - | Z91: =IFERROR(IF(VLOOKUP(B91,Baza[],26,0)=0,"-",VLOOKUP(B91,Baza[],26,0)),"") -> 6.26 | AA91: =IFERROR(VLOOKUP(B91,Baza[],27,0),"") -> 5.16 | AB91: =IFERROR(VLOOKUP(B91,Baza[],28,0),"") -> 600 | AC91: =IF(TOT[[#This Row],[Profit]]="","#Н/Д",SUM($AA$85:AA91)) -> -2.463595506 | AD91: =IF(TOT[[#This Row],[Grafik]]="#Н/Д",FALSE,TRUE) -> TRUE
A92: 7 | B92: 7 | C92: =IFERROR(VLOOKUP(B92,Baza[],2,0),"") -> 2021 | D92: =IF( TOT[[#This Row],[NN]]="","",TEXT( TOT[[#This Row],[Start]],"ч:мм")&" "&TOT[[#This Row],[V]]& TOT[[#This Row],[B]]&" "&"["& TOT[[#This Row],[Room]]&"] "& TOT[[#This Row],[Name]]) -> 12:00 €2 [WN] Monster Stack | E92: =TOT[[#This Row],[V]]& TOT[[#This Row],[B]] -> €2 | F92: =IFERROR(VLOOKUP(B92,Baza[],3,0),"") -> 1 | G92: =IFERROR(VLOOKUP(B92,Baza[],4,0),"") -> пятница | H92: =IFERROR(VLOOKUP(B92,Baza[],5,0),"") -> январь | I92: =IFERROR(VLOOKUP(B92,Baza[],6,0),"") -> 2021-01-01 | J92: =IFERROR(VLOOKUP(B92,Baza[],7,0),"") -> 12:00:00 | K92: =IFERROR(VLOOKUP(B92,Baza[],8,0),"") -> € | L92: =IFERROR(VLOOKUP(B92,Baza[],9,0),"") -> 2 | M92: =IFERROR(VLOOKUP(B92,Baza[],10,0),"") -> WN | N92: =IFERROR(VLOOKUP(B92,Baza[],12,0),"") -> Monster Stack | O92: =IFERROR(VLOOKUP(B92,Baza[],14,0),"") -> 6 | P92: =IFERROR(VLOOKUP(B92,Baza[],15,0),"") -> - | Q92: =IFERROR(VLOOKUP(B92,Baza[],16,0),"") -> - | R92: =IFERROR(VLOOKUP(B92,Baza[],17,0),"") -> - | S92: =IFERROR(VLOOKUP(B92,Baza[],18,0),"") -> 200 | T92: =IFERROR(IF((VLOOKUP(B92,Baza[],19,0)+VLOOKUP(B92,Baza[],20,0))=0,"-",VLOOKUP(B92,Baza[],19,0)+VLOOKUP(B92,Baza[],20,0)),"") -> - | U92: =IFERROR(IF(VLOOKUP(B92,Baza[],21,0)=0,"-",VLOOKUP(B92,Baza[],21,0)),"") -> - | V92: =IFERROR(VLOOKUP(B92,Baza[],22,0),"") -> 0 | W92: =IFERROR(VLOOKUP(B92,Baza[],23,0),"") -> - | X92: =IFERROR(VLOOKUP(B92,Baza[],24,0),"") -> 2.247191011 | Y92: =IFERROR(IF(VLOOKUP(B92,Baza[],25,0)=0,"-",VLOOKUP(B92,Baza[],25,0)),"") -> - | Z92: =IFERROR(IF(VLOOKUP(B92,Baza[],26,0)=0,"-",VLOOKUP(B92,Baza[],26,0)),"") -> - | AA92: =IFERROR(VLOOKUP(B92,Baza[],27,0),"") -> -2.247191011 | AB92: =IFERROR(VLOOKUP(B92,Baza[],28,0),"") -> 132 | AC92: =IF(TOT[[#This Row],[Profit]]="","#Н/Д",SUM($AA$85:AA92)) -> -4.710786517 | AD92: =IF(TOT[[#This Row],[Grafik]]="#Н/Д",FALSE,TRUE) -> TRUE
A93: 8 | B93: 8 | C93: =IFERROR(VLOOKUP(B93,Baza[],2,0),"") -> 2021 | D93: =IF( TOT[[#This Row],[NN]]="","",TEXT( TOT[[#This Row],[Start]],"ч:мм")&" "&TOT[[#This Row],[V]]& TOT[[#This Row],[B]]&" "&"["& TOT[[#This Row],[Room]]&"] "& TOT[[#This Row],[Name]]) -> 12:30 $1,05 [GG] Bounty Hunters | E93: =TOT[[#This Row],[V]]& TOT[[#This Row],[B]] -> $1,05 | F93: =IFERROR(VLOOKUP(B93,Baza[],3,0),"") -> 1 | G93: =IFERROR(VLOOKUP(B93,Baza[],4,0),"") -> пятница | H93: =IFERROR(VLOOKUP(B93,Baza[],5,0),"") -> январь | I93: =IFERROR(VLOOKUP(B93,Baza[],6,0),"") -> 2021-01-01 | J93: =IFERROR(VLOOKUP(B93,Baza[],7,0),"") -> 12:30:00 | K93: =IFERROR(VLOOKUP(B93,Baza[],8,0),"") -> $ | L93: =IFERROR(VLOOKUP(B93,Baza[],9,0),"") -> 1.05 | M93: =IFERROR(VLOOKUP(B93,Baza[],10,0),"") -> GG | N93: =IFERROR(VLOOKUP(B93,Baza[],12,0),"") -> Bounty Hunters | O93: =IFERROR(VLOOKUP(B93,Baza[],14,0),"") -> 8 | P93: =IFERROR(VLOOKUP(B93,Baza[],15,0),"") -> - | Q93: =IFERROR(VLOOKUP(B93,Baza[],16,0),"") -> K | R93: =IFERROR(VLOOKUP(B93,Baza[],17,0),"") -> - | S93: =IFERROR(VLOOKUP(B93,Baza[],18,0),"") -> 750 | T93: =IFERROR(IF((VLOOKUP(B93,Baza[],19,0)+VLOOKUP(B93,Baza[],20,0))=0,"-",VLOOKUP(B93,Baza[],19,0)+VLOOKUP(B93,Baza[],20,0)),"") -> 5.04 | U93: =IFERROR(IF(VLOOKUP(B93,Baza[],21,0)=0,"-",VLOOKUP(B93,Baza[],21,0)),"") -> 3.98 | V93: =IFERROR(VLOOKUP(B93,Baza[],22,0),"") -> 0 | W93: =IFERROR(VLOOKUP(B93,Baza[],23,0),"") -> 20 | X93: =IFERROR(VLOOKUP(B93,Baza[],24,0),"") -> 1.05 | Y93: =IFERROR(IF(VLOOKUP(B93,Baza[],25,0)=0,"-",VLOOKUP(B93,Baza[],25,0)),"") -> 5.04 | Z93: =IFERROR(IF(VLOOKUP(B93,Baza[],26,0)=0,"-",VLOOKUP(B93,Baza[],26,0)),"") -> 3.98 | AA93: =IFERROR(VLOOKUP(B93,Baza[],27,0),"") -> 7.97 | AB93: =IFERROR(VLOOKUP(B93,Baza[],28,0),"") -> 942.8571429 | AC93: =IF(TOT[[#This Row],[Profit]]="","#Н/Д",SUM($AA$85:AA93)) -> 3.259213483 | AD93: =IF(TOT[[#This Row],[Grafik]]="#Н/Д",FALSE,TRUE) -> TRUE
A94: 9 | B94: 9 | C94: =IFERROR(VLOOKUP(B94,Baza[],2,0),"") -> 2021 | D94: =IF( TOT[[#This Row],[NN]]="","",TEXT( TOT[[#This Row],[Start]],"ч:мм")&" "&TOT[[#This Row],[V]]& TOT[[#This Row],[B]]&" "&"["& TOT[[#This Row],[Room]]&"] "& TOT[[#This Row],[Name]]) -> 12:30 $1 [PAC] Guaranteed | E94: =TOT[[#This Row],[V]]& TOT[[#This Row],[B]] -> $1 | F94: =IFERROR(VLOOKUP(B94,Baza[],3,0),"") -> 1 | G94: =IFERROR(VLOOKUP(B94,Baza[],4,0),"") -> пятница | H94: =IFERROR(VLOOKUP(B94,Baza[],5,0),"") -> январь | I94: =IFERROR(VLOOKUP(B94,Baza[],6,0),"") -> 2021-01-01 | J94: =IFERROR(VLOOKUP(B94,Baza[],7,0),"") -> 12:30:00 | K94: =IFERROR(VLOOKUP(B94,Baza[],8,0),"") -> $ | L94: =IFERROR(VLOOKUP(B94,Baza[],9,0),"") -> 1 | M94: =IFERROR(VLOOKUP(B94,Baza[],10,0),"") -> PAC | N94: =IFERROR(VLOOKUP(B94,Baza[],12,0),"") -> Guaranteed | O94: =IFERROR(VLOOKUP(B94,Baza[],14,0),"") -> 9 | P94: =IFERROR(VLOOKUP(B94,Baza[],15,0),"") -> - | Q94: =IFERROR(VLOOKUP(B94,Baza[],16,0),"") -> - | R94: =IFERROR(VLOOKUP(B94,Baza[],17,0),"") -> - | S94: =IFERROR(VLOOKUP(B94,Baza[],18,0),"") -> 200 | T94: =IFERROR(IF((VLOOKUP(B94,Baza[],19,0)+VLOOKUP(B94,Baza[],20,0))=0,"-",VLOOKUP(B94,Baza[],19,0)+VLOOKUP(B94,Baza[],20,0)),"") -> - | U94: =IFERROR(IF(VLOOKUP(B94,Baza[],21,0)=0,"-",VLOOKUP(B94,Baza[],21,0)),"") -> - | V94: =IFERROR(VLOOKUP(B94,Baza[],22,0),"") -> 0 | W94: =IFERROR(VLOOKUP(B94,Baza[],23,0),"") -> - | X94: =IFERROR(VLOOKUP(B94,Baza[],24,0),"") -> 1 | Y94: =IFERROR(IF(VLOOKUP(B94,Baza[],25,0)=0,"-",VLOOKUP(B94,Baza[],25,0)),"") -> - | Z94: =IFERROR(IF(VLOOKUP(B94,Baza[],26,0)=0,"-",VLOOKUP(B94,Baza[],26,0)),"") -> - | AA94: =IFERROR(VLOOKUP(B94,Baza[],27,0),"") -> -1 | AB94: =IFERROR(VLOOKUP(B94,Baza[],28,0),"") -> 264 | AC94: =IF(TOT[[#This Row],[Profit]]="","#Н/Д",SUM($AA$85:AA94)) -> 2.259213483 | AD94: =IF(TOT[[#This Row],[Grafik]]="#Н/Д",FALSE,TRUE) -> TRUE
A95: 10 | B95: 10 | C95: =IFERROR(VLOOKUP(B95,Baza[],2,0),"") -> 2021 | D95: =IF( TOT[[#This Row],[NN]]="","",TEXT( TOT[[#This Row],[Start]],"ч:мм")&" "&TOT[[#This Row],[V]]& TOT[[#This Row],[B]]&" "&"["& TOT[[#This Row],[Room]]&"] "& TOT[[#This Row],[Name]]) -> 12:30 $2,2 [PP] Bounty Hunter | E95: =TOT[[#This Row],[V]]& TOT[[#This Row],[B]] -> $2,2 | F95: =IFERROR(VLOOKUP(B95,Baza[],3,0),"") -> 1 | G95: =IFERROR(VLOOKUP(B95,Baza[],4,0),"") -> пятница | H95: =IFERROR(VLOOKUP(B95,Baza[],5,0),"") -> январь | I95: =IFERROR(VLOOKUP(B95,Baza[],6,0),"") -> 2021-01-01 | J95: =IFERROR(VLOOKUP(B95,Baza[],7,0),"") -> 12:30:00 | K95: =IFERROR(VLOOKUP(B95,Baza[],8,0),"") -> $ | L95: =IFERROR(VLOOKUP(B95,Baza[],9,0),"") -> 2.2 | M95: =IFERROR(VLOOKUP(B95,Baza[],10,0),"") -> PP | N95: =IFERROR(VLOOKUP(B95,Baza[],12,0),"") -> Bounty Hunter | O95: =IFERROR(VLOOKUP(B95,Baza[],14,0),"") -> 8 | P95: =IFERROR(VLOOKUP(B95,Baza[],15,0),"") -> - | Q95: =IFERROR(VLOOKUP(B95,Baza[],16,0),"") -> K | R95: =IFERROR(VLOOKUP(B95,Baza[],17,0),"") -> - | S95: =IFERROR(VLOOKUP(B95,Baza[],18,0),"") -> 200 | T95: =IFERROR(IF((VLOOKUP(B95,Baza[],19,0)+VLOOKUP(B95,Baza[],20,0))=0,"-",VLOOKUP(B95,Baza[],19,0)+VLOOKUP(B95,Baza[],20,0)),"") -> - | U95: =IFERROR(IF(VLOOKUP(B95,Baza[],21,0)=0,"-",VLOOKUP(B95,Baza[],21,0)),"") -> - | V95: =IFERROR(VLOOKUP(B95,Baza[],22,0),"") -> 0 | W95: =IFERROR(VLOOKUP(B95,Baza[],23,0),"") -> - | X95: =IFERROR(VLOOKUP(B95,Baza[],24,0),"") -> 2.2 | Y95: =IFERROR(IF(VLOOKUP(B95,Baza[],25,0)=0,"-",VLOOKUP(B95,Baza[],25,0)),"") -> - | Z95: =IFERROR(IF(VLOOKUP(B95,Baza[],26,0)=0,"-",VLOOKUP(B95,Baza[],26,0)),"") -> - | AA95: =IFERROR(VLOOKUP(B95,Baza[],27,0),"") -> -2.2 | AB95: =IFERROR(VLOOKUP(B95,Baza[],28,0),"") -> 120 | AC95: =IF(TOT[[#This Row],[Profit]]="","#Н/Д",SUM($AA$85:AA95)) -> 0.05921348315 | AD95: =IF(TOT[[#This Row],[Grafik]]="#Н/Д",FALSE,TRUE) -> TRUE
A96: 11 | B96: 11 | C96: =IFERROR(VLOOKUP(B96,Baza[],2,0),"") -> 2021 | D96: =IF( TOT[[#This Row],[NN]]="","",TEXT( TOT[[#This Row],[Start]],"ч:мм")&" "&TOT[[#This Row],[V]]& TOT[[#This Row],[B]]&" "&"["& TOT[[#This Row],[Room]]&"] "& TOT[[#This Row],[Name]]) -> 13:00 $2 [GG] Big | E96: =TOT[[#This Row],[V]]& TOT[[#This Row],[B]] -> $2 | F96: =IFERROR(VLOOKUP(B96,Baza[],3,0),"") -> 1 | G96: =IFERROR(VLOOKUP(B96,Baza[],4,0),"") -> пятница | H96: =IFERROR(VLOOKUP(B96,Baza[],5,0),"") -> январь | I96: =IFERROR(VLOOKUP(B96,Baza[],6,0),"") -> 2021-01-01 | J96: =IFERROR(VLOOKUP(B96,Baza[],7,0),"") -> 13:00:00 | K96: =IFERROR(VLOOKUP(B96,Baza[],8,0),"") -> $ | L96: =IFERROR(VLOOKUP(B96,Baza[],9,0),"") -> 2 | M96: =IFERROR(VLOOKUP(B96,Baza[],10,0),"") -> GG | N96: =IFERROR(VLOOKUP(B96,Baza[],12,0),"") -> Big | O96: =IFERROR(VLOOKUP(B96,Baza[],14,0),"") -> 8 | P96: =IFERROR(VLOOKUP(B96,Baza[],15,0),"") -> - | Q96: =IFERROR(VLOOKUP(B96,Baza[],16,0),"") -> - | R96: =IFERROR(VLOOKUP(B96,Baza[],17,0),"") -> - | S96: =IFERROR(VLOOKUP(B96,Baza[],18,0),"") -> 750 | T96: =IFERROR(IF((VLOOKUP(B96,Baza[],19,0)+VLOOKUP(B96,Baza[],20,0))=0,"-",VLOOKUP(B96,Baza[],19,0)+VLOOKUP(B96,Baza[],20,0)),"") -> - | U96: =IFERROR(IF(VLOOKUP(B96,Baza[],21,0)=0,"-",VLOOKUP(B96,Baza[],21,0)),"") -> - | V96: =IFERROR(VLOOKUP(B96,Baza[],22,0),"") -> 0 | W96: =IFERROR(VLOOKUP(B96,Baza[],23,0),"") -> - | X96: =IFERROR(VLOOKUP(B96,Baza[],24,0),"") -> 2 | Y96: =IFERROR(IF(VLOOKUP(B96,Baza[],25,0)=0,"-",VLOOKUP(B96,Baza[],25,0)),"") -> - | Z96: =IFERROR(IF(VLOOKUP(B96,Baza[],26,0)=0,"-",VLOOKUP(B96,Baza[],26,0)),"") -> - | AA96: =IFERROR(VLOOKUP(B96,Baza[],27,0),"") -> -2 | AB96: =IFERROR(VLOOKUP(B96,Baza[],28,0),"") -> 495 | AC96: =IF(TOT[[#This Row],[Profit]]="","#Н/Д",SUM($AA$85:AA96)) -> -1.940786517 | AD96: =IF(TOT[[#This Row],[Grafik]]="#Н/Д",FALSE,TRUE) -> TRUE
A97: 12 | B97: 12 | C97: =IFERROR(VLOOKUP(B97,Baza[],2,0),"") -> 2021 | D97: =IF( TOT[[#This Row],[NN]]="","",TEXT( TOT[[#This Row],[Start]],"ч:мм")&" "&TOT[[#This Row],[V]]& TOT[[#This Row],[B]]&" "&"["& TOT[[#This Row],[Room]]&"] "& TOT[[#This Row],[Name]]) -> 13:00 $1,1 [PP] Bounty Hunter | E97: =TOT[[#This Row],[V]]& TOT[[#This Row],[B]] -> $1,1 | F97: =IFERROR(VLOOKUP(B97,Baza[],3,0),"") -> 1 | G97: =IFERROR(VLOOKUP(B97,Baza[],4,0),"") -> пятница | H97: =IFERROR(VLOOKUP(B97,Baza[],5,0),"") -> январь | I97: =IFERROR(VLOOKUP(B97,Baza[],6,0),"") -> 2021-01-01 | J97: =IFERROR(VLOOKUP(B97,Baza[],7,0),"") -> 13:00:00 | K97: =IFERROR(VLOOKUP(B97,Baza[],8,0),"") -> $ | L97: =IFERROR(VLOOKUP(B97,Baza[],9,0),"") -> 1.1 | M97: =IFERROR(VLOOKUP(B97,Baza[],10,0),"") -> PP | N97: =IFERROR(VLOOKUP(B97,Baza[],12,0),"") -> Bounty Hunter | O97: =IFERROR(VLOOKUP(B97,Baza[],14,0),"") -> 8 | P97: =IFERROR(VLOOKUP(B97,Baza[],15,0),"") -> - | Q97: =IFERROR(VLOOKUP(B97,Baza[],16,0),"") -> K | R97: =IFERROR(VLOOKUP(B97,Baza[],17,0),"") -> - | S97: =IFERROR(VLOOKUP(B97,Baza[],18,0),"") -> 100 | T97: =IFERROR(IF((VLOOKUP(B97,Baza[],19,0)+VLOOKUP(B97,Baza[],20,0))=0,"-",VLOOKUP(B97,Baza[],19,0)+VLOOKUP(B97,Baza[],20,0)),"") -> 1.37 | U97: =IFERROR(IF(VLOOKUP(B97,Baza[],21,0)=0,"-",VLOOKUP(B97,Baza[],21,0)),"") -> 1.25 | V97: =IFERROR(VLOOKUP(B97,Baza[],22,0),"") -> 0 | W97: =IFERROR(VLOOKUP(B97,Baza[],23,0),"") -> 18 | X97: =IFERROR(VLOOKUP(B97,Baza[],24,0),"") -> 1.1 | Y97: =IFERROR(IF(VLOOKUP(B97,Baza[],25,0)=0,"-",VLOOKUP(B97,Baza[],25,0)),"") -> 1.37 | Z97: =IFERROR(IF(VLOOKUP(B97,Baza[],26,0)=0,"-",VLOOKUP(B97,Baza[],26,0)),"") -> 1.25 | AA97: =IFERROR(VLOOKUP(B97,Baza[],27,0),"") -> 1.52 | AB97: =IFERROR(VLOOKUP(B97,Baza[],28,0),"") -> 120 | AC97: =IF(TOT[[#This Row],[Profit]]="","#Н/Д",SUM($AA$85:AA97)) -> -0.4207865169 | AD97: =IF(TOT[[#This Row],[Grafik]]="#Н/Д",FALSE,TRUE) -> TRUE
A98: 13 | B98: 13 | C98: =IFERROR(VLOOKUP(B98,Baza[],2,0),"") -> 2021 | D98: =IF( TOT[[#This Row],[NN]]="","",TEXT( TOT[[#This Row],[Start]],"ч:мм")&" "&TOT[[#This Row],[V]]& TOT[[#This Row],[B]]&" "&"["& TOT[[#This Row],[Room]]&"] "& TOT[[#This Row],[Name]]) -> 14:00 $2,2 [PAC] Guaranteed | E98: =TOT[[#This Row],[V]]& TOT[[#This Row],[B]] -> $2,2 | F98: =IFERROR(VLOOKUP(B98,Baza[],3,0),"") -> 1 | G98: =IFERROR(VLOOKUP(B98,Baza[],4,0),"") -> пятница | H98: =IFERROR(VLOOKUP(B98,Baza[],5,0),"") -> январь | I98: =IFERROR(VLOOKUP(B98,Baza[],6,0),"") -> 2021-01-01 | J98: =IFERROR(VLOOKUP(B98,Baza[],7,0),"") -> 14:00:00 | K98: =IFERROR(VLOOKUP(B98,Baza[],8,0),"") -> $ | L98: =IFERROR(VLOOKUP(B98,Baza[],9,0),"") -> 2.2 | M98: =IFERROR(VLOOKUP(B98,Baza[],10,0),"") -> PAC | N98: =IFERROR(VLOOKUP(B98,Baza[],12,0),"") -> Guaranteed | O98: =IFERROR(VLOOKUP(B98,Baza[],14,0),"") -> 9 | P98: =IFERROR(VLOOKUP(B98,Baza[],15,0),"") -> - | Q98: =IFERROR(VLOOKUP(B98,Baza[],16,0),"") -> - | R98: =IFERROR(VLOOKUP(B98,Baza[],17,0),"") -> - | S98: =IFERROR(VLOOKUP(B98,Baza[],18,0),"") -> 500 | T98: =IFERROR(IF((VLOOKUP(B98,Baza[],19,0)+VLOOKUP(B98,Baza[],20,0))=0,"-",VLOOKUP(B98,Baza[],19,0)+VLOOKUP(B98,Baza[],20,0)),"") -> - | U98: =IFERROR(IF(VLOOKUP(B98,Baza[],21,0)=0,"-",VLOOKUP(B98,Baza[],21,0)),"") -> - | V98: =IFERROR(VLOOKUP(B98,Baza[],22,0),"") -> 0 | W98: =IFERROR(VLOOKUP(B98,Baza[],23,0),"") -> - | X98: =IFERROR(VLOOKUP(B98,Baza[],24,0),"") -> 2.2 | Y98: =IFERROR(IF(VLOOKUP(B98,Baza[],25,0)=0,"-",VLOOKUP(B98,Baza[],25,0)),"") -> - | Z98: =IFERROR(IF(VLOOKUP(B98,Baza[],26,0)=0,"-",VLOOKUP(B98,Baza[],26,0)),"") -> - | AA98: =IFERROR(VLOOKUP(B98,Baza[],27,0),"") -> -2.2 | AB98: =IFERROR(VLOOKUP(B98,Baza[],28,0),"") -> 300 | AC98: =IF(TOT[[#This Row],[Profit]]="","#Н/Д",SUM($AA$85:AA98)) -> -2.620786517 | AD98: =IF(TOT[[#This Row],[Grafik]]="#Н/Д",FALSE,TRUE) -> TRUE
A99: 14 | B99: 14 | C99: =IFERROR(VLOOKUP(B99,Baza[],2,0),"") -> 2021 | D99: =IF( TOT[[#This Row],[NN]]="","",TEXT( TOT[[#This Row],[Start]],"ч:мм")&" "&TOT[[#This Row],[V]]& TOT[[#This Row],[B]]&" "&"["& TOT[[#This Row],[Room]]&"] "& TOT[[#This Row],[Name]]) -> 14:20 $1,1 [PS] Progressive KO | E99: =TOT[[#This Row],[V]]& TOT[[#This Row],[B]] -> $1,1 | F99: =IFERROR(VLOOKUP(B99,Baza[],3,0),"") -> 1 | G99: =IFERROR(VLOOKUP(B99,Baza[],4,0),"") -> пятница | H99: =IFERROR(VLOOKUP(B99,Baza[],5,0),"") -> январь | I99: =IFERROR(VLOOKUP(B99,Baza[],6,0),"") -> 2021-01-01 | J99: =IFERROR(VLOOKUP(B99,Baza[],7,0),"") -> 14:20:00 | K99: =IFERROR(VLOOKUP(B99,Baza[],8,0),"") -> $ | L99: =IFERROR(VLOOKUP(B99,Baza[],9,0),"") -> 1.1 | M99: =IFERROR(VLOOKUP(B99,Baza[],10,0),"") -> PS | N99: =IFERROR(VLOOKUP(B99,Baza[],12,0),"") -> Progressive KO | O99: =IFERROR(VLOOKUP(B99,Baza[],14,0),"") -> 9 | P99: =IFERROR(VLOOKUP(B99,Baza[],15,0),"") -> - | Q99: =IFERROR(VLOOKUP(B99,Baza[],16,0),"") -> K | R99: =IFERROR(VLOOKUP(B99,Baza[],17,0),"") -> - | S99: =IFERROR(VLOOKUP(B99,Baza[],18,0),"") -> 2000 | T99: =IFERROR(IF((VLOOKUP(B99,Baza[],19,0)+VLOOKUP(B99,Baza[],20,0))=0,"-",VLOOKUP(B99,Baza[],19,0)+VLOOKUP(B99,Baza[],20,0)),"") -> - | U99: =IFERROR(IF(VLOOKUP(B99,Baza[],21,0)=0,"-",VLOOKUP(B99,Baza[],21,0)),"") -> - | V99: =IFERROR(VLOOKUP(B99,Baza[],22,0),"") -> 0 | W99: =IFERROR(VLOOKUP(B99,Baza[],23,0),"") -> - | X99: =IFERROR(VLOOKUP(B99,Baza[],24,0),"") -> 1.1 | Y99: =IFERROR(IF(VLOOKUP(B99,Baza[],25,0)=0,"-",VLOOKUP(B99,Baza[],25,0)),"") -> - | Z99: =IFERROR(IF(VLOOKUP(B99,Baza[],26,0)=0,"-",VLOOKUP(B99,Baza[],26,0)),"") -> - | AA99: =IFERROR(VLOOKUP(B99,Baza[],27,0),"") -> -1.1 | AB99: =IFERROR(VLOOKUP(B99,Baza[],28,0),"") -> 2400 | AC99: =IF(TOT[[#This Row],[Profit]]="","#Н/Д",SUM($AA$85:AA99)) -> -3.720786517 | AD99: =IF(TOT[[#This Row],[Grafik]]="#Н/Д",FALSE,TRUE) -> TRUE
A100: 15 | B100: 15 | C100: =IFERROR(VLOOKUP(B100,Baza[],2,0),"") -> 2021 | D100: =IF( TOT[[#This Row],[NN]]="","",TEXT( TOT[[#This Row],[Start]],"ч:мм")&" "&TOT[[#This Row],[V]]& TOT[[#This Row],[B]]&" "&"["& TOT[[#This Row],[Room]]&"] "& TOT[[#This Row],[Name]]) -> 14:30 $1,05 [GG] Bounty Hunters | E100: =TOT[[#This Row],[V]]& TOT[[#This Row],[B]] -> $1,05 | F100: =IFERROR(VLOOKUP(B100,Baza[],3,0),"") -> 1 | G100: =IFERROR(VLOOKUP(B100,Baza[],4,0),"") -> пятница | H100: =IFERROR(VLOOKUP(B100,Baza[],5,0),"") -> январь | I100: =IFERROR(VLOOKUP(B100,Baza[],6,0),"") -> 2021-01-01 | J100: =IFERROR(VLOOKUP(B100,Baza[],7,0),"") -> 14:30:00 | K100: =IFERROR(VLOOKUP(B100,Baza[],8,0),"") -> $ | L100: =IFERROR(VLOOKUP(B100,Baza[],9,0),"") -> 1.05 | M100: =IFERROR(VLOOKUP(B100,Baza[],10,0),"") -> GG | N100: =IFERROR(VLOOKUP(B100,Baza[],12,0),"") -> Bounty Hunters | O100: =IFERROR(VLOOKUP(B100,Baza[],14,0),"") -> 8 | P100: =IFERROR(VLOOKUP(B100,Baza[],15,0),"") -> - | Q100: =IFERROR(VLOOKUP(B100,Baza[],16,0),"") -> K | R100: =IFERROR(VLOOKUP(B100,Baza[],17,0),"") -> - | S100: =IFERROR(VLOOKUP(B100,Baza[],18,0),"") -> 750 | T100: =IFERROR(IF((VLOOKUP(B100,Baza[],19,0)+VLOOKUP(B100,Baza[],20,0))=0,"-",VLOOKUP(B100,Baza[],19,0)+VLOOKUP(B100,Baza[],20,0)),"") -> - | U100: =IFERROR(IF(VLOOKUP(B100,Baza[],21,0)=0,"-",VLOOKUP(B100,Baza[],21,0)),"") -> - | V100: =IFERROR(VLOOKUP(B100,Baza[],22,0),"") -> 0 | W100: =IFERROR(VLOOKUP(B100,Baza[],23,0),"") -> - | X100: =IFERROR(VLOOKUP(B100,Baza[],24,0),"") -> 1.05 | Y100: =IFERROR(IF(VLOOKUP(B100,Baza[],25,0)=0,"-",VLOOKUP(B100,Baza[],25,0)),"") -> - | Z100: =IFERROR(IF(VLOOKUP(B100,Baza[],26,0)=0,"-",VLOOKUP(B100,Baza[],26,0)),"") -> - | AA100: =IFERROR(VLOOKUP(B100,Baza[],27,0),"") -> -1.05 | AB100: =IFERROR(VLOOKUP(B100,Baza[],28,0),"") -> 942.8571429 | AC100: =IF(TOT[[#This Row],[Profit]]="","#Н/Д",SUM($AA$85:AA100)) -> -4.770786517 | AD100: =IF(TOT[[#This Row],[Grafik]]="#Н/Д",FALSE,TRUE) -> TRUE
A101: 16 | B101: 16 | C101: =IFERROR(VLOOKUP(B101,Baza[],2,0),"") -> 2021 | D101: =IF( TOT[[#This Row],[NN]]="","",TEXT( TOT[[#This Row],[Start]],"ч:мм")&" "&TOT[[#This Row],[V]]& TOT[[#This Row],[B]]&" "&"["& TOT[[#This Row],[Room]]&"] "& TOT[[#This Row],[Name]]) -> 15:00 $1,1 [PP] Bounty Hunter | E101: =TOT[[#This Row],[V]]& TOT[[#This Row],[B]] -> $1,1 | F101: =IFERROR(VLOOKUP(B101,Baza[],3,0),"") -> 1 | G101: =IFERROR(VLOOKUP(B101,Baza[],4,0),"") -> пятница | H101: =IFERROR(VLOOKUP(B101,Baza[],5,0),"") -> январь | I101: =IFERROR(VLOOKUP(B101,Baza[],6,0),"") -> 2021-01-01 | J101: =IFERROR(VLOOKUP(B101,Baza[],7,0),"") -> 15:00:00 | K101: =IFERROR(VLOOKUP(B101,Baza[],8,0),"") -> $ | L101: =IFERROR(VLOOKUP(B101,Baza[],9,0),"") -> 1.1 | M101: =IFERROR(VLOOKUP(B101,Baza[],10,0),"") -> PP | N101: =IFERROR(VLOOKUP(B101,Baza[],12,0),"") -> Bounty Hunter | O101: =IFERROR(VLOOKUP(B101,Baza[],14,0),"") -> 8 | P101: =IFERROR(VLOOKUP(B101,Baza[],15,0),"") -> - | Q101: =IFERROR(VLOOKUP(B101,Baza[],16,0),"") -> K | R101: =IFERROR(VLOOKUP(B101,Baza[],17,0),"") -> - | S101: =IFERROR(VLOOKUP(B101,Baza[],18,0),"") -> 200 | T101: =IFERROR(IF((VLOOKUP(B101,Baza[],19,0)+VLOOKUP(B101,Baza[],20,0))=0,"-",VLOOKUP(B101,Baza[],19,0)+VLOOKUP(B101,Baza[],20,0)),"") -> - | U101: =IFERROR(IF(VLOOKUP(B101,Baza[],21,0)=0,"-",VLOOKUP(B101,Baza[],21,0)),"") -> - | V101: =IFERROR(VLOOKUP(B101,Baza[],22,0),"") -> 0 | W101: =IFERROR(VLOOKUP(B101,Baza[],23,0),"") -> - | X101: =IFERROR(VLOOKUP(B101,Baza[],24,0),"") -> 1.1 | Y101: =IFERROR(IF(VLOOKUP(B101,Baza[],25,0)=0,"-",VLOOKUP(B101,Baza[],25,0)),"") -> - | Z101: =IFERROR(IF(VLOOKUP(B101,Baza[],26,0)=0,"-",VLOOKUP(B101,Baza[],26,0)),"") -> - | AA101: =IFERROR(VLOOKUP(B101,Baza[],27,0),"") -> -1.1 | AB101: =IFERROR(VLOOKUP(B101,Baza[],28,0),"") -> 240 | AC101: =IF(TOT[[#This Row],[Profit]]="","#Н/Д",SUM($AA$85:AA101)) -> -5.870786517 | AD101: =IF(TOT[[#This Row],[Grafik]]="#Н/Д",FALSE,TRUE) -> TRUE
A102: 17 | B102: 17 | C102: =IFERROR(VLOOKUP(B102,Baza[],2,0),"") -> 2021 | D102: =IF( TOT[[#This Row],[NN]]="","",TEXT( TOT[[#This Row],[Start]],"ч:мм")&" "&TOT[[#This Row],[V]]& TOT[[#This Row],[B]]&" "&"["& TOT[[#This Row],[Room]]&"] "& TOT[[#This Row],[Name]]) -> 15:00 $1,1 [PS] GTD | E102: =TOT[[#This Row],[V]]& TOT[[#This Row],[B]] -> $1,1 | F102: =IFERROR(VLOOKUP(B102,Baza[],3,0),"") -> 1 | G102: =IFERROR(VLOOKUP(B102,Baza[],4,0),"") -> пятница | H102: =IFERROR(VLOOKUP(B102,Baza[],5,0),"") -> январь | I102: =IFERROR(VLOOKUP(B102,Baza[],6,0),"") -> 2021-01-01 | J102: =IFERROR(VLOOKUP(B102,Baza[],7,0),"") -> 15:00:00 | K102: =IFERROR(VLOOKUP(B102,Baza[],8,0),"") -> $ | L102: =IFERROR(VLOOKUP(B102,Baza[],9,0),"") -> 1.1 | M102: =IFERROR(VLOOKUP(B102,Baza[],10,0),"") -> PS | N102: =IFERROR(VLOOKUP(B102,Baza[],12,0),"") -> GTD | O102: =IFERROR(VLOOKUP(B102,Baza[],14,0),"") -> 9 | P102: =IFERROR(VLOOKUP(B102,Baza[],15,0),"") -> - | Q102: =IFERROR(VLOOKUP(B102,Baza[],16,0),"") -> - | R102: =IFERROR(VLOOKUP(B102,Baza[],17,0),"") -> - | S102: =IFERROR(VLOOKUP(B102,Baza[],18,0),"") -> 750 | T102: =IFERROR(IF((VLOOKUP(B102,Baza[],19,0)+VLOOKUP(B102,Baza[],20,0))=0,"-",VLOOKUP(B102,Baza[],19,0)+VLOOKUP(B102,Baza[],20,0)),"") -> - | U102: =IFERROR(IF(VLOOKUP(B102,Baza[],21,0)=0,"-",VLOOKUP(B102,Baza[],21,0)),"") -> 6.47 | V102: =IFERROR(VLOOKUP(B102,Baza[],22,0),"") -> 0 | W102: =IFERROR(VLOOKUP(B102,Baza[],23,0),"") -> 19 | X102: =IFERROR(VLOOKUP(B102,Baza[],24,0),"") -> 1.1 | Y102: =IFERROR(IF(VLOOKUP(B102,Baza[],25,0)=0,"-",VLOOKUP(B102,Baza[],25,0)),"") -> - | Z102: =IFERROR(IF(VLOOKUP(B102,Baza[],26,0)=0,"-",VLOOKUP(B102,Baza[],26,0)),"") -> 6.47 | AA102: =IFERROR(VLOOKUP(B102,Baza[],27,0),"") -> 5.37 | AB102: =IFERROR(VLOOKUP(B102,Baza[],28,0),"") -> 900 | AC102: =IF(TOT[[#This Row],[Profit]]="","#Н/Д",SUM($AA$85:AA102)) -> -0.5007865169 | AD102: =IF(TOT[[#This Row],[Grafik]]="#Н/Д",FALSE,TRUE) -> TRUE
A103: 18 | B103: 18 | C103: =IFERROR(VLOOKUP(B103,Baza[],2,0),"") -> 2021 | D103: =IF( TOT[[#This Row],[NN]]="","",TEXT( TOT[[#This Row],[Start]],"ч:мм")&" "&TOT[[#This Row],[V]]& TOT[[#This Row],[B]]&" "&"["& TOT[[#This Row],[Room]]&"] "& TOT[[#This Row],[Name]]) -> 15:00 €1 [WN] Monster Stack | E103: =TOT[[#This Row],[V]]& TOT[[#This Row],[B]] -> €1 | F103: =IFERROR(VLOOKUP(B103,Baza[],3,0),"") -> 1 | G103: =IFERROR(VLOOKUP(B103,Baza[],4,0),"") -> пятница | H103: =IFERROR(VLOOKUP(B103,Baza[],5,0),"") -> январь | I103: =IFERROR(VLOOKUP(B103,Baza[],6,0),"") -> 2021-01-01 | J103: =IFERROR(VLOOKUP(B103,Baza[],7,0),"") -> 15:00:00 | K103: =IFERROR(VLOOKUP(B103,Baza[],8,0),"") -> € | L103: =IFERROR(VLOOKUP(B103,Baza[],9,0),"") -> 1 | M103: =IFERROR(VLOOKUP(B103,Baza[],10,0),"") -> WN | N103: =IFERROR(VLOOKUP(B103,Baza[],12,0),"") -> Monster Stack | O103: =IFERROR(VLOOKUP(B103,Baza[],14,0),"") -> 6 | P103: =IFERROR(VLOOKUP(B103,Baza[],15,0),"") -> - | Q103: =IFERROR(VLOOKUP(B103,Baza[],16,0),"") -> - | R103: =IFERROR(VLOOKUP(B103,Baza[],17,0),"") -> - | S103: =IFERROR(VLOOKUP(B103,Baza[],18,0),"") -> 250 | T103: =IFERROR(IF((VLOOKUP(B103,Baza[],19,0)+VLOOKUP(B103,Baza[],20,0))=0,"-",VLOOKUP(B103,Baza[],19,0)+VLOOKUP(B103,Baza[],20,0)),"") -> - | U103: =IFERROR(IF(VLOOKUP(B103,Baza[],21,0)=0,"-",VLOOKUP(B103,Baza[],21,0)),"") -> - | V103: =IFERROR(VLOOKUP(B103,Baza[],22,0),"") -> 0 | W103: =IFERROR(VLOOKUP(B103,Baza[],23,0),"") -> - | X103: =IFERROR(VLOOKUP(B103,Baza[],24,0),"") -> 1.123595506 | Y103: =IFERROR(IF(VLOOKUP(B103,Baza[],25,0)=0,"-",VLOOKUP(B103,Baza[],25,0)),"") -> - | Z103: =IFERROR(IF(VLOOKUP(B103,Baza[],26,0)=0,"-",VLOOKUP(B103,Baza[],26,0)),"") -> - | AA103: =IFERROR(VLOOKUP(B103,Baza[],27,0),"") -> -1.123595506 | AB103: =IFERROR(VLOOKUP(B103,Baza[],28,0),"") -> 330 | AC103: =IF(TOT[[#This Row],[Profit]]="","#Н/Д",SUM($AA$85:AA103)) -> -1.624382022 | AD103: =IF(TOT[[#This Row],[Grafik]]="#Н/Д",FALSE,TRUE) -> TRUE
A104: 19 | B104: 19 | C104: =IFERROR(VLOOKUP(B104,Baza[],2,0),"") -> 2021 | D104: =IF( TOT[[#This Row],[NN]]="","",TEXT( TOT[[#This Row],[Start]],"ч:мм")&" "&TOT[[#This Row],[V]]& TOT[[#This Row],[B]]&" "&"["& TOT[[#This Row],[Room]]&"] "& TOT[[#This Row],[Name]]) -> 16:00 $1 [PAC] 6-Max Think Fast | E104: =TOT[[#This Row],[V]]& TOT[[#This Row],[B]] -> $1 | F104: =IFERROR(VLOOKUP(B104,Baza[],3,0),"") -> 1 | G104: =IFERROR(VLOOKUP(B104,Baza[],4,0),"") -> пятница | H104: =IFERROR(VLOOKUP(B104,Baza[],5,0),"") -> январь | I104: =IFERROR(VLOOKUP(B104,Baza[],6,0),"") -> 2021-01-01 | J104: =IFERROR(VLOOKUP(B104,Baza[],7,0),"") -> 16:00:00 | K104: =IFERROR(VLOOKUP(B104,Baza[],8,0),"") -> $ | L104: =IFERROR(VLOOKUP(B104,Baza[],9,0),"") -> 1 | M104: =IFERROR(VLOOKUP(B104,Baza[],10,0),"") -> PAC | N104: =IFERROR(VLOOKUP(B104,Baza[],12,0),"") -> 6-Max Think Fast | O104: =IFERROR(VLOOKUP(B104,Baza[],14,0),"") -> 6 | P104: =IFERROR(VLOOKUP(B104,Baza[],15,0),"") -> - | Q104: =IFERROR(VLOOKUP(B104,Baza[],16,0),"") -> - | R104: =IFERROR(VLOOKUP(B104,Baza[],17,0),"") -> - | S104: =IFERROR(VLOOKUP(B104,Baza[],18,0),"") -> 300 | T104: =IFERROR(IF((VLOOKUP(B104,Baza[],19,0)+VLOOKUP(B104,Baza[],20,0))=0,"-",VLOOKUP(B104,Baza[],19,0)+VLOOKUP(B104,Baza[],20,0)),"") -> - | U104: =IFERROR(IF(VLOOKUP(B104,Baza[],21,0)=0,"-",VLOOKUP(B104,Baza[],21,0)),"") -> - | V104: =IFERROR(VLOOKUP(B104,Baza[],22,0),"") -> 0 | W104: =IFERROR(VLOOKUP(B104,Baza[],23,0),"") -> - | X104: =IFERROR(VLOOKUP(B104,Baza[],24,0),"") -> 1 | Y104: =IFERROR(IF(VLOOKUP(B104,Baza[],25,0)=0,"-",VLOOKUP(B104,Baza[],25,0)),"") -> - | Z104: =IFERROR(IF(VLOOKUP(B104,Baza[],26,0)=0,"-",VLOOKUP(B104,Baza[],26,0)),"") -> - | AA104: =IFERROR(VLOOKUP(B104,Baza[],27,0),"") -> -1 | AB104: =IFERROR(VLOOKUP(B104,Baza[],28,0),"") -> 396 | AC104: =IF(TOT[[#This Row],[Profit]]="","#Н/Д",SUM($AA$85:AA104)) -> -2.624382022 | AD104: =IF(TOT[[#This Row],[Grafik]]="#Н/Д",FALSE,TRUE) -> TRUE
A105: 20 | B105: 20 | C105: =IFERROR(VLOOKUP(B105,Baza[],2,0),"") -> 2021 | D105: =IF( TOT[[#This Row],[NN]]="","",TEXT( TOT[[#This Row],[Start]],"ч:мм")&" "&TOT[[#This Row],[V]]& TOT[[#This Row],[B]]&" "&"["& TOT[[#This Row],[Room]]&"] "& TOT[[#This Row],[Name]]) -> 16:15 $1,1 [PAC] Guaranteed PKO | E105: =TOT[[#This Row],[V]]& TOT[[#This Row],[B]] -> $1,1 | F105: =IFERROR(VLOOKUP(B105,Baza[],3,0),"") -> 1 | G105: =IFERROR(VLOOKUP(B105,Baza[],4,0),"") -> пятница | H105: =IFERROR(VLOOKUP(B105,Baza[],5,0),"") -> январь | I105: =IFERROR(VLOOKUP(B105,Baza[],6,0),"") -> 2021-01-01 | J105: =IFERROR(VLOOKUP(B105,Baza[],7,0),"") -> 16:15:00 | K105: =IFERROR(VLOOKUP(B105,Baza[],8,0),"") -> $ | L105: =IFERROR(VLOOKUP(B105,Baza[],9,0),"") -> 1.1 | M105: =IFERROR(VLOOKUP(B105,Baza[],10,0),"") -> PAC | N105: =IFERROR(VLOOKUP(B105,Baza[],12,0),"") -> Guaranteed PKO | O105: =IFERROR(VLOOKUP(B105,Baza[],14,0),"") -> 9 | P105: =IFERROR(VLOOKUP(B105,Baza[],15,0),"") -> - | Q105: =IFERROR(VLOOKUP(B105,Baza[],16,0),"") -> K | R105: =IFERROR(VLOOKUP(B105,Baza[],17,0),"") -> - | S105: =IFERROR(VLOOKUP(B105,Baza[],18,0),"") -> 300 | T105: =IFERROR(IF((VLOOKUP(B105,Baza[],19,0)+VLOOKUP(B105,Baza[],20,0))=0,"-",VLOOKUP(B105,Baza[],19,0)+VLOOKUP(B105,Baza[],20,0)),"") -> 0.25 | U105: =IFERROR(IF(VLOOKUP(B105,Baza[],21,0)=0,"-",VLOOKUP(B105,Baza[],21,0)),"") -> - | V105: =IFERROR(VLOOKUP(B105,Baza[],22,0),"") -> 0 | W105: =IFERROR(VLOOKUP(B105,Baza[],23,0),"") -> - | X105: =IFERROR(VLOOKUP(B105,Baza[],24,0),"") -> 1.1 | Y105: =IFERROR(IF(VLOOKUP(B105,Baza[],25,0)=0,"-",VLOOKUP(B105,Baza[],25,0)),"") -> 0.25 | Z105: =IFERROR(IF(VLOOKUP(B105,Baza[],26,0)=0,"-",VLOOKUP(B105,Baza[],26,0)),"") -> - | AA105: =IFERROR(VLOOKUP(B105,Baza[],27,0),"") -> -0.85 | AB105: =IFERROR(VLOOKUP(B105,Baza[],28,0),"") -> 360 | AC105: =IF(TOT[[#This Row],[Profit]]="","#Н/Д",SUM($AA$85:AA105)) -> -3.474382022 | AD105: =IF(TOT[[#This Row],[Grafik]]="#Н/Д",FALSE,TRUE) -> TRUE
A106: 21 | B106: 21 | C106: =IFERROR(VLOOKUP(B106,Baza[],2,0),"") -> 2021 | D106: =IF( TOT[[#This Row],[NN]]="","",TEXT( TOT[[#This Row],[Start]],"ч:мм")&" "&TOT[[#This Row],[V]]& TOT[[#This Row],[B]]&" "&"["& TOT[[#This Row],[Room]]&"] "& TOT[[#This Row],[Name]]) -> 16:15 $1,1 [PS] GTD | E106: =TOT[[#This Row],[V]]& TOT[[#This Row],[B]] -> $1,1 | F106: =IFERROR(VLOOKUP(B106,Baza[],3,0),"") -> 1 | G106: =IFERROR(VLOOKUP(B106,Baza[],4,0),"") -> пятница | H106: =IFERROR(VLOOKUP(B106,Baza[],5,0),"") -> январь | I106: =IFERROR(VLOOKUP(B106,Baza[],6,0),"") -> 2021-01-01 | J106: =IFERROR(VLOOKUP(B106,Baza[],7,0),"") -> 16:15:00 | K106: =IFERROR(VLOOKUP(B106,Baza[],8,0),"") -> $ | L106: =IFERROR(VLOOKUP(B106,Baza[],9,0),"") -> 1.1 | M106: =IFERROR(VLOOKUP(B106,Baza[],10,0),"") -> PS | N106: =IFERROR(VLOOKUP(B106,Baza[],12,0),"") -> GTD | O106: =IFERROR(VLOOKUP(B106,Baza[],14,0),"") -> 9 | P106: =IFERROR(VLOOKUP(B106,Baza[],15,0),"") -> - | Q106: =IFERROR(VLOOKUP(B106,Baza[],16,0),"") -> - | R106: =IFERROR(VLOOKUP(B106,Baza[],17,0),"") -> - | S106: =IFERROR(VLOOKUP(B106,Baza[],18,0),"") -> 1500 | T106: =IFERROR(IF((VLOOKUP(B106,Baza[],19,0)+VLOOKUP(B106,Baza[],20,0))=0,"-",VLOOKUP(B106,Baza[],19,0)+VLOOKUP(B106,Baza[],20,0)),"") -> - | U106: =IFERROR(IF(VLOOKUP(B106,Baza[],21,0)=0,"-",VLOOKUP(B106,Baza[],21,0)),"") -> 3.97 | V106: =IFERROR(VLOOKUP(B106,Baza[],22,0),"") -> 0 | W106: =IFERROR(VLOOKUP(B106,Baza[],23,0),"") -> 145 | X106: =IFERROR(VLOOKUP(B106,Baza[],24,0),"") -> 1.1 | Y106: =IFERROR(IF(VLOOKUP(B106,Baza[],25,0)=0,"-",VLOOKUP(B106,Baza[],25,0)),"") -> - | Z106: =IFERROR(IF(VLOOKUP(B106,Baza[],26,0)=0,"-",VLOOKUP(B106,Baza[],26,0)),"") -> 3.97 | AA106: =IFERROR(VLOOKUP(B106,Baza[],27,0),"") -> 2.87 | AB106: =IFERROR(VLOOKUP(B106,Baza[],28,0),"") -> 1800 | AC106: =IF(TOT[[#This Row],[Profit]]="","#Н/Д",SUM($AA$85:AA106)) -> -0.6043820225 | AD106: =IF(TOT[[#This Row],[Grafik]]="#Н/Д",FALSE,TRUE) -> TRUE
A107: 22 | B107: 22 | C107: =IFERROR(VLOOKUP(B107,Baza[],2,0),"") -> 2021 | D107: =IF( TOT[[#This Row],[NN]]="","",TEXT( TOT[[#This Row],[Start]],"ч:мм")&" "&TOT[[#This Row],[V]]& TOT[[#This Row],[B]]&" "&"["& TOT[[#This Row],[Room]]&"] "& TOT[[#This Row],[Name]]) -> 16:30 $2,2 [PAC] Guaranteed | E107: =TOT[[#This Row],[V]]& TOT[[#This Row],[B]] -> $2,2 | F107: =IFERROR(VLOOKUP(B107,Baza[],3,0),"") -> 1 | G107: =IFERROR(VLOOKUP(B107,Baza[],4,0),"") -> пятница | H107: =IFERROR(VLOOKUP(B107,Baza[],5,0),"") -> январь | I107: =IFERROR(VLOOKUP(B107,Baza[],6,0),"") -> 2021-01-01 | J107: =IFERROR(VLOOKUP(B107,Baza[],7,0),"") -> 16:30:00 | K107: =IFERROR(VLOOKUP(B107,Baza[],8,0),"") -> $ | L107: =IFERROR(VLOOKUP(B107,Baza[],9,0),"") -> 2.2 | M107: =IFERROR(VLOOKUP(B107,Baza[],10,0),"") -> PAC | N107: =IFERROR(VLOOKUP(B107,Baza[],12,0),"") -> Guaranteed | O107: =IFERROR(VLOOKUP(B107,Baza[],14,0),"") -> 9 | P107: =IFERROR(VLOOKUP(B107,Baza[],15,0),"") -> - | Q107: =IFERROR(VLOOKUP(B107,Baza[],16,0),"") -> - | R107: =IFERROR(VLOOKUP(B107,Baza[],17,0),"") -> - | S107: =IFERROR(VLOOKUP(B107,Baza[],18,0),"") -> 500 | T107: =IFERROR(IF((VLOOKUP(B107,Baza[],19,0)+VLOOKUP(B107,Baza[],20,0))=0,"-",VLOOKUP(B107,Baza[],19,0)+VLOOKUP(B107,Baza[],20,0)),"") -> - | U107: =IFERROR(IF(VLOOKUP(B107,Baza[],21,0)=0,"-",VLOOKUP(B107,Baza[],21,0)),"") -> - | V107: =IFERROR(VLOOKUP(B107,Baza[],22,0),"") -> 0 | W107: =IFERROR(VLOOKUP(B107,Baza[],23,0),"") -> - | X107: =IFERROR(VLOOKUP(B107,Baza[],24,0),"") -> 2.2 | Y107: =IFERROR(IF(VLOOKUP(B107,Baza[],25,0)=0,"-",VLOOKUP(B107,Baza[],25,0)),"") -> - | Z107: =IFERROR(IF(VLOOKUP(B107,Baza[],26,0)=0,"-",VLOOKUP(B107,Baza[],26,0)),"") -> - | AA107: =IFERROR(VLOOKUP(B107,Baza[],27,0),"") -> -2.2 | AB107: =IFERROR(VLOOKUP(B107,Baza[],28,0),"") -> 300 | AC107: =IF(TOT[[#This Row],[Profit]]="","#Н/Д",SUM($AA$85:AA107)) -> -2.804382022 | AD107: =IF(TOT[[#This Row],[Grafik]]="#Н/Д",FALSE,TRUE) -> TRUE
A108: 23 | B108: 23 | C108: =IFERROR(VLOOKUP(B108,Baza[],2,0),"") -> 2021 | D108: =IF( TOT[[#This Row],[NN]]="","",TEXT( TOT[[#This Row],[Start]],"ч:мм")&" "&TOT[[#This Row],[V]]& TOT[[#This Row],[B]]&" "&"["& TOT[[#This Row],[Room]]&"] "& TOT[[#This Row],[Name]]) -> 11:00 $1,1 [PP] Bounty Hunter | E108: =TOT[[#This Row],[V]]& TOT[[#This Row],[B]] -> $1,1 | F108: =IFERROR(VLOOKUP(B108,Baza[],3,0),"") -> 1 | G108: =IFERROR(VLOOKUP(B108,Baza[],4,0),"") -> суббота | H108: =IFERROR(VLOOKUP(B108,Baza[],5,0),"") -> январь | I108: =IFERROR(VLOOKUP(B108,Baza[],6,0),"") -> 2021-01-02 | J108: =IFERROR(VLOOKUP(B108,Baza[],7,0),"") -> 11:00:00 | K108: =IFERROR(VLOOKUP(B108,Baza[],8,0),"") -> $ | L108: =IFERROR(VLOOKUP(B108,Baza[],9,0),"") -> 1.1 | M108: =IFERROR(VLOOKUP(B108,Baza[],10,0),"") -> PP | N108: =IFERROR(VLOOKUP(B108,Baza[],12,0),"") -> Bounty Hunter | O108: =IFERROR(VLOOKUP(B108,Baza[],14,0),"") -> 8 | P108: =IFERROR(VLOOKUP(B108,Baza[],15,0),"") -> - | Q108: =IFERROR(VLOOKUP(B108,Baza[],16,0),"") -> K | R108: =IFERROR(VLOOKUP(B108,Baza[],17,0),"") -> - | S108: =IFERROR(VLOOKUP(B108,Baza[],18,0),"") -> 75 | T108: =IFERROR(IF((VLOOKUP(B108,Baza[],19,0)+VLOOKUP(B108,Baza[],20,0))=0,"-",VLOOKUP(B108,Baza[],19,0)+VLOOKUP(B108,Baza[],20,0)),"") -> - | U108: =IFERROR(IF(VLOOKUP(B108,Baza[],21,0)=0,"-",VLOOKUP(B108,Baza[],21,0)),"") -> - | V108: =IFERROR(VLOOKUP(B108,Baza[],22,0),"") -> 0 | W108: =IFERROR(VLOOKUP(B108,Baza[],23,0),"") -> - | X108: =IFERROR(VLOOKUP(B108,Baza[],24,0),"") -> 1.1 | Y108: =IFERROR(IF(VLOOKUP(B108,Baza[],25,0)=0,"-",VLOOKUP(B108,Baza[],25,0)),"") -> - | Z108: =IFERROR(IF(VLOOKUP(B108,Baza[],26,0)=0,"-",VLOOKUP(B108,Baza[],26,0)),"") -> - | AA108: =IFERROR(VLOOKUP(B108,Baza[],27,0),"") -> -1.1 | AB108: =IFERROR(VLOOKUP(B108,Baza[],28,0),"") -> 90 | AC108: =IF(TOT[[#This Row],[Profit]]="","#Н/Д",SUM($AA$85:AA108)) -> -3.904382022 | AD108: =IF(TOT[[#This Row],[Grafik]]="#Н/Д",FALSE,TRUE) -> TRUE
A109: 24 | B109: 24 | C109: =IFERROR(VLOOKUP(B109,Baza[],2,0),"") -> 2021 | D109: =IF( TOT[[#This Row],[NN]]="","",TEXT( TOT[[#This Row],[Start]],"ч:мм")&" "&TOT[[#This Row],[V]]& TOT[[#This Row],[B]]&" "&"["& TOT[[#This Row],[Room]]&"] "& TOT[[#This Row],[Name]]) -> 11:00 €1 [WN] Monster Stack | E109: =TOT[[#This Row],[V]]& TOT[[#This Row],[B]] -> €1 | F109: =IFERROR(VLOOKUP(B109,Baza[],3,0),"") -> 1 | G109: =IFERROR(VLOOKUP(B109,Baza[],4,0),"") -> суббота | H109: =IFERROR(VLOOKUP(B109,Baza[],5,0),"") -> январь | I109: =IFERROR(VLOOKUP(B109,Baza[],6,0),"") -> 2021-01-02 | J109: =IFERROR(VLOOKUP(B109,Baza[],7,0),"") -> 11:00:00 | K109: =IFERROR(VLOOKUP(B109,Baza[],8,0),"") -> € | L109: =IFERROR(VLOOKUP(B109,Baza[],9,0),"") -> 1 | M109: =IFERROR(VLOOKUP(B109,Baza[],10,0),"") -> WN | N109: =IFERROR(VLOOKUP(B109,Baza[],12,0),"") -> Monster Stack | O109: =IFERROR(VLOOKUP(B109,Baza[],14,0),"") -> 6 | P109: =IFERROR(VLOOKUP(B109,Baza[],15,0),"") -> - | Q109: =IFERROR(VLOOKUP(B109,Baza[],16,0),"") -> - | R109: =IFERROR(VLOOKUP(B109,Baza[],17,0),"") -> - | S109: =IFERROR(VLOOKUP(B109,Baza[],18,0),"") -> 150 | T109: =IFERROR(IF((VLOOKUP(B109,Baza[],19,0)+VLOOKUP(B109,Baza[],20,0))=0,"-",VLOOKUP(B109,Baza[],19,0)+VLOOKUP(B109,Baza[],20,0)),"") -> - | U109: =IFERROR(IF(VLOOKUP(B109,Baza[],21,0)=0,"-",VLOOKUP(B109,Baza[],21,0)),"") -> 62.92 | V109: =IFERROR(VLOOKUP(B109,Baza[],22,0),"") -> 0 | W109: =IFERROR(VLOOKUP(B109,Baza[],23,0),"") -> 1 | X109: =IFERROR(VLOOKUP(B109,Baza[],24,0),"") -> 1.123595506 | Y109: =IFERROR(IF(VLOOKUP(B109,Baza[],25,0)=0,"-",VLOOKUP(B109,Baza[],25,0)),"") -> - | Z109: =IFERROR(IF(VLOOKUP(B109,Baza[],26,0)=0,"-",VLOOKUP(B109,Baza[],26,0)),"") -> 70.69662921 | AA109: =IFERROR(VLOOKUP(B109,Baza[],27,0),"") -> 69.57303371 | AB109: =IFERROR(VLOOKUP(B109,Baza[],28,0),"") -> 198 | AC109: =IF(TOT[[#This Row],[Profit]]="","#Н/Д",SUM($AA$85:AA109)) -> 65.66865169 | AD109: =IF(TOT[[#This Row],[Grafik]]="#Н/Д",FALSE,TRUE) -> TRUE
A110: 25 | B110: 25 | C110: =IFERROR(VLOOKUP(B110,Baza[],2,0),"") -> 2021 | D110: =IF( TOT[[#This Row],[NN]]="","",TEXT( TOT[[#This Row],[Start]],"ч:мм")&" "&TOT[[#This Row],[V]]& TOT[[#This Row],[B]]&" "&"["& TOT[[#This Row],[Room]]&"] "& TOT[[#This Row],[Name]]) -> 11:15 $2,2 [PP] Deepstack | E110: =TOT[[#This Row],[V]]& TOT[[#This Row],[B]] -> $2,2 | F110: =IFERROR(VLOOKUP(B110,Baza[],3,0),"") -> 1 | G110: =IFERROR(VLOOKUP(B110,Baza[],4,0),"") -> суббота | H110: =IFERROR(VLOOKUP(B110,Baza[],5,0),"") -> январь | I110: =IFERROR(VLOOKUP(B110,Baza[],6,0),"") -> 2021-01-02 | J110: =IFERROR(VLOOKUP(B110,Baza[],7,0),"") -> 11:15:00 | K110: =IFERROR(VLOOKUP(B110,Baza[],8,0),"") -> $ | L110: =IFERROR(VLOOKUP(B110,Baza[],9,0),"") -> 2.2 | M110: =IFERROR(VLOOKUP(B110,Baza[],10,0),"") -> PP | N110: =IFERROR(VLOOKUP(B110,Baza[],12,0),"") -> Deepstack | O110: =IFERROR(VLOOKUP(B110,Baza[],14,0),"") -> 8 | P110: =IFERROR(VLOOKUP(B110,Baza[],15,0),"") -> - | Q110: =IFERROR(VLOOKUP(B110,Baza[],16,0),"") -> - | R110: =IFERROR(VLOOKUP(B110,Baza[],17,0),"") -> - | S110: =IFERROR(VLOOKUP(B110,Baza[],18,0),"") -> 300 | T110: =IFERROR(IF((VLOOKUP(B110,Baza[],19,0)+VLOOKUP(B110,Baza[],20,0))=0,"-",VLOOKUP(B110,Baza[],19,0)+VLOOKUP(B110,Baza[],20,0)),"") -> - | U110: =IFERROR(IF(VLOOKUP(B110,Baza[],21,0)=0,"-",VLOOKUP(B110,Baza[],21,0)),"") -> - | V110: =IFERROR(VLOOKUP(B110,Baza[],22,0),"") -> 0 | W110: =IFERROR(VLOOKUP(B110,Baza[],23,0),"") -> - | X110: =IFERROR(VLOOKUP(B110,Baza[],24,0),"") -> 2.2 | Y110: =IFERROR(IF(VLOOKUP(B110,Baza[],25,0)=0,"-",VLOOKUP(B110,Baza[],25,0)),"") -> - | Z110: =IFERROR(IF(VLOOKUP(B110,Baza[],26,0)=0,"-",VLOOKUP(B110,Baza[],26,0)),"") -> - | AA110: =IFERROR(VLOOKUP(B110,Baza[],27,0),"") -> -2.2 | AB110: =IFERROR(VLOOKUP(B110,Baza[],28,0),"") -> 180 | AC110: =IF(TOT[[#This Row],[Profit]]="","#Н/Д",SUM($AA$85:AA110)) -> 63.46865169 | AD110: =IF(TOT[[#This Row],[Grafik]]="#Н/Д",FALSE,TRUE) -> TRUE
A111: 26 | B111: 26 | C111: =IFERROR(VLOOKUP(B111,Baza[],2,0),"") -> 2021 | D111: =IF( TOT[[#This Row],[NN]]="","",TEXT( TOT[[#This Row],[Start]],"ч:мм")&" "&TOT[[#This Row],[V]]& TOT[[#This Row],[B]]&" "&"["& TOT[[#This Row],[Room]]&"] "& TOT[[#This Row],[Name]]) -> 11:30 $2,1 [GG] Bounty Hunters | E111: =TOT[[#This Row],[V]]& TOT[[#This Row],[B]] -> $2,1 | F111: =IFERROR(VLOOKUP(B111,Baza[],3,0),"") -> 1 | G111: =IFERROR(VLOOKUP(B111,Baza[],4,0),"") -> суббота | H111: =IFERROR(VLOOKUP(B111,Baza[],5,0),"") -> январь | I111: =IFERROR(VLOOKUP(B111,Baza[],6,0),"") -> 2021-01-02 | J111: =IFERROR(VLOOKUP(B111,Baza[],7,0),"") -> 11:30:00 | K111: =IFERROR(VLOOKUP(B111,Baza[],8,0),"") -> $ | L111: =IFERROR(VLOOKUP(B111,Baza[],9,0),"") -> 2.1 | M111: =IFERROR(VLOOKUP(B111,Baza[],10,0),"") -> GG | N111: =IFERROR(VLOOKUP(B111,Baza[],12,0),"") -> Bounty Hunters | O111: =IFERROR(VLOOKUP(B111,Baza[],14,0),"") -> 8 | P111: =IFERROR(VLOOKUP(B111,Baza[],15,0),"") -> - | Q111: =IFERROR(VLOOKUP(B111,Baza[],16,0),"") -> K | R111: =IFERROR(VLOOKUP(B111,Baza[],17,0),"") -> - | S111: =IFERROR(VLOOKUP(B111,Baza[],18,0),"") -> 1200 | T111: =IFERROR(IF((VLOOKUP(B111,Baza[],19,0)+VLOOKUP(B111,Baza[],20,0))=0,"-",VLOOKUP(B111,Baza[],19,0)+VLOOKUP(B111,Baza[],20,0)),"") -> 0.5 | U111: =IFERROR(IF(VLOOKUP(B111,Baza[],21,0)=0,"-",VLOOKUP(B111,Baza[],21,0)),"") -> - | V111: =IFERROR(VLOOKUP(B111,Baza[],22,0),"") -> 0 | W111: =IFERROR(VLOOKUP(B111,Baza[],23,0),"") -> - | X111: =IFERROR(VLOOKUP(B111,Baza[],24,0),"") -> 2.1 | Y111: =IFERROR(IF(VLOOKUP(B111,Baza[],25,0)=0,"-",VLOOKUP(B111,Baza[],25,0)),"") -> 0.5 | Z111: =IFERROR(IF(VLOOKUP(B111,Baza[],26,0)=0,"-",VLOOKUP(B111,Baza[],26,0)),"") -> - | AA111: =IFERROR(VLOOKUP(B111,Baza[],27,0),"") -> -1.6 | AB111: =IFERROR(VLOOKUP(B111,Baza[],28,0),"") -> 754.2857143 | AC111: =IF(TOT[[#This Row],[Profit]]="","#Н/Д",SUM($AA$85:AA111)) -> 61.86865169 | AD111: =IF(TOT[[#This Row],[Grafik]]="#Н/Д",FALSE,TRUE) -> TRUE
A112: 27 | B112: 27 | C112: =IFERROR(VLOOKUP(B112,Baza[],2,0),"") -> 2021 | D112: =IF( TOT[[#This Row],[NN]]="","",TEXT( TOT[[#This Row],[Start]],"ч:мм")&" "&TOT[[#This Row],[V]]& TOT[[#This Row],[B]]&" "&"["& TOT[[#This Row],[Room]]&"] "& TOT[[#This Row],[Name]]) -> 11:30 $3,3 [PP] Bounty Hunter | E112: =TOT[[#This Row],[V]]& TOT[[#This Row],[B]] -> $3,3 | F112: =IFERROR(VLOOKUP(B112,Baza[],3,0),"") -> 1 | G112: =IFERROR(VLOOKUP(B112,Baza[],4,0),"") -> суббота | H112: =IFERROR(VLOOKUP(B112,Baza[],5,0),"") -> январь | I112: =IFERROR(VLOOKUP(B112,Baza[],6,0),"") -> 2021-01-02 | J112: =IFERROR(VLOOKUP(B112,Baza[],7,0),"") -> 11:30:00 | K112: =IFERROR(VLOOKUP(B112,Baza[],8,0),"") -> $ | L112: =IFERROR(VLOOKUP(B112,Baza[],9,0),"") -> 3.3 | M112: =IFERROR(VLOOKUP(B112,Baza[],10,0),"") -> PP | N112: =IFERROR(VLOOKUP(B112,Baza[],12,0),"") -> Bounty Hunter | O112: =IFERROR(VLOOKUP(B112,Baza[],14,0),"") -> 8 | P112: =IFERROR(VLOOKUP(B112,Baza[],15,0),"") -> - | Q112: =IFERROR(VLOOKUP(B112,Baza[],16,0),"") -> K | R112: =IFERROR(VLOOKUP(B112,Baza[],17,0),"") -> - | S112: =IFERROR(VLOOKUP(B112,Baza[],18,0),"") -> 500 | T112: =IFERROR(IF((VLOOKUP(B112,Baza[],19,0)+VLOOKUP(B112,Baza[],20,0))=0,"-",VLOOKUP(B112,Baza[],19,0)+VLOOKUP(B112,Baza[],20,0)),"") -> - | U112: =IFERROR(IF(VLOOKUP(B112,Baza[],21,0)=0,"-",VLOOKUP(B112,Baza[],21,0)),"") -> - | V112: =IFERROR(VLOOKUP(B112,Baza[],22,0),"") -> 0 | W112: =IFERROR(VLOOKUP(B112,Baza[],23,0),"") -> - | X112: =IFERROR(VLOOKUP(B112,Baza[],24,0),"") -> 3.3 | Y112: =IFERROR(IF(VLOOKUP(B112,Baza[],25,0)=0,"-",VLOOKUP(B112,Baza[],25,0)),"") -> - | Z112: =IFERROR(IF(VLOOKUP(B112,Baza[],26,0)=0,"-",VLOOKUP(B112,Baza[],26,0)),"") -> - | AA112: =IFERROR(VLOOKUP(B112,Baza[],27,0),"") -> -3.3 | AB112: =IFERROR(VLOOKUP(B112,Baza[],28,0),"") -> 200 | AC112: =IF(TOT[[#This Row],[Profit]]="","#Н/Д",SUM($AA$85:AA112)) -> 58.56865169 | AD112: =IF(TOT[[#This Row],[Grafik]]="#Н/Д",FALSE,TRUE) -> TRUE
A113: 28 | B113: 28 | C113: =IFERROR(VLOOKUP(B113,Baza[],2,0),"") -> 2021 | D113: =IF( TOT[[#This Row],[NN]]="","",TEXT( TOT[[#This Row],[Start]],"ч:мм")&" "&TOT[[#This Row],[V]]& TOT[[#This Row],[B]]&" "&"["& TOT[[#This Row],[Room]]&"] "& TOT[[#This Row],[Name]]) -> 11:40 $3,3 [PS] GTD | E113: =TOT[[#This Row],[V]]& TOT[[#This Row],[B]] -> $3,3 | F113: =IFERROR(VLOOKUP(B113,Baza[],3,0),"") -> 1 | G113: =IFERROR(VLOOKUP(B113,Baza[],4,0),"") -> суббота | H113: =IFERROR(VLOOKUP(B113,Baza[],5,0),"") -> январь | I113: =IFERROR(VLOOKUP(B113,Baza[],6,0),"") -> 2021-01-02 | J113: =IFERROR(VLOOKUP(B113,Baza[],7,0),"") -> 11:40:00 | K113: =IFERROR(VLOOKUP(B113,Baza[],8,0),"") -> $ | L113: =IFERROR(VLOOKUP(B113,Baza[],9,0),"") -> 3.3 | M113: =IFERROR(VLOOKUP(B113,Baza[],10,0),"") -> PS | N113: =IFERROR(VLOOKUP(B113,Baza[],12,0),"") -> GTD | O113: =IFERROR(VLOOKUP(B113,Baza[],14,0),"") -> 9 | P113: =IFERROR(VLOOKUP(B113,Baza[],15,0),"") -> - | Q113: =IFERROR(VLOOKUP(B113,Baza[],16,0),"") -> - | R113: =IFERROR(VLOOKUP(B113,Baza[],17,0),"") -> - | S113: =IFERROR(VLOOKUP(B113,Baza[],18,0),"") -> 1000 | T113: =IFERROR(IF((VLOOKUP(B113,Baza[],19,0)+VLOOKUP(B113,Baza[],20,0))=0,"-",VLOOKUP(B113,Baza[],19,0)+VLOOKUP(B113,Baza[],20,0)),"") -> - | U113: =IFERROR(IF(VLOOKUP(B113,Baza[],21,0)=0,"-",VLOOKUP(B113,Baza[],21,0)),"") -> - | V113: =IFERROR(VLOOKUP(B113,Baza[],22,0),"") -> 0 | W113: =IFERROR(VLOOKUP(B113,Baza[],23,0),"") -> - | X113: =IFERROR(VLOOKUP(B113,Baza[],24,0),"") -> 3.3 | Y113: =IFERROR(IF(VLOOKUP(B113,Baza[],25,0)=0,"-",VLOOKUP(B113,Baza[],25,0)),"") -> - | Z113: =IFERROR(IF(VLOOKUP(B113,Baza[],26,0)=0,"-",VLOOKUP(B113,Baza[],26,0)),"") -> - | AA113: =IFERROR(VLOOKUP(B113,Baza[],27,0),"") -> -3.3 | AB113: =IFERROR(VLOOKUP(B113,Baza[],28,0),"") -> 400 | AC113: =IF(TOT[[#This Row],[Profit]]="","#Н/Д",SUM($AA$85:AA113)) -> 55.26865169 | AD113: =IF(TOT[[#This Row],[Grafik]]="#Н/Д",FALSE,TRUE) -> TRUE
A114: 29 | B114: 29 | C114: =IFERROR(VLOOKUP(B114,Baza[],2,0),"") -> 2021 | D114: =IF( TOT[[#This Row],[NN]]="","",TEXT( TOT[[#This Row],[Start]],"ч:мм")&" "&TOT[[#This Row],[V]]& TOT[[#This Row],[B]]&" "&"["& TOT[[#This Row],[Room]]&"] "& TOT[[#This Row],[Name]]) -> 12:00 $1,1 [PP] Deepstack | E114: =TOT[[#This Row],[V]]& TOT[[#This Row],[B]] -> $1,1 | F114: =IFERROR(VLOOKUP(B114,Baza[],3,0),"") -> 1 | G114: =IFERROR(VLOOKUP(B114,Baza[],4,0),"") -> суббота | H114: =IFERROR(VLOOKUP(B114,Baza[],5,0),"") -> январь | I114: =IFERROR(VLOOKUP(B114,Baza[],6,0),"") -> 2021-01-02 | J114: =IFERROR(VLOOKUP(B114,Baza[],7,0),"") -> 12:00:00 | K114: =IFERROR(VLOOKUP(B114,Baza[],8,0),"") -> $ | L114: =IFERROR(VLOOKUP(B114,Baza[],9,0),"") -> 1.1 | M114: =IFERROR(VLOOKUP(B114,Baza[],10,0),"") -> PP | N114: =IFERROR(VLOOKUP(B114,Baza[],12,0),"") -> Deepstack | O114: =IFERROR(VLOOKUP(B114,Baza[],14,0),"") -> 8 | P114: =IFERROR(VLOOKUP(B114,Baza[],15,0),"") -> - | Q114: =IFERROR(VLOOKUP(B114,Baza[],16,0),"") -> - | R114: =IFERROR(VLOOKUP(B114,Baza[],17,0),"") -> - | S114: =IFERROR(VLOOKUP(B114,Baza[],18,0),"") -> 200 | T114: =IFERROR(IF((VLOOKUP(B114,Baza[],19,0)+VLOOKUP(B114,Baza[],20,0))=0,"-",VLOOKUP(B114,Baza[],19,0)+VLOOKUP(B114,Baza[],20,0)),"") -> - | U114: =IFERROR(IF(VLOOKUP(B114,Baza[],21,0)=0,"-",VLOOKUP(B114,Baza[],21,0)),"") -> - | V114: =IFERROR(VLOOKUP(B114,Baza[],22,0),"") -> 0 | W114: =IFERROR(VLOOKUP(B114,Baza[],23,0),"") -> - | X114: =IFERROR(VLOOKUP(B114,Baza[],24,0),"") -> 1.1 | Y114: =IFERROR(IF(VLOOKUP(B114,Baza[],25,0)=0,"-",VLOOKUP(B114,Baza[],25,0)),"") -> - | Z114: =IFERROR(IF(VLOOKUP(B114,Baza[],26,0)=0,"-",VLOOKUP(B114,Baza[],26,0)),"") -> - | AA114: =IFERROR(VLOOKUP(B114,Baza[],27,0),"") -> -1.1 | AB114: =IFERROR(VLOOKUP(B114,Baza[],28,0),"") -> 240 | AC114: =IF(TOT[[#This Row],[Profit]]="","#Н/Д",SUM($AA$85:AA114)) -> 54.16865169 | AD114: =IF(TOT[[#This Row],[Grafik]]="#Н/Д",FALSE,TRUE) -> TRUE
A115: 30 | B115: 30 | C115: =IFERROR(VLOOKUP(B115,Baza[],2,0),"") -> 2021 | D115: =IF( TOT[[#This Row],[NN]]="","",TEXT( TOT[[#This Row],[Start]],"ч:мм")&" "&TOT[[#This Row],[V]]& TOT[[#This Row],[B]]&" "&"["& TOT[[#This Row],[Room]]&"] "& TOT[[#This Row],[Name]]) -> 12:00 $1,1 [PS] Big | E115: =TOT[[#This Row],[V]]& TOT[[#This Row],[B]] -> $1,1 | F115: =IFERROR(VLOOKUP(B115,Baza[],3,0),"") -> 1 | G115: =IFERROR(VLOOKUP(B115,Baza[],4,0),"") -> суббота | H115: =IFERROR(VLOOKUP(B115,Baza[],5,0),"") -> январь | I115: =IFERROR(VLOOKUP(B115,Baza[],6,0),"") -> 2021-01-02 | J115: =IFERROR(VLOOKUP(B115,Baza[],7,0),"") -> 12:00:00 | K115: =IFERROR(VLOOKUP(B115,Baza[],8,0),"") -> $ | L115: =IFERROR(VLOOKUP(B115,Baza[],9,0),"") -> 1.1 | M115: =IFERROR(VLOOKUP(B115,Baza[],10,0),"") -> PS | N115: =IFERROR(VLOOKUP(B115,Baza[],12,0),"") -> Big | O115: =IFERROR(VLOOKUP(B115,Baza[],14,0),"") -> 9 | P115: =IFERROR(VLOOKUP(B115,Baza[],15,0),"") -> - | Q115: =IFERROR(VLOOKUP(B115,Baza[],16,0),"") -> - | R115: =IFERROR(VLOOKUP(B115,Baza[],17,0),"") -> - | S115: =IFERROR(VLOOKUP(B115,Baza[],18,0),"") -> 1500 | T115: =IFERROR(IF((VLOOKUP(B115,Baza[],19,0)+VLOOKUP(B115,Baza[],20,0))=0,"-",VLOOKUP(B115,Baza[],19,0)+VLOOKUP(B115,Baza[],20,0)),"") -> - | U115: =IFERROR(IF(VLOOKUP(B115,Baza[],21,0)=0,"-",VLOOKUP(B115,Baza[],21,0)),"") -> 4.52 | V115: =IFERROR(VLOOKUP(B115,Baza[],22,0),"") -> 0 | W115: =IFERROR(VLOOKUP(B115,Baza[],23,0),"") -> 74 | X115: =IFERROR(VLOOKUP(B115,Baza[],24,0),"") -> 1.1 | Y115: =IFERROR(IF(VLOOKUP(B115,Baza[],25,0)=0,"-",VLOOKUP(B115,Baza[],25,0)),"") -> - | Z115: =IFERROR(IF(VLOOKUP(B115,Baza[],26,0)=0,"-",VLOOKUP(B115,Baza[],26,0)),"") -> 4.52 | AA115: =IFERROR(VLOOKUP(B115,Baza[],27,0),"") -> 3.42 | AB115: =IFERROR(VLOOKUP(B115,Baza[],28,0),"") -> 1800 | AC115: =IF(TOT[[#This Row],[Profit]]="","#Н/Д",SUM($AA$85:AA115)) -> 57.58865169 | AD115: =IF(TOT[[#This Row],[Grafik]]="#Н/Д",FALSE,TRUE) -> TRUE
A116: 31 | B116: 31 | C116: =IFERROR(VLOOKUP(B116,Baza[],2,0),"") -> 2021 | D116: =IF( TOT[[#This Row],[NN]]="","",TEXT( TOT[[#This Row],[Start]],"ч:мм")&" "&TOT[[#This Row],[V]]& TOT[[#This Row],[B]]&" "&"["& TOT[[#This Row],[Room]]&"] "& TOT[[#This Row],[Name]]) -> 12:00 €2 [WN] Monster Stack | E116: =TOT[[#This Row],[V]]& TOT[[#This Row],[B]] -> €2 | F116: =IFERROR(VLOOKUP(B116,Baza[],3,0),"") -> 1 | G116: =IFERROR(VLOOKUP(B116,Baza[],4,0),"") -> суббота | H116: =IFERROR(VLOOKUP(B116,Baza[],5,0),"") -> январь | I116: =IFERROR(VLOOKUP(B116,Baza[],6,0),"") -> 2021-01-02 | J116: =IFERROR(VLOOKUP(B116,Baza[],7,0),"") -> 12:00:00 | K116: =IFERROR(VLOOKUP(B116,Baza[],8,0),"") -> € | L116: =IFERROR(VLOOKUP(B116,Baza[],9,0),"") -> 2 | M116: =IFERROR(VLOOKUP(B116,Baza[],10,0),"") -> WN | N116: =IFERROR(VLOOKUP(B116,Baza[],12,0),"") -> Monster Stack | O116: =IFERROR(VLOOKUP(B116,Baza[],14,0),"") -> 6 | P116: =IFERROR(VLOOKUP(B116,Baza[],15,0),"") -> - | Q116: =IFERROR(VLOOKUP(B116,Baza[],16,0),"") -> - | R116: =IFERROR(VLOOKUP(B116,Baza[],17,0),"") -> - | S116: =IFERROR(VLOOKUP(B116,Baza[],18,0),"") -> 200 | T116: =IFERROR(IF((VLOOKUP(B116,Baza[],19,0)+VLOOKUP(B116,Baza[],20,0))=0,"-",VLOOKUP(B116,Baza[],19,0)+VLOOKUP(B116,Baza[],20,0)),"") -> - | U116: =IFERROR(IF(VLOOKUP(B116,Baza[],21,0)=0,"-",VLOOKUP(B116,Baza[],21,0)),"") -> - | V116: =IFERROR(VLOOKUP(B116,Baza[],22,0),"") -> 0 | W116: =IFERROR(VLOOKUP(B116,Baza[],23,0),"") -> - | X116: =IFERROR(VLOOKUP(B116,Baza[],24,0),"") -> 2.247191011 | Y116: =IFERROR(IF(VLOOKUP(B116,Baza[],25,0)=0,"-",VLOOKUP(B116,Baza[],25,0)),"") -> - | Z116: =IFERROR(IF(VLOOKUP(B116,Baza[],26,0)=0,"-",VLOOKUP(B116,Baza[],26,0)),"") -> - | AA116: =IFERROR(VLOOKUP(B116,Baza[],27,0),"") -> -2.247191011 | AB116: =IFERROR(VLOOKUP(B116,Baza[],28,0),"") -> 132 | AC116: =IF(TOT[[#This Row],[Profit]]="","#Н/Д",SUM($AA$85:AA116)) -> 55.34146067 | AD116: =IF(TOT[[#This Row],[Grafik]]="#Н/Д",FALSE,TRUE) -> TRUE
A117: 32 | B117: 32 | C117: =IFERROR(VLOOKUP(B117,Baza[],2,0),"") -> 2021 | D117: =IF( TOT[[#This Row],[NN]]="","",TEXT( TOT[[#This Row],[Start]],"ч:мм")&" "&TOT[[#This Row],[V]]& TOT[[#This Row],[B]]&" "&"["& TOT[[#This Row],[Room]]&"] "& TOT[[#This Row],[Name]]) -> 12:30 $1,05 [GG] Bounty Hunters | E117: =TOT[[#This Row],[V]]& TOT[[#This Row],[B]] -> $1,05 | F117: =IFERROR(VLOOKUP(B117,Baza[],3,0),"") -> 1 | G117: =IFERROR(VLOOKUP(B117,Baza[],4,0),"") -> суббота | H117: =IFERROR(VLOOKUP(B117,Baza[],5,0),"") -> январь | I117: =IFERROR(VLOOKUP(B117,Baza[],6,0),"") -> 2021-01-02 | J117: =IFERROR(VLOOKUP(B117,Baza[],7,0),"") -> 12:30:00 | K117: =IFERROR(VLOOKUP(B117,Baza[],8,0),"") -> $ | L117: =IFERROR(VLOOKUP(B117,Baza[],9,0),"") -> 1.05 | M117: =IFERROR(VLOOKUP(B117,Baza[],10,0),"") -> GG | N117: =IFERROR(VLOOKUP(B117,Baza[],12,0),"") -> Bounty Hunters | O117: =IFERROR(VLOOKUP(B117,Baza[],14,0),"") -> 8 | P117: =IFERROR(VLOOKUP(B117,Baza[],15,0),"") -> - | Q117: =IFERROR(VLOOKUP(B117,Baza[],16,0),"") -> K | R117: =IFERROR(VLOOKUP(B117,Baza[],17,0),"") -> - | S117: =IFERROR(VLOOKUP(B117,Baza[],18,0),"") -> 750 | T117: =IFERROR(IF((VLOOKUP(B117,Baza[],19,0)+VLOOKUP(B117,Baza[],20,0))=0,"-",VLOOKUP(B117,Baza[],19,0)+VLOOKUP(B117,Baza[],20,0)),"") -> 1.5 | U117: =IFERROR(IF(VLOOKUP(B117,Baza[],21,0)=0,"-",VLOOKUP(B117,Baza[],21,0)),"") -> - | V117: =IFERROR(VLOOKUP(B117,Baza[],22,0),"") -> 0 | W117: =IFERROR(VLOOKUP(B117,Baza[],23,0),"") -> - | X117: =IFERROR(VLOOKUP(B117,Baza[],24,0),"") -> 1.05 | Y117: =IFERROR(IF(VLOOKUP(B117,Baza[],25,0)=0,"-",VLOOKUP(B117,Baza[],25,0)),"") -> 1.5 | Z117: =IFERROR(IF(VLOOKUP(B117,Baza[],26,0)=0,"-",VLOOKUP(B117,Baza[],26,0)),"") -> - | AA117: =IFERROR(VLOOKUP(B117,Baza[],27,0),"") -> 0.45 | AB117: =IFERROR(VLOOKUP(B117,Baza[],28,0),"") -> 942.8571429 | AC117: =IF(TOT[[#This Row],[Profit]]="","#Н/Д",SUM($AA$85:AA117)) -> 55.79146067 | AD117: =IF(TOT[[#This Row],[Grafik]]="#Н/Д",FALSE,TRUE) -> TRUE
A118: 33 | B118: 33 | C118: =IFERROR(VLOOKUP(B118,Baza[],2,0),"") -> 2021 | D118: =IF( TOT[[#This Row],[NN]]="","",TEXT( TOT[[#This Row],[Start]],"ч:мм")&" "&TOT[[#This Row],[V]]& TOT[[#This Row],[B]]&" "&"["& TOT[[#This Row],[Room]]&"] "& TOT[[#This Row],[Name]]) -> 12:30 $1 [PAC] Guaranteed | E118: =TOT[[#This Row],[V]]& TOT[[#This Row],[B]] -> $1 | F118: =IFERROR(VLOOKUP(B118,Baza[],3,0),"") -> 1 | G118: =IFERROR(VLOOKUP(B118,Baza[],4,0),"") -> суббота | H118: =IFERROR(VLOOKUP(B118,Baza[],5,0),"") -> январь | I118: =IFERROR(VLOOKUP(B118,Baza[],6,0),"") -> 2021-01-02 | J118: =IFERROR(VLOOKUP(B118,Baza[],7,0),"") -> 12:30:00 | K118: =IFERROR(VLOOKUP(B118,Baza[],8,0),"") -> $ | L118: =IFERROR(VLOOKUP(B118,Baza[],9,0),"") -> 1 | M118: =IFERROR(VLOOKUP(B118,Baza[],10,0),"") -> PAC | N118: =IFERROR(VLOOKUP(B118,Baza[],12,0),"") -> Guaranteed | O118: =IFERROR(VLOOKUP(B118,Baza[],14,0),"") -> 9 | P118: =IFERROR(VLOOKUP(B118,Baza[],15,0),"") -> - | Q118: =IFERROR(VLOOKUP(B118,Baza[],16,0),"") -> - | R118: =IFERROR(VLOOKUP(B118,Baza[],17,0),"") -> - | S118: =IFERROR(VLOOKUP(B118,Baza[],18,0),"") -> 200 | T118: =IFERROR(IF((VLOOKUP(B118,Baza[],19,0)+VLOOKUP(B118,Baza[],20,0))=0,"-",VLOOKUP(B118,Baza[],19,0)+VLOOKUP(B118,Baza[],20,0)),"") -> - | U118: =IFERROR(IF(VLOOKUP(B118,Baza[],21,0)=0,"-",VLOOKUP(B118,Baza[],21,0)),"") -> - | V118: =IFERROR(VLOOKUP(B118,Baza[],22,0),"") -> 0 | W118: =IFERROR(VLOOKUP(B118,Baza[],23,0),"") -> - | X118: =IFERROR(VLOOKUP(B118,Baza[],24,0),"") -> 1 | Y118: =IFERROR(IF(VLOOKUP(B118,Baza[],25,0)=0,"-",VLOOKUP(B118,Baza[],25,0)),"") -> - | Z118: =IFERROR(IF(VLOOKUP(B118,Baza[],26,0)=0,"-",VLOOKUP(B118,Baza[],26,0)),"") -> - | AA118: =IFERROR(VLOOKUP(B118,Baza[],27,0),"") -> -1 | AB118: =IFERROR(VLOOKUP(B118,Baza[],28,0),"") -> 264 | AC118: =IF(TOT[[#This Row],[Profit]]="","#Н/Д",SUM($AA$85:AA118)) -> 54.79146067 | AD118: =IF(TOT[[#This Row],[Grafik]]="#Н/Д",FALSE,TRUE) -> TRUE
A119: 34 | B119: 34 | C119: =IFERROR(VLOOKUP(B119,Baza[],2,0),"") -> 2021 | D119: =IF( TOT[[#This Row],[NN]]="","",TEXT( TOT[[#This Row],[Start]],"ч:мм")&" "&TOT[[#This Row],[V]]& TOT[[#This Row],[B]]&" "&"["& TOT[[#This Row],[Room]]&"] "& TOT[[#This Row],[Name]]) -> 12:30 $2,2 [PP] Bounty Hunter | E119: =TOT[[#This Row],[V]]& TOT[[#This Row],[B]] -> $2,2 | F119: =IFERROR(VLOOKUP(B119,Baza[],3,0),"") -> 1 | G119: =IFERROR(VLOOKUP(B119,Baza[],4,0),"") -> суббота | H119: =IFERROR(VLOOKUP(B119,Baza[],5,0),"") -> январь | I119: =IFERROR(VLOOKUP(B119,Baza[],6,0),"") -> 2021-01-02 | J119: =IFERROR(VLOOKUP(B119,Baza[],7,0),"") -> 12:30:00 | K119: =IFERROR(VLOOKUP(B119,Baza[],8,0),"") -> $ | L119: =IFERROR(VLOOKUP(B119,Baza[],9,0),"") -> 2.2 | M119: =IFERROR(VLOOKUP(B119,Baza[],10,0),"") -> PP | N119: =IFERROR(VLOOKUP(B119,Baza[],12,0),"") -> Bounty Hunter | O119: =IFERROR(VLOOKUP(B119,Baza[],14,0),"") -> 8 | P119: =IFERROR(VLOOKUP(B119,Baza[],15,0),"") -> - | Q119: =IFERROR(VLOOKUP(B119,Baza[],16,0),"") -> K | R119: =IFERROR(VLOOKUP(B119,Baza[],17,0),"") -> - | S119: =IFERROR(VLOOKUP(B119,Baza[],18,0),"") -> 300 | T119: =IFERROR(IF((VLOOKUP(B119,Baza[],19,0)+VLOOKUP(B119,Baza[],20,0))=0,"-",VLOOKUP(B119,Baza[],19,0)+VLOOKUP(B119,Baza[],20,0)),"") -> 1.65 | U119: =IFERROR(IF(VLOOKUP(B119,Baza[],21,0)=0,"-",VLOOKUP(B119,Baza[],21,0)),"") -> 2.02 | V119: =IFERROR(VLOOKUP(B119,Baza[],22,0),"") -> 0 | W119: =IFERROR(VLOOKUP(B119,Baza[],23,0),"") -> 28 | X119: =IFERROR(VLOOKUP(B119,Baza[],24,0),"") -> 2.2 | Y119: =IFERROR(IF(VLOOKUP(B119,Baza[],25,0)=0,"-",VLOOKUP(B119,Baza[],25,0)),"") -> 1.65 | Z119: =IFERROR(IF(VLOOKUP(B119,Baza[],26,0)=0,"-",VLOOKUP(B119,Baza[],26,0)),"") -> 2.02 | AA119: =IFERROR(VLOOKUP(B119,Baza[],27,0),"") -> 1.47 | AB119: =IFERROR(VLOOKUP(B119,Baza[],28,0),"") -> 180 | AC119: =IF(TOT[[#This Row],[Profit]]="","#Н/Д",SUM($AA$85:AA119)) -> 56.26146067 | AD119: =IF(TOT[[#This Row],[Grafik]]="#Н/Д",FALSE,TRUE) -> TRUE
A120: 35 | B120: 35 | C120: =IFERROR(VLOOKUP(B120,Baza[],2,0),"") -> 2021 | D120: =IF( TOT[[#This Row],[NN]]="","",TEXT( TOT[[#This Row],[Start]],"ч:мм")&" "&TOT[[#This Row],[V]]& TOT[[#This Row],[B]]&" "&"["& TOT[[#This Row],[Room]]&"] "& TOT[[#This Row],[Name]]) -> 13:00 $2 [GG] Big | E120: =TOT[[#This Row],[V]]& TOT[[#This Row],[B]] -> $2 | F120: =IFERROR(VLOOKUP(B120,Baza[],3,0),"") -> 1 | G120: =IFERROR(VLOOKUP(B120,Baza[],4,0),"") -> суббота | H120: =IFERROR(VLOOKUP(B120,Baza[],5,0),"") -> январь | I120: =IFERROR(VLOOKUP(B120,Baza[],6,0),"") -> 2021-01-02 | J120: =IFERROR(VLOOKUP(B120,Baza[],7,0),"") -> 13:00:00 | K120: =IFERROR(VLOOKUP(B120,Baza[],8,0),"") -> $ | L120: =IFERROR(VLOOKUP(B120,Baza[],9,0),"") -> 2 | M120: =IFERROR(VLOOKUP(B120,Baza[],10,0),"") -> GG | N120: =IFERROR(VLOOKUP(B120,Baza[],12,0),"") -> Big | O120: =IFERROR(VLOOKUP(B120,Baza[],14,0),"") -> 8 | P120: =IFERROR(VLOOKUP(B120,Baza[],15,0),"") -> - | Q120: =IFERROR(VLOOKUP(B120,Baza[],16,0),"") -> - | R120: =IFERROR(VLOOKUP(B120,Baza[],17,0),"") -> - | S120: =IFERROR(VLOOKUP(B120,Baza[],18,0),"") -> 750 | T120: =IFERROR(IF((VLOOKUP(B120,Baza[],19,0)+VLOOKUP(B120,Baza[],20,0))=0,"-",VLOOKUP(B120,Baza[],19,0)+VLOOKUP(B120,Baza[],20,0)),"") -> - | U120: =IFERROR(IF(VLOOKUP(B120,Baza[],21,0)=0,"-",VLOOKUP(B120,Baza[],21,0)),"") -> - | V120: =IFERROR(VLOOKUP(B120,Baza[],22,0),"") -> 0 | W120: =IFERROR(VLOOKUP(B120,Baza[],23,0),"") -> - | X120: =IFERROR(VLOOKUP(B120,Baza[],24,0),"") -> 2 | Y120: =IFERROR(IF(VLOOKUP(B120,Baza[],25,0)=0,"-",VLOOKUP(B120,Baza[],25,0)),"") -> - | Z120: =IFERROR(IF(VLOOKUP(B120,Baza[],26,0)=0,"-",VLOOKUP(B120,Baza[],26,0)),"") -> - | AA120: =IFERROR(VLOOKUP(B120,Baza[],27,0),"") -> -2 | AB120: =IFERROR(VLOOKUP(B120,Baza[],28,0),"") -> 495 | AC120: =IF(TOT[[#This Row],[Profit]]="","#Н/Д",SUM($AA$85:AA120)) -> 54.26146067 | AD120: =IF(TOT[[#This Row],[Grafik]]="#Н/Д",FALSE,TRUE) -> TRUE
A121: 36 | B121: 36 | C121: =IFERROR(VLOOKUP(B121,Baza[],2,0),"") -> 2021 | D121: =IF( TOT[[#This Row],[NN]]="","",TEXT( TOT[[#This Row],[Start]],"ч:мм")&" "&TOT[[#This Row],[V]]& TOT[[#This Row],[B]]&" "&"["& TOT[[#This Row],[Room]]&"] "& TOT[[#This Row],[Name]]) -> 13:00 $1,1 [PP] Bounty Hunter | E121: =TOT[[#This Row],[V]]& TOT[[#This Row],[B]] -> $1,1 | F121: =IFERROR(VLOOKUP(B121,Baza[],3,0),"") -> 1 | G121: =IFERROR(VLOOKUP(B121,Baza[],4,0),"") -> суббота | H121: =IFERROR(VLOOKUP(B121,Baza[],5,0),"") -> январь | I121: =IFERROR(VLOOKUP(B121,Baza[],6,0),"") -> 2021-01-02 | J121: =IFERROR(VLOOKUP(B121,Baza[],7,0),"") -> 13:00:00 | K121: =IFERROR(VLOOKUP(B121,Baza[],8,0),"") -> $ | L121: =IFERROR(VLOOKUP(B121,Baza[],9,0),"") -> 1.1 | M121: =IFERROR(VLOOKUP(B121,Baza[],10,0),"") -> PP | N121: =IFERROR(VLOOKUP(B121,Baza[],12,0),"") -> Bounty Hunter | O121: =IFERROR(VLOOKUP(B121,Baza[],14,0),"") -> 8 | P121: =IFERROR(VLOOKUP(B121,Baza[],15,0),"") -> - | Q121: =IFERROR(VLOOKUP(B121,Baza[],16,0),"") -> K | R121: =IFERROR(VLOOKUP(B121,Baza[],17,0),"") -> - | S121: =IFERROR(VLOOKUP(B121,Baza[],18,0),"") -> 150 | T121: =IFERROR(IF((VLOOKUP(B121,Baza[],19,0)+VLOOKUP(B121,Baza[],20,0))=0,"-",VLOOKUP(B121,Baza[],19,0)+VLOOKUP(B121,Baza[],20,0)),"") -> - | U121: =IFERROR(IF(VLOOKUP(B121,Baza[],21,0)=0,"-",VLOOKUP(B121,Baza[],21,0)),"") -> - | V121: =IFERROR(VLOOKUP(B121,Baza[],22,0),"") -> 0 | W121: =IFERROR(VLOOKUP(B121,Baza[],23,0),"") -> - | X121: =IFERROR(VLOOKUP(B121,Baza[],24,0),"") -> 1.1 | Y121: =IFERROR(IF(VLOOKUP(B121,Baza[],25,0)=0,"-",VLOOKUP(B121,Baza[],25,0)),"") -> - | Z121: =IFERROR(IF(VLOOKUP(B121,Baza[],26,0)=0,"-",VLOOKUP(B121,Baza[],26,0)),"") -> - | AA121: =IFERROR(VLOOKUP(B121,Baza[],27,0),"") -> -1.1 | AB121: =IFERROR(VLOOKUP(B121,Baza[],28,0),"") -> 180 | AC121: =IF(TOT[[#This Row],[Profit]]="","#Н/Д",SUM($AA$85:AA121)) -> 53.16146067 | AD121: =IF(TOT[[#This Row],[Grafik]]="#Н/Д",FALSE,TRUE) -> TRUE
A122: 37 | B122: 37 | C122: =IFERROR(VLOOKUP(B122,Baza[],2,0),"") -> 2021 | D122: =IF( TOT[[#This Row],[NN]]="","",TEXT( TOT[[#This Row],[Start]],"ч:мм")&" "&TOT[[#This Row],[V]]& TOT[[#This Row],[B]]&" "&"["& TOT[[#This Row],[Room]]&"] "& TOT[[#This Row],[Name]]) -> 13:30 $4,4 [PAC] Guaranteed PKO | E122: =TOT[[#This Row],[V]]& TOT[[#This Row],[B]] -> $4,4 | F122: =IFERROR(VLOOKUP(B122,Baza[],3,0),"") -> 1 | G122: =IFERROR(VLOOKUP(B122,Baza[],4,0),"") -> суббота | H122: =IFERROR(VLOOKUP(B122,Baza[],5,0),"") -> январь | I122: =IFERROR(VLOOKUP(B122,Baza[],6,0),"") -> 2021-01-02 | J122: =IFERROR(VLOOKUP(B122,Baza[],7,0),"") -> 13:30:00 | K122: =IFERROR(VLOOKUP(B122,Baza[],8,0),"") -> $ | L122: =IFERROR(VLOOKUP(B122,Baza[],9,0),"") -> 4.4 | M122: =IFERROR(VLOOKUP(B122,Baza[],10,0),"") -> PAC | N122: =IFERROR(VLOOKUP(B122,Baza[],12,0),"") -> Guaranteed PKO | O122: =IFERROR(VLOOKUP(B122,Baza[],14,0),"") -> 9 | P122: =IFERROR(VLOOKUP(B122,Baza[],15,0),"") -> - | Q122: =IFERROR(VLOOKUP(B122,Baza[],16,0),"") -> K | R122: =IFERROR(VLOOKUP(B122,Baza[],17,0),"") -> - | S122: =IFERROR(VLOOKUP(B122,Baza[],18,0),"") -> 300 | T122: =IFERROR(IF((VLOOKUP(B122,Baza[],19,0)+VLOOKUP(B122,Baza[],20,0))=0,"-",VLOOKUP(B122,Baza[],19,0)+VLOOKUP(B122,Baza[],20,0)),"") -> - | U122: =IFERROR(IF(VLOOKUP(B122,Baza[],21,0)=0,"-",VLOOKUP(B122,Baza[],21,0)),"") -> - | V122: =IFERROR(VLOOKUP(B122,Baza[],22,0),"") -> 0 | W122: =IFERROR(VLOOKUP(B122,Baza[],23,0),"") -> - | X122: =IFERROR(VLOOKUP(B122,Baza[],24,0),"") -> 4.4 | Y122: =IFERROR(IF(VLOOKUP(B122,Baza[],25,0)=0,"-",VLOOKUP(B122,Baza[],25,0)),"") -> - | Z122: =IFERROR(IF(VLOOKUP(B122,Baza[],26,0)=0,"-",VLOOKUP(B122,Baza[],26,0)),"") -> - | AA122: =IFERROR(VLOOKUP(B122,Baza[],27,0),"") -> -4.4 | AB122: =IFERROR(VLOOKUP(B122,Baza[],28,0),"") -> 90 | AC122: =IF(TOT[[#This Row],[Profit]]="","#Н/Д",SUM($AA$85:AA122)) -> 48.76146067 | AD122: =IF(TOT[[#This Row],[Grafik]]="#Н/Д",FALSE,TRUE) -> TRUE
A123: 38 | B123: 38 | C123: =IFERROR(VLOOKUP(B123,Baza[],2,0),"") -> 2021 | D123: =IF( TOT[[#This Row],[NN]]="","",TEXT( TOT[[#This Row],[Start]],"ч:мм")&" "&TOT[[#This Row],[V]]& TOT[[#This Row],[B]]&" "&"["& TOT[[#This Row],[Room]]&"] "& TOT[[#This Row],[Name]]) -> 13:30 $2,1 [GG] Bounty Hunters | E123: =TOT[[#This Row],[V]]& TOT[[#This Row],[B]] -> $2,1 | F123: =IFERROR(VLOOKUP(B123,Baza[],3,0),"") -> 1 | G123: =IFERROR(VLOOKUP(B123,Baza[],4,0),"") -> суббота | H123: =IFERROR(VLOOKUP(B123,Baza[],5,0),"") -> январь | I123: =IFERROR(VLOOKUP(B123,Baza[],6,0),"") -> 2021-01-02 | J123: =IFERROR(VLOOKUP(B123,Baza[],7,0),"") -> 13:30:00 | K123: =IFERROR(VLOOKUP(B123,Baza[],8,0),"") -> $ | L123: =IFERROR(VLOOKUP(B123,Baza[],9,0),"") -> 2.1 | M123: =IFERROR(VLOOKUP(B123,Baza[],10,0),"") -> GG | N123: =IFERROR(VLOOKUP(B123,Baza[],12,0),"") -> Bounty Hunters | O123: =IFERROR(VLOOKUP(B123,Baza[],14,0),"") -> 8 | P123: =IFERROR(VLOOKUP(B123,Baza[],15,0),"") -> - | Q123: =IFERROR(VLOOKUP(B123,Baza[],16,0),"") -> K | R123: =IFERROR(VLOOKUP(B123,Baza[],17,0),"") -> - | S123: =IFERROR(VLOOKUP(B123,Baza[],18,0),"") -> 2500 | T123: =IFERROR(IF((VLOOKUP(B123,Baza[],19,0)+VLOOKUP(B123,Baza[],20,0))=0,"-",VLOOKUP(B123,Baza[],19,0)+VLOOKUP(B123,Baza[],20,0)),"") -> 0.5 | U123: =IFERROR(IF(VLOOKUP(B123,Baza[],21,0)=0,"-",VLOOKUP(B123,Baza[],21,0)),"") -> - | V123: =IFERROR(VLOOKUP(B123,Baza[],22,0),"") -> 0 | W123: =IFERROR(VLOOKUP(B123,Baza[],23,0),"") -> - | X123: =IFERROR(VLOOKUP(B123,Baza[],24,0),"") -> 2.1 | Y123: =IFERROR(IF(VLOOKUP(B123,Baza[],25,0)=0,"-",VLOOKUP(B123,Baza[],25,0)),"") -> 0.5 | Z123: =IFERROR(IF(VLOOKUP(B123,Baza[],26,0)=0,"-",VLOOKUP(B123,Baza[],26,0)),"") -> - | AA123: =IFERROR(VLOOKUP(B123,Baza[],27,0),"") -> -1.6 | AB123: =IFERROR(VLOOKUP(B123,Baza[],28,0),"") -> 1571.428571 | AC123: =IF(TOT[[#This Row],[Profit]]="","#Н/Д",SUM($AA$85:AA123)) -> 47.16146067 | AD123: =IF(TOT[[#This Row],[Grafik]]="#Н/Д",FALSE,TRUE) -> TRUE
A124: 39 | B124: 39 | C124: =IFERROR(VLOOKUP(B124,Baza[],2,0),"") -> 2021 | D124: =IF( TOT[[#This Row],[NN]]="","",TEXT( TOT[[#This Row],[Start]],"ч:мм")&" "&TOT[[#This Row],[V]]& TOT[[#This Row],[B]]&" "&"["& TOT[[#This Row],[Room]]&"] "& TOT[[#This Row],[Name]]) -> 13:30 $3,3 [PP] Bounty Hunter | E124: =TOT[[#This Row],[V]]& TOT[[#This Row],[B]] -> $3,3 | F124: =IFERROR(VLOOKUP(B124,Baza[],3,0),"") -> 1 | G124: =IFERROR(VLOOKUP(B124,Baza[],4,0),"") -> суббота | H124: =IFERROR(VLOOKUP(B124,Baza[],5,0),"") -> январь | I124: =IFERROR(VLOOKUP(B124,Baza[],6,0),"") -> 2021-01-02 | J124: =IFERROR(VLOOKUP(B124,Baza[],7,0),"") -> 13:30:00 | K124: =IFERROR(VLOOKUP(B124,Baza[],8,0),"") -> $ | L124: =IFERROR(VLOOKUP(B124,Baza[],9,0),"") -> 3.3 | M124: =IFERROR(VLOOKUP(B124,Baza[],10,0),"") -> PP | N124: =IFERROR(VLOOKUP(B124,Baza[],12,0),"") -> Bounty Hunter | O124: =IFERROR(VLOOKUP(B124,Baza[],14,0),"") -> 8 | P124: =IFERROR(VLOOKUP(B124,Baza[],15,0),"") -> - | Q124: =IFERROR(VLOOKUP(B124,Baza[],16,0),"") -> K | R124: =IFERROR(VLOOKUP(B124,Baza[],17,0),"") -> - | S124: =IFERROR(VLOOKUP(B124,Baza[],18,0),"") -> 500 | T124: =IFERROR(IF((VLOOKUP(B124,Baza[],19,0)+VLOOKUP(B124,Baza[],20,0))=0,"-",VLOOKUP(B124,Baza[],19,0)+VLOOKUP(B124,Baza[],20,0)),"") -> - | U124: =IFERROR(IF(VLOOKUP(B124,Baza[],21,0)=0,"-",VLOOKUP(B124,Baza[],21,0)),"") -> - | V124: =IFERROR(VLOOKUP(B124,Baza[],22,0),"") -> 0 | W124: =IFERROR(VLOOKUP(B124,Baza[],23,0),"") -> - | X124: =IFERROR(VLOOKUP(B124,Baza[],24,0),"") -> 3.3 | Y124: =IFERROR(IF(VLOOKUP(B124,Baza[],25,0)=0,"-",VLOOKUP(B124,Baza[],25,0)),"") -> - | Z124: =IFERROR(IF(VLOOKUP(B124,Baza[],26,0)=0,"-",VLOOKUP(B124,Baza[],26,0)),"") -> - | AA124: =IFERROR(VLOOKUP(B124,Baza[],27,0),"") -> -3.3 | AB124: =IFERROR(VLOOKUP(B124,Baza[],28,0),"") -> 200 | AC124: =IF(TOT[[#This Row],[Profit]]="","#Н/Д",SUM($AA$85:AA124)) -> 43.86146067 | AD124: =IF(TOT[[#This Row],[Grafik]]="#Н/Д",FALSE,TRUE) -> TRUE
A125: 40 | B125: 40 | C125: =IFERROR(VLOOKUP(B125,Baza[],2,0),"") -> 2021 | D125: =IF( TOT[[#This Row],[NN]]="","",TEXT( TOT[[#This Row],[Start]],"ч:мм")&" "&TOT[[#This Row],[V]]& TOT[[#This Row],[B]]&" "&"["& TOT[[#This Row],[Room]]&"] "& TOT[[#This Row],[Name]]) -> 14:00 $2,2 [PAC] Guaranteed | E125: =TOT[[#This Row],[V]]& TOT[[#This Row],[B]] -> $2,2 | F125: =IFERROR(VLOOKUP(B125,Baza[],3,0),"") -> 1 | G125: =IFERROR(VLOOKUP(B125,Baza[],4,0),"") -> суббота | H125: =IFERROR(VLOOKUP(B125,Baza[],5,0),"") -> январь | I125: =IFERROR(VLOOKUP(B125,Baza[],6,0),"") -> 2021-01-02 | J125: =IFERROR(VLOOKUP(B125,Baza[],7,0),"") -> 14:00:00 | K125: =IFERROR(VLOOKUP(B125,Baza[],8,0),"") -> $ | L125: =IFERROR(VLOOKUP(B125,Baza[],9,0),"") -> 2.2 | M125: =IFERROR(VLOOKUP(B125,Baza[],10,0),"") -> PAC | N125: =IFERROR(VLOOKUP(B125,Baza[],12,0),"") -> Guaranteed | O125: =IFERROR(VLOOKUP(B125,Baza[],14,0),"") -> 9 | P125: =IFERROR(VLOOKUP(B125,Baza[],15,0),"") -> - | Q125: =IFERROR(VLOOKUP(B125,Baza[],16,0),"") -> - | R125: =IFERROR(VLOOKUP(B125,Baza[],17,0),"") -> - | S125: =IFERROR(VLOOKUP(B125,Baza[],18,0),"") -> 500 | T125: =IFERROR(IF((VLOOKUP(B125,Baza[],19,0)+VLOOKUP(B125,Baza[],20,0))=0,"-",VLOOKUP(B125,Baza[],19,0)+VLOOKUP(B125,Baza[],20,0)),"") -> - | U125: =IFERROR(IF(VLOOKUP(B125,Baza[],21,0)=0,"-",VLOOKUP(B125,Baza[],21,0)),"") -> 5.98 | V125: =IFERROR(VLOOKUP(B125,Baza[],22,0),"") -> 0 | W125: =IFERROR(VLOOKUP(B125,Baza[],23,0),"") -> 21 | X125: =IFERROR(VLOOKUP(B125,Baza[],24,0),"") -> 2.2 | Y125: =IFERROR(IF(VLOOKUP(B125,Baza[],25,0)=0,"-",VLOOKUP(B125,Baza[],25,0)),"") -> - | Z125: =IFERROR(IF(VLOOKUP(B125,Baza[],26,0)=0,"-",VLOOKUP(B125,Baza[],26,0)),"") -> 5.98 | AA125: =IFERROR(VLOOKUP(B125,Baza[],27,0),"") -> 3.78 | AB125: =IFERROR(VLOOKUP(B125,Baza[],28,0),"") -> 300 | AC125: =IF(TOT[[#This Row],[Profit]]="","#Н/Д",SUM($AA$85:AA125)) -> 47.64146067 | AD125: =IF(TOT[[#This Row],[Grafik]]="#Н/Д",FALSE,TRUE) -> TRUE
A126: 41 | B126: 41 | C126: =IFERROR(VLOOKUP(B126,Baza[],2,0),"") -> 2021 | D126: =IF( TOT[[#This Row],[NN]]="","",TEXT( TOT[[#This Row],[Start]],"ч:мм")&" "&TOT[[#This Row],[V]]& TOT[[#This Row],[B]]&" "&"["& TOT[[#This Row],[Room]]&"] "& TOT[[#This Row],[Name]]) -> 14:00 $2,2 [PP] Deepstack | E126: =TOT[[#This Row],[V]]& TOT[[#This Row],[B]] -> $2,2 | F126: =IFERROR(VLOOKUP(B126,Baza[],3,0),"") -> 1 | G126: =IFERROR(VLOOKUP(B126,Baza[],4,0),"") -> суббота | H126: =IFERROR(VLOOKUP(B126,Baza[],5,0),"") -> январь | I126: =IFERROR(VLOOKUP(B126,Baza[],6,0),"") -> 2021-01-02 | J126: =IFERROR(VLOOKUP(B126,Baza[],7,0),"") -> 14:00:00 | K126: =IFERROR(VLOOKUP(B126,Baza[],8,0),"") -> $ | L126: =IFERROR(VLOOKUP(B126,Baza[],9,0),"") -> 2.2 | M126: =IFERROR(VLOOKUP(B126,Baza[],10,0),"") -> PP | N126: =IFERROR(VLOOKUP(B126,Baza[],12,0),"") -> Deepstack | O126: =IFERROR(VLOOKUP(B126,Baza[],14,0),"") -> 8 | P126: =IFERROR(VLOOKUP(B126,Baza[],15,0),"") -> - | Q126: =IFERROR(VLOOKUP(B126,Baza[],16,0),"") -> - | R126: =IFERROR(VLOOKUP(B126,Baza[],17,0),"") -> - | S126: =IFERROR(VLOOKUP(B126,Baza[],18,0),"") -> 500 | T126: =IFERROR(IF((VLOOKUP(B126,Baza[],19,0)+VLOOKUP(B126,Baza[],20,0))=0,"-",VLOOKUP(B126,Baza[],19,0)+VLOOKUP(B126,Baza[],20,0)),"") -> - | U126: =IFERROR(IF(VLOOKUP(B126,Baza[],21,0)=0,"-",VLOOKUP(B126,Baza[],21,0)),"") -> - | V126: =IFERROR(VLOOKUP(B126,Baza[],22,0),"") -> 0 | W126: =IFERROR(VLOOKUP(B126,Baza[],23,0),"") -> - | X126: =IFERROR(VLOOKUP(B126,Baza[],24,0),"") -> 2.2 | Y126: =IFERROR(IF(VLOOKUP(B126,Baza[],25,0)=0,"-",VLOOKUP(B126,Baza[],25,0)),"") -> - | Z126: =IFERROR(IF(VLOOKUP(B126,Baza[],26,0)=0,"-",VLOOKUP(B126,Baza[],26,0)),"") -> - | AA126: =IFERROR(VLOOKUP(B126,Baza[],27,0),"") -> -2.2 | AB126: =IFERROR(VLOOKUP(B126,Baza[],28,0),"") -> 300 | AC126: =IF(TOT[[#This Row],[Profit]]="","#Н/Д",SUM($AA$85:AA126)) -> 45.44146067 | AD126: =IF(TOT[[#This Row],[Grafik]]="#Н/Д",FALSE,TRUE) -> TRUE
A127: 42 | B127: 42 | C127: =IFERROR(VLOOKUP(B127,Baza[],2,0),"") -> 2021 | D127: =IF( TOT[[#This Row],[NN]]="","",TEXT( TOT[[#This Row],[Start]],"ч:мм")&" "&TOT[[#This Row],[V]]& TOT[[#This Row],[B]]&" "&"["& TOT[[#This Row],[Room]]&"] "& TOT[[#This Row],[Name]]) -> 14:00 €2 [WN] Monster Stack | E127: =TOT[[#This Row],[V]]& TOT[[#This Row],[B]] -> €2 | F127: =IFERROR(VLOOKUP(B127,Baza[],3,0),"") -> 1 | G127: =IFERROR(VLOOKUP(B127,Baza[],4,0),"") -> суббота | H127: =IFERROR(VLOOKUP(B127,Baza[],5,0),"") -> январь | I127: =IFERROR(VLOOKUP(B127,Baza[],6,0),"") -> 2021-01-02 | J127: =IFERROR(VLOOKUP(B127,Baza[],7,0),"") -> 14:00:00 | K127: =IFERROR(VLOOKUP(B127,Baza[],8,0),"") -> € | L127: =IFERROR(VLOOKUP(B127,Baza[],9,0),"") -> 2 | M127: =IFERROR(VLOOKUP(B127,Baza[],10,0),"") -> WN | N127: =IFERROR(VLOOKUP(B127,Baza[],12,0),"") -> Monster Stack | O127: =IFERROR(VLOOKUP(B127,Baza[],14,0),"") -> 6 | P127: =IFERROR(VLOOKUP(B127,Baza[],15,0),"") -> - | Q127: =IFERROR(VLOOKUP(B127,Baza[],16,0),"") -> - | R127: =IFERROR(VLOOKUP(B127,Baza[],17,0),"") -> - | S127: =IFERROR(VLOOKUP(B127,Baza[],18,0),"") -> 300 | T127: =IFERROR(IF((VLOOKUP(B127,Baza[],19,0)+VLOOKUP(B127,Baza[],20,0))=0,"-",VLOOKUP(B127,Baza[],19,0)+VLOOKUP(B127,Baza[],20,0)),"") -> - | U127: =IFERROR(IF(VLOOKUP(B127,Baza[],21,0)=0,"-",VLOOKUP(B127,Baza[],21,0)),"") -> - | V127: =IFERROR(VLOOKUP(B127,Baza[],22,0),"") -> 0 | W127: =IFERROR(VLOOKUP(B127,Baza[],23,0),"") -> - | X127: =IFERROR(VLOOKUP(B127,Baza[],24,0),"") -> 2.247191011 | Y127: =IFERROR(IF(VLOOKUP(B127,Baza[],25,0)=0,"-",VLOOKUP(B127,Baza[],25,0)),"") -> - | Z127: =IFERROR(IF(VLOOKUP(B127,Baza[],26,0)=0,"-",VLOOKUP(B127,Baza[],26,0)),"") -> - | AA127: =IFERROR(VLOOKUP(B127,Baza[],27,0),"") -> -2.247191011 | AB127: =IFERROR(VLOOKUP(B127,Baza[],28,0),"") -> 198 | AC127: =IF(TOT[[#This Row],[Profit]]="","#Н/Д",SUM($AA$85:AA127)) -> 43.19426966 | AD127: =IF(TOT[[#This Row],[Grafik]]="#Н/Д",FALSE,TRUE) -> TRUE
A128: 43 | B128: 43 | C128: =IFERROR(VLOOKUP(B128,Baza[],2,0),"") -> 2021 | D128: =IF( TOT[[#This Row],[NN]]="","",TEXT( TOT[[#This Row],[Start]],"ч:мм")&" "&TOT[[#This Row],[V]]& TOT[[#This Row],[B]]&" "&"["& TOT[[#This Row],[Room]]&"] "& TOT[[#This Row],[Name]]) -> 14:20 $1,1 [PS] Progressive KO | E128: =TOT[[#This Row],[V]]& TOT[[#This Row],[B]] -> $1,1 | F128: =IFERROR(VLOOKUP(B128,Baza[],3,0),"") -> 1 | G128: =IFERROR(VLOOKUP(B128,Baza[],4,0),"") -> суббота | H128: =IFERROR(VLOOKUP(B128,Baza[],5,0),"") -> январь | I128: =IFERROR(VLOOKUP(B128,Baza[],6,0),"") -> 2021-01-02 | J128: =IFERROR(VLOOKUP(B128,Baza[],7,0),"") -> 14:20:00 | K128: =IFERROR(VLOOKUP(B128,Baza[],8,0),"") -> $ | L128: =IFERROR(VLOOKUP(B128,Baza[],9,0),"") -> 1.1 | M128: =IFERROR(VLOOKUP(B128,Baza[],10,0),"") -> PS | N128: =IFERROR(VLOOKUP(B128,Baza[],12,0),"") -> Progressive KO | O128: =IFERROR(VLOOKUP(B128,Baza[],14,0),"") -> 9 | P128: =IFERROR(VLOOKUP(B128,Baza[],15,0),"") -> - | Q128: =IFERROR(VLOOKUP(B128,Baza[],16,0),"") -> K | R128: =IFERROR(VLOOKUP(B128,Baza[],17,0),"") -> - | S128: =IFERROR(VLOOKUP(B128,Baza[],18,0),"") -> 2000 | T128: =IFERROR(IF((VLOOKUP(B128,Baza[],19,0)+VLOOKUP(B128,Baza[],20,0))=0,"-",VLOOKUP(B128,Baza[],19,0)+VLOOKUP(B128,Baza[],20,0)),"") -> - | U128: =IFERROR(IF(VLOOKUP(B128,Baza[],21,0)=0,"-",VLOOKUP(B128,Baza[],21,0)),"") -> - | V128: =IFERROR(VLOOKUP(B128,Baza[],22,0),"") -> 0 | W128: =IFERROR(VLOOKUP(B128,Baza[],23,0),"") -> - | X128: =IFERROR(VLOOKUP(B128,Baza[],24,0),"") -> 1.1 | Y128: =IFERROR(IF(VLOOKUP(B128,Baza[],25,0)=0,"-",VLOOKUP(B128,Baza[],25,0)),"") -> - | Z128: =IFERROR(IF(VLOOKUP(B128,Baza[],26,0)=0,"-",VLOOKUP(B128,Baza[],26,0)),"") -> - | AA128: =IFERROR(VLOOKUP(B128,Baza[],27,0),"") -> -1.1 | AB128: =IFERROR(VLOOKUP(B128,Baza[],28,0),"") -> 2400 | AC128: =IF(TOT[[#This Row],[Profit]]="","#Н/Д",SUM($AA$85:AA128)) -> 42.09426966 | AD128: =IF(TOT[[#This Row],[Grafik]]="#Н/Д",FALSE,TRUE) -> TRUE
A129: 44 | B129: 44 | C129: =IFERROR(VLOOKUP(B129,Baza[],2,0),"") -> 2021 | D129: =IF( TOT[[#This Row],[NN]]="","",TEXT( TOT[[#This Row],[Start]],"ч:мм")&" "&TOT[[#This Row],[V]]& TOT[[#This Row],[B]]&" "&"["& TOT[[#This Row],[Room]]&"] "& TOT[[#This Row],[Name]]) -> 14:30 $1,05 [GG] Bounty Hunters | E129: =TOT[[#This Row],[V]]& TOT[[#This Row],[B]] -> $1,05 | F129: =IFERROR(VLOOKUP(B129,Baza[],3,0),"") -> 1 | G129: =IFERROR(VLOOKUP(B129,Baza[],4,0),"") -> суббота | H129: =IFERROR(VLOOKUP(B129,Baza[],5,0),"") -> январь | I129: =IFERROR(VLOOKUP(B129,Baza[],6,0),"") -> 2021-01-02 | J129: =IFERROR(VLOOKUP(B129,Baza[],7,0),"") -> 14:30:00 | K129: =IFERROR(VLOOKUP(B129,Baza[],8,0),"") -> $ | L129: =IFERROR(VLOOKUP(B129,Baza[],9,0),"") -> 1.05 | M129: =IFERROR(VLOOKUP(B129,Baza[],10,0),"") -> GG | N129: =IFERROR(VLOOKUP(B129,Baza[],12,0),"") -> Bounty Hunters | O129: =IFERROR(VLOOKUP(B129,Baza[],14,0),"") -> 8 | P129: =IFERROR(VLOOKUP(B129,Baza[],15,0),"") -> - | Q129: =IFERROR(VLOOKUP(B129,Baza[],16,0),"") -> K | R129: =IFERROR(VLOOKUP(B129,Baza[],17,0),"") -> - | S129: =IFERROR(VLOOKUP(B129,Baza[],18,0),"") -> 750 | T129: =IFERROR(IF((VLOOKUP(B129,Baza[],19,0)+VLOOKUP(B129,Baza[],20,0))=0,"-",VLOOKUP(B129,Baza[],19,0)+VLOOKUP(B129,Baza[],20,0)),"") -> 0.5 | U129: =IFERROR(IF(VLOOKUP(B129,Baza[],21,0)=0,"-",VLOOKUP(B129,Baza[],21,0)),"") -> 1.35 | V129: =IFERROR(VLOOKUP(B129,Baza[],22,0),"") -> 0 | W129: =IFERROR(VLOOKUP(B129,Baza[],23,0),"") -> 165 | X129: =IFERROR(VLOOKUP(B129,Baza[],24,0),"") -> 1.05 | Y129: =IFERROR(IF(VLOOKUP(B129,Baza[],25,0)=0,"-",VLOOKUP(B129,Baza[],25,0)),"") -> 0.5 | Z129: =IFERROR(IF(VLOOKUP(B129,Baza[],26,0)=0,"-",VLOOKUP(B129,Baza[],26,0)),"") -> 1.35 | AA129: =IFERROR(VLOOKUP(B129,Baza[],27,0),"") -> 0.8 | AB129: =IFERROR(VLOOKUP(B129,Baza[],28,0),"") -> 942.8571429 | AC129: =IF(TOT[[#This Row],[Profit]]="","#Н/Д",SUM($AA$85:AA129)) -> 42.89426966 | AD129: =IF(TOT[[#This Row],[Grafik]]="#Н/Д",FALSE,TRUE) -> TRUE
A130: 45 | B130: 45 | C130: =IFERROR(VLOOKUP(B130,Baza[],2,0),"") -> 2021 | D130: =IF( TOT[[#This Row],[NN]]="","",TEXT( TOT[[#This Row],[Start]],"ч:мм")&" "&TOT[[#This Row],[V]]& TOT[[#This Row],[B]]&" "&"["& TOT[[#This Row],[Room]]&"] "& TOT[[#This Row],[Name]]) -> 14:30 $3,3 [PAC] Guaranteed | E130: =TOT[[#This Row],[V]]& TOT[[#This Row],[B]] -> $3,3 | F130: =IFERROR(VLOOKUP(B130,Baza[],3,0),"") -> 1 | G130: =IFERROR(VLOOKUP(B130,Baza[],4,0),"") -> суббота | H130: =IFERROR(VLOOKUP(B130,Baza[],5,0),"") -> январь | I130: =IFERROR(VLOOKUP(B130,Baza[],6,0),"") -> 2021-01-02 | J130: =IFERROR(VLOOKUP(B130,Baza[],7,0),"") -> 14:30:00 | K130: =IFERROR(VLOOKUP(B130,Baza[],8,0),"") -> $ | L130: =IFERROR(VLOOKUP(B130,Baza[],9,0),"") -> 3.3 | M130: =IFERROR(VLOOKUP(B130,Baza[],10,0),"") -> PAC | N130: =IFERROR(VLOOKUP(B130,Baza[],12,0),"") -> Guaranteed | O130: =IFERROR(VLOOKUP(B130,Baza[],14,0),"") -> 9 | P130: =IFERROR(VLOOKUP(B130,Baza[],15,0),"") -> - | Q130: =IFERROR(VLOOKUP(B130,Baza[],16,0),"") -> - | R130: =IFERROR(VLOOKUP(B130,Baza[],17,0),"") -> - | S130: =IFERROR(VLOOKUP(B130,Baza[],18,0),"") -> 400 | T130: =IFERROR(IF((VLOOKUP(B130,Baza[],19,0)+VLOOKUP(B130,Baza[],20,0))=0,"-",VLOOKUP(B130,Baza[],19,0)+VLOOKUP(B130,Baza[],20,0)),"") -> - | U130: =IFERROR(IF(VLOOKUP(B130,Baza[],21,0)=0,"-",VLOOKUP(B130,Baza[],21,0)),"") -> 56.7 | V130: =IFERROR(VLOOKUP(B130,Baza[],22,0),"") -> 0 | W130: =IFERROR(VLOOKUP(B130,Baza[],23,0),"") -> 4 | X130: =IFERROR(VLOOKUP(B130,Baza[],24,0),"") -> 3.3 | Y130: =IFERROR(IF(VLOOKUP(B130,Baza[],25,0)=0,"-",VLOOKUP(B130,Baza[],25,0)),"") -> - | Z130: =IFERROR(IF(VLOOKUP(B130,Baza[],26,0)=0,"-",VLOOKUP(B130,Baza[],26,0)),"") -> 56.7 | AA130: =IFERROR(VLOOKUP(B130,Baza[],27,0),"") -> 53.4 | AB130: =IFERROR(VLOOKUP(B130,Baza[],28,0),"") -> 160 | AC130: =IF(TOT[[#This Row],[Profit]]="","#Н/Д",SUM($AA$85:AA130)) -> 96.29426966 | AD130: =IF(TOT[[#This Row],[Grafik]]="#Н/Д",FALSE,TRUE) -> TRUE
A131: 46 | B131: 46 | C131: =IFERROR(VLOOKUP(B131,Baza[],2,0),"") -> 2021 | D131: =IF( TOT[[#This Row],[NN]]="","",TEXT( TOT[[#This Row],[Start]],"ч:мм")&" "&TOT[[#This Row],[V]]& TOT[[#This Row],[B]]&" "&"["& TOT[[#This Row],[Room]]&"] "& TOT[[#This Row],[Name]]) -> 14:30 $2,2 [PP] Bounty Hunter | E131: =TOT[[#This Row],[V]]& TOT[[#This Row],[B]] -> $2,2 | F131: =IFERROR(VLOOKUP(B131,Baza[],3,0),"") -> 1 | G131: =IFERROR(VLOOKUP(B131,Baza[],4,0),"") -> суббота | H131: =IFERROR(VLOOKUP(B131,Baza[],5,0),"") -> январь | I131: =IFERROR(VLOOKUP(B131,Baza[],6,0),"") -> 2021-01-02 | J131: =IFERROR(VLOOKUP(B131,Baza[],7,0),"") -> 14:30:00 | K131: =IFERROR(VLOOKUP(B131,Baza[],8,0),"") -> $ | L131: =IFERROR(VLOOKUP(B131,Baza[],9,0),"") -> 2.2 | M131: =IFERROR(VLOOKUP(B131,Baza[],10,0),"") -> PP | N131: =IFERROR(VLOOKUP(B131,Baza[],12,0),"") -> Bounty Hunter | O131: =IFERROR(VLOOKUP(B131,Baza[],14,0),"") -> 8 | P131: =IFERROR(VLOOKUP(B131,Baza[],15,0),"") -> - | Q131: =IFERROR(VLOOKUP(B131,Baza[],16,0),"") -> K | R131: =IFERROR(VLOOKUP(B131,Baza[],17,0),"") -> - | S131: =IFERROR(VLOOKUP(B131,Baza[],18,0),"") -> 400 | T131: =IFERROR(IF((VLOOKUP(B131,Baza[],19,0)+VLOOKUP(B131,Baza[],20,0))=0,"-",VLOOKUP(B131,Baza[],19,0)+VLOOKUP(B131,Baza[],20,0)),"") -> 1.1 | U131: =IFERROR(IF(VLOOKUP(B131,Baza[],21,0)=0,"-",VLOOKUP(B131,Baza[],21,0)),"") -> 2.63 | V131: =IFERROR(VLOOKUP(B131,Baza[],22,0),"") -> 0 | W131: =IFERROR(VLOOKUP(B131,Baza[],23,0),"") -> 26 | X131: =IFERROR(VLOOKUP(B131,Baza[],24,0),"") -> 2.2 | Y131: =IFERROR(IF(VLOOKUP(B131,Baza[],25,0)=0,"-",VLOOKUP(B131,Baza[],25,0)),"") -> 1.1 | Z131: =IFERROR(IF(VLOOKUP(B131,Baza[],26,0)=0,"-",VLOOKUP(B131,Baza[],26,0)),"") -> 2.63 | AA131: =IFERROR(VLOOKUP(B131,Baza[],27,0),"") -> 1.53 | AB131: =IFERROR(VLOOKUP(B131,Baza[],28,0),"") -> 240 | AC131: =IF(TOT[[#This Row],[Profit]]="","#Н/Д",SUM($AA$85:AA131)) -> 97.82426966 | AD131: =IF(TOT[[#This Row],[Grafik]]="#Н/Д",FALSE,TRUE) -> TRUE
A132: 47 | B132: 47 | C132: =IFERROR(VLOOKUP(B132,Baza[],2,0),"") -> 2021 | D132: =IF( TOT[[#This Row],[NN]]="","",TEXT( TOT[[#This Row],[Start]],"ч:мм")&" "&TOT[[#This Row],[V]]& TOT[[#This Row],[B]]&" "&"["& TOT[[#This Row],[Room]]&"] "& TOT[[#This Row],[Name]]) -> 15:00 $1,1 [PS] GTD | E132: =TOT[[#This Row],[V]]& TOT[[#This Row],[B]] -> $1,1 | F132: =IFERROR(VLOOKUP(B132,Baza[],3,0),"") -> 1 | G132: =IFERROR(VLOOKUP(B132,Baza[],4,0),"") -> суббота | H132: =IFERROR(VLOOKUP(B132,Baza[],5,0),"") -> январь | I132: =IFERROR(VLOOKUP(B132,Baza[],6,0),"") -> 2021-01-02 | J132: =IFERROR(VLOOKUP(B132,Baza[],7,0),"") -> 15:00:00 | K132: =IFERROR(VLOOKUP(B132,Baza[],8,0),"") -> $ | L132: =IFERROR(VLOOKUP(B132,Baza[],9,0),"") -> 1.1 | M132: =IFERROR(VLOOKUP(B132,Baza[],10,0),"") -> PS | N132: =IFERROR(VLOOKUP(B132,Baza[],12,0),"") -> GTD | O132: =IFERROR(VLOOKUP(B132,Baza[],14,0),"") -> 9 | P132: =IFERROR(VLOOKUP(B132,Baza[],15,0),"") -> - | Q132: =IFERROR(VLOOKUP(B132,Baza[],16,0),"") -> - | R132: =IFERROR(VLOOKUP(B132,Baza[],17,0),"") -> - | S132: =IFERROR(VLOOKUP(B132,Baza[],18,0),"") -> 750 | T132: =IFERROR(IF((VLOOKUP(B132,Baza[],19,0)+VLOOKUP(B132,Baza[],20,0))=0,"-",VLOOKUP(B132,Baza[],19,0)+VLOOKUP(B132,Baza[],20,0)),"") -> - | U132: =IFERROR(IF(VLOOKUP(B132,Baza[],21,0)=0,"-",VLOOKUP(B132,Baza[],21,0)),"") -> 91.2 | V132: =IFERROR(VLOOKUP(B132,Baza[],22,0),"") -> 0 | W132: =IFERROR(VLOOKUP(B132,Baza[],23,0),"") -> 2 | X132: =IFERROR(VLOOKUP(B132,Baza[],24,0),"") -> 1.1 | Y132: =IFERROR(IF(VLOOKUP(B132,Baza[],25,0)=0,"-",VLOOKUP(B132,Baza[],25,0)),"") -> - | Z132: =IFERROR(IF(VLOOKUP(B132,Baza[],26,0)=0,"-",VLOOKUP(B132,Baza[],26,0)),"") -> 91.2 | AA132: =IFERROR(VLOOKUP(B132,Baza[],27,0),"") -> 90.1 | AB132: =IFERROR(VLOOKUP(B132,Baza[],28,0),"") -> 900 | AC132: =IF(TOT[[#This Row],[Profit]]="","#Н/Д",SUM($AA$85:AA132)) -> 187.9242697 | AD132: =IF(TOT[[#This Row],[Grafik]]="#Н/Д",FALSE,TRUE) -> TRUE
A133: 48 | B133: 48 | C133: =IFERROR(VLOOKUP(B133,Baza[],2,0),"") -> 2021 | D133: =IF( TOT[[#This Row],[NN]]="","",TEXT( TOT[[#This Row],[Start]],"ч:мм")&" "&TOT[[#This Row],[V]]& TOT[[#This Row],[B]]&" "&"["& TOT[[#This Row],[Room]]&"] "& TOT[[#This Row],[Name]]) -> 15:00 $2 [GG] Momster Stack | E133: =TOT[[#This Row],[V]]& TOT[[#This Row],[B]] -> $2 | F133: =IFERROR(VLOOKUP(B133,Baza[],3,0),"") -> 1 | G133: =IFERROR(VLOOKUP(B133,Baza[],4,0),"") -> суббота | H133: =IFERROR(VLOOKUP(B133,Baza[],5,0),"") -> январь | I133: =IFERROR(VLOOKUP(B133,Baza[],6,0),"") -> 2021-01-02 | J133: =IFERROR(VLOOKUP(B133,Baza[],7,0),"") -> 15:00:00 | K133: =IFERROR(VLOOKUP(B133,Baza[],8,0),"") -> $ | L133: =IFERROR(VLOOKUP(B133,Baza[],9,0),"") -> 2 | M133: =IFERROR(VLOOKUP(B133,Baza[],10,0),"") -> GG | N133: =IFERROR(VLOOKUP(B133,Baza[],12,0),"") -> Momster Stack | O133: =IFERROR(VLOOKUP(B133,Baza[],14,0),"") -> 8 | P133: =IFERROR(VLOOKUP(B133,Baza[],15,0),"") -> - | Q133: =IFERROR(VLOOKUP(B133,Baza[],16,0),"") -> - | R133: =IFERROR(VLOOKUP(B133,Baza[],17,0),"") -> - | S133: =IFERROR(VLOOKUP(B133,Baza[],18,0),"") -> 4000 | T133: =IFERROR(IF((VLOOKUP(B133,Baza[],19,0)+VLOOKUP(B133,Baza[],20,0))=0,"-",VLOOKUP(B133,Baza[],19,0)+VLOOKUP(B133,Baza[],20,0)),"") -> - | U133: =IFERROR(IF(VLOOKUP(B133,Baza[],21,0)=0,"-",VLOOKUP(B133,Baza[],21,0)),"") -> 9.11 | V133: =IFERROR(VLOOKUP(B133,Baza[],22,0),"") -> 0 | W133: =IFERROR(VLOOKUP(B133,Baza[],23,0),"") -> 134 | X133: =IFERROR(VLOOKUP(B133,Baza[],24,0),"") -> 2 | Y133: =IFERROR(IF(VLOOKUP(B133,Baza[],25,0)=0,"-",VLOOKUP(B133,Baza[],25,0)),"") -> - | Z133: =IFERROR(IF(VLOOKUP(B133,Baza[],26,0)=0,"-",VLOOKUP(B133,Baza[],26,0)),"") -> 9.11 | AA133: =IFERROR(VLOOKUP(B133,Baza[],27,0),"") -> 7.11 | AB133: =IFERROR(VLOOKUP(B133,Baza[],28,0),"") -> 2640 | AC133: =IF(TOT[[#This Row],[Profit]]="","#Н/Д",SUM($AA$85:AA133)) -> 195.0342697 | AD133: =IF(TOT[[#This Row],[Grafik]]="#Н/Д",FALSE,TRUE) -> TRUE
A134: 49 | B134: 49 | C134: =IFERROR(VLOOKUP(B134,Baza[],2,0),"") -> 2021 | D134: =IF( TOT[[#This Row],[NN]]="","",TEXT( TOT[[#This Row],[Start]],"ч:мм")&" "&TOT[[#This Row],[V]]& TOT[[#This Row],[B]]&" "&"["& TOT[[#This Row],[Room]]&"] "& TOT[[#This Row],[Name]]) -> 15:00 $3,3 [PS] Saturday Micro | E134: =TOT[[#This Row],[V]]& TOT[[#This Row],[B]] -> $3,3 | F134: =IFERROR(VLOOKUP(B134,Baza[],3,0),"") -> 1 | G134: =IFERROR(VLOOKUP(B134,Baza[],4,0),"") -> суббота | H134: =IFERROR(VLOOKUP(B134,Baza[],5,0),"") -> январь | I134: =IFERROR(VLOOKUP(B134,Baza[],6,0),"") -> 2021-01-02 | J134: =IFERROR(VLOOKUP(B134,Baza[],7,0),"") -> 15:00:00 | K134: =IFERROR(VLOOKUP(B134,Baza[],8,0),"") -> $ | L134: =IFERROR(VLOOKUP(B134,Baza[],9,0),"") -> 3.3 | M134: =IFERROR(VLOOKUP(B134,Baza[],10,0),"") -> PS | N134: =IFERROR(VLOOKUP(B134,Baza[],12,0),"") -> Saturday Micro | O134: =IFERROR(VLOOKUP(B134,Baza[],14,0),"") -> 9 | P134: =IFERROR(VLOOKUP(B134,Baza[],15,0),"") -> - | Q134: =IFERROR(VLOOKUP(B134,Baza[],16,0),"") -> - | R134: =IFERROR(VLOOKUP(B134,Baza[],17,0),"") -> - | S134: =IFERROR(VLOOKUP(B134,Baza[],18,0),"") -> 8000 | T134: =IFERROR(IF((VLOOKUP(B134,Baza[],19,0)+VLOOKUP(B134,Baza[],20,0))=0,"-",VLOOKUP(B134,Baza[],19,0)+VLOOKUP(B134,Baza[],20,0)),"") -> - | U134: =IFERROR(IF(VLOOKUP(B134,Baza[],21,0)=0,"-",VLOOKUP(B134,Baza[],21,0)),"") -> 9.77 | V134: =IFERROR(VLOOKUP(B134,Baza[],22,0),"") -> 0 | W134: =IFERROR(VLOOKUP(B134,Baza[],23,0),"") -> 293 | X134: =IFERROR(VLOOKUP(B134,Baza[],24,0),"") -> 3.3 | Y134: =IFERROR(IF(VLOOKUP(B134,Baza[],25,0)=0,"-",VLOOKUP(B134,Baza[],25,0)),"") -> - | Z134: =IFERROR(IF(VLOOKUP(B134,Baza[],26,0)=0,"-",VLOOKUP(B134,Baza[],26,0)),"") -> 9.77 | AA134: =IFERROR(VLOOKUP(B134,Baza[],27,0),"") -> 6.47 | AB134: =IFERROR(VLOOKUP(B134,Baza[],28,0),"") -> 3200 | AC134: =IF(TOT[[#This Row],[Profit]]="","#Н/Д",SUM($AA$85:AA134)) -> 201.5042697 | AD134: =IF(TOT[[#This Row],[Grafik]]="#Н/Д",FALSE,TRUE) -> TRUE
A135: 50 | B135: 50 | C135: =IFERROR(VLOOKUP(B135,Baza[],2,0),"") -> 2021 | D135: =IF( TOT[[#This Row],[NN]]="","",TEXT( TOT[[#This Row],[Start]],"ч:мм")&" "&TOT[[#This Row],[V]]& TOT[[#This Row],[B]]&" "&"["& TOT[[#This Row],[Room]]&"] "& TOT[[#This Row],[Name]]) -> 15:30 $3,3 [PP] Bounty Hunter | E135: =TOT[[#This Row],[V]]& TOT[[#This Row],[B]] -> $3,3 | F135: =IFERROR(VLOOKUP(B135,Baza[],3,0),"") -> 1 | G135: =IFERROR(VLOOKUP(B135,Baza[],4,0),"") -> суббота | H135: =IFERROR(VLOOKUP(B135,Baza[],5,0),"") -> январь | I135: =IFERROR(VLOOKUP(B135,Baza[],6,0),"") -> 2021-01-02 | J135: =IFERROR(VLOOKUP(B135,Baza[],7,0),"") -> 15:30:00 | K135: =IFERROR(VLOOKUP(B135,Baza[],8,0),"") -> $ | L135: =IFERROR(VLOOKUP(B135,Baza[],9,0),"") -> 3.3 | M135: =IFERROR(VLOOKUP(B135,Baza[],10,0),"") -> PP | N135: =IFERROR(VLOOKUP(B135,Baza[],12,0),"") -> Bounty Hunter | O135: =IFERROR(VLOOKUP(B135,Baza[],14,0),"") -> 8 | P135: =IFERROR(VLOOKUP(B135,Baza[],15,0),"") -> - | Q135: =IFERROR(VLOOKUP(B135,Baza[],16,0),"") -> K | R135: =IFERROR(VLOOKUP(B135,Baza[],17,0),"") -> - | S135: =IFERROR(VLOOKUP(B135,Baza[],18,0),"") -> 750 | T135: =IFERROR(IF((VLOOKUP(B135,Baza[],19,0)+VLOOKUP(B135,Baza[],20,0))=0,"-",VLOOKUP(B135,Baza[],19,0)+VLOOKUP(B135,Baza[],20,0)),"") -> - | U135: =IFERROR(IF(VLOOKUP(B135,Baza[],21,0)=0,"-",VLOOKUP(B135,Baza[],21,0)),"") -> - | V135: =IFERROR(VLOOKUP(B135,Baza[],22,0),"") -> 0 | W135: =IFERROR(VLOOKUP(B135,Baza[],23,0),"") -> - | X135: =IFERROR(VLOOKUP(B135,Baza[],24,0),"") -> 3.3 | Y135: =IFERROR(IF(VLOOKUP(B135,Baza[],25,0)=0,"-",VLOOKUP(B135,Baza[],25,0)),"") -> - | Z135: =IFERROR(IF(VLOOKUP(B135,Baza[],26,0)=0,"-",VLOOKUP(B135,Baza[],26,0)),"") -> - | AA135: =IFERROR(VLOOKUP(B135,Baza[],27,0),"") -> -3.3 | AB135: =IFERROR(VLOOKUP(B135,Baza[],28,0),"") -> 300 | AC135: =IF(TOT[[#This Row],[Profit]]="","#Н/Д",SUM($AA$85:AA135)) -> 198.2042697 | AD135: =IF(TOT[[#This Row],[Grafik]]="#Н/Д",FALSE,TRUE) -> TRUE
A136: 51 | B136: 51 | C136: =IFERROR(VLOOKUP(B136,Baza[],2,0),"") -> 2021 | D136: =IF( TOT[[#This Row],[NN]]="","",TEXT( TOT[[#This Row],[Start]],"ч:мм")&" "&TOT[[#This Row],[V]]& TOT[[#This Row],[B]]&" "&"["& TOT[[#This Row],[Room]]&"] "& TOT[[#This Row],[Name]]) -> 16:00 €2 [WN] Monster Stack | E136: =TOT[[#This Row],[V]]& TOT[[#This Row],[B]] -> €2 | F136: =IFERROR(VLOOKUP(B136,Baza[],3,0),"") -> 1 | G136: =IFERROR(VLOOKUP(B136,Baza[],4,0),"") -> суббота | H136: =IFERROR(VLOOKUP(B136,Baza[],5,0),"") -> январь | I136: =IFERROR(VLOOKUP(B136,Baza[],6,0),"") -> 2021-01-02 | J136: =IFERROR(VLOOKUP(B136,Baza[],7,0),"") -> 16:00:00 | K136: =IFERROR(VLOOKUP(B136,Baza[],8,0),"") -> € | L136: =IFERROR(VLOOKUP(B136,Baza[],9,0),"") -> 2 | M136: =IFERROR(VLOOKUP(B136,Baza[],10,0),"") -> WN | N136: =IFERROR(VLOOKUP(B136,Baza[],12,0),"") -> Monster Stack | O136: =IFERROR(VLOOKUP(B136,Baza[],14,0),"") -> 6 | P136: =IFERROR(VLOOKUP(B136,Baza[],15,0),"") -> - | Q136: =IFERROR(VLOOKUP(B136,Baza[],16,0),"") -> - | R136: =IFERROR(VLOOKUP(B136,Baza[],17,0),"") -> - | S136: =IFERROR(VLOOKUP(B136,Baza[],18,0),"") -> 300 | T136: =IFERROR(IF((VLOOKUP(B136,Baza[],19,0)+VLOOKUP(B136,Baza[],20,0))=0,"-",VLOOKUP(B136,Baza[],19,0)+VLOOKUP(B136,Baza[],20,0)),"") -> - | U136: =IFERROR(IF(VLOOKUP(B136,Baza[],21,0)=0,"-",VLOOKUP(B136,Baza[],21,0)),"") -> - | V136: =IFERROR(VLOOKUP(B136,Baza[],22,0),"") -> 0 | W136: =IFERROR(VLOOKUP(B136,Baza[],23,0),"") -> - | X136: =IFERROR(VLOOKUP(B136,Baza[],24,0),"") -> 2.247191011 | Y136: =IFERROR(IF(VLOOKUP(B136,Baza[],25,0)=0,"-",VLOOKUP(B136,Baza[],25,0)),"") -> - | Z136: =IFERROR(IF(VLOOKUP(B136,Baza[],26,0)=0,"-",VLOOKUP(B136,Baza[],26,0)),"") -> - | AA136: =IFERROR(VLOOKUP(B136,Baza[],27,0),"") -> -2.247191011 | AB136: =IFERROR(VLOOKUP(B136,Baza[],28,0),"") -> 198 | AC136: =IF(TOT[[#This Row],[Profit]]="","#Н/Д",SUM($AA$85:AA136)) -> 195.9570787 | AD136: =IF(TOT[[#This Row],[Grafik]]="#Н/Д",FALSE,TRUE) -> TRUE
A137: 52 | B137: 52 | C137: =IFERROR(VLOOKUP(B137,Baza[],2,0),"") -> 2021 | D137: =IF( TOT[[#This Row],[NN]]="","",TEXT( TOT[[#This Row],[Start]],"ч:мм")&" "&TOT[[#This Row],[V]]& TOT[[#This Row],[B]]&" "&"["& TOT[[#This Row],[Room]]&"] "& TOT[[#This Row],[Name]]) -> 16:15 $1,1 [PS] GTD | E137: =TOT[[#This Row],[V]]& TOT[[#This Row],[B]] -> $1,1 | F137: =IFERROR(VLOOKUP(B137,Baza[],3,0),"") -> 1 | G137: =IFERROR(VLOOKUP(B137,Baza[],4,0),"") -> суббота | H137: =IFERROR(VLOOKUP(B137,Baza[],5,0),"") -> январь | I137: =IFERROR(VLOOKUP(B137,Baza[],6,0),"") -> 2021-01-02 | J137: =IFERROR(VLOOKUP(B137,Baza[],7,0),"") -> 16:15:00 | K137: =IFERROR(VLOOKUP(B137,Baza[],8,0),"") -> $ | L137: =IFERROR(VLOOKUP(B137,Baza[],9,0),"") -> 1.1 | M137: =IFERROR(VLOOKUP(B137,Baza[],10,0),"") -> PS | N137: =IFERROR(VLOOKUP(B137,Baza[],12,0),"") -> GTD | O137: =IFERROR(VLOOKUP(B137,Baza[],14,0),"") -> 9 | P137: =IFERROR(VLOOKUP(B137,Baza[],15,0),"") -> - | Q137: =IFERROR(VLOOKUP(B137,Baza[],16,0),"") -> - | R137: =IFERROR(VLOOKUP(B137,Baza[],17,0),"") -> - | S137: =IFERROR(VLOOKUP(B137,Baza[],18,0),"") -> 1500 | T137: =IFERROR(IF((VLOOKUP(B137,Baza[],19,0)+VLOOKUP(B137,Baza[],20,0))=0,"-",VLOOKUP(B137,Baza[],19,0)+VLOOKUP(B137,Baza[],20,0)),"") -> - | U137: =IFERROR(IF(VLOOKUP(B137,Baza[],21,0)=0,"-",VLOOKUP(B137,Baza[],21,0)),"") -> - | V137: =IFERROR(VLOOKUP(B137,Baza[],22,0),"") -> 0 | W137: =IFERROR(VLOOKUP(B137,Baza[],23,0),"") -> - | X137: =IFERROR(VLOOKUP(B137,Baza[],24,0),"") -> 1.1 | Y137: =IFERROR(IF(VLOOKUP(B137,Baza[],25,0)=0,"-",VLOOKUP(B137,Baza[],25,0)),"") -> - | Z137: =IFERROR(IF(VLOOKUP(B137,Baza[],26,0)=0,"-",VLOOKUP(B137,Baza[],26,0)),"") -> - | AA137: =IFERROR(VLOOKUP(B137,Baza[],27,0),"") -> -1.1 | AB137: =IFERROR(VLOOKUP(B137,Baza[],28,0),"") -> 1800 | AC137: =IF(TOT[[#This Row],[Profit]]="","#Н/Д",SUM($AA$85:AA137)) -> 194.8570787 | AD137: =IF(TOT[[#This Row],[Grafik]]="#Н/Д",FALSE,TRUE) -> TRUE
A138: 53 | B138: 53 | C138: =IFERROR(VLOOKUP(B138,Baza[],2,0),"") -> 2021 | D138: =IF( TOT[[#This Row],[NN]]="","",TEXT( TOT[[#This Row],[Start]],"ч:мм")&" "&TOT[[#This Row],[V]]& TOT[[#This Row],[B]]&" "&"["& TOT[[#This Row],[Room]]&"] "& TOT[[#This Row],[Name]]) -> 16:30 $2,2 [PAC] Guaranteed | E138: =TOT[[#This Row],[V]]& TOT[[#This Row],[B]] -> $2,2 | F138: =IFERROR(VLOOKUP(B138,Baza[],3,0),"") -> 1 | G138: =IFERROR(VLOOKUP(B138,Baza[],4,0),"") -> суббота | H138: =IFERROR(VLOOKUP(B138,Baza[],5,0),"") -> январь | I138: =IFERROR(VLOOKUP(B138,Baza[],6,0),"") -> 2021-01-02 | J138: =IFERROR(VLOOKUP(B138,Baza[],7,0),"") -> 16:30:00 | K138: =IFERROR(VLOOKUP(B138,Baza[],8,0),"") -> $ | L138: =IFERROR(VLOOKUP(B138,Baza[],9,0),"") -> 2.2 | M138: =IFERROR(VLOOKUP(B138,Baza[],10,0),"") -> PAC | N138: =IFERROR(VLOOKUP(B138,Baza[],12,0),"") -> Guaranteed | O138: =IFERROR(VLOOKUP(B138,Baza[],14,0),"") -> 9 | P138: =IFERROR(VLOOKUP(B138,Baza[],15,0),"") -> - | Q138: =IFERROR(VLOOKUP(B138,Baza[],16,0),"") -> - | R138: =IFERROR(VLOOKUP(B138,Baza[],17,0),"") -> - | S138: =IFERROR(VLOOKUP(B138,Baza[],18,0),"") -> 500 | T138: =IFERROR(IF((VLOOKUP(B138,Baza[],19,0)+VLOOKUP(B138,Baza[],20,0))=0,"-",VLOOKUP(B138,Baza[],19,0)+VLOOKUP(B138,Baza[],20,0)),"") -> - | U138: =IFERROR(IF(VLOOKUP(B138,Baza[],21,0)=0,"-",VLOOKUP(B138,Baza[],21,0)),"") -> - | V138: =IFERROR(VLOOKUP(B138,Baza[],22,0),"") -> 0 | W138: =IFERROR(VLOOKUP(B138,Baza[],23,0),"") -> - | X138: =IFERROR(VLOOKUP(B138,Baza[],24,0),"") -> 2.2 | Y138: =IFERROR(IF(VLOOKUP(B138,Baza[],25,0)=0,"-",VLOOKUP(B138,Baza[],25,0)),"") -> - | Z138: =IFERROR(IF(VLOOKUP(B138,Baza[],26,0)=0,"-",VLOOKUP(B138,Baza[],26,0)),"") -> - | AA138: =IFERROR(VLOOKUP(B138,Baza[],27,0),"") -> -2.2 | AB138: =IFERROR(VLOOKUP(B138,Baza[],28,0),"") -> 300 | AC138: =IF(TOT[[#This Row],[Profit]]="","#Н/Д",SUM($AA$85:AA138)) -> 192.6570787 | AD138: =IF(TOT[[#This Row],[Grafik]]="#Н/Д",FALSE,TRUE) -> TRUE
A139: 54 | B139: 54 | C139: =IFERROR(VLOOKUP(B139,Baza[],2,0),"") -> 2021 | D139: =IF( TOT[[#This Row],[NN]]="","",TEXT( TOT[[#This Row],[Start]],"ч:мм")&" "&TOT[[#This Row],[V]]& TOT[[#This Row],[B]]&" "&"["& TOT[[#This Row],[Room]]&"] "& TOT[[#This Row],[Name]]) -> 11:00 $1,1 [PP] Bounty Hunter | E139: =TOT[[#This Row],[V]]& TOT[[#This Row],[B]] -> $1,1 | F139: =IFERROR(VLOOKUP(B139,Baza[],3,0),"") -> 1 | G139: =IFERROR(VLOOKUP(B139,Baza[],4,0),"") -> воскресенье | H139: =IFERROR(VLOOKUP(B139,Baza[],5,0),"") -> январь | I139: =IFERROR(VLOOKUP(B139,Baza[],6,0),"") -> 2021-01-03 | J139: =IFERROR(VLOOKUP(B139,Baza[],7,0),"") -> 11:00:00 | K139: =IFERROR(VLOOKUP(B139,Baza[],8,0),"") -> $ | L139: =IFERROR(VLOOKUP(B139,Baza[],9,0),"") -> 1.1 | M139: =IFERROR(VLOOKUP(B139,Baza[],10,0),"") -> PP | N139: =IFERROR(VLOOKUP(B139,Baza[],12,0),"") -> Bounty Hunter | O139: =IFERROR(VLOOKUP(B139,Baza[],14,0),"") -> 8 | P139: =IFERROR(VLOOKUP(B139,Baza[],15,0),"") -> - | Q139: =IFERROR(VLOOKUP(B139,Baza[],16,0),"") -> K | R139: =IFERROR(VLOOKUP(B139,Baza[],17,0),"") -> - | S139: =IFERROR(VLOOKUP(B139,Baza[],18,0),"") -> 75 | T139: =IFERROR(IF((VLOOKUP(B139,Baza[],19,0)+VLOOKUP(B139,Baza[],20,0))=0,"-",VLOOKUP(B139,Baza[],19,0)+VLOOKUP(B139,Baza[],20,0)),"") -> - | U139: =IFERROR(IF(VLOOKUP(B139,Baza[],21,0)=0,"-",VLOOKUP(B139,Baza[],21,0)),"") -> - | V139: =IFERROR(VLOOKUP(B139,Baza[],22,0),"") -> 0 | W139: =IFERROR(VLOOKUP(B139,Baza[],23,0),"") -> - | X139: =IFERROR(VLOOKUP(B139,Baza[],24,0),"") -> 1.1 | Y139: =IFERROR(IF(VLOOKUP(B139,Baza[],25,0)=0,"-",VLOOKUP(B139,Baza[],25,0)),"") -> - | Z139: =IFERROR(IF(VLOOKUP(B139,Baza[],26,0)=0,"-",VLOOKUP(B139,Baza[],26,0)),"") -> - | AA139: =IFERROR(VLOOKUP(B139,Baza[],27,0),"") -> -1.1 | AB139: =IFERROR(VLOOKUP(B139,Baza[],28,0),"") -> 90 | AC139: =IF(TOT[[#This Row],[Profit]]="","#Н/Д",SUM($AA$85:AA139)) -> 191.5570787 | AD139: =IF(TOT[[#This Row],[Grafik]]="#Н/Д",FALSE,TRUE) -> TRUE
A140: 55 | B140: 55 | C140: =IFERROR(VLOOKUP(B140,Baza[],2,0),"") -> 2021 | D140: =IF( TOT[[#This Row],[NN]]="","",TEXT( TOT[[#This Row],[Start]],"ч:мм")&" "&TOT[[#This Row],[V]]& TOT[[#This Row],[B]]&" "&"["& TOT[[#This Row],[Room]]&"] "& TOT[[#This Row],[Name]]) -> 11:00 €1 [WN] Monster Stack | E140: =TOT[[#This Row],[V]]& TOT[[#This Row],[B]] -> €1 | F140: =IFERROR(VLOOKUP(B140,Baza[],3,0),"") -> 1 | G140: =IFERROR(VLOOKUP(B140,Baza[],4,0),"") -> воскресенье | H140: =IFERROR(VLOOKUP(B140,Baza[],5,0),"") -> январь | I140: =IFERROR(VLOOKUP(B140,Baza[],6,0),"") -> 2021-01-03 | J140: =IFERROR(VLOOKUP(B140,Baza[],7,0),"") -> 11:00:00 | K140: =IFERROR(VLOOKUP(B140,Baza[],8,0),"") -> € | L140: =IFERROR(VLOOKUP(B140,Baza[],9,0),"") -> 1 | M140: =IFERROR(VLOOKUP(B140,Baza[],10,0),"") -> WN | N140: =IFERROR(VLOOKUP(B140,Baza[],12,0),"") -> Monster Stack | O140: =IFERROR(VLOOKUP(B140,Baza[],14,0),"") -> 6 | P140: =IFERROR(VLOOKUP(B140,Baza[],15,0),"") -> - | Q140: =IFERROR(VLOOKUP(B140,Baza[],16,0),"") -> - | R140: =IFERROR(VLOOKUP(B140,Baza[],17,0),"") -> - | S140: =IFERROR(VLOOKUP(B140,Baza[],18,0),"") -> 150 | T140: =IFERROR(IF((VLOOKUP(B140,Baza[],19,0)+VLOOKUP(B140,Baza[],20,0))=0,"-",VLOOKUP(B140,Baza[],19,0)+VLOOKUP(B140,Baza[],20,0)),"") -> - | U140: =IFERROR(IF(VLOOKUP(B140,Baza[],21,0)=0,"-",VLOOKUP(B140,Baza[],21,0)),"") -> - | V140: =IFERROR(VLOOKUP(B140,Baza[],22,0),"") -> 0 | W140: =IFERROR(VLOOKUP(B140,Baza[],23,0),"") -> - | X140: =IFERROR(VLOOKUP(B140,Baza[],24,0),"") -> 1.123595506 | Y140: =IFERROR(IF(VLOOKUP(B140,Baza[],25,0)=0,"-",VLOOKUP(B140,Baza[],25,0)),"") -> - | Z140: =IFERROR(IF(VLOOKUP(B140,Baza[],26,0)=0,"-",VLOOKUP(B140,Baza[],26,0)),"") -> - | AA140: =IFERROR(VLOOKUP(B140,Baza[],27,0),"") -> -1.123595506 | AB140: =IFERROR(VLOOKUP(B140,Baza[],28,0),"") -> 198 | AC140: =IF(TOT[[#This Row],[Profit]]="","#Н/Д",SUM($AA$85:AA140)) -> 190.4334831 | AD140: =IF(TOT[[#This Row],[Grafik]]="#Н/Д",FALSE,TRUE) -> TRUE
A141: 56 | B141: 56 | C141: =IFERROR(VLOOKUP(B141,Baza[],2,0),"") -> 2021 | D141: =IF( TOT[[#This Row],[NN]]="","",TEXT( TOT[[#This Row],[Start]],"ч:мм")&" "&TOT[[#This Row],[V]]& TOT[[#This Row],[B]]&" "&"["& TOT[[#This Row],[Room]]&"] "& TOT[[#This Row],[Name]]) -> 11:15 $2,2 [PP] Deepstack | E141: =TOT[[#This Row],[V]]& TOT[[#This Row],[B]] -> $2,2 | F141: =IFERROR(VLOOKUP(B141,Baza[],3,0),"") -> 1 | G141: =IFERROR(VLOOKUP(B141,Baza[],4,0),"") -> воскресенье | H141: =IFERROR(VLOOKUP(B141,Baza[],5,0),"") -> январь | I141: =IFERROR(VLOOKUP(B141,Baza[],6,0),"") -> 2021-01-03 | J141: =IFERROR(VLOOKUP(B141,Baza[],7,0),"") -> 11:15:00 | K141: =IFERROR(VLOOKUP(B141,Baza[],8,0),"") -> $ | L141: =IFERROR(VLOOKUP(B141,Baza[],9,0),"") -> 2.2 | M141: =IFERROR(VLOOKUP(B141,Baza[],10,0),"") -> PP | N141: =IFERROR(VLOOKUP(B141,Baza[],12,0),"") -> Deepstack | O141: =IFERROR(VLOOKUP(B141,Baza[],14,0),"") -> 8 | P141: =IFERROR(VLOOKUP(B141,Baza[],15,0),"") -> - | Q141: =IFERROR(VLOOKUP(B141,Baza[],16,0),"") -> - | R141: =IFERROR(VLOOKUP(B141,Baza[],17,0),"") -> - | S141: =IFERROR(VLOOKUP(B141,Baza[],18,0),"") -> 300 | T141: =IFERROR(IF((VLOOKUP(B141,Baza[],19,0)+VLOOKUP(B141,Baza[],20,0))=0,"-",VLOOKUP(B141,Baza[],19,0)+VLOOKUP(B141,Baza[],20,0)),"") -> - | U141: =IFERROR(IF(VLOOKUP(B141,Baza[],21,0)=0,"-",VLOOKUP(B141,Baza[],21,0)),"") -> 31.51 | V141: =IFERROR(VLOOKUP(B141,Baza[],22,0),"") -> 0 | W141: =IFERROR(VLOOKUP(B141,Baza[],23,0),"") -> 4 | X141: =IFERROR(VLOOKUP(B141,Baza[],24,0),"") -> 2.2 | Y141: =IFERROR(IF(VLOOKUP(B141,Baza[],25,0)=0,"-",VLOOKUP(B141,Baza[],25,0)),"") -> - | Z141: =IFERROR(IF(VLOOKUP(B141,Baza[],26,0)=0,"-",VLOOKUP(B141,Baza[],26,0)),"") -> 31.51 | AA141: =IFERROR(VLOOKUP(B141,Baza[],27,0),"") -> 29.31 | AB141: =IFERROR(VLOOKUP(B141,Baza[],28,0),"") -> 180 | AC141: =IF(TOT[[#This Row],[Profit]]="","#Н/Д",SUM($AA$85:AA141)) -> 219.7434831 | AD141: =IF(TOT[[#This Row],[Grafik]]="#Н/Д",FALSE,TRUE) -> TRUE
A142: 57 | B142: 57 | C142: =IFERROR(VLOOKUP(B142,Baza[],2,0),"") -> 2021 | D142: =IF( TOT[[#This Row],[NN]]="","",TEXT( TOT[[#This Row],[Start]],"ч:мм")&" "&TOT[[#This Row],[V]]& TOT[[#This Row],[B]]&" "&"["& TOT[[#This Row],[Room]]&"] "& TOT[[#This Row],[Name]]) -> 11:30 $2,1 [GG] Bounty Hunters | E142: =TOT[[#This Row],[V]]& TOT[[#This Row],[B]] -> $2,1 | F142: =IFERROR(VLOOKUP(B142,Baza[],3,0),"") -> 1 | G142: =IFERROR(VLOOKUP(B142,Baza[],4,0),"") -> воскресенье | H142: =IFERROR(VLOOKUP(B142,Baza[],5,0),"") -> январь | I142: =IFERROR(VLOOKUP(B142,Baza[],6,0),"") -> 2021-01-03 | J142: =IFERROR(VLOOKUP(B142,Baza[],7,0),"") -> 11:30:00 | K142: =IFERROR(VLOOKUP(B142,Baza[],8,0),"") -> $ | L142: =IFERROR(VLOOKUP(B142,Baza[],9,0),"") -> 2.1 | M142: =IFERROR(VLOOKUP(B142,Baza[],10,0),"") -> GG | N142: =IFERROR(VLOOKUP(B142,Baza[],12,0),"") -> Bounty Hunters | O142: =IFERROR(VLOOKUP(B142,Baza[],14,0),"") -> 8 | P142: =IFERROR(VLOOKUP(B142,Baza[],15,0),"") -> - | Q142: =IFERROR(VLOOKUP(B142,Baza[],16,0),"") -> K | R142: =IFERROR(VLOOKUP(B142,Baza[],17,0),"") -> - | S142: =IFERROR(VLOOKUP(B142,Baza[],18,0),"") -> 1200 | T142: =IFERROR(IF((VLOOKUP(B142,Baza[],19,0)+VLOOKUP(B142,Baza[],20,0))=0,"-",VLOOKUP(B142,Baza[],19,0)+VLOOKUP(B142,Baza[],20,0)),"") -> 2.37 | U142: =IFERROR(IF(VLOOKUP(B142,Baza[],21,0)=0,"-",VLOOKUP(B142,Baza[],21,0)),"") -> - | V142: =IFERROR(VLOOKUP(B142,Baza[],22,0),"") -> 0 | W142: =IFERROR(VLOOKUP(B142,Baza[],23,0),"") -> - | X142: =IFERROR(VLOOKUP(B142,Baza[],24,0),"") -> 2.1 | Y142: =IFERROR(IF(VLOOKUP(B142,Baza[],25,0)=0,"-",VLOOKUP(B142,Baza[],25,0)),"") -> 2.37 | Z142: =IFERROR(IF(VLOOKUP(B142,Baza[],26,0)=0,"-",VLOOKUP(B142,Baza[],26,0)),"") -> - | AA142: =IFERROR(VLOOKUP(B142,Baza[],27,0),"") -> 0.27 | AB142: =IFERROR(VLOOKUP(B142,Baza[],28,0),"") -> 754.2857143 | AC142: =IF(TOT[[#This Row],[Profit]]="","#Н/Д",SUM($AA$85:AA142)) -> 220.0134831 | AD142: =IF(TOT[[#This Row],[Grafik]]="#Н/Д",FALSE,TRUE) -> TRUE
A143: 58 | B143: 58 | C143: =IFERROR(VLOOKUP(B143,Baza[],2,0),"") -> 2021 | D143: =IF( TOT[[#This Row],[NN]]="","",TEXT( TOT[[#This Row],[Start]],"ч:мм")&" "&TOT[[#This Row],[V]]& TOT[[#This Row],[B]]&" "&"["& TOT[[#This Row],[Room]]&"] "& TOT[[#This Row],[Name]]) -> 11:30 $3,3 [PP] Bounty Hunter | E143: =TOT[[#This Row],[V]]& TOT[[#This Row],[B]] -> $3,3 | F143: =IFERROR(VLOOKUP(B143,Baza[],3,0),"") -> 1 | G143: =IFERROR(VLOOKUP(B143,Baza[],4,0),"") -> воскресенье | H143: =IFERROR(VLOOKUP(B143,Baza[],5,0),"") -> январь | I143: =IFERROR(VLOOKUP(B143,Baza[],6,0),"") -> 2021-01-03 | J143: =IFERROR(VLOOKUP(B143,Baza[],7,0),"") -> 11:30:00 | K143: =IFERROR(VLOOKUP(B143,Baza[],8,0),"") -> $ | L143: =IFERROR(VLOOKUP(B143,Baza[],9,0),"") -> 3.3 | M143: =IFERROR(VLOOKUP(B143,Baza[],10,0),"") -> PP | N143: =IFERROR(VLOOKUP(B143,Baza[],12,0),"") -> Bounty Hunter | O143: =IFERROR(VLOOKUP(B143,Baza[],14,0),"") -> 8 | P143: =IFERROR(VLOOKUP(B143,Baza[],15,0),"") -> - | Q143: =IFERROR(VLOOKUP(B143,Baza[],16,0),"") -> K | R143: =IFERROR(VLOOKUP(B143,Baza[],17,0),"") -> - | S143: =IFERROR(VLOOKUP(B143,Baza[],18,0),"") -> 500 | T143: =IFERROR(IF((VLOOKUP(B143,Baza[],19,0)+VLOOKUP(B143,Baza[],20,0))=0,"-",VLOOKUP(B143,Baza[],19,0)+VLOOKUP(B143,Baza[],20,0)),"") -> 3.28 | U143: =IFERROR(IF(VLOOKUP(B143,Baza[],21,0)=0,"-",VLOOKUP(B143,Baza[],21,0)),"") -> 3.07 | V143: =IFERROR(VLOOKUP(B143,Baza[],22,0),"") -> 0 | W143: =IFERROR(VLOOKUP(B143,Baza[],23,0),"") -> 28 | X143: =IFERROR(VLOOKUP(B143,Baza[],24,0),"") -> 3.3 | Y143: =IFERROR(IF(VLOOKUP(B143,Baza[],25,0)=0,"-",VLOOKUP(B143,Baza[],25,0)),"") -> 3.28 | Z143: =IFERROR(IF(VLOOKUP(B143,Baza[],26,0)=0,"-",VLOOKUP(B143,Baza[],26,0)),"") -> 3.07 | AA143: =IFERROR(VLOOKUP(B143,Baza[],27,0),"") -> 3.05 | AB143: =IFERROR(VLOOKUP(B143,Baza[],28,0),"") -> 200 | AC143: =IF(TOT[[#This Row],[Profit]]="","#Н/Д",SUM($AA$85:AA143)) -> 223.0634831 | AD143: =IF(TOT[[#This Row],[Grafik]]="#Н/Д",FALSE,TRUE) -> TRUE
A144: 59 | B144: 59 | C144: =IFERROR(VLOOKUP(B144,Baza[],2,0),"") -> 2021 | D144: =IF( TOT[[#This Row],[NN]]="","",TEXT( TOT[[#This Row],[Start]],"ч:мм")&" "&TOT[[#This Row],[V]]& TOT[[#This Row],[B]]&" "&"["& TOT[[#This Row],[Room]]&"] "& TOT[[#This Row],[Name]]) -> 11:40 $3,3 [PS] GTD | E144: =TOT[[#This Row],[V]]& TOT[[#This Row],[B]] -> $3,3 | F144: =IFERROR(VLOOKUP(B144,Baza[],3,0),"") -> 1 | G144: =IFERROR(VLOOKUP(B144,Baza[],4,0),"") -> воскресенье | H144: =IFERROR(VLOOKUP(B144,Baza[],5,0),"") -> январь | I144: =IFERROR(VLOOKUP(B144,Baza[],6,0),"") -> 2021-01-03 | J144: =IFERROR(VLOOKUP(B144,Baza[],7,0),"") -> 11:40:00 | K144: =IFERROR(VLOOKUP(B144,Baza[],8,0),"") -> $ | L144: =IFERROR(VLOOKUP(B144,Baza[],9,0),"") -> 3.3 | M144: =IFERROR(VLOOKUP(B144,Baza[],10,0),"") -> PS | N144: =IFERROR(VLOOKUP(B144,Baza[],12,0),"") -> GTD | O144: =IFERROR(VLOOKUP(B144,Baza[],14,0),"") -> 9 | P144: =IFERROR(VLOOKUP(B144,Baza[],15,0),"") -> - | Q144: =IFERROR(VLOOKUP(B144,Baza[],16,0),"") -> - | R144: =IFERROR(VLOOKUP(B144,Baza[],17,0),"") -> - | S144: =IFERROR(VLOOKUP(B144,Baza[],18,0),"") -> 1000 | T144: =IFERROR(IF((VLOOKUP(B144,Baza[],19,0)+VLOOKUP(B144,Baza[],20,0))=0,"-",VLOOKUP(B144,Baza[],19,0)+VLOOKUP(B144,Baza[],20,0)),"") -> - | U144: =IFERROR(IF(VLOOKUP(B144,Baza[],21,0)=0,"-",VLOOKUP(B144,Baza[],21,0)),"") -> - | V144: =IFERROR(VLOOKUP(B144,Baza[],22,0),"") -> 0 | W144: =IFERROR(VLOOKUP(B144,Baza[],23,0),"") -> - | X144: =IFERROR(VLOOKUP(B144,Baza[],24,0),"") -> 3.3 | Y144: =IFERROR(IF(VLOOKUP(B144,Baza[],25,0)=0,"-",VLOOKUP(B144,Baza[],25,0)),"") -> - | Z144: =IFERROR(IF(VLOOKUP(B144,Baza[],26,0)=0,"-",VLOOKUP(B144,Baza[],26,0)),"") -> - | AA144: =IFERROR(VLOOKUP(B144,Baza[],27,0),"") -> -3.3 | AB144: =IFERROR(VLOOKUP(B144,Baza[],28,0),"") -> 400 | AC144: =IF(TOT[[#This Row],[Profit]]="","#Н/Д",SUM($AA$85:AA144)) -> 219.7634831 | AD144: =IF(TOT[[#This Row],[Grafik]]="#Н/Д",FALSE,TRUE) -> TRUE
A145: 60 | B145: 60 | C145: =IFERROR(VLOOKUP(B145,Baza[],2,0),"") -> 2021 | D145: =IF( TOT[[#This Row],[NN]]="","",TEXT( TOT[[#This Row],[Start]],"ч:мм")&" "&TOT[[#This Row],[V]]& TOT[[#This Row],[B]]&" "&"["& TOT[[#This Row],[Room]]&"] "& TOT[[#This Row],[Name]]) -> 12:00 $1,1 [PP] Deepstack | E145: =TOT[[#This Row],[V]]& TOT[[#This Row],[B]] -> $1,1 | F145: =IFERROR(VLOOKUP(B145,Baza[],3,0),"") -> 1 | G145: =IFERROR(VLOOKUP(B145,Baza[],4,0),"") -> воскресенье | H145: =IFERROR(VLOOKUP(B145,Baza[],5,0),"") -> январь | I145: =IFERROR(VLOOKUP(B145,Baza[],6,0),"") -> 2021-01-03 | J145: =IFERROR(VLOOKUP(B145,Baza[],7,0),"") -> 12:00:00 | K145: =IFERROR(VLOOKUP(B145,Baza[],8,0),"") -> $ | L145: =IFERROR(VLOOKUP(B145,Baza[],9,0),"") -> 1.1 | M145: =IFERROR(VLOOKUP(B145,Baza[],10,0),"") -> PP | N145: =IFERROR(VLOOKUP(B145,Baza[],12,0),"") -> Deepstack | O145: =IFERROR(VLOOKUP(B145,Baza[],14,0),"") -> 8 | P145: =IFERROR(VLOOKUP(B145,Baza[],15,0),"") -> - | Q145: =IFERROR(VLOOKUP(B145,Baza[],16,0),"") -> - | R145: =IFERROR(VLOOKUP(B145,Baza[],17,0),"") -> - | S145: =IFERROR(VLOOKUP(B145,Baza[],18,0),"") -> 200 | T145: =IFERROR(IF((VLOOKUP(B145,Baza[],19,0)+VLOOKUP(B145,Baza[],20,0))=0,"-",VLOOKUP(B145,Baza[],19,0)+VLOOKUP(B145,Baza[],20,0)),"") -> - | U145: =IFERROR(IF(VLOOKUP(B145,Baza[],21,0)=0,"-",VLOOKUP(B145,Baza[],21,0)),"") -> 2.66 | V145: =IFERROR(VLOOKUP(B145,Baza[],22,0),"") -> 0 | W145: =IFERROR(VLOOKUP(B145,Baza[],23,0),"") -> 21 | X145: =IFERROR(VLOOKUP(B145,Baza[],24,0),"") -> 1.1 | Y145: =IFERROR(IF(VLOOKUP(B145,Baza[],25,0)=0,"-",VLOOKUP(B145,Baza[],25,0)),"") -> - | Z145: =IFERROR(IF(VLOOKUP(B145,Baza[],26,0)=0,"-",VLOOKUP(B145,Baza[],26,0)),"") -> 2.66 | AA145: =IFERROR(VLOOKUP(B145,Baza[],27,0),"") -> 1.56 | AB145: =IFERROR(VLOOKUP(B145,Baza[],28,0),"") -> 240 | AC145: =IF(TOT[[#This Row],[Profit]]="","#Н/Д",SUM($AA$85:AA145)) -> 221.3234831 | AD145: =IF(TOT[[#This Row],[Grafik]]="#Н/Д",FALSE,TRUE) -> TRUE
A146: 61 | B146: 61 | C146: =IFERROR(VLOOKUP(B146,Baza[],2,0),"") -> 2021 | D146: =IF( TOT[[#This Row],[NN]]="","",TEXT( TOT[[#This Row],[Start]],"ч:мм")&" "&TOT[[#This Row],[V]]& TOT[[#This Row],[B]]&" "&"["& TOT[[#This Row],[Room]]&"] "& TOT[[#This Row],[Name]]) -> 12:00 $1,1 [PS] Big | E146: =TOT[[#This Row],[V]]& TOT[[#This Row],[B]] -> $1,1 | F146: =IFERROR(VLOOKUP(B146,Baza[],3,0),"") -> 1 | G146: =IFERROR(VLOOKUP(B146,Baza[],4,0),"") -> воскресенье | H146: =IFERROR(VLOOKUP(B146,Baza[],5,0),"") -> январь | I146: =IFERROR(VLOOKUP(B146,Baza[],6,0),"") -> 2021-01-03 | J146: =IFERROR(VLOOKUP(B146,Baza[],7,0),"") -> 12:00:00 | K146: =IFERROR(VLOOKUP(B146,Baza[],8,0),"") -> $ | L146: =IFERROR(VLOOKUP(B146,Baza[],9,0),"") -> 1.1 | M146: =IFERROR(VLOOKUP(B146,Baza[],10,0),"") -> PS | N146: =IFERROR(VLOOKUP(B146,Baza[],12,0),"") -> Big | O146: =IFERROR(VLOOKUP(B146,Baza[],14,0),"") -> 9 | P146: =IFERROR(VLOOKUP(B146,Baza[],15,0),"") -> - | Q146: =IFERROR(VLOOKUP(B146,Baza[],16,0),"") -> - | R146: =IFERROR(VLOOKUP(B146,Baza[],17,0),"") -> - | S146: =IFERROR(VLOOKUP(B146,Baza[],18,0),"") -> 2000 | T146: =IFERROR(IF((VLOOKUP(B146,Baza[],19,0)+VLOOKUP(B146,Baza[],20,0))=0,"-",VLOOKUP(B146,Baza[],19,0)+VLOOKUP(B146,Baza[],20,0)),"") -> - | U146: =IFERROR(IF(VLOOKUP(B146,Baza[],21,0)=0,"-",VLOOKUP(B146,Baza[],21,0)),"") -> - | V146: =IFERROR(VLOOKUP(B146,Baza[],22,0),"") -> 0 | W146: =IFERROR(VLOOKUP(B146,Baza[],23,0),"") -> - | X146: =IFERROR(VLOOKUP(B146,Baza[],24,0),"") -> 1.1 | Y146: =IFERROR(IF(VLOOKUP(B146,Baza[],25,0)=0,"-",VLOOKUP(B146,Baza[],25,0)),"") -> - | Z146: =IFERROR(IF(VLOOKUP(B146,Baza[],26,0)=0,"-",VLOOKUP(B146,Baza[],26,0)),"") -> - | AA146: =IFERROR(VLOOKUP(B146,Baza[],27,0),"") -> -1.1 | AB146: =IFERROR(VLOOKUP(B146,Baza[],28,0),"") -> 2400 | AC146: =IF(TOT[[#This Row],[Profit]]="","#Н/Д",SUM($AA$85:AA146)) -> 220.2234831 | AD146: =IF(TOT[[#This Row],[Grafik]]="#Н/Д",FALSE,TRUE) -> TRUE
A147: 62 | B147: 62 | C147: =IFERROR(VLOOKUP(B147,Baza[],2,0),"") -> 2021 | D147: =IF( TOT[[#This Row],[NN]]="","",TEXT( TOT[[#This Row],[Start]],"ч:мм")&" "&TOT[[#This Row],[V]]& TOT[[#This Row],[B]]&" "&"["& TOT[[#This Row],[Room]]&"] "& TOT[[#This Row],[Name]]) -> 12:00 €2 [WN] Monster Stack | E147: =TOT[[#This Row],[V]]& TOT[[#This Row],[B]] -> €2 | F147: =IFERROR(VLOOKUP(B147,Baza[],3,0),"") -> 1 | G147: =IFERROR(VLOOKUP(B147,Baza[],4,0),"") -> воскресенье | H147: =IFERROR(VLOOKUP(B147,Baza[],5,0),"") -> январь | I147: =IFERROR(VLOOKUP(B147,Baza[],6,0),"") -> 2021-01-03 | J147: =IFERROR(VLOOKUP(B147,Baza[],7,0),"") -> 12:00:00 | K147: =IFERROR(VLOOKUP(B147,Baza[],8,0),"") -> € | L147: =IFERROR(VLOOKUP(B147,Baza[],9,0),"") -> 2 | M147: =IFERROR(VLOOKUP(B147,Baza[],10,0),"") -> WN | N147: =IFERROR(VLOOKUP(B147,Baza[],12,0),"") -> Monster Stack | O147: =IFERROR(VLOOKUP(B147,Baza[],14,0),"") -> 6 | P147: =IFERROR(VLOOKUP(B147,Baza[],15,0),"") -> - | Q147: =IFERROR(VLOOKUP(B147,Baza[],16,0),"") -> - | R147: =IFERROR(VLOOKUP(B147,Baza[],17,0),"") -> - | S147: =IFERROR(VLOOKUP(B147,Baza[],18,0),"") -> 200 | T147: =IFERROR(IF((VLOOKUP(B147,Baza[],19,0)+VLOOKUP(B147,Baza[],20,0))=0,"-",VLOOKUP(B147,Baza[],19,0)+VLOOKUP(B147,Baza[],20,0)),"") -> - | U147: =IFERROR(IF(VLOOKUP(B147,Baza[],21,0)=0,"-",VLOOKUP(B147,Baza[],21,0)),"") -> 4.55 | V147: =IFERROR(VLOOKUP(B147,Baza[],22,0),"") -> 0 | W147: =IFERROR(VLOOKUP(B147,Baza[],23,0),"") -> 13 | X147: =IFERROR(VLOOKUP(B147,Baza[],24,0),"") -> 2.247191011 | Y147: =IFERROR(IF(VLOOKUP(B147,Baza[],25,0)=0,"-",VLOOKUP(B147,Baza[],25,0)),"") -> - | Z147: =IFERROR(IF(VLOOKUP(B147,Baza[],26,0)=0,"-",VLOOKUP(B147,Baza[],26,0)),"") -> 5.112359551 | AA147: =IFERROR(VLOOKUP(B147,Baza[],27,0),"") -> 2.865168539 | AB147: =IFERROR(VLOOKUP(B147,Baza[],28,0),"") -> 132 | AC147: =IF(TOT[[#This Row],[Profit]]="","#Н/Д",SUM($AA$85:AA147)) -> 223.0886517 | AD147: =IF(TOT[[#This Row],[Grafik]]="#Н/Д",FALSE,TRUE) -> TRUE
A148: 63 | B148: 63 | C148: =IFERROR(VLOOKUP(B148,Baza[],2,0),"") -> 2021 | D148: =IF( TOT[[#This Row],[NN]]="","",TEXT( TOT[[#This Row],[Start]],"ч:мм")&" "&TOT[[#This Row],[V]]& TOT[[#This Row],[B]]&" "&"["& TOT[[#This Row],[Room]]&"] "& TOT[[#This Row],[Name]]) -> 12:30 $1,05 [GG] Bounty Hunters | E148: =TOT[[#This Row],[V]]& TOT[[#This Row],[B]] -> $1,05 | F148: =IFERROR(VLOOKUP(B148,Baza[],3,0),"") -> 1 | G148: =IFERROR(VLOOKUP(B148,Baza[],4,0),"") -> воскресенье | H148: =IFERROR(VLOOKUP(B148,Baza[],5,0),"") -> январь | I148: =IFERROR(VLOOKUP(B148,Baza[],6,0),"") -> 2021-01-03 | J148: =IFERROR(VLOOKUP(B148,Baza[],7,0),"") -> 12:30:00 | K148: =IFERROR(VLOOKUP(B148,Baza[],8,0),"") -> $ | L148: =IFERROR(VLOOKUP(B148,Baza[],9,0),"") -> 1.05 | M148: =IFERROR(VLOOKUP(B148,Baza[],10,0),"") -> GG | N148: =IFERROR(VLOOKUP(B148,Baza[],12,0),"") -> Bounty Hunters | O148: =IFERROR(VLOOKUP(B148,Baza[],14,0),"") -> 8 | P148: =IFERROR(VLOOKUP(B148,Baza[],15,0),"") -> - | Q148: =IFERROR(VLOOKUP(B148,Baza[],16,0),"") -> K | R148: =IFERROR(VLOOKUP(B148,Baza[],17,0),"") -> - | S148: =IFERROR(VLOOKUP(B148,Baza[],18,0),"") -> 750 | T148: =IFERROR(IF((VLOOKUP(B148,Baza[],19,0)+VLOOKUP(B148,Baza[],20,0))=0,"-",VLOOKUP(B148,Baza[],19,0)+VLOOKUP(B148,Baza[],20,0)),"") -> - | U148: =IFERROR(IF(VLOOKUP(B148,Baza[],21,0)=0,"-",VLOOKUP(B148,Baza[],21,0)),"") -> - | V148: =IFERROR(VLOOKUP(B148,Baza[],22,0),"") -> 0 | W148: =IFERROR(VLOOKUP(B148,Baza[],23,0),"") -> - | X148: =IFERROR(VLOOKUP(B148,Baza[],24,0),"") -> 1.05 | Y148: =IFERROR(IF(VLOOKUP(B148,Baza[],25,0)=0,"-",VLOOKUP(B148,Baza[],25,0)),"") -> - | Z148: =IFERROR(IF(VLOOKUP(B148,Baza[],26,0)=0,"-",VLOOKUP(B148,Baza[],26,0)),"") -> - | AA148: =IFERROR(VLOOKUP(B148,Baza[],27,0),"") -> -1.05 | AB148: =IFERROR(VLOOKUP(B148,Baza[],28,0),"") -> 942.8571429 | AC148: =IF(TOT[[#This Row],[Profit]]="","#Н/Д",SUM($AA$85:AA148)) -> 222.0386517 | AD148: =IF(TOT[[#This Row],[Grafik]]="#Н/Д",FALSE,TRUE) -> TRUE
A149: 64 | B149: 64 | C149: =IFERROR(VLOOKUP(B149,Baza[],2,0),"") -> 2021 | D149: =IF( TOT[[#This Row],[NN]]="","",TEXT( TOT[[#This Row],[Start]],"ч:мм")&" "&TOT[[#This Row],[V]]& TOT[[#This Row],[B]]&" "&"["& TOT[[#This Row],[Room]]&"] "& TOT[[#This Row],[Name]]) -> 12:30 $1 [PAC] Guaranteed | E149: =TOT[[#This Row],[V]]& TOT[[#This Row],[B]] -> $1 | F149: =IFERROR(VLOOKUP(B149,Baza[],3,0),"") -> 1 | G149: =IFERROR(VLOOKUP(B149,Baza[],4,0),"") -> воскресенье | H149: =IFERROR(VLOOKUP(B149,Baza[],5,0),"") -> январь | I149: =IFERROR(VLOOKUP(B149,Baza[],6,0),"") -> 2021-01-03 | J149: =IFERROR(VLOOKUP(B149,Baza[],7,0),"") -> 12:30:00 | K149: =IFERROR(VLOOKUP(B149,Baza[],8,0),"") -> $ | L149: =IFERROR(VLOOKUP(B149,Baza[],9,0),"") -> 1 | M149: =IFERROR(VLOOKUP(B149,Baza[],10,0),"") -> PAC | N149: =IFERROR(VLOOKUP(B149,Baza[],12,0),"") -> Guaranteed | O149: =IFERROR(VLOOKUP(B149,Baza[],14,0),"") -> 9 | P149: =IFERROR(VLOOKUP(B149,Baza[],15,0),"") -> - | Q149: =IFERROR(VLOOKUP(B149,Baza[],16,0),"") -> - | R149: =IFERROR(VLOOKUP(B149,Baza[],17,0),"") -> - | S149: =IFERROR(VLOOKUP(B149,Baza[],18,0),"") -> 200 | T149: =IFERROR(IF((VLOOKUP(B149,Baza[],19,0)+VLOOKUP(B149,Baza[],20,0))=0,"-",VLOOKUP(B149,Baza[],19,0)+VLOOKUP(B149,Baza[],20,0)),"") -> - | U149: =IFERROR(IF(VLOOKUP(B149,Baza[],21,0)=0,"-",VLOOKUP(B149,Baza[],21,0)),"") -> - | V149: =IFERROR(VLOOKUP(B149,Baza[],22,0),"") -> 0 | W149: =IFERROR(VLOOKUP(B149,Baza[],23,0),"") -> - | X149: =IFERROR(VLOOKUP(B149,Baza[],24,0),"") -> 1 | Y149: =IFERROR(IF(VLOOKUP(B149,Baza[],25,0)=0,"-",VLOOKUP(B149,Baza[],25,0)),"") -> - | Z149: =IFERROR(IF(VLOOKUP(B149,Baza[],26,0)=0,"-",VLOOKUP(B149,Baza[],26,0)),"") -> - | AA149: =IFERROR(VLOOKUP(B149,Baza[],27,0),"") -> -1 | AB149: =IFERROR(VLOOKUP(B149,Baza[],28,0),"") -> 264 | AC149: =IF(TOT[[#This Row],[Profit]]="","#Н/Д",SUM($AA$85:AA149)) -> 221.0386517 | AD149: =IF(TOT[[#This Row],[Grafik]]="#Н/Д",FALSE,TRUE) -> TRUE
A150: =A149+1 -> 65 | B150: 65 | C150: =IFERROR(VLOOKUP(B150,Baza[],2,0),"") -> 2021 | D150: =IF( TOT[[#This Row],[NN]]="","",TEXT( TOT[[#This Row],[Start]],"ч:мм")&" "&TOT[[#This Row],[V]]& TOT[[#This Row],[B]]&" "&"["& TOT[[#This Row],[Room]]&"] "& TOT[[#This Row],[Name]]) -> 12:30 $2,2 [PP] Bounty Hunter | E150: =TOT[[#This Row],[V]]& TOT[[#This Row],[B]] -> $2,2 | F150: =IFERROR(VLOOKUP(B150,Baza[],3,0),"") -> 1 | G150: =IFERROR(VLOOKUP(B150,Baza[],4,0),"") -> воскресенье | H150: =IFERROR(VLOOKUP(B150,Baza[],5,0),"") -> январь | I150: =IFERROR(VLOOKUP(B150,Baza[],6,0),"") -> 2021-01-03 | J150: =IFERROR(VLOOKUP(B150,Baza[],7,0),"") -> 12:30:00 | K150: =IFERROR(VLOOKUP(B150,Baza[],8,0),"") -> $ | L150: =IFERROR(VLOOKUP(B150,Baza[],9,0),"") -> 2.2 | M150: =IFERROR(VLOOKUP(B150,Baza[],10,0),"") -> PP | N150: =IFERROR(VLOOKUP(B150,Baza[],12,0),"") -> Bounty Hunter | O150: =IFERROR(VLOOKUP(B150,Baza[],14,0),"") -> 8 | P150: =IFERROR(VLOOKUP(B150,Baza[],15,0),"") -> - | Q150: =IFERROR(VLOOKUP(B150,Baza[],16,0),"") -> K | R150: =IFERROR(VLOOKUP(B150,Baza[],17,0),"") -> - | S150: =IFERROR(VLOOKUP(B150,Baza[],18,0),"") -> 300 | T150: =IFERROR(IF((VLOOKUP(B150,Baza[],19,0)+VLOOKUP(B150,Baza[],20,0))=0,"-",VLOOKUP(B150,Baza[],19,0)+VLOOKUP(B150,Baza[],20,0)),"") -> - | U150: =IFERROR(IF(VLOOKUP(B150,Baza[],21,0)=0,"-",VLOOKUP(B150,Baza[],21,0)),"") -> - | V150: =IFERROR(VLOOKUP(B150,Baza[],22,0),"") -> 0 | W150: =IFERROR(VLOOKUP(B150,Baza[],23,0),"") -> - | X150: =IFERROR(VLOOKUP(B150,Baza[],24,0),"") -> 2.2 | Y150: =IFERROR(IF(VLOOKUP(B150,Baza[],25,0)=0,"-",VLOOKUP(B150,Baza[],25,0)),"") -> - | Z150: =IFERROR(IF(VLOOKUP(B150,Baza[],26,0)=0,"-",VLOOKUP(B150,Baza[],26,0)),"") -> - | AA150: =IFERROR(VLOOKUP(B150,Baza[],27,0),"") -> -2.2 | AB150: =IFERROR(VLOOKUP(B150,Baza[],28,0),"") -> 180 | AC150: =IF(TOT[[#This Row],[Profit]]="","#Н/Д",SUM($AA$85:AA150)) -> 218.8386517 | AD150: =IF(TOT[[#This Row],[Grafik]]="#Н/Д",FALSE,TRUE) -> TRUE
A151: 66 | B151: 66 | C151: =IFERROR(VLOOKUP(B151,Baza[],2,0),"") -> 2021 | D151: =IF( TOT[[#This Row],[NN]]="","",TEXT( TOT[[#This Row],[Start]],"ч:мм")&" "&TOT[[#This Row],[V]]& TOT[[#This Row],[B]]&" "&"["& TOT[[#This Row],[Room]]&"] "& TOT[[#This Row],[Name]]) -> 13:00 $2,2 [PS] GTD | E151: =TOT[[#This Row],[V]]& TOT[[#This Row],[B]] -> $2,2 | F151: =IFERROR(VLOOKUP(B151,Baza[],3,0),"") -> 1 | G151: =IFERROR(VLOOKUP(B151,Baza[],4,0),"") -> воскресенье | H151: =IFERROR(VLOOKUP(B151,Baza[],5,0),"") -> январь | I151: =IFERROR(VLOOKUP(B151,Baza[],6,0),"") -> 2021-01-03 | J151: =IFERROR(VLOOKUP(B151,Baza[],7,0),"") -> 13:00:00 | K151: =IFERROR(VLOOKUP(B151,Baza[],8,0),"") -> $ | L151: =IFERROR(VLOOKUP(B151,Baza[],9,0),"") -> 2.2 | M151: =IFERROR(VLOOKUP(B151,Baza[],10,0),"") -> PS | N151: =IFERROR(VLOOKUP(B151,Baza[],12,0),"") -> GTD | O151: =IFERROR(VLOOKUP(B151,Baza[],14,0),"") -> 6 | P151: =IFERROR(VLOOKUP(B151,Baza[],15,0),"") -> - | Q151: =IFERROR(VLOOKUP(B151,Baza[],16,0),"") -> - | R151: =IFERROR(VLOOKUP(B151,Baza[],17,0),"") -> - | S151: =IFERROR(VLOOKUP(B151,Baza[],18,0),"") -> 1000 | T151: =IFERROR(IF((VLOOKUP(B151,Baza[],19,0)+VLOOKUP(B151,Baza[],20,0))=0,"-",VLOOKUP(B151,Baza[],19,0)+VLOOKUP(B151,Baza[],20,0)),"") -> - | U151: =IFERROR(IF(VLOOKUP(B151,Baza[],21,0)=0,"-",VLOOKUP(B151,Baza[],21,0)),"") -> 12.51 | V151: =IFERROR(VLOOKUP(B151,Baza[],22,0),"") -> 0 | W151: =IFERROR(VLOOKUP(B151,Baza[],23,0),"") -> 22 | X151: =IFERROR(VLOOKUP(B151,Baza[],24,0),"") -> 2.2 | Y151: =IFERROR(IF(VLOOKUP(B151,Baza[],25,0)=0,"-",VLOOKUP(B151,Baza[],25,0)),"") -> - | Z151: =IFERROR(IF(VLOOKUP(B151,Baza[],26,0)=0,"-",VLOOKUP(B151,Baza[],26,0)),"") -> 12.51 | AA151: =IFERROR(VLOOKUP(B151,Baza[],27,0),"") -> 10.31 | AB151: =IFERROR(VLOOKUP(B151,Baza[],28,0),"") -> 600 | AC151: =IF(TOT[[#This Row],[Profit]]="","#Н/Д",SUM($AA$85:AA151)) -> 229.1486517 | AD151: =IF(TOT[[#This Row],[Grafik]]="#Н/Д",FALSE,TRUE) -> TRUE
A152: 67 | B152: 67 | C152: =IFERROR(VLOOKUP(B152,Baza[],2,0),"") -> 2021 | D152: =IF( TOT[[#This Row],[NN]]="","",TEXT( TOT[[#This Row],[Start]],"ч:мм")&" "&TOT[[#This Row],[V]]& TOT[[#This Row],[B]]&" "&"["& TOT[[#This Row],[Room]]&"] "& TOT[[#This Row],[Name]]) -> 13:00 €1 [WN] Monster Stack | E152: =TOT[[#This Row],[V]]& TOT[[#This Row],[B]] -> €1 | F152: =IFERROR(VLOOKUP(B152,Baza[],3,0),"") -> 1 | G152: =IFERROR(VLOOKUP(B152,Baza[],4,0),"") -> воскресенье | H152: =IFERROR(VLOOKUP(B152,Baza[],5,0),"") -> январь | I152: =IFERROR(VLOOKUP(B152,Baza[],6,0),"") -> 2021-01-03 | J152: =IFERROR(VLOOKUP(B152,Baza[],7,0),"") -> 13:00:00 | K152: =IFERROR(VLOOKUP(B152,Baza[],8,0),"") -> € | L152: =IFERROR(VLOOKUP(B152,Baza[],9,0),"") -> 1 | M152: =IFERROR(VLOOKUP(B152,Baza[],10,0),"") -> WN | N152: =IFERROR(VLOOKUP(B152,Baza[],12,0),"") -> Monster Stack | O152: =IFERROR(VLOOKUP(B152,Baza[],14,0),"") -> 6 | P152: =IFERROR(VLOOKUP(B152,Baza[],15,0),"") -> - | Q152: =IFERROR(VLOOKUP(B152,Baza[],16,0),"") -> - | R152: =IFERROR(VLOOKUP(B152,Baza[],17,0),"") -> - | S152: =IFERROR(VLOOKUP(B152,Baza[],18,0),"") -> 300 | T152: =IFERROR(IF((VLOOKUP(B152,Baza[],19,0)+VLOOKUP(B152,Baza[],20,0))=0,"-",VLOOKUP(B152,Baza[],19,0)+VLOOKUP(B152,Baza[],20,0)),"") -> - | U152: =IFERROR(IF(VLOOKUP(B152,Baza[],21,0)=0,"-",VLOOKUP(B152,Baza[],21,0)),"") -> - | V152: =IFERROR(VLOOKUP(B152,Baza[],22,0),"") -> 0 | W152: =IFERROR(VLOOKUP(B152,Baza[],23,0),"") -> - | X152: =IFERROR(VLOOKUP(B152,Baza[],24,0),"") -> 1.123595506 | Y152: =IFERROR(IF(VLOOKUP(B152,Baza[],25,0)=0,"-",VLOOKUP(B152,Baza[],25,0)),"") -> - | Z152: =IFERROR(IF(VLOOKUP(B152,Baza[],26,0)=0,"-",VLOOKUP(B152,Baza[],26,0)),"") -> - | AA152: =IFERROR(VLOOKUP(B152,Baza[],27,0),"") -> -1.123595506 | AB152: =IFERROR(VLOOKUP(B152,Baza[],28,0),"") -> 396 | AC152: =IF(TOT[[#This Row],[Profit]]="","#Н/Д",SUM($AA$85:AA152)) -> 228.0250562 | AD152: =IF(TOT[[#This Row],[Grafik]]="#Н/Д",FALSE,TRUE) -> TRUE
A153: 68 | B153: 68 | C153: =IFERROR(VLOOKUP(B153,Baza[],2,0),"") -> 2021 | D153: =IF( TOT[[#This Row],[NN]]="","",TEXT( TOT[[#This Row],[Start]],"ч:мм")&" "&TOT[[#This Row],[V]]& TOT[[#This Row],[B]]&" "&"["& TOT[[#This Row],[Room]]&"] "& TOT[[#This Row],[Name]]) -> 13:15 $3,3 [PP] Deepstack | E153: =TOT[[#This Row],[V]]& TOT[[#This Row],[B]] -> $3,3 | F153: =IFERROR(VLOOKUP(B153,Baza[],3,0),"") -> 1 | G153: =IFERROR(VLOOKUP(B153,Baza[],4,0),"") -> воскресенье | H153: =IFERROR(VLOOKUP(B153,Baza[],5,0),"") -> январь | I153: =IFERROR(VLOOKUP(B153,Baza[],6,0),"") -> 2021-01-03 | J153: =IFERROR(VLOOKUP(B153,Baza[],7,0),"") -> 13:15:00 | K153: =IFERROR(VLOOKUP(B153,Baza[],8,0),"") -> $ | L153: =IFERROR(VLOOKUP(B153,Baza[],9,0),"") -> 3.3 | M153: =IFERROR(VLOOKUP(B153,Baza[],10,0),"") -> PP | N153: =IFERROR(VLOOKUP(B153,Baza[],12,0),"") -> Deepstack | O153: =IFERROR(VLOOKUP(B153,Baza[],14,0),"") -> 8 | P153: =IFERROR(VLOOKUP(B153,Baza[],15,0),"") -> - | Q153: =IFERROR(VLOOKUP(B153,Baza[],16,0),"") -> - | R153: =IFERROR(VLOOKUP(B153,Baza[],17,0),"") -> - | S153: =IFERROR(VLOOKUP(B153,Baza[],18,0),"") -> 500 | T153: =IFERROR(IF((VLOOKUP(B153,Baza[],19,0)+VLOOKUP(B153,Baza[],20,0))=0,"-",VLOOKUP(B153,Baza[],19,0)+VLOOKUP(B153,Baza[],20,0)),"") -> - | U153: =IFERROR(IF(VLOOKUP(B153,Baza[],21,0)=0,"-",VLOOKUP(B153,Baza[],21,0)),"") -> 65.37 | V153: =IFERROR(VLOOKUP(B153,Baza[],22,0),"") -> 0 | W153: =IFERROR(VLOOKUP(B153,Baza[],23,0),"") -> 3 | X153: =IFERROR(VLOOKUP(B153,Baza[],24,0),"") -> 3.3 | Y153: =IFERROR(IF(VLOOKUP(B153,Baza[],25,0)=0,"-",VLOOKUP(B153,Baza[],25,0)),"") -> - | Z153: =IFERROR(IF(VLOOKUP(B153,Baza[],26,0)=0,"-",VLOOKUP(B153,Baza[],26,0)),"") -> 65.37 | AA153: =IFERROR(VLOOKUP(B153,Baza[],27,0),"") -> 62.07 | AB153: =IFERROR(VLOOKUP(B153,Baza[],28,0),"") -> 200 | AC153: =IF(TOT[[#This Row],[Profit]]="","#Н/Д",SUM($AA$85:AA153)) -> 290.0950562 | AD153: =IF(TOT[[#This Row],[Grafik]]="#Н/Д",FALSE,TRUE) -> TRUE
A154: 69 | B154: 69 | C154: =IFERROR(VLOOKUP(B154,Baza[],2,0),"") -> 2021 | D154: =IF( TOT[[#This Row],[NN]]="","",TEXT( TOT[[#This Row],[Start]],"ч:мм")&" "&TOT[[#This Row],[V]]& TOT[[#This Row],[B]]&" "&"["& TOT[[#This Row],[Room]]&"] "& TOT[[#This Row],[Name]]) -> 13:30 $4,4 [PAC] Guaranteed PKO | E154: =TOT[[#This Row],[V]]& TOT[[#This Row],[B]] -> $4,4 | F154: =IFERROR(VLOOKUP(B154,Baza[],3,0),"") -> 1 | G154: =IFERROR(VLOOKUP(B154,Baza[],4,0),"") -> воскресенье | H154: =IFERROR(VLOOKUP(B154,Baza[],5,0),"") -> январь | I154: =IFERROR(VLOOKUP(B154,Baza[],6,0),"") -> 2021-01-03 | J154: =IFERROR(VLOOKUP(B154,Baza[],7,0),"") -> 13:30:00 | K154: =IFERROR(VLOOKUP(B154,Baza[],8,0),"") -> $ | L154: =IFERROR(VLOOKUP(B154,Baza[],9,0),"") -> 4.4 | M154: =IFERROR(VLOOKUP(B154,Baza[],10,0),"") -> PAC | N154: =IFERROR(VLOOKUP(B154,Baza[],12,0),"") -> Guaranteed PKO | O154: =IFERROR(VLOOKUP(B154,Baza[],14,0),"") -> 9 | P154: =IFERROR(VLOOKUP(B154,Baza[],15,0),"") -> - | Q154: =IFERROR(VLOOKUP(B154,Baza[],16,0),"") -> K | R154: =IFERROR(VLOOKUP(B154,Baza[],17,0),"") -> - | S154: =IFERROR(VLOOKUP(B154,Baza[],18,0),"") -> 300 | T154: =IFERROR(IF((VLOOKUP(B154,Baza[],19,0)+VLOOKUP(B154,Baza[],20,0))=0,"-",VLOOKUP(B154,Baza[],19,0)+VLOOKUP(B154,Baza[],20,0)),"") -> - | U154: =IFERROR(IF(VLOOKUP(B154,Baza[],21,0)=0,"-",VLOOKUP(B154,Baza[],21,0)),"") -> - | V154: =IFERROR(VLOOKUP(B154,Baza[],22,0),"") -> 0 | W154: =IFERROR(VLOOKUP(B154,Baza[],23,0),"") -> - | X154: =IFERROR(VLOOKUP(B154,Baza[],24,0),"") -> 4.4 | Y154: =IFERROR(IF(VLOOKUP(B154,Baza[],25,0)=0,"-",VLOOKUP(B154,Baza[],25,0)),"") -> - | Z154: =IFERROR(IF(VLOOKUP(B154,Baza[],26,0)=0,"-",VLOOKUP(B154,Baza[],26,0)),"") -> - | AA154: =IFERROR(VLOOKUP(B154,Baza[],27,0),"") -> -4.4 | AB154: =IFERROR(VLOOKUP(B154,Baza[],28,0),"") -> 90 | AC154: =IF(TOT[[#This Row],[Profit]]="","#Н/Д",SUM($AA$85:AA154)) -> 285.6950562 | AD154: =IF(TOT[[#This Row],[Grafik]]="#Н/Д",FALSE,TRUE) -> TRUE
A155: 70 | B155: 70 | C155: =IFERROR(VLOOKUP(B155,Baza[],2,0),"") -> 2021 | D155: =IF( TOT[[#This Row],[NN]]="","",TEXT( TOT[[#This Row],[Start]],"ч:мм")&" "&TOT[[#This Row],[V]]& TOT[[#This Row],[B]]&" "&"["& TOT[[#This Row],[Room]]&"] "& TOT[[#This Row],[Name]]) -> 13:30 $2,1 [GG] Bounty Hunters | E155: =TOT[[#This Row],[V]]& TOT[[#This Row],[B]] -> $2,1 | F155: =IFERROR(VLOOKUP(B155,Baza[],3,0),"") -> 1 | G155: =IFERROR(VLOOKUP(B155,Baza[],4,0),"") -> воскресенье | H155: =IFERROR(VLOOKUP(B155,Baza[],5,0),"") -> январь | I155: =IFERROR(VLOOKUP(B155,Baza[],6,0),"") -> 2021-01-03 | J155: =IFERROR(VLOOKUP(B155,Baza[],7,0),"") -> 13:30:00 | K155: =IFERROR(VLOOKUP(B155,Baza[],8,0),"") -> $ | L155: =IFERROR(VLOOKUP(B155,Baza[],9,0),"") -> 2.1 | M155: =IFERROR(VLOOKUP(B155,Baza[],10,0),"") -> GG | N155: =IFERROR(VLOOKUP(B155,Baza[],12,0),"") -> Bounty Hunters | O155: =IFERROR(VLOOKUP(B155,Baza[],14,0),"") -> 8 | P155: =IFERROR(VLOOKUP(B155,Baza[],15,0),"") -> - | Q155: =IFERROR(VLOOKUP(B155,Baza[],16,0),"") -> K | R155: =IFERROR(VLOOKUP(B155,Baza[],17,0),"") -> - | S155: =IFERROR(VLOOKUP(B155,Baza[],18,0),"") -> 2500 | T155: =IFERROR(IF((VLOOKUP(B155,Baza[],19,0)+VLOOKUP(B155,Baza[],20,0))=0,"-",VLOOKUP(B155,Baza[],19,0)+VLOOKUP(B155,Baza[],20,0)),"") -> - | U155: =IFERROR(IF(VLOOKUP(B155,Baza[],21,0)=0,"-",VLOOKUP(B155,Baza[],21,0)),"") -> - | V155: =IFERROR(VLOOKUP(B155,Baza[],22,0),"") -> 0 | W155: =IFERROR(VLOOKUP(B155,Baza[],23,0),"") -> - | X155: =IFERROR(VLOOKUP(B155,Baza[],24,0),"") -> 2.1 | Y155: =IFERROR(IF(VLOOKUP(B155,Baza[],25,0)=0,"-",VLOOKUP(B155,Baza[],25,0)),"") -> - | Z155: =IFERROR(IF(VLOOKUP(B155,Baza[],26,0)=0,"-",VLOOKUP(B155,Baza[],26,0)),"") -> - | AA155: =IFERROR(VLOOKUP(B155,Baza[],27,0),"") -> -2.1 | AB155: =IFERROR(VLOOKUP(B155,Baza[],28,0),"") -> 1571.428571 | AC155: =IF(TOT[[#This Row],[Profit]]="","#Н/Д",SUM($AA$85:AA155)) -> 283.5950562 | AD155: =IF(TOT[[#This Row],[Grafik]]="#Н/Д",FALSE,TRUE) -> TRUE
A156: 71 | B156: 71 | C156: =IFERROR(VLOOKUP(B156,Baza[],2,0),"") -> 2021 | D156: =IF( TOT[[#This Row],[NN]]="","",TEXT( TOT[[#This Row],[Start]],"ч:мм")&" "&TOT[[#This Row],[V]]& TOT[[#This Row],[B]]&" "&"["& TOT[[#This Row],[Room]]&"] "& TOT[[#This Row],[Name]]) -> 13:30 $3,3 [PP] Bounty Hunter | E156: =TOT[[#This Row],[V]]& TOT[[#This Row],[B]] -> $3,3 | F156: =IFERROR(VLOOKUP(B156,Baza[],3,0),"") -> 1 | G156: =IFERROR(VLOOKUP(B156,Baza[],4,0),"") -> воскресенье | H156: =IFERROR(VLOOKUP(B156,Baza[],5,0),"") -> январь | I156: =IFERROR(VLOOKUP(B156,Baza[],6,0),"") -> 2021-01-03 | J156: =IFERROR(VLOOKUP(B156,Baza[],7,0),"") -> 13:30:00 | K156: =IFERROR(VLOOKUP(B156,Baza[],8,0),"") -> $ | L156: =IFERROR(VLOOKUP(B156,Baza[],9,0),"") -> 3.3 | M156: =IFERROR(VLOOKUP(B156,Baza[],10,0),"") -> PP | N156: =IFERROR(VLOOKUP(B156,Baza[],12,0),"") -> Bounty Hunter | O156: =IFERROR(VLOOKUP(B156,Baza[],14,0),"") -> 8 | P156: =IFERROR(VLOOKUP(B156,Baza[],15,0),"") -> - | Q156: =IFERROR(VLOOKUP(B156,Baza[],16,0),"") -> K | R156: =IFERROR(VLOOKUP(B156,Baza[],17,0),"") -> - | S156: =IFERROR(VLOOKUP(B156,Baza[],18,0),"") -> 500 | T156: =IFERROR(IF((VLOOKUP(B156,Baza[],19,0)+VLOOKUP(B156,Baza[],20,0))=0,"-",VLOOKUP(B156,Baza[],19,0)+VLOOKUP(B156,Baza[],20,0)),"") -> - | U156: =IFERROR(IF(VLOOKUP(B156,Baza[],21,0)=0,"-",VLOOKUP(B156,Baza[],21,0)),"") -> - | V156: =IFERROR(VLOOKUP(B156,Baza[],22,0),"") -> 0 | W156: =IFERROR(VLOOKUP(B156,Baza[],23,0),"") -> - | X156: =IFERROR(VLOOKUP(B156,Baza[],24,0),"") -> 3.3 | Y156: =IFERROR(IF(VLOOKUP(B156,Baza[],25,0)=0,"-",VLOOKUP(B156,Baza[],25,0)),"") -> - | Z156: =IFERROR(IF(VLOOKUP(B156,Baza[],26,0)=0,"-",VLOOKUP(B156,Baza[],26,0)),"") -> - | AA156: =IFERROR(VLOOKUP(B156,Baza[],27,0),"") -> -3.3 | AB156: =IFERROR(VLOOKUP(B156,Baza[],28,0),"") -> 200 | AC156: =IF(TOT[[#This Row],[Profit]]="","#Н/Д",SUM($AA$85:AA156)) -> 280.2950562 | AD156: =IF(TOT[[#This Row],[Grafik]]="#Н/Д",FALSE,TRUE) -> TRUE
A157: 72 | B157: 72 | C157: =IFERROR(VLOOKUP(B157,Baza[],2,0),"") -> 2021 | D157: =IF( TOT[[#This Row],[NN]]="","",TEXT( TOT[[#This Row],[Start]],"ч:мм")&" "&TOT[[#This Row],[V]]& TOT[[#This Row],[B]]&" "&"["& TOT[[#This Row],[Room]]&"] "& TOT[[#This Row],[Name]]) -> 13:30 $4,4 [PS] Bounty Builder | E157: =TOT[[#This Row],[V]]& TOT[[#This Row],[B]] -> $4,4 | F157: =IFERROR(VLOOKUP(B157,Baza[],3,0),"") -> 1 | G157: =IFERROR(VLOOKUP(B157,Baza[],4,0),"") -> воскресенье | H157: =IFERROR(VLOOKUP(B157,Baza[],5,0),"") -> январь | I157: =IFERROR(VLOOKUP(B157,Baza[],6,0),"") -> 2021-01-03 | J157: =IFERROR(VLOOKUP(B157,Baza[],7,0),"") -> 13:30:00 | K157: =IFERROR(VLOOKUP(B157,Baza[],8,0),"") -> $ | L157: =IFERROR(VLOOKUP(B157,Baza[],9,0),"") -> 4.4 | M157: =IFERROR(VLOOKUP(B157,Baza[],10,0),"") -> PS | N157: =IFERROR(VLOOKUP(B157,Baza[],12,0),"") -> Bounty Builder | O157: =IFERROR(VLOOKUP(B157,Baza[],14,0),"") -> 9 | P157: =IFERROR(VLOOKUP(B157,Baza[],15,0),"") -> - | Q157: =IFERROR(VLOOKUP(B157,Baza[],16,0),"") -> K | R157: =IFERROR(VLOOKUP(B157,Baza[],17,0),"") -> - | S157: =IFERROR(VLOOKUP(B157,Baza[],18,0),"") -> 20000 | T157: =IFERROR(IF((VLOOKUP(B157,Baza[],19,0)+VLOOKUP(B157,Baza[],20,0))=0,"-",VLOOKUP(B157,Baza[],19,0)+VLOOKUP(B157,Baza[],20,0)),"") -> 1 | U157: =IFERROR(IF(VLOOKUP(B157,Baza[],21,0)=0,"-",VLOOKUP(B157,Baza[],21,0)),"") -> - | V157: =IFERROR(VLOOKUP(B157,Baza[],22,0),"") -> 0 | W157: =IFERROR(VLOOKUP(B157,Baza[],23,0),"") -> - | X157: =IFERROR(VLOOKUP(B157,Baza[],24,0),"") -> 4.4 | Y157: =IFERROR(IF(VLOOKUP(B157,Baza[],25,0)=0,"-",VLOOKUP(B157,Baza[],25,0)),"") -> 1 | Z157: =IFERROR(IF(VLOOKUP(B157,Baza[],26,0)=0,"-",VLOOKUP(B157,Baza[],26,0)),"") -> - | AA157: =IFERROR(VLOOKUP(B157,Baza[],27,0),"") -> -3.4 | AB157: =IFERROR(VLOOKUP(B157,Baza[],28,0),"") -> 6000 | AC157: =IF(TOT[[#This Row],[Profit]]="","#Н/Д",SUM($AA$85:AA157)) -> 276.8950562 | AD157: =IF(TOT[[#This Row],[Grafik]]="#Н/Д",FALSE,TRUE) -> TRUE
A158: 73 | B158: 73 | C158: =IFERROR(VLOOKUP(B158,Baza[],2,0),"") -> 2021 | D158: =IF( TOT[[#This Row],[NN]]="","",TEXT( TOT[[#This Row],[Start]],"ч:мм")&" "&TOT[[#This Row],[V]]& TOT[[#This Row],[B]]&" "&"["& TOT[[#This Row],[Room]]&"] "& TOT[[#This Row],[Name]]) -> 13:45 $2,2 [PS] Deep Stacks | E158: =TOT[[#This Row],[V]]& TOT[[#This Row],[B]] -> $2,2 | F158: =IFERROR(VLOOKUP(B158,Baza[],3,0),"") -> 1 | G158: =IFERROR(VLOOKUP(B158,Baza[],4,0),"") -> воскресенье | H158: =IFERROR(VLOOKUP(B158,Baza[],5,0),"") -> январь | I158: =IFERROR(VLOOKUP(B158,Baza[],6,0),"") -> 2021-01-03 | J158: =IFERROR(VLOOKUP(B158,Baza[],7,0),"") -> 13:45:00 | K158: =IFERROR(VLOOKUP(B158,Baza[],8,0),"") -> $ | L158: =IFERROR(VLOOKUP(B158,Baza[],9,0),"") -> 2.2 | M158: =IFERROR(VLOOKUP(B158,Baza[],10,0),"") -> PS | N158: =IFERROR(VLOOKUP(B158,Baza[],12,0),"") -> Deep Stacks | O158: =IFERROR(VLOOKUP(B158,Baza[],14,0),"") -> 9 | P158: =IFERROR(VLOOKUP(B158,Baza[],15,0),"") -> - | Q158: =IFERROR(VLOOKUP(B158,Baza[],16,0),"") -> - | R158: =IFERROR(VLOOKUP(B158,Baza[],17,0),"") -> - | S158: =IFERROR(VLOOKUP(B158,Baza[],18,0),"") -> 2000 | T158: =IFERROR(IF((VLOOKUP(B158,Baza[],19,0)+VLOOKUP(B158,Baza[],20,0))=0,"-",VLOOKUP(B158,Baza[],19,0)+VLOOKUP(B158,Baza[],20,0)),"") -> - | U158: =IFERROR(IF(VLOOKUP(B158,Baza[],21,0)=0,"-",VLOOKUP(B158,Baza[],21,0)),"") -> 8.36 | V158: =IFERROR(VLOOKUP(B158,Baza[],22,0),"") -> 0 | W158: =IFERROR(VLOOKUP(B158,Baza[],23,0),"") -> 104 | X158: =IFERROR(VLOOKUP(B158,Baza[],24,0),"") -> 2.2 | Y158: =IFERROR(IF(VLOOKUP(B158,Baza[],25,0)=0,"-",VLOOKUP(B158,Baza[],25,0)),"") -> - | Z158: =IFERROR(IF(VLOOKUP(B158,Baza[],26,0)=0,"-",VLOOKUP(B158,Baza[],26,0)),"") -> 8.36 | AA158: =IFERROR(VLOOKUP(B158,Baza[],27,0),"") -> 6.16 | AB158: =IFERROR(VLOOKUP(B158,Baza[],28,0),"") -> 1200 | AC158: =IF(TOT[[#This Row],[Profit]]="","#Н/Д",SUM($AA$85:AA158)) -> 283.0550562 | AD158: =IF(TOT[[#This Row],[Grafik]]="#Н/Д",FALSE,TRUE) -> TRUE
A159: 74 | B159: 74 | C159: =IFERROR(VLOOKUP(B159,Baza[],2,0),"") -> 2021 | D159: =IF( TOT[[#This Row],[NN]]="","",TEXT( TOT[[#This Row],[Start]],"ч:мм")&" "&TOT[[#This Row],[V]]& TOT[[#This Row],[B]]&" "&"["& TOT[[#This Row],[Room]]&"] "& TOT[[#This Row],[Name]]) -> 14:00 $2,2 [PAC] Guaranteed | E159: =TOT[[#This Row],[V]]& TOT[[#This Row],[B]] -> $2,2 | F159: =IFERROR(VLOOKUP(B159,Baza[],3,0),"") -> 1 | G159: =IFERROR(VLOOKUP(B159,Baza[],4,0),"") -> воскресенье | H159: =IFERROR(VLOOKUP(B159,Baza[],5,0),"") -> январь | I159: =IFERROR(VLOOKUP(B159,Baza[],6,0),"") -> 2021-01-03 | J159: =IFERROR(VLOOKUP(B159,Baza[],7,0),"") -> 14:00:00 | K159: =IFERROR(VLOOKUP(B159,Baza[],8,0),"") -> $ | L159: =IFERROR(VLOOKUP(B159,Baza[],9,0),"") -> 2.2 | M159: =IFERROR(VLOOKUP(B159,Baza[],10,0),"") -> PAC | N159: =IFERROR(VLOOKUP(B159,Baza[],12,0),"") -> Guaranteed | O159: =IFERROR(VLOOKUP(B159,Baza[],14,0),"") -> 9 | P159: =IFERROR(VLOOKUP(B159,Baza[],15,0),"") -> - | Q159: =IFERROR(VLOOKUP(B159,Baza[],16,0),"") -> - | R159: =IFERROR(VLOOKUP(B159,Baza[],17,0),"") -> - | S159: =IFERROR(VLOOKUP(B159,Baza[],18,0),"") -> 500 | T159: =IFERROR(IF((VLOOKUP(B159,Baza[],19,0)+VLOOKUP(B159,Baza[],20,0))=0,"-",VLOOKUP(B159,Baza[],19,0)+VLOOKUP(B159,Baza[],20,0)),"") -> - | U159: =IFERROR(IF(VLOOKUP(B159,Baza[],21,0)=0,"-",VLOOKUP(B159,Baza[],21,0)),"") -> - | V159: =IFERROR(VLOOKUP(B159,Baza[],22,0),"") -> 0 | W159: =IFERROR(VLOOKUP(B159,Baza[],23,0),"") -> - | X159: =IFERROR(VLOOKUP(B159,Baza[],24,0),"") -> 2.2 | Y159: =IFERROR(IF(VLOOKUP(B159,Baza[],25,0)=0,"-",VLOOKUP(B159,Baza[],25,0)),"") -> - | Z159: =IFERROR(IF(VLOOKUP(B159,Baza[],26,0)=0,"-",VLOOKUP(B159,Baza[],26,0)),"") -> - | AA159: =IFERROR(VLOOKUP(B159,Baza[],27,0),"") -> -2.2 | AB159: =IFERROR(VLOOKUP(B159,Baza[],28,0),"") -> 300 | AC159: =IF(TOT[[#This Row],[Profit]]="","#Н/Д",SUM($AA$85:AA159)) -> 280.8550562 | AD159: =IF(TOT[[#This Row],[Grafik]]="#Н/Д",FALSE,TRUE) -> TRUE
A160: 75 | B160: 75 | C160: =IFERROR(VLOOKUP(B160,Baza[],2,0),"") -> 2021 | D160: =IF( TOT[[#This Row],[NN]]="","",TEXT( TOT[[#This Row],[Start]],"ч:мм")&" "&TOT[[#This Row],[V]]& TOT[[#This Row],[B]]&" "&"["& TOT[[#This Row],[Room]]&"] "& TOT[[#This Row],[Name]]) -> 14:00 $2,2 [PP] Deepstack | E160: =TOT[[#This Row],[V]]& TOT[[#This Row],[B]] -> $2,2 | F160: =IFERROR(VLOOKUP(B160,Baza[],3,0),"") -> 1 | G160: =IFERROR(VLOOKUP(B160,Baza[],4,0),"") -> воскресенье | H160: =IFERROR(VLOOKUP(B160,Baza[],5,0),"") -> январь | I160: =IFERROR(VLOOKUP(B160,Baza[],6,0),"") -> 2021-01-03 | J160: =IFERROR(VLOOKUP(B160,Baza[],7,0),"") -> 14:00:00 | K160: =IFERROR(VLOOKUP(B160,Baza[],8,0),"") -> $ | L160: =IFERROR(VLOOKUP(B160,Baza[],9,0),"") -> 2.2 | M160: =IFERROR(VLOOKUP(B160,Baza[],10,0),"") -> PP | N160: =IFERROR(VLOOKUP(B160,Baza[],12,0),"") -> Deepstack | O160: =IFERROR(VLOOKUP(B160,Baza[],14,0),"") -> 8 | P160: =IFERROR(VLOOKUP(B160,Baza[],15,0),"") -> - | Q160: =IFERROR(VLOOKUP(B160,Baza[],16,0),"") -> - | R160: =IFERROR(VLOOKUP(B160,Baza[],17,0),"") -> - | S160: =IFERROR(VLOOKUP(B160,Baza[],18,0),"") -> 500 | T160: =IFERROR(IF((VLOOKUP(B160,Baza[],19,0)+VLOOKUP(B160,Baza[],20,0))=0,"-",VLOOKUP(B160,Baza[],19,0)+VLOOKUP(B160,Baza[],20,0)),"") -> - | U160: =IFERROR(IF(VLOOKUP(B160,Baza[],21,0)=0,"-",VLOOKUP(B160,Baza[],21,0)),"") -> - | V160: =IFERROR(VLOOKUP(B160,Baza[],22,0),"") -> 0 | W160: =IFERROR(VLOOKUP(B160,Baza[],23,0),"") -> - | X160: =IFERROR(VLOOKUP(B160,Baza[],24,0),"") -> 2.2 | Y160: =IFERROR(IF(VLOOKUP(B160,Baza[],25,0)=0,"-",VLOOKUP(B160,Baza[],25,0)),"") -> - | Z160: =IFERROR(IF(VLOOKUP(B160,Baza[],26,0)=0,"-",VLOOKUP(B160,Baza[],26,0)),"") -> - | AA160: =IFERROR(VLOOKUP(B160,Baza[],27,0),"") -> -2.2 | AB160: =IFERROR(VLOOKUP(B160,Baza[],28,0),"") -> 300 | AC160: =IF(TOT[[#This Row],[Profit]]="","#Н/Д",SUM($AA$85:AA160)) -> 278.6550562 | AD160: =IF(TOT[[#This Row],[Grafik]]="#Н/Д",FALSE,TRUE) -> TRUE
A161: 76 | B161: 76 | C161: =IFERROR(VLOOKUP(B161,Baza[],2,0),"") -> 2021 | D161: =IF( TOT[[#This Row],[NN]]="","",TEXT( TOT[[#This Row],[Start]],"ч:мм")&" "&TOT[[#This Row],[V]]& TOT[[#This Row],[B]]&" "&"["& TOT[[#This Row],[Room]]&"] "& TOT[[#This Row],[Name]]) -> 14:20 $1,1 [PS] Progressive KO | E161: =TOT[[#This Row],[V]]& TOT[[#This Row],[B]] -> $1,1 | F161: =IFERROR(VLOOKUP(B161,Baza[],3,0),"") -> 1 | G161: =IFERROR(VLOOKUP(B161,Baza[],4,0),"") -> воскресенье | H161: =IFERROR(VLOOKUP(B161,Baza[],5,0),"") -> январь | I161: =IFERROR(VLOOKUP(B161,Baza[],6,0),"") -> 2021-01-03 | J161: =IFERROR(VLOOKUP(B161,Baza[],7,0),"") -> 14:20:00 | K161: =IFERROR(VLOOKUP(B161,Baza[],8,0),"") -> $ | L161: =IFERROR(VLOOKUP(B161,Baza[],9,0),"") -> 1.1 | M161: =IFERROR(VLOOKUP(B161,Baza[],10,0),"") -> PS | N161: =IFERROR(VLOOKUP(B161,Baza[],12,0),"") -> Progressive KO | O161: =IFERROR(VLOOKUP(B161,Baza[],14,0),"") -> 9 | P161: =IFERROR(VLOOKUP(B161,Baza[],15,0),"") -> - | Q161: =IFERROR(VLOOKUP(B161,Baza[],16,0),"") -> K | R161: =IFERROR(VLOOKUP(B161,Baza[],17,0),"") -> - | S161: =IFERROR(VLOOKUP(B161,Baza[],18,0),"") -> 2000 | T161: =IFERROR(IF((VLOOKUP(B161,Baza[],19,0)+VLOOKUP(B161,Baza[],20,0))=0,"-",VLOOKUP(B161,Baza[],19,0)+VLOOKUP(B161,Baza[],20,0)),"") -> - | U161: =IFERROR(IF(VLOOKUP(B161,Baza[],21,0)=0,"-",VLOOKUP(B161,Baza[],21,0)),"") -> 0.92 | V161: =IFERROR(VLOOKUP(B161,Baza[],22,0),"") -> 0 | W161: =IFERROR(VLOOKUP(B161,Baza[],23,0),"") -> 600 | X161: =IFERROR(VLOOKUP(B161,Baza[],24,0),"") -> 1.1 | Y161: =IFERROR(IF(VLOOKUP(B161,Baza[],25,0)=0,"-",VLOOKUP(B161,Baza[],25,0)),"") -> - | Z161: =IFERROR(IF(VLOOKUP(B161,Baza[],26,0)=0,"-",VLOOKUP(B161,Baza[],26,0)),"") -> 0.92 | AA161: =IFERROR(VLOOKUP(B161,Baza[],27,0),"") -> -0.18 | AB161: =IFERROR(VLOOKUP(B161,Baza[],28,0),"") -> 2400 | AC161: =IF(TOT[[#This Row],[Profit]]="","#Н/Д",SUM($AA$85:AA161)) -> 278.4750562 | AD161: =IF(TOT[[#This Row],[Grafik]]="#Н/Д",FALSE,TRUE) -> TRUE
A162: 77 | B162: 77 | C162: =IFERROR(VLOOKUP(B162,Baza[],2,0),"") -> 2021 | D162: =IF( TOT[[#This Row],[NN]]="","",TEXT( TOT[[#This Row],[Start]],"ч:мм")&" "&TOT[[#This Row],[V]]& TOT[[#This Row],[B]]&" "&"["& TOT[[#This Row],[Room]]&"] "& TOT[[#This Row],[Name]]) -> 14:30 $1,05 [GG] Bounty Hunters | E162: =TOT[[#This Row],[V]]& TOT[[#This Row],[B]] -> $1,05 | F162: =IFERROR(VLOOKUP(B162,Baza[],3,0),"") -> 1 | G162: =IFERROR(VLOOKUP(B162,Baza[],4,0),"") -> воскресенье | H162: =IFERROR(VLOOKUP(B162,Baza[],5,0),"") -> январь | I162: =IFERROR(VLOOKUP(B162,Baza[],6,0),"") -> 2021-01-03 | J162: =IFERROR(VLOOKUP(B162,Baza[],7,0),"") -> 14:30:00 | K162: =IFERROR(VLOOKUP(B162,Baza[],8,0),"") -> $ | L162: =IFERROR(VLOOKUP(B162,Baza[],9,0),"") -> 1.05 | M162: =IFERROR(VLOOKUP(B162,Baza[],10,0),"") -> GG | N162: =IFERROR(VLOOKUP(B162,Baza[],12,0),"") -> Bounty Hunters | O162: =IFERROR(VLOOKUP(B162,Baza[],14,0),"") -> 8 | P162: =IFERROR(VLOOKUP(B162,Baza[],15,0),"") -> - | Q162: =IFERROR(VLOOKUP(B162,Baza[],16,0),"") -> K | R162: =IFERROR(VLOOKUP(B162,Baza[],17,0),"") -> - | S162: =IFERROR(VLOOKUP(B162,Baza[],18,0),"") -> 750 | T162: =IFERROR(IF((VLOOKUP(B162,Baza[],19,0)+VLOOKUP(B162,Baza[],20,0))=0,"-",VLOOKUP(B162,Baza[],19,0)+VLOOKUP(B162,Baza[],20,0)),"") -> 0.25 | U162: =IFERROR(IF(VLOOKUP(B162,Baza[],21,0)=0,"-",VLOOKUP(B162,Baza[],21,0)),"") -> - | V162: =IFERROR(VLOOKUP(B162,Baza[],22,0),"") -> 0 | W162: =IFERROR(VLOOKUP(B162,Baza[],23,0),"") -> - | X162: =IFERROR(VLOOKUP(B162,Baza[],24,0),"") -> 1.05 | Y162: =IFERROR(IF(VLOOKUP(B162,Baza[],25,0)=0,"-",VLOOKUP(B162,Baza[],25,0)),"") -> 0.25 | Z162: =IFERROR(IF(VLOOKUP(B162,Baza[],26,0)=0,"-",VLOOKUP(B162,Baza[],26,0)),"") -> - | AA162: =IFERROR(VLOOKUP(B162,Baza[],27,0),"") -> -0.8 | AB162: =IFERROR(VLOOKUP(B162,Baza[],28,0),"") -> 942.8571429 | AC162: =IF(TOT[[#This Row],[Profit]]="","#Н/Д",SUM($AA$85:AA162)) -> 277.6750562 | AD162: =IF(TOT[[#This Row],[Grafik]]="#Н/Д",FALSE,TRUE) -> TRUE
A163: 78 | B163: 78 | C163: =IFERROR(VLOOKUP(B163,Baza[],2,0),"") -> 2021 | D163: =IF( TOT[[#This Row],[NN]]="","",TEXT( TOT[[#This Row],[Start]],"ч:мм")&" "&TOT[[#This Row],[V]]& TOT[[#This Row],[B]]&" "&"["& TOT[[#This Row],[Room]]&"] "& TOT[[#This Row],[Name]]) -> 14:30 $3,3 [PAC] Guaranteed | E163: =TOT[[#This Row],[V]]& TOT[[#This Row],[B]] -> $3,3 | F163: =IFERROR(VLOOKUP(B163,Baza[],3,0),"") -> 1 | G163: =IFERROR(VLOOKUP(B163,Baza[],4,0),"") -> воскресенье | H163: =IFERROR(VLOOKUP(B163,Baza[],5,0),"") -> январь | I163: =IFERROR(VLOOKUP(B163,Baza[],6,0),"") -> 2021-01-03 | J163: =IFERROR(VLOOKUP(B163,Baza[],7,0),"") -> 14:30:00 | K163: =IFERROR(VLOOKUP(B163,Baza[],8,0),"") -> $ | L163: =IFERROR(VLOOKUP(B163,Baza[],9,0),"") -> 3.3 | M163: =IFERROR(VLOOKUP(B163,Baza[],10,0),"") -> PAC | N163: =IFERROR(VLOOKUP(B163,Baza[],12,0),"") -> Guaranteed | O163: =IFERROR(VLOOKUP(B163,Baza[],14,0),"") -> 9 | P163: =IFERROR(VLOOKUP(B163,Baza[],15,0),"") -> - | Q163: =IFERROR(VLOOKUP(B163,Baza[],16,0),"") -> - | R163: =IFERROR(VLOOKUP(B163,Baza[],17,0),"") -> - | S163: =IFERROR(VLOOKUP(B163,Baza[],18,0),"") -> 400 | T163: =IFERROR(IF((VLOOKUP(B163,Baza[],19,0)+VLOOKUP(B163,Baza[],20,0))=0,"-",VLOOKUP(B163,Baza[],19,0)+VLOOKUP(B163,Baza[],20,0)),"") -> - | U163: =IFERROR(IF(VLOOKUP(B163,Baza[],21,0)=0,"-",VLOOKUP(B163,Baza[],21,0)),"") -> - | V163: =IFERROR(VLOOKUP(B163,Baza[],22,0),"") -> 0 | W163: =IFERROR(VLOOKUP(B163,Baza[],23,0),"") -> - | X163: =IFERROR(VLOOKUP(B163,Baza[],24,0),"") -> 3.3 | Y163: =IFERROR(IF(VLOOKUP(B163,Baza[],25,0)=0,"-",VLOOKUP(B163,Baza[],25,0)),"") -> - | Z163: =IFERROR(IF(VLOOKUP(B163,Baza[],26,0)=0,"-",VLOOKUP(B163,Baza[],26,0)),"") -> - | AA163: =IFERROR(VLOOKUP(B163,Baza[],27,0),"") -> -3.3 | AB163: =IFERROR(VLOOKUP(B163,Baza[],28,0),"") -> 160 | AC163: =IF(TOT[[#This Row],[Profit]]="","#Н/Д",SUM($AA$85:AA163)) -> 274.3750562 | AD163: =IF(TOT[[#This Row],[Grafik]]="#Н/Д",FALSE,TRUE) -> TRUE
A164: 79 | B164: 79 | C164: =IFERROR(VLOOKUP(B164,Baza[],2,0),"") -> 2021 | D164: =IF( TOT[[#This Row],[NN]]="","",TEXT( TOT[[#This Row],[Start]],"ч:мм")&" "&TOT[[#This Row],[V]]& TOT[[#This Row],[B]]&" "&"["& TOT[[#This Row],[Room]]&"] "& TOT[[#This Row],[Name]]) -> 14:30 $2,2 [PP] Bounty Hunter | E164: =TOT[[#This Row],[V]]& TOT[[#This Row],[B]] -> $2,2 | F164: =IFERROR(VLOOKUP(B164,Baza[],3,0),"") -> 1 | G164: =IFERROR(VLOOKUP(B164,Baza[],4,0),"") -> воскресенье | H164: =IFERROR(VLOOKUP(B164,Baza[],5,0),"") -> январь | I164: =IFERROR(VLOOKUP(B164,Baza[],6,0),"") -> 2021-01-03 | J164: =IFERROR(VLOOKUP(B164,Baza[],7,0),"") -> 14:30:00 | K164: =IFERROR(VLOOKUP(B164,Baza[],8,0),"") -> $ | L164: =IFERROR(VLOOKUP(B164,Baza[],9,0),"") -> 2.2 | M164: =IFERROR(VLOOKUP(B164,Baza[],10,0),"") -> PP | N164: =IFERROR(VLOOKUP(B164,Baza[],12,0),"") -> Bounty Hunter | O164: =IFERROR(VLOOKUP(B164,Baza[],14,0),"") -> 8 | P164: =IFERROR(VLOOKUP(B164,Baza[],15,0),"") -> - | Q164: =IFERROR(VLOOKUP(B164,Baza[],16,0),"") -> K | R164: =IFERROR(VLOOKUP(B164,Baza[],17,0),"") -> - | S164: =IFERROR(VLOOKUP(B164,Baza[],18,0),"") -> 400 | T164: =IFERROR(IF((VLOOKUP(B164,Baza[],19,0)+VLOOKUP(B164,Baza[],20,0))=0,"-",VLOOKUP(B164,Baza[],19,0)+VLOOKUP(B164,Baza[],20,0)),"") -> 26.71 | U164: =IFERROR(IF(VLOOKUP(B164,Baza[],21,0)=0,"-",VLOOKUP(B164,Baza[],21,0)),"") -> 32.79 | V164: =IFERROR(VLOOKUP(B164,Baza[],22,0),"") -> 0 | W164: =IFERROR(VLOOKUP(B164,Baza[],23,0),"") -> 3 | X164: =IFERROR(VLOOKUP(B164,Baza[],24,0),"") -> 2.2 | Y164: =IFERROR(IF(VLOOKUP(B164,Baza[],25,0)=0,"-",VLOOKUP(B164,Baza[],25,0)),"") -> 26.71 | Z164: =IFERROR(IF(VLOOKUP(B164,Baza[],26,0)=0,"-",VLOOKUP(B164,Baza[],26,0)),"") -> 32.79 | AA164: =IFERROR(VLOOKUP(B164,Baza[],27,0),"") -> 57.3 | AB164: =IFERROR(VLOOKUP(B164,Baza[],28,0),"") -> 240 | AC164: =IF(TOT[[#This Row],[Profit]]="","#Н/Д",SUM($AA$85:AA164)) -> 331.6750562 | AD164: =IF(TOT[[#This Row],[Grafik]]="#Н/Д",FALSE,TRUE) -> TRUE
A165: 80 | B165: 80 | C165: =IFERROR(VLOOKUP(B165,Baza[],2,0),"") -> 2021 | D165: =IF( TOT[[#This Row],[NN]]="","",TEXT( TOT[[#This Row],[Start]],"ч:мм")&" "&TOT[[#This Row],[V]]& TOT[[#This Row],[B]]&" "&"["& TOT[[#This Row],[Room]]&"] "& TOT[[#This Row],[Name]]) -> 14:45 $2,2 [PS] GTD | E165: =TOT[[#This Row],[V]]& TOT[[#This Row],[B]] -> $2,2 | F165: =IFERROR(VLOOKUP(B165,Baza[],3,0),"") -> 1 | G165: =IFERROR(VLOOKUP(B165,Baza[],4,0),"") -> воскресенье | H165: =IFERROR(VLOOKUP(B165,Baza[],5,0),"") -> январь | I165: =IFERROR(VLOOKUP(B165,Baza[],6,0),"") -> 2021-01-03 | J165: =IFERROR(VLOOKUP(B165,Baza[],7,0),"") -> 14:45:00 | K165: =IFERROR(VLOOKUP(B165,Baza[],8,0),"") -> $ | L165: =IFERROR(VLOOKUP(B165,Baza[],9,0),"") -> 2.2 | M165: =IFERROR(VLOOKUP(B165,Baza[],10,0),"") -> PS | N165: =IFERROR(VLOOKUP(B165,Baza[],12,0),"") -> GTD | O165: =IFERROR(VLOOKUP(B165,Baza[],14,0),"") -> 6 | P165: =IFERROR(VLOOKUP(B165,Baza[],15,0),"") -> - | Q165: =IFERROR(VLOOKUP(B165,Baza[],16,0),"") -> - | R165: =IFERROR(VLOOKUP(B165,Baza[],17,0),"") -> - | S165: =IFERROR(VLOOKUP(B165,Baza[],18,0),"") -> 1000 | T165: =IFERROR(IF((VLOOKUP(B165,Baza[],19,0)+VLOOKUP(B165,Baza[],20,0))=0,"-",VLOOKUP(B165,Baza[],19,0)+VLOOKUP(B165,Baza[],20,0)),"") -> - | U165: =IFERROR(IF(VLOOKUP(B165,Baza[],21,0)=0,"-",VLOOKUP(B165,Baza[],21,0)),"") -> - | V165: =IFERROR(VLOOKUP(B165,Baza[],22,0),"") -> 0 | W165: =IFERROR(VLOOKUP(B165,Baza[],23,0),"") -> - | X165: =IFERROR(VLOOKUP(B165,Baza[],24,0),"") -> 2.2 | Y165: =IFERROR(IF(VLOOKUP(B165,Baza[],25,0)=0,"-",VLOOKUP(B165,Baza[],25,0)),"") -> - | Z165: =IFERROR(IF(VLOOKUP(B165,Baza[],26,0)=0,"-",VLOOKUP(B165,Baza[],26,0)),"") -> - | AA165: =IFERROR(VLOOKUP(B165,Baza[],27,0),"") -> -2.2 | AB165: =IFERROR(VLOOKUP(B165,Baza[],28,0),"") -> 600 | AC165: =IF(TOT[[#This Row],[Profit]]="","#Н/Д",SUM($AA$85:AA165)) -> 329.4750562 | AD165: =IF(TOT[[#This Row],[Grafik]]="#Н/Д",FALSE,TRUE) -> TRUE
A166: 81 | B166: 81 | C166: =IFERROR(VLOOKUP(B166,Baza[],2,0),"") -> 2021 | D166: =IF( TOT[[#This Row],[NN]]="","",TEXT( TOT[[#This Row],[Start]],"ч:мм")&" "&TOT[[#This Row],[V]]& TOT[[#This Row],[B]]&" "&"["& TOT[[#This Row],[Room]]&"] "& TOT[[#This Row],[Name]]) -> 15:00 $1,1 [PS] GTD | E166: =TOT[[#This Row],[V]]& TOT[[#This Row],[B]] -> $1,1 | F166: =IFERROR(VLOOKUP(B166,Baza[],3,0),"") -> 1 | G166: =IFERROR(VLOOKUP(B166,Baza[],4,0),"") -> воскресенье | H166: =IFERROR(VLOOKUP(B166,Baza[],5,0),"") -> январь | I166: =IFERROR(VLOOKUP(B166,Baza[],6,0),"") -> 2021-01-03 | J166: =IFERROR(VLOOKUP(B166,Baza[],7,0),"") -> 15:00:00 | K166: =IFERROR(VLOOKUP(B166,Baza[],8,0),"") -> $ | L166: =IFERROR(VLOOKUP(B166,Baza[],9,0),"") -> 1.1 | M166: =IFERROR(VLOOKUP(B166,Baza[],10,0),"") -> PS | N166: =IFERROR(VLOOKUP(B166,Baza[],12,0),"") -> GTD | O166: =IFERROR(VLOOKUP(B166,Baza[],14,0),"") -> 9 | P166: =IFERROR(VLOOKUP(B166,Baza[],15,0),"") -> - | Q166: =IFERROR(VLOOKUP(B166,Baza[],16,0),"") -> - | R166: =IFERROR(VLOOKUP(B166,Baza[],17,0),"") -> - | S166: =IFERROR(VLOOKUP(B166,Baza[],18,0),"") -> 1000 | T166: =IFERROR(IF((VLOOKUP(B166,Baza[],19,0)+VLOOKUP(B166,Baza[],20,0))=0,"-",VLOOKUP(B166,Baza[],19,0)+VLOOKUP(B166,Baza[],20,0)),"") -> - | U166: =IFERROR(IF(VLOOKUP(B166,Baza[],21,0)=0,"-",VLOOKUP(B166,Baza[],21,0)),"") -> - | V166: =IFERROR(VLOOKUP(B166,Baza[],22,0),"") -> 0 | W166: =IFERROR(VLOOKUP(B166,Baza[],23,0),"") -> - | X166: =IFERROR(VLOOKUP(B166,Baza[],24,0),"") -> 1.1 | Y166: =IFERROR(IF(VLOOKUP(B166,Baza[],25,0)=0,"-",VLOOKUP(B166,Baza[],25,0)),"") -> - | Z166: =IFERROR(IF(VLOOKUP(B166,Baza[],26,0)=0,"-",VLOOKUP(B166,Baza[],26,0)),"") -> - | AA166: =IFERROR(VLOOKUP(B166,Baza[],27,0),"") -> -1.1 | AB166: =IFERROR(VLOOKUP(B166,Baza[],28,0),"") -> 1200 | AC166: =IF(TOT[[#This Row],[Profit]]="","#Н/Д",SUM($AA$85:AA166)) -> 328.3750562 | AD166: =IF(TOT[[#This Row],[Grafik]]="#Н/Д",FALSE,TRUE) -> TRUE
A167: 82 | B167: 82 | C167: =IFERROR(VLOOKUP(B167,Baza[],2,0),"") -> 2021 | D167: =IF( TOT[[#This Row],[NN]]="","",TEXT( TOT[[#This Row],[Start]],"ч:мм")&" "&TOT[[#This Row],[V]]& TOT[[#This Row],[B]]&" "&"["& TOT[[#This Row],[Room]]&"] "& TOT[[#This Row],[Name]]) -> 15:30 $3,3 [PP] Bounty Hunter | E167: =TOT[[#This Row],[V]]& TOT[[#This Row],[B]] -> $3,3 | F167: =IFERROR(VLOOKUP(B167,Baza[],3,0),"") -> 1 | G167: =IFERROR(VLOOKUP(B167,Baza[],4,0),"") -> воскресенье | H167: =IFERROR(VLOOKUP(B167,Baza[],5,0),"") -> январь | I167: =IFERROR(VLOOKUP(B167,Baza[],6,0),"") -> 2021-01-03 | J167: =IFERROR(VLOOKUP(B167,Baza[],7,0),"") -> 15:30:00 | K167: =IFERROR(VLOOKUP(B167,Baza[],8,0),"") -> $ | L167: =IFERROR(VLOOKUP(B167,Baza[],9,0),"") -> 3.3 | M167: =IFERROR(VLOOKUP(B167,Baza[],10,0),"") -> PP | N167: =IFERROR(VLOOKUP(B167,Baza[],12,0),"") -> Bounty Hunter | O167: =IFERROR(VLOOKUP(B167,Baza[],14,0),"") -> 8 | P167: =IFERROR(VLOOKUP(B167,Baza[],15,0),"") -> - | Q167: =IFERROR(VLOOKUP(B167,Baza[],16,0),"") -> K | R167: =IFERROR(VLOOKUP(B167,Baza[],17,0),"") -> - | S167: =IFERROR(VLOOKUP(B167,Baza[],18,0),"") -> 750 | T167: =IFERROR(IF((VLOOKUP(B167,Baza[],19,0)+VLOOKUP(B167,Baza[],20,0))=0,"-",VLOOKUP(B167,Baza[],19,0)+VLOOKUP(B167,Baza[],20,0)),"") -> - | U167: =IFERROR(IF(VLOOKUP(B167,Baza[],21,0)=0,"-",VLOOKUP(B167,Baza[],21,0)),"") -> - | V167: =IFERROR(VLOOKUP(B167,Baza[],22,0),"") -> 0 | W167: =IFERROR(VLOOKUP(B167,Baza[],23,0),"") -> - | X167: =IFERROR(VLOOKUP(B167,Baza[],24,0),"") -> 3.3 | Y167: =IFERROR(IF(VLOOKUP(B167,Baza[],25,0)=0,"-",VLOOKUP(B167,Baza[],25,0)),"") -> - | Z167: =IFERROR(IF(VLOOKUP(B167,Baza[],26,0)=0,"-",VLOOKUP(B167,Baza[],26,0)),"") -> - | AA167: =IFERROR(VLOOKUP(B167,Baza[],27,0),"") -> -3.3 | AB167: =IFERROR(VLOOKUP(B167,Baza[],28,0),"") -> 300 | AC167: =IF(TOT[[#This Row],[Profit]]="","#Н/Д",SUM($AA$85:AA167)) -> 325.0750562 | AD167: =IF(TOT[[#This Row],[Grafik]]="#Н/Д",FALSE,TRUE) -> TRUE
A168: 83 | B168: 83 | C168: =IFERROR(VLOOKUP(B168,Baza[],2,0),"") -> 2021 | D168: =IF( TOT[[#This Row],[NN]]="","",TEXT( TOT[[#This Row],[Start]],"ч:мм")&" "&TOT[[#This Row],[V]]& TOT[[#This Row],[B]]&" "&"["& TOT[[#This Row],[Room]]&"] "& TOT[[#This Row],[Name]]) -> 10:30 $5,25 [GG] Bounty Hunters | E168: =TOT[[#This Row],[V]]& TOT[[#This Row],[B]] -> $5,25 | F168: =IFERROR(VLOOKUP(B168,Baza[],3,0),"") -> 2 | G168: =IFERROR(VLOOKUP(B168,Baza[],4,0),"") -> понедельник | H168: =IFERROR(VLOOKUP(B168,Baza[],5,0),"") -> январь | I168: =IFERROR(VLOOKUP(B168,Baza[],6,0),"") -> 2021-01-04 | J168: =IFERROR(VLOOKUP(B168,Baza[],7,0),"") -> 10:30:00 | K168: =IFERROR(VLOOKUP(B168,Baza[],8,0),"") -> $ | L168: =IFERROR(VLOOKUP(B168,Baza[],9,0),"") -> 5.25 | M168: =IFERROR(VLOOKUP(B168,Baza[],10,0),"") -> GG | N168: =IFERROR(VLOOKUP(B168,Baza[],12,0),"") -> Bounty Hunters | O168: =IFERROR(VLOOKUP(B168,Baza[],14,0),"") -> 8 | P168: =IFERROR(VLOOKUP(B168,Baza[],15,0),"") -> - | Q168: =IFERROR(VLOOKUP(B168,Baza[],16,0),"") -> K | R168: =IFERROR(VLOOKUP(B168,Baza[],17,0),"") -> - | S168: =IFERROR(VLOOKUP(B168,Baza[],18,0),"") -> 2500 | T168: =IFERROR(IF((VLOOKUP(B168,Baza[],19,0)+VLOOKUP(B168,Baza[],20,0))=0,"-",VLOOKUP(B168,Baza[],19,0)+VLOOKUP(B168,Baza[],20,0)),"") -> 1.25 | U168: =IFERROR(IF(VLOOKUP(B168,Baza[],21,0)=0,"-",VLOOKUP(B168,Baza[],21,0)),"") -> - | V168: =IFERROR(VLOOKUP(B168,Baza[],22,0),"") -> 0 | W168: =IFERROR(VLOOKUP(B168,Baza[],23,0),"") -> - | X168: =IFERROR(VLOOKUP(B168,Baza[],24,0),"") -> 5.25 | Y168: =IFERROR(IF(VLOOKUP(B168,Baza[],25,0)=0,"-",VLOOKUP(B168,Baza[],25,0)),"") -> 1.25 | Z168: =IFERROR(IF(VLOOKUP(B168,Baza[],26,0)=0,"-",VLOOKUP(B168,Baza[],26,0)),"") -> - | AA168: =IFERROR(VLOOKUP(B168,Baza[],27,0),"") -> -4 | AB168: =IFERROR(VLOOKUP(B168,Baza[],28,0),"") -> 628.5714286 | AC168: =IF(TOT[[#This Row],[Profit]]="","#Н/Д",SUM($AA$85:AA168)) -> 321.0750562 | AD168: =IF(TOT[[#This Row],[Grafik]]="#Н/Д",FALSE,TRUE) -> TRUE
A169: 84 | B169: 84 | C169: =IFERROR(VLOOKUP(B169,Baza[],2,0),"") -> 2021 | D169: =IF( TOT[[#This Row],[NN]]="","",TEXT( TOT[[#This Row],[Start]],"ч:мм")&" "&TOT[[#This Row],[V]]& TOT[[#This Row],[B]]&" "&"["& TOT[[#This Row],[Room]]&"] "& TOT[[#This Row],[Name]]) -> 11:15 $2,2 [PP] Deepstack | E169: =TOT[[#This Row],[V]]& TOT[[#This Row],[B]] -> $2,2 | F169: =IFERROR(VLOOKUP(B169,Baza[],3,0),"") -> 2 | G169: =IFERROR(VLOOKUP(B169,Baza[],4,0),"") -> понедельник | H169: =IFERROR(VLOOKUP(B169,Baza[],5,0),"") -> январь | I169: =IFERROR(VLOOKUP(B169,Baza[],6,0),"") -> 2021-01-04 | J169: =IFERROR(VLOOKUP(B169,Baza[],7,0),"") -> 11:15:00 | K169: =IFERROR(VLOOKUP(B169,Baza[],8,0),"") -> $ | L169: =IFERROR(VLOOKUP(B169,Baza[],9,0),"") -> 2.2 | M169: =IFERROR(VLOOKUP(B169,Baza[],10,0),"") -> PP | N169: =IFERROR(VLOOKUP(B169,Baza[],12,0),"") -> Deepstack | O169: =IFERROR(VLOOKUP(B169,Baza[],14,0),"") -> 8 | P169: =IFERROR(VLOOKUP(B169,Baza[],15,0),"") -> - | Q169: =IFERROR(VLOOKUP(B169,Baza[],16,0),"") -> - | R169: =IFERROR(VLOOKUP(B169,Baza[],17,0),"") -> - | S169: =IFERROR(VLOOKUP(B169,Baza[],18,0),"") -> 300 | T169: =IFERROR(IF((VLOOKUP(B169,Baza[],19,0)+VLOOKUP(B169,Baza[],20,0))=0,"-",VLOOKUP(B169,Baza[],19,0)+VLOOKUP(B169,Baza[],20,0)),"") -> - | U169: =IFERROR(IF(VLOOKUP(B169,Baza[],21,0)=0,"-",VLOOKUP(B169,Baza[],21,0)),"") -> - | V169: =IFERROR(VLOOKUP(B169,Baza[],22,0),"") -> 0 | W169: =IFERROR(VLOOKUP(B169,Baza[],23,0),"") -> - | X169: =IFERROR(VLOOKUP(B169,Baza[],24,0),"") -> 2.2 | Y169: =IFERROR(IF(VLOOKUP(B169,Baza[],25,0)=0,"-",VLOOKUP(B169,Baza[],25,0)),"") -> - | Z169: =IFERROR(IF(VLOOKUP(B169,Baza[],26,0)=0,"-",VLOOKUP(B169,Baza[],26,0)),"") -> - | AA169: =IFERROR(VLOOKUP(B169,Baza[],27,0),"") -> -2.2 | AB169: =IFERROR(VLOOKUP(B169,Baza[],28,0),"") -> 180 | AC169: =IF(TOT[[#This Row],[Profit]]="","#Н/Д",SUM($AA$85:AA169)) -> 318.8750562 | AD169: =IF(TOT[[#This Row],[Grafik]]="#Н/Д",FALSE,TRUE) -> TRUE
A170: 85 | B170: 85 | C170: =IFERROR(VLOOKUP(B170,Baza[],2,0),"") -> 2021 | D170: =IF( TOT[[#This Row],[NN]]="","",TEXT( TOT[[#This Row],[Start]],"ч:мм")&" "&TOT[[#This Row],[V]]& TOT[[#This Row],[B]]&" "&"["& TOT[[#This Row],[Room]]&"] "& TOT[[#This Row],[Name]]) -> 11:30 $2,1 [GG] Bounty Hunters | E170: =TOT[[#This Row],[V]]& TOT[[#This Row],[B]] -> $2,1 | F170: =IFERROR(VLOOKUP(B170,Baza[],3,0),"") -> 2 | G170: =IFERROR(VLOOKUP(B170,Baza[],4,0),"") -> понедельник | H170: =IFERROR(VLOOKUP(B170,Baza[],5,0),"") -> январь | I170: =IFERROR(VLOOKUP(B170,Baza[],6,0),"") -> 2021-01-04 | J170: =IFERROR(VLOOKUP(B170,Baza[],7,0),"") -> 11:30:00 | K170: =IFERROR(VLOOKUP(B170,Baza[],8,0),"") -> $ | L170: =IFERROR(VLOOKUP(B170,Baza[],9,0),"") -> 2.1 | M170: =IFERROR(VLOOKUP(B170,Baza[],10,0),"") -> GG | N170: =IFERROR(VLOOKUP(B170,Baza[],12,0),"") -> Bounty Hunters | O170: =IFERROR(VLOOKUP(B170,Baza[],14,0),"") -> 8 | P170: =IFERROR(VLOOKUP(B170,Baza[],15,0),"") -> - | Q170: =IFERROR(VLOOKUP(B170,Baza[],16,0),"") -> K | R170: =IFERROR(VLOOKUP(B170,Baza[],17,0),"") -> - | S170: =IFERROR(VLOOKUP(B170,Baza[],18,0),"") -> 1200 | T170: =IFERROR(IF((VLOOKUP(B170,Baza[],19,0)+VLOOKUP(B170,Baza[],20,0))=0,"-",VLOOKUP(B170,Baza[],19,0)+VLOOKUP(B170,Baza[],20,0)),"") -> - | U170: =IFERROR(IF(VLOOKUP(B170,Baza[],21,0)=0,"-",VLOOKUP(B170,Baza[],21,0)),"") -> - | V170: =IFERROR(VLOOKUP(B170,Baza[],22,0),"") -> 0 | W170: =IFERROR(VLOOKUP(B170,Baza[],23,0),"") -> - | X170: =IFERROR(VLOOKUP(B170,Baza[],24,0),"") -> 2.1 | Y170: =IFERROR(IF(VLOOKUP(B170,Baza[],25,0)=0,"-",VLOOKUP(B170,Baza[],25,0)),"") -> - | Z170: =IFERROR(IF(VLOOKUP(B170,Baza[],26,0)=0,"-",VLOOKUP(B170,Baza[],26,0)),"") -> - | AA170: =IFERROR(VLOOKUP(B170,Baza[],27,0),"") -> -2.1 | AB170: =IFERROR(VLOOKUP(B170,Baza[],28,0),"") -> 754.2857143 | AC170: =IF(TOT[[#This Row],[Profit]]="","#Н/Д",SUM($AA$85:AA170)) -> 316.7750562 | AD170: =IF(TOT[[#This Row],[Grafik]]="#Н/Д",FALSE,TRUE) -> TRUE
A171: 86 | B171: 86 | C171: =IFERROR(VLOOKUP(B171,Baza[],2,0),"") -> 2021 | D171: =IF( TOT[[#This Row],[NN]]="","",TEXT( TOT[[#This Row],[Start]],"ч:мм")&" "&TOT[[#This Row],[V]]& TOT[[#This Row],[B]]&" "&"["& TOT[[#This Row],[Room]]&"] "& TOT[[#This Row],[Name]]) -> 11:30 $3,3 [PP] Bounty Hunter | E171: =TOT[[#This Row],[V]]& TOT[[#This Row],[B]] -> $3,3 | F171: =IFERROR(VLOOKUP(B171,Baza[],3,0),"") -> 2 | G171: =IFERROR(VLOOKUP(B171,Baza[],4,0),"") -> понедельник | H171: =IFERROR(VLOOKUP(B171,Baza[],5,0),"") -> январь | I171: =IFERROR(VLOOKUP(B171,Baza[],6,0),"") -> 2021-01-04 | J171: =IFERROR(VLOOKUP(B171,Baza[],7,0),"") -> 11:30:00 | K171: =IFERROR(VLOOKUP(B171,Baza[],8,0),"") -> $ | L171: =IFERROR(VLOOKUP(B171,Baza[],9,0),"") -> 3.3 | M171: =IFERROR(VLOOKUP(B171,Baza[],10,0),"") -> PP | N171: =IFERROR(VLOOKUP(B171,Baza[],12,0),"") -> Bounty Hunter | O171: =IFERROR(VLOOKUP(B171,Baza[],14,0),"") -> 8 | P171: =IFERROR(VLOOKUP(B171,Baza[],15,0),"") -> - | Q171: =IFERROR(VLOOKUP(B171,Baza[],16,0),"") -> K | R171: =IFERROR(VLOOKUP(B171,Baza[],17,0),"") -> - | S171: =IFERROR(VLOOKUP(B171,Baza[],18,0),"") -> 500 | T171: =IFERROR(IF((VLOOKUP(B171,Baza[],19,0)+VLOOKUP(B171,Baza[],20,0))=0,"-",VLOOKUP(B171,Baza[],19,0)+VLOOKUP(B171,Baza[],20,0)),"") -> 0.82 | U171: =IFERROR(IF(VLOOKUP(B171,Baza[],21,0)=0,"-",VLOOKUP(B171,Baza[],21,0)),"") -> - | V171: =IFERROR(VLOOKUP(B171,Baza[],22,0),"") -> 0 | W171: =IFERROR(VLOOKUP(B171,Baza[],23,0),"") -> - | X171: =IFERROR(VLOOKUP(B171,Baza[],24,0),"") -> 3.3 | Y171: =IFERROR(IF(VLOOKUP(B171,Baza[],25,0)=0,"-",VLOOKUP(B171,Baza[],25,0)),"") -> 0.82 | Z171: =IFERROR(IF(VLOOKUP(B171,Baza[],26,0)=0,"-",VLOOKUP(B171,Baza[],26,0)),"") -> - | AA171: =IFERROR(VLOOKUP(B171,Baza[],27,0),"") -> -2.48 | AB171: =IFERROR(VLOOKUP(B171,Baza[],28,0),"") -> 200 | AC171: =IF(TOT[[#This Row],[Profit]]="","#Н/Д",SUM($AA$85:AA171)) -> 314.2950562 | AD171: =IF(TOT[[#This Row],[Grafik]]="#Н/Д",FALSE,TRUE) -> TRUE
A172: 87 | B172: 87 | C172: =IFERROR(VLOOKUP(B172,Baza[],2,0),"") -> 2021 | D172: =IF( TOT[[#This Row],[NN]]="","",TEXT( TOT[[#This Row],[Start]],"ч:мм")&" "&TOT[[#This Row],[V]]& TOT[[#This Row],[B]]&" "&"["& TOT[[#This Row],[Room]]&"] "& TOT[[#This Row],[Name]]) -> 11:40 $3,3 [PS] GTD | E172: =TOT[[#This Row],[V]]& TOT[[#This Row],[B]] -> $3,3 | F172: =IFERROR(VLOOKUP(B172,Baza[],3,0),"") -> 2 | G172: =IFERROR(VLOOKUP(B172,Baza[],4,0),"") -> понедельник | H172: =IFERROR(VLOOKUP(B172,Baza[],5,0),"") -> январь | I172: =IFERROR(VLOOKUP(B172,Baza[],6,0),"") -> 2021-01-04 | J172: =IFERROR(VLOOKUP(B172,Baza[],7,0),"") -> 11:40:00 | K172: =IFERROR(VLOOKUP(B172,Baza[],8,0),"") -> $ | L172: =IFERROR(VLOOKUP(B172,Baza[],9,0),"") -> 3.3 | M172: =IFERROR(VLOOKUP(B172,Baza[],10,0),"") -> PS | N172: =IFERROR(VLOOKUP(B172,Baza[],12,0),"") -> GTD | O172: =IFERROR(VLOOKUP(B172,Baza[],14,0),"") -> 9 | P172: =IFERROR(VLOOKUP(B172,Baza[],15,0),"") -> - | Q172: =IFERROR(VLOOKUP(B172,Baza[],16,0),"") -> - | R172: =IFERROR(VLOOKUP(B172,Baza[],17,0),"") -> - | S172: =IFERROR(VLOOKUP(B172,Baza[],18,0),"") -> 750 | T172: =IFERROR(IF((VLOOKUP(B172,Baza[],19,0)+VLOOKUP(B172,Baza[],20,0))=0,"-",VLOOKUP(B172,Baza[],19,0)+VLOOKUP(B172,Baza[],20,0)),"") -> - | U172: =IFERROR(IF(VLOOKUP(B172,Baza[],21,0)=0,"-",VLOOKUP(B172,Baza[],21,0)),"") -> - | V172: =IFERROR(VLOOKUP(B172,Baza[],22,0),"") -> 0 | W172: =IFERROR(VLOOKUP(B172,Baza[],23,0),"") -> - | X172: =IFERROR(VLOOKUP(B172,Baza[],24,0),"") -> 3.3 | Y172: =IFERROR(IF(VLOOKUP(B172,Baza[],25,0)=0,"-",VLOOKUP(B172,Baza[],25,0)),"") -> - | Z172: =IFERROR(IF(VLOOKUP(B172,Baza[],26,0)=0,"-",VLOOKUP(B172,Baza[],26,0)),"") -> - | AA172: =IFERROR(VLOOKUP(B172,Baza[],27,0),"") -> -3.3 | AB172: =IFERROR(VLOOKUP(B172,Baza[],28,0),"") -> 300 | AC172: =IF(TOT[[#This Row],[Profit]]="","#Н/Д",SUM($AA$85:AA172)) -> 310.9950562 | AD172: =IF(TOT[[#This Row],[Grafik]]="#Н/Д",FALSE,TRUE) -> TRUE
A173: 88 | B173: 88 | C173: =IFERROR(VLOOKUP(B173,Baza[],2,0),"") -> 2021 | D173: =IF( TOT[[#This Row],[NN]]="","",TEXT( TOT[[#This Row],[Start]],"ч:мм")&" "&TOT[[#This Row],[V]]& TOT[[#This Row],[B]]&" "&"["& TOT[[#This Row],[Room]]&"] "& TOT[[#This Row],[Name]]) -> 12:00 $1,1 [PP] Deepstack | E173: =TOT[[#This Row],[V]]& TOT[[#This Row],[B]] -> $1,1 | F173: =IFERROR(VLOOKUP(B173,Baza[],3,0),"") -> 2 | G173: =IFERROR(VLOOKUP(B173,Baza[],4,0),"") -> понедельник | H173: =IFERROR(VLOOKUP(B173,Baza[],5,0),"") -> январь | I173: =IFERROR(VLOOKUP(B173,Baza[],6,0),"") -> 2021-01-04 | J173: =IFERROR(VLOOKUP(B173,Baza[],7,0),"") -> 12:00:00 | K173: =IFERROR(VLOOKUP(B173,Baza[],8,0),"") -> $ | L173: =IFERROR(VLOOKUP(B173,Baza[],9,0),"") -> 1.1 | M173: =IFERROR(VLOOKUP(B173,Baza[],10,0),"") -> PP | N173: =IFERROR(VLOOKUP(B173,Baza[],12,0),"") -> Deepstack | O173: =IFERROR(VLOOKUP(B173,Baza[],14,0),"") -> 8 | P173: =IFERROR(VLOOKUP(B173,Baza[],15,0),"") -> - | Q173: =IFERROR(VLOOKUP(B173,Baza[],16,0),"") -> - | R173: =IFERROR(VLOOKUP(B173,Baza[],17,0),"") -> - | S173: =IFERROR(VLOOKUP(B173,Baza[],18,0),"") -> 200 | T173: =IFERROR(IF((VLOOKUP(B173,Baza[],19,0)+VLOOKUP(B173,Baza[],20,0))=0,"-",VLOOKUP(B173,Baza[],19,0)+VLOOKUP(B173,Baza[],20,0)),"") -> - | U173: =IFERROR(IF(VLOOKUP(B173,Baza[],21,0)=0,"-",VLOOKUP(B173,Baza[],21,0)),"") -> - | V173: =IFERROR(VLOOKUP(B173,Baza[],22,0),"") -> 0 | W173: =IFERROR(VLOOKUP(B173,Baza[],23,0),"") -> - | X173: =IFERROR(VLOOKUP(B173,Baza[],24,0),"") -> 1.1 | Y173: =IFERROR(IF(VLOOKUP(B173,Baza[],25,0)=0,"-",VLOOKUP(B173,Baza[],25,0)),"") -> - | Z173: =IFERROR(IF(VLOOKUP(B173,Baza[],26,0)=0,"-",VLOOKUP(B173,Baza[],26,0)),"") -> - | AA173: =IFERROR(VLOOKUP(B173,Baza[],27,0),"") -> -1.1 | AB173: =IFERROR(VLOOKUP(B173,Baza[],28,0),"") -> 240 | AC173: =IF(TOT[[#This Row],[Profit]]="","#Н/Д",SUM($AA$85:AA173)) -> 309.8950562 | AD173: =IF(TOT[[#This Row],[Grafik]]="#Н/Д",FALSE,TRUE) -> TRUE
A174: 89 | B174: 89 | C174: =IFERROR(VLOOKUP(B174,Baza[],2,0),"") -> 2021 | D174: =IF( TOT[[#This Row],[NN]]="","",TEXT( TOT[[#This Row],[Start]],"ч:мм")&" "&TOT[[#This Row],[V]]& TOT[[#This Row],[B]]&" "&"["& TOT[[#This Row],[Room]]&"] "& TOT[[#This Row],[Name]]) -> 12:00 $1,1 [PS] Big | E174: =TOT[[#This Row],[V]]& TOT[[#This Row],[B]] -> $1,1 | F174: =IFERROR(VLOOKUP(B174,Baza[],3,0),"") -> 2 | G174: =IFERROR(VLOOKUP(B174,Baza[],4,0),"") -> понедельник | H174: =IFERROR(VLOOKUP(B174,Baza[],5,0),"") -> январь | I174: =IFERROR(VLOOKUP(B174,Baza[],6,0),"") -> 2021-01-04 | J174: =IFERROR(VLOOKUP(B174,Baza[],7,0),"") -> 12:00:00 | K174: =IFERROR(VLOOKUP(B174,Baza[],8,0),"") -> $ | L174: =IFERROR(VLOOKUP(B174,Baza[],9,0),"") -> 1.1 | M174: =IFERROR(VLOOKUP(B174,Baza[],10,0),"") -> PS | N174: =IFERROR(VLOOKUP(B174,Baza[],12,0),"") -> Big | O174: =IFERROR(VLOOKUP(B174,Baza[],14,0),"") -> 9 | P174: =IFERROR(VLOOKUP(B174,Baza[],15,0),"") -> - | Q174: =IFERROR(VLOOKUP(B174,Baza[],16,0),"") -> - | R174: =IFERROR(VLOOKUP(B174,Baza[],17,0),"") -> - | S174: =IFERROR(VLOOKUP(B174,Baza[],18,0),"") -> 1000 | T174: =IFERROR(IF((VLOOKUP(B174,Baza[],19,0)+VLOOKUP(B174,Baza[],20,0))=0,"-",VLOOKUP(B174,Baza[],19,0)+VLOOKUP(B174,Baza[],20,0)),"") -> - | U174: =IFERROR(IF(VLOOKUP(B174,Baza[],21,0)=0,"-",VLOOKUP(B174,Baza[],21,0)),"") -> - | V174: =IFERROR(VLOOKUP(B174,Baza[],22,0),"") -> 0 | W174: =IFERROR(VLOOKUP(B174,Baza[],23,0),"") -> - | X174: =IFERROR(VLOOKUP(B174,Baza[],24,0),"") -> 1.1 | Y174: =IFERROR(IF(VLOOKUP(B174,Baza[],25,0)=0,"-",VLOOKUP(B174,Baza[],25,0)),"") -> - | Z174: =IFERROR(IF(VLOOKUP(B174,Baza[],26,0)=0,"-",VLOOKUP(B174,Baza[],26,0)),"") -> - | AA174: =IFERROR(VLOOKUP(B174,Baza[],27,0),"") -> -1.1 | AB174: =IFERROR(VLOOKUP(B174,Baza[],28,0),"") -> 1200 | AC174: =IF(TOT[[#This Row],[Profit]]="","#Н/Д",SUM($AA$85:AA174)) -> 308.7950562 | AD174: =IF(TOT[[#This Row],[Grafik]]="#Н/Д",FALSE,TRUE) -> TRUE
A175: 90 | B175: 90 | C175: =IFERROR(VLOOKUP(B175,Baza[],2,0),"") -> 2021 | D175: =IF( TOT[[#This Row],[NN]]="","",TEXT( TOT[[#This Row],[Start]],"ч:мм")&" "&TOT[[#This Row],[V]]& TOT[[#This Row],[B]]&" "&"["& TOT[[#This Row],[Room]]&"] "& TOT[[#This Row],[Name]]) -> 12:00 €2 [WN] Monster Stack | E175: =TOT[[#This Row],[V]]& TOT[[#This Row],[B]] -> €2 | F175: =IFERROR(VLOOKUP(B175,Baza[],3,0),"") -> 2 | G175: =IFERROR(VLOOKUP(B175,Baza[],4,0),"") -> понедельник | H175: =IFERROR(VLOOKUP(B175,Baza[],5,0),"") -> январь | I175: =IFERROR(VLOOKUP(B175,Baza[],6,0),"") -> 2021-01-04 | J175: =IFERROR(VLOOKUP(B175,Baza[],7,0),"") -> 12:00:00 | K175: =IFERROR(VLOOKUP(B175,Baza[],8,0),"") -> € | L175: =IFERROR(VLOOKUP(B175,Baza[],9,0),"") -> 2 | M175: =IFERROR(VLOOKUP(B175,Baza[],10,0),"") -> WN | N175: =IFERROR(VLOOKUP(B175,Baza[],12,0),"") -> Monster Stack | O175: =IFERROR(VLOOKUP(B175,Baza[],14,0),"") -> 6 | P175: =IFERROR(VLOOKUP(B175,Baza[],15,0),"") -> - | Q175: =IFERROR(VLOOKUP(B175,Baza[],16,0),"") -> - | R175: =IFERROR(VLOOKUP(B175,Baza[],17,0),"") -> - | S175: =IFERROR(VLOOKUP(B175,Baza[],18,0),"") -> 200 | T175: =IFERROR(IF((VLOOKUP(B175,Baza[],19,0)+VLOOKUP(B175,Baza[],20,0))=0,"-",VLOOKUP(B175,Baza[],19,0)+VLOOKUP(B175,Baza[],20,0)),"") -> - | U175: =IFERROR(IF(VLOOKUP(B175,Baza[],21,0)=0,"-",VLOOKUP(B175,Baza[],21,0)),"") -> - | V175: =IFERROR(VLOOKUP(B175,Baza[],22,0),"") -> 0 | W175: =IFERROR(VLOOKUP(B175,Baza[],23,0),"") -> - | X175: =IFERROR(VLOOKUP(B175,Baza[],24,0),"") -> 2.247191011 | Y175: =IFERROR(IF(VLOOKUP(B175,Baza[],25,0)=0,"-",VLOOKUP(B175,Baza[],25,0)),"") -> - | Z175: =IFERROR(IF(VLOOKUP(B175,Baza[],26,0)=0,"-",VLOOKUP(B175,Baza[],26,0)),"") -> - | AA175: =IFERROR(VLOOKUP(B175,Baza[],27,0),"") -> -2.247191011 | AB175: =IFERROR(VLOOKUP(B175,Baza[],28,0),"") -> 132 | AC175: =IF(TOT[[#This Row],[Profit]]="","#Н/Д",SUM($AA$85:AA175)) -> 306.5478652 | AD175: =IF(TOT[[#This Row],[Grafik]]="#Н/Д",FALSE,TRUE) -> TRUE
A176: 91 | B176: 91 | C176: =IFERROR(VLOOKUP(B176,Baza[],2,0),"") -> 2021 | D176: =IF( TOT[[#This Row],[NN]]="","",TEXT( TOT[[#This Row],[Start]],"ч:мм")&" "&TOT[[#This Row],[V]]& TOT[[#This Row],[B]]&" "&"["& TOT[[#This Row],[Room]]&"] "& TOT[[#This Row],[Name]]) -> 12:00 $5 [GG] Big | E176: =TOT[[#This Row],[V]]& TOT[[#This Row],[B]] -> $5 | F176: =IFERROR(VLOOKUP(B176,Baza[],3,0),"") -> 2 | G176: =IFERROR(VLOOKUP(B176,Baza[],4,0),"") -> понедельник | H176: =IFERROR(VLOOKUP(B176,Baza[],5,0),"") -> январь | I176: =IFERROR(VLOOKUP(B176,Baza[],6,0),"") -> 2021-01-04 | J176: =IFERROR(VLOOKUP(B176,Baza[],7,0),"") -> 12:00:00 | K176: =IFERROR(VLOOKUP(B176,Baza[],8,0),"") -> $ | L176: =IFERROR(VLOOKUP(B176,Baza[],9,0),"") -> 5 | M176: =IFERROR(VLOOKUP(B176,Baza[],10,0),"") -> GG | N176: =IFERROR(VLOOKUP(B176,Baza[],12,0),"") -> Big | O176: =IFERROR(VLOOKUP(B176,Baza[],14,0),"") -> 8 | P176: =IFERROR(VLOOKUP(B176,Baza[],15,0),"") -> - | Q176: =IFERROR(VLOOKUP(B176,Baza[],16,0),"") -> - | R176: =IFERROR(VLOOKUP(B176,Baza[],17,0),"") -> - | S176: =IFERROR(VLOOKUP(B176,Baza[],18,0),"") -> 1500 | T176: =IFERROR(IF((VLOOKUP(B176,Baza[],19,0)+VLOOKUP(B176,Baza[],20,0))=0,"-",VLOOKUP(B176,Baza[],19,0)+VLOOKUP(B176,Baza[],20,0)),"") -> - | U176: =IFERROR(IF(VLOOKUP(B176,Baza[],21,0)=0,"-",VLOOKUP(B176,Baza[],21,0)),"") -> - | V176: =IFERROR(VLOOKUP(B176,Baza[],22,0),"") -> 0 | W176: =IFERROR(VLOOKUP(B176,Baza[],23,0),"") -> - | X176: =IFERROR(VLOOKUP(B176,Baza[],24,0),"") -> 5 | Y176: =IFERROR(IF(VLOOKUP(B176,Baza[],25,0)=0,"-",VLOOKUP(B176,Baza[],25,0)),"") -> - | Z176: =IFERROR(IF(VLOOKUP(B176,Baza[],26,0)=0,"-",VLOOKUP(B176,Baza[],26,0)),"") -> - | AA176: =IFERROR(VLOOKUP(B176,Baza[],27,0),"") -> -5 | AB176: =IFERROR(VLOOKUP(B176,Baza[],28,0),"") -> 396 | AC176: =IF(TOT[[#This Row],[Profit]]="","#Н/Д",SUM($AA$85:AA176)) -> 301.5478652 | AD176: =IF(TOT[[#This Row],[Grafik]]="#Н/Д",FALSE,TRUE) -> TRUE
A177: 92 | B177: 92 | C177: =IFERROR(VLOOKUP(B177,Baza[],2,0),"") -> 2021 | D177: =IF( TOT[[#This Row],[NN]]="","",TEXT( TOT[[#This Row],[Start]],"ч:мм")&" "&TOT[[#This Row],[V]]& TOT[[#This Row],[B]]&" "&"["& TOT[[#This Row],[Room]]&"] "& TOT[[#This Row],[Name]]) -> 12:00 €5 [WN] Monster Stack | E177: =TOT[[#This Row],[V]]& TOT[[#This Row],[B]] -> €5 | F177: =IFERROR(VLOOKUP(B177,Baza[],3,0),"") -> 2 | G177: =IFERROR(VLOOKUP(B177,Baza[],4,0),"") -> понедельник | H177: =IFERROR(VLOOKUP(B177,Baza[],5,0),"") -> январь | I177: =IFERROR(VLOOKUP(B177,Baza[],6,0),"") -> 2021-01-04 | J177: =IFERROR(VLOOKUP(B177,Baza[],7,0),"") -> 12:00:00 | K177: =IFERROR(VLOOKUP(B177,Baza[],8,0),"") -> € | L177: =IFERROR(VLOOKUP(B177,Baza[],9,0),"") -> 5 | M177: =IFERROR(VLOOKUP(B177,Baza[],10,0),"") -> WN | N177: =IFERROR(VLOOKUP(B177,Baza[],12,0),"") -> Monster Stack | O177: =IFERROR(VLOOKUP(B177,Baza[],14,0),"") -> 6 | P177: =IFERROR(VLOOKUP(B177,Baza[],15,0),"") -> - | Q177: =IFERROR(VLOOKUP(B177,Baza[],16,0),"") -> - | R177: =IFERROR(VLOOKUP(B177,Baza[],17,0),"") -> - | S177: =IFERROR(VLOOKUP(B177,Baza[],18,0),"") -> 600 | T177: =IFERROR(IF((VLOOKUP(B177,Baza[],19,0)+VLOOKUP(B177,Baza[],20,0))=0,"-",VLOOKUP(B177,Baza[],19,0)+VLOOKUP(B177,Baza[],20,0)),"") -> - | U177: =IFERROR(IF(VLOOKUP(B177,Baza[],21,0)=0,"-",VLOOKUP(B177,Baza[],21,0)),"") -> - | V177: =IFERROR(VLOOKUP(B177,Baza[],22,0),"") -> 0 | W177: =IFERROR(VLOOKUP(B177,Baza[],23,0),"") -> - | X177: =IFERROR(VLOOKUP(B177,Baza[],24,0),"") -> 5.617977528 | Y177: =IFERROR(IF(VLOOKUP(B177,Baza[],25,0)=0,"-",VLOOKUP(B177,Baza[],25,0)),"") -> - | Z177: =IFERROR(IF(VLOOKUP(B177,Baza[],26,0)=0,"-",VLOOKUP(B177,Baza[],26,0)),"") -> - | AA177: =IFERROR(VLOOKUP(B177,Baza[],27,0),"") -> -5.617977528 | AB177: =IFERROR(VLOOKUP(B177,Baza[],28,0),"") -> 158.4 | AC177: =IF(TOT[[#This Row],[Profit]]="","#Н/Д",SUM($AA$85:AA177)) -> 295.9298876 | AD177: =IF(TOT[[#This Row],[Grafik]]="#Н/Д",FALSE,TRUE) -> TRUE
A178: 93 | B178: 93 | C178: =IFERROR(VLOOKUP(B178,Baza[],2,0),"") -> 2021 | D178: =IF( TOT[[#This Row],[NN]]="","",TEXT( TOT[[#This Row],[Start]],"ч:мм")&" "&TOT[[#This Row],[V]]& TOT[[#This Row],[B]]&" "&"["& TOT[[#This Row],[Room]]&"] "& TOT[[#This Row],[Name]]) -> 12:20 $5,5 [PS] 30% Progressive KO | E178: =TOT[[#This Row],[V]]& TOT[[#This Row],[B]] -> $5,5 | F178: =IFERROR(VLOOKUP(B178,Baza[],3,0),"") -> 2 | G178: =IFERROR(VLOOKUP(B178,Baza[],4,0),"") -> понедельник | H178: =IFERROR(VLOOKUP(B178,Baza[],5,0),"") -> январь | I178: =IFERROR(VLOOKUP(B178,Baza[],6,0),"") -> 2021-01-04 | J178: =IFERROR(VLOOKUP(B178,Baza[],7,0),"") -> 12:20:00 | K178: =IFERROR(VLOOKUP(B178,Baza[],8,0),"") -> $ | L178: =IFERROR(VLOOKUP(B178,Baza[],9,0),"") -> 5.5 | M178: =IFERROR(VLOOKUP(B178,Baza[],10,0),"") -> PS | N178: =IFERROR(VLOOKUP(B178,Baza[],12,0),"") -> 30% Progressive KO | O178: =IFERROR(VLOOKUP(B178,Baza[],14,0),"") -> 9 | P178: =IFERROR(VLOOKUP(B178,Baza[],15,0),"") -> - | Q178: =IFERROR(VLOOKUP(B178,Baza[],16,0),"") -> K | R178: =IFERROR(VLOOKUP(B178,Baza[],17,0),"") -> - | S178: =IFERROR(VLOOKUP(B178,Baza[],18,0),"") -> 2500 | T178: =IFERROR(IF((VLOOKUP(B178,Baza[],19,0)+VLOOKUP(B178,Baza[],20,0))=0,"-",VLOOKUP(B178,Baza[],19,0)+VLOOKUP(B178,Baza[],20,0)),"") -> 9.63 | U178: =IFERROR(IF(VLOOKUP(B178,Baza[],21,0)=0,"-",VLOOKUP(B178,Baza[],21,0)),"") -> 17.61 | V178: =IFERROR(VLOOKUP(B178,Baza[],22,0),"") -> 0 | W178: =IFERROR(VLOOKUP(B178,Baza[],23,0),"") -> 18 | X178: =IFERROR(VLOOKUP(B178,Baza[],24,0),"") -> 5.5 | Y178: =IFERROR(IF(VLOOKUP(B178,Baza[],25,0)=0,"-",VLOOKUP(B178,Baza[],25,0)),"") -> 9.63 | Z178: =IFERROR(IF(VLOOKUP(B178,Baza[],26,0)=0,"-",VLOOKUP(B178,Baza[],26,0)),"") -> 17.61 | AA178: =IFERROR(VLOOKUP(B178,Baza[],27,0),"") -> 21.74 | AB178: =IFERROR(VLOOKUP(B178,Baza[],28,0),"") -> 600 | AC178: =IF(TOT[[#This Row],[Profit]]="","#Н/Д",SUM($AA$85:AA178)) -> 317.6698876 | AD178: =IF(TOT[[#This Row],[Grafik]]="#Н/Д",FALSE,TRUE) -> TRUE
A179: 94 | B179: 94 | C179: =IFERROR(VLOOKUP(B179,Baza[],2,0),"") -> 2021 | D179: =IF( TOT[[#This Row],[NN]]="","",TEXT( TOT[[#This Row],[Start]],"ч:мм")&" "&TOT[[#This Row],[V]]& TOT[[#This Row],[B]]&" "&"["& TOT[[#This Row],[Room]]&"] "& TOT[[#This Row],[Name]]) -> 12:30 $1,05 [GG] Bounty Hunters | E179: =TOT[[#This Row],[V]]& TOT[[#This Row],[B]] -> $1,05 | F179: =IFERROR(VLOOKUP(B179,Baza[],3,0),"") -> 2 | G179: =IFERROR(VLOOKUP(B179,Baza[],4,0),"") -> понедельник | H179: =IFERROR(VLOOKUP(B179,Baza[],5,0),"") -> январь | I179: =IFERROR(VLOOKUP(B179,Baza[],6,0),"") -> 2021-01-04 | J179: =IFERROR(VLOOKUP(B179,Baza[],7,0),"") -> 12:30:00 | K179: =IFERROR(VLOOKUP(B179,Baza[],8,0),"") -> $ | L179: =IFERROR(VLOOKUP(B179,Baza[],9,0),"") -> 1.05 | M179: =IFERROR(VLOOKUP(B179,Baza[],10,0),"") -> GG | N179: =IFERROR(VLOOKUP(B179,Baza[],12,0),"") -> Bounty Hunters | O179: =IFERROR(VLOOKUP(B179,Baza[],14,0),"") -> 8 | P179: =IFERROR(VLOOKUP(B179,Baza[],15,0),"") -> - | Q179: =IFERROR(VLOOKUP(B179,Baza[],16,0),"") -> K | R179: =IFERROR(VLOOKUP(B179,Baza[],17,0),"") -> - | S179: =IFERROR(VLOOKUP(B179,Baza[],18,0),"") -> 750 | T179: =IFERROR(IF((VLOOKUP(B179,Baza[],19,0)+VLOOKUP(B179,Baza[],20,0))=0,"-",VLOOKUP(B179,Baza[],19,0)+VLOOKUP(B179,Baza[],20,0)),"") -> - | U179: =IFERROR(IF(VLOOKUP(B179,Baza[],21,0)=0,"-",VLOOKUP(B179,Baza[],21,0)),"") -> - | V179: =IFERROR(VLOOKUP(B179,Baza[],22,0),"") -> 0 | W179: =IFERROR(VLOOKUP(B179,Baza[],23,0),"") -> - | X179: =IFERROR(VLOOKUP(B179,Baza[],24,0),"") -> 1.05 | Y179: =IFERROR(IF(VLOOKUP(B179,Baza[],25,0)=0,"-",VLOOKUP(B179,Baza[],25,0)),"") -> - | Z179: =IFERROR(IF(VLOOKUP(B179,Baza[],26,0)=0,"-",VLOOKUP(B179,Baza[],26,0)),"") -> - | AA179: =IFERROR(VLOOKUP(B179,Baza[],27,0),"") -> -1.05 | AB179: =IFERROR(VLOOKUP(B179,Baza[],28,0),"") -> 942.8571429 | AC179: =IF(TOT[[#This Row],[Profit]]="","#Н/Д",SUM($AA$85:AA179)) -> 316.6198876 | AD179: =IF(TOT[[#This Row],[Grafik]]="#Н/Д",FALSE,TRUE) -> TRUE
A180: 95 | B180: 95 | C180: =IFERROR(VLOOKUP(B180,Baza[],2,0),"") -> 2021 | D180: =IF( TOT[[#This Row],[NN]]="","",TEXT( TOT[[#This Row],[Start]],"ч:мм")&" "&TOT[[#This Row],[V]]& TOT[[#This Row],[B]]&" "&"["& TOT[[#This Row],[Room]]&"] "& TOT[[#This Row],[Name]]) -> 12:30 $1 [PAC] Guaranteed | E180: =TOT[[#This Row],[V]]& TOT[[#This Row],[B]] -> $1 | F180: =IFERROR(VLOOKUP(B180,Baza[],3,0),"") -> 2 | G180: =IFERROR(VLOOKUP(B180,Baza[],4,0),"") -> понедельник | H180: =IFERROR(VLOOKUP(B180,Baza[],5,0),"") -> январь | I180: =IFERROR(VLOOKUP(B180,Baza[],6,0),"") -> 2021-01-04 | J180: =IFERROR(VLOOKUP(B180,Baza[],7,0),"") -> 12:30:00 | K180: =IFERROR(VLOOKUP(B180,Baza[],8,0),"") -> $ | L180: =IFERROR(VLOOKUP(B180,Baza[],9,0),"") -> 1 | M180: =IFERROR(VLOOKUP(B180,Baza[],10,0),"") -> PAC | N180: =IFERROR(VLOOKUP(B180,Baza[],12,0),"") -> Guaranteed | O180: =IFERROR(VLOOKUP(B180,Baza[],14,0),"") -> 9 | P180: =IFERROR(VLOOKUP(B180,Baza[],15,0),"") -> - | Q180: =IFERROR(VLOOKUP(B180,Baza[],16,0),"") -> - | R180: =IFERROR(VLOOKUP(B180,Baza[],17,0),"") -> - | S180: =IFERROR(VLOOKUP(B180,Baza[],18,0),"") -> 200 | T180: =IFERROR(IF((VLOOKUP(B180,Baza[],19,0)+VLOOKUP(B180,Baza[],20,0))=0,"-",VLOOKUP(B180,Baza[],19,0)+VLOOKUP(B180,Baza[],20,0)),"") -> - | U180: =IFERROR(IF(VLOOKUP(B180,Baza[],21,0)=0,"-",VLOOKUP(B180,Baza[],21,0)),"") -> 2.31 | V180: =IFERROR(VLOOKUP(B180,Baza[],22,0),"") -> 0 | W180: =IFERROR(VLOOKUP(B180,Baza[],23,0),"") -> 20 | X180: =IFERROR(VLOOKUP(B180,Baza[],24,0),"") -> 1 | Y180: =IFERROR(IF(VLOOKUP(B180,Baza[],25,0)=0,"-",VLOOKUP(B180,Baza[],25,0)),"") -> - | Z180: =IFERROR(IF(VLOOKUP(B180,Baza[],26,0)=0,"-",VLOOKUP(B180,Baza[],26,0)),"") -> 2.31 | AA180: =IFERROR(VLOOKUP(B180,Baza[],27,0),"") -> 1.31 | AB180: =IFERROR(VLOOKUP(B180,Baza[],28,0),"") -> 264 | AC180: =IF(TOT[[#This Row],[Profit]]="","#Н/Д",SUM($AA$85:AA180)) -> 317.9298876 | AD180: =IF(TOT[[#This Row],[Grafik]]="#Н/Д",FALSE,TRUE) -> TRUE
A181: 96 | B181: 96 | C181: =IFERROR(VLOOKUP(B181,Baza[],2,0),"") -> 2021 | D181: =IF( TOT[[#This Row],[NN]]="","",TEXT( TOT[[#This Row],[Start]],"ч:мм")&" "&TOT[[#This Row],[V]]& TOT[[#This Row],[B]]&" "&"["& TOT[[#This Row],[Room]]&"] "& TOT[[#This Row],[Name]]) -> 12:30 $2,2 [PP] Bounty Hunter | E181: =TOT[[#This Row],[V]]& TOT[[#This Row],[B]] -> $2,2 | F181: =IFERROR(VLOOKUP(B181,Baza[],3,0),"") -> 2 | G181: =IFERROR(VLOOKUP(B181,Baza[],4,0),"") -> понедельник | H181: =IFERROR(VLOOKUP(B181,Baza[],5,0),"") -> январь | I181: =IFERROR(VLOOKUP(B181,Baza[],6,0),"") -> 2021-01-04 | J181: =IFERROR(VLOOKUP(B181,Baza[],7,0),"") -> 12:30:00 | K181: =IFERROR(VLOOKUP(B181,Baza[],8,0),"") -> $ | L181: =IFERROR(VLOOKUP(B181,Baza[],9,0),"") -> 2.2 | M181: =IFERROR(VLOOKUP(B181,Baza[],10,0),"") -> PP | N181: =IFERROR(VLOOKUP(B181,Baza[],12,0),"") -> Bounty Hunter | O181: =IFERROR(VLOOKUP(B181,Baza[],14,0),"") -> 8 | P181: =IFERROR(VLOOKUP(B181,Baza[],15,0),"") -> - | Q181: =IFERROR(VLOOKUP(B181,Baza[],16,0),"") -> K | R181: =IFERROR(VLOOKUP(B181,Baza[],17,0),"") -> - | S181: =IFERROR(VLOOKUP(B181,Baza[],18,0),"") -> 300 | T181: =IFERROR(IF((VLOOKUP(B181,Baza[],19,0)+VLOOKUP(B181,Baza[],20,0))=0,"-",VLOOKUP(B181,Baza[],19,0)+VLOOKUP(B181,Baza[],20,0)),"") -> 0.55 | U181: =IFERROR(IF(VLOOKUP(B181,Baza[],21,0)=0,"-",VLOOKUP(B181,Baza[],21,0)),"") -> - | V181: =IFERROR(VLOOKUP(B181,Baza[],22,0),"") -> 0 | W181: =IFERROR(VLOOKUP(B181,Baza[],23,0),"") -> - | X181: =IFERROR(VLOOKUP(B181,Baza[],24,0),"") -> 2.2 | Y181: =IFERROR(IF(VLOOKUP(B181,Baza[],25,0)=0,"-",VLOOKUP(B181,Baza[],25,0)),"") -> 0.55 | Z181: =IFERROR(IF(VLOOKUP(B181,Baza[],26,0)=0,"-",VLOOKUP(B181,Baza[],26,0)),"") -> - | AA181: =IFERROR(VLOOKUP(B181,Baza[],27,0),"") -> -1.65 | AB181: =IFERROR(VLOOKUP(B181,Baza[],28,0),"") -> 180 | AC181: =IF(TOT[[#This Row],[Profit]]="","#Н/Д",SUM($AA$85:AA181)) -> 316.2798876 | AD181: =IF(TOT[[#This Row],[Grafik]]="#Н/Д",FALSE,TRUE) -> TRUE
A182: 97 | B182: 97 | C182: =IFERROR(VLOOKUP(B182,Baza[],2,0),"") -> 2021 | D182: =IF( TOT[[#This Row],[NN]]="","",TEXT( TOT[[#This Row],[Start]],"ч:мм")&" "&TOT[[#This Row],[V]]& TOT[[#This Row],[B]]&" "&"["& TOT[[#This Row],[Room]]&"] "& TOT[[#This Row],[Name]]) -> 12:30 $5,25 [GG] Bounty Hunters | E182: =TOT[[#This Row],[V]]& TOT[[#This Row],[B]] -> $5,25 | F182: =IFERROR(VLOOKUP(B182,Baza[],3,0),"") -> 2 | G182: =IFERROR(VLOOKUP(B182,Baza[],4,0),"") -> понедельник | H182: =IFERROR(VLOOKUP(B182,Baza[],5,0),"") -> январь | I182: =IFERROR(VLOOKUP(B182,Baza[],6,0),"") -> 2021-01-04 | J182: =IFERROR(VLOOKUP(B182,Baza[],7,0),"") -> 12:30:00 | K182: =IFERROR(VLOOKUP(B182,Baza[],8,0),"") -> $ | L182: =IFERROR(VLOOKUP(B182,Baza[],9,0),"") -> 5.25 | M182: =IFERROR(VLOOKUP(B182,Baza[],10,0),"") -> GG | N182: =IFERROR(VLOOKUP(B182,Baza[],12,0),"") -> Bounty Hunters | O182: =IFERROR(VLOOKUP(B182,Baza[],14,0),"") -> 8 | P182: =IFERROR(VLOOKUP(B182,Baza[],15,0),"") -> - | Q182: =IFERROR(VLOOKUP(B182,Baza[],16,0),"") -> K | R182: =IFERROR(VLOOKUP(B182,Baza[],17,0),"") -> - | S182: =IFERROR(VLOOKUP(B182,Baza[],18,0),"") -> 4000 | T182: =IFERROR(IF((VLOOKUP(B182,Baza[],19,0)+VLOOKUP(B182,Baza[],20,0))=0,"-",VLOOKUP(B182,Baza[],19,0)+VLOOKUP(B182,Baza[],20,0)),"") -> 1.25 | U182: =IFERROR(IF(VLOOKUP(B182,Baza[],21,0)=0,"-",VLOOKUP(B182,Baza[],21,0)),"") -> - | V182: =IFERROR(VLOOKUP(B182,Baza[],22,0),"") -> 0 | W182: =IFERROR(VLOOKUP(B182,Baza[],23,0),"") -> - | X182: =IFERROR(VLOOKUP(B182,Baza[],24,0),"") -> 5.25 | Y182: =IFERROR(IF(VLOOKUP(B182,Baza[],25,0)=0,"-",VLOOKUP(B182,Baza[],25,0)),"") -> 1.25 | Z182: =IFERROR(IF(VLOOKUP(B182,Baza[],26,0)=0,"-",VLOOKUP(B182,Baza[],26,0)),"") -> - | AA182: =IFERROR(VLOOKUP(B182,Baza[],27,0),"") -> -4 | AB182: =IFERROR(VLOOKUP(B182,Baza[],28,0),"") -> 1005.714286 | AC182: =IF(TOT[[#This Row],[Profit]]="","#Н/Д",SUM($AA$85:AA182)) -> 312.2798876 | AD182: =IF(TOT[[#This Row],[Grafik]]="#Н/Д",FALSE,TRUE) -> TRUE
A183: 98 | B183: 98 | C183: =IFERROR(VLOOKUP(B183,Baza[],2,0),"") -> 2021 | D183: =IF( TOT[[#This Row],[NN]]="","",TEXT( TOT[[#This Row],[Start]],"ч:мм")&" "&TOT[[#This Row],[V]]& TOT[[#This Row],[B]]&" "&"["& TOT[[#This Row],[Room]]&"] "& TOT[[#This Row],[Name]]) -> 12:45 $5,5 [PAC] PKO | E183: =TOT[[#This Row],[V]]& TOT[[#This Row],[B]] -> $5,5 | F183: =IFERROR(VLOOKUP(B183,Baza[],3,0),"") -> 2 | G183: =IFERROR(VLOOKUP(B183,Baza[],4,0),"") -> понедельник | H183: =IFERROR(VLOOKUP(B183,Baza[],5,0),"") -> январь | I183: =IFERROR(VLOOKUP(B183,Baza[],6,0),"") -> 2021-01-04 | J183: =IFERROR(VLOOKUP(B183,Baza[],7,0),"") -> 12:45:00 | K183: =IFERROR(VLOOKUP(B183,Baza[],8,0),"") -> $ | L183: =IFERROR(VLOOKUP(B183,Baza[],9,0),"") -> 5.5 | M183: =IFERROR(VLOOKUP(B183,Baza[],10,0),"") -> PAC | N183: =IFERROR(VLOOKUP(B183,Baza[],12,0),"") -> PKO | O183: =IFERROR(VLOOKUP(B183,Baza[],14,0),"") -> 9 | P183: =IFERROR(VLOOKUP(B183,Baza[],15,0),"") -> - | Q183: =IFERROR(VLOOKUP(B183,Baza[],16,0),"") -> K | R183: =IFERROR(VLOOKUP(B183,Baza[],17,0),"") -> - | S183: =IFERROR(VLOOKUP(B183,Baza[],18,0),"") -> 1000 | T183: =IFERROR(IF((VLOOKUP(B183,Baza[],19,0)+VLOOKUP(B183,Baza[],20,0))=0,"-",VLOOKUP(B183,Baza[],19,0)+VLOOKUP(B183,Baza[],20,0)),"") -> 1.25 | U183: =IFERROR(IF(VLOOKUP(B183,Baza[],21,0)=0,"-",VLOOKUP(B183,Baza[],21,0)),"") -> - | V183: =IFERROR(VLOOKUP(B183,Baza[],22,0),"") -> 0 | W183: =IFERROR(VLOOKUP(B183,Baza[],23,0),"") -> - | X183: =IFERROR(VLOOKUP(B183,Baza[],24,0),"") -> 5.5 | Y183: =IFERROR(IF(VLOOKUP(B183,Baza[],25,0)=0,"-",VLOOKUP(B183,Baza[],25,0)),"") -> 1.25 | Z183: =IFERROR(IF(VLOOKUP(B183,Baza[],26,0)=0,"-",VLOOKUP(B183,Baza[],26,0)),"") -> - | AA183: =IFERROR(VLOOKUP(B183,Baza[],27,0),"") -> -4.25 | AB183: =IFERROR(VLOOKUP(B183,Baza[],28,0),"") -> 240 | AC183: =IF(TOT[[#This Row],[Profit]]="","#Н/Д",SUM($AA$85:AA183)) -> 308.0298876 | AD183: =IF(TOT[[#This Row],[Grafik]]="#Н/Д",FALSE,TRUE) -> TRUE
A184: 99 | B184: 99 | C184: =IFERROR(VLOOKUP(B184,Baza[],2,0),"") -> 2021 | D184: =IF( TOT[[#This Row],[NN]]="","",TEXT( TOT[[#This Row],[Start]],"ч:мм")&" "&TOT[[#This Row],[V]]& TOT[[#This Row],[B]]&" "&"["& TOT[[#This Row],[Room]]&"] "& TOT[[#This Row],[Name]]) -> 13:00 $2 [GG] Big | E184: =TOT[[#This Row],[V]]& TOT[[#This Row],[B]] -> $2 | F184: =IFERROR(VLOOKUP(B184,Baza[],3,0),"") -> 2 | G184: =IFERROR(VLOOKUP(B184,Baza[],4,0),"") -> понедельник | H184: =IFERROR(VLOOKUP(B184,Baza[],5,0),"") -> январь | I184: =IFERROR(VLOOKUP(B184,Baza[],6,0),"") -> 2021-01-04 | J184: =IFERROR(VLOOKUP(B184,Baza[],7,0),"") -> 13:00:00 | K184: =IFERROR(VLOOKUP(B184,Baza[],8,0),"") -> $ | L184: =IFERROR(VLOOKUP(B184,Baza[],9,0),"") -> 2 | M184: =IFERROR(VLOOKUP(B184,Baza[],10,0),"") -> GG | N184: =IFERROR(VLOOKUP(B184,Baza[],12,0),"") -> Big | O184: =IFERROR(VLOOKUP(B184,Baza[],14,0),"") -> 8 | P184: =IFERROR(VLOOKUP(B184,Baza[],15,0),"") -> - | Q184: =IFERROR(VLOOKUP(B184,Baza[],16,0),"") -> - | R184: =IFERROR(VLOOKUP(B184,Baza[],17,0),"") -> - | S184: =IFERROR(VLOOKUP(B184,Baza[],18,0),"") -> 750 | T184: =IFERROR(IF((VLOOKUP(B184,Baza[],19,0)+VLOOKUP(B184,Baza[],20,0))=0,"-",VLOOKUP(B184,Baza[],19,0)+VLOOKUP(B184,Baza[],20,0)),"") -> - | U184: =IFERROR(IF(VLOOKUP(B184,Baza[],21,0)=0,"-",VLOOKUP(B184,Baza[],21,0)),"") -> - | V184: =IFERROR(VLOOKUP(B184,Baza[],22,0),"") -> 0 | W184: =IFERROR(VLOOKUP(B184,Baza[],23,0),"") -> - | X184: =IFERROR(VLOOKUP(B184,Baza[],24,0),"") -> 2 | Y184: =IFERROR(IF(VLOOKUP(B184,Baza[],25,0)=0,"-",VLOOKUP(B184,Baza[],25,0)),"") -> - | Z184: =IFERROR(IF(VLOOKUP(B184,Baza[],26,0)=0,"-",VLOOKUP(B184,Baza[],26,0)),"") -> - | AA184: =IFERROR(VLOOKUP(B184,Baza[],27,0),"") -> -2 | AB184: =IFERROR(VLOOKUP(B184,Baza[],28,0),"") -> 495 | AC184: =IF(TOT[[#This Row],[Profit]]="","#Н/Д",SUM($AA$85:AA184)) -> 306.0298876 | AD184: =IF(TOT[[#This Row],[Grafik]]="#Н/Д",FALSE,TRUE) -> TRUE
A185: 100 | B185: 100 | C185: =IFERROR(VLOOKUP(B185,Baza[],2,0),"") -> 2021 | D185: =IF( TOT[[#This Row],[NN]]="","",TEXT( TOT[[#This Row],[Start]],"ч:мм")&" "&TOT[[#This Row],[V]]& TOT[[#This Row],[B]]&" "&"["& TOT[[#This Row],[Room]]&"] "& TOT[[#This Row],[Name]]) -> 13:00 $2,2 [PS] GTD | E185: =TOT[[#This Row],[V]]& TOT[[#This Row],[B]] -> $2,2 | F185: =IFERROR(VLOOKUP(B185,Baza[],3,0),"") -> 2 | G185: =IFERROR(VLOOKUP(B185,Baza[],4,0),"") -> понедельник | H185: =IFERROR(VLOOKUP(B185,Baza[],5,0),"") -> январь | I185: =IFERROR(VLOOKUP(B185,Baza[],6,0),"") -> 2021-01-04 | J185: =IFERROR(VLOOKUP(B185,Baza[],7,0),"") -> 13:00:00 | K185: =IFERROR(VLOOKUP(B185,Baza[],8,0),"") -> $ | L185: =IFERROR(VLOOKUP(B185,Baza[],9,0),"") -> 2.2 | M185: =IFERROR(VLOOKUP(B185,Baza[],10,0),"") -> PS | N185: =IFERROR(VLOOKUP(B185,Baza[],12,0),"") -> GTD | O185: =IFERROR(VLOOKUP(B185,Baza[],14,0),"") -> 6 | P185: =IFERROR(VLOOKUP(B185,Baza[],15,0),"") -> - | Q185: =IFERROR(VLOOKUP(B185,Baza[],16,0),"") -> - | R185: =IFERROR(VLOOKUP(B185,Baza[],17,0),"") -> - | S185: =IFERROR(VLOOKUP(B185,Baza[],18,0),"") -> 1000 | T185: =IFERROR(IF((VLOOKUP(B185,Baza[],19,0)+VLOOKUP(B185,Baza[],20,0))=0,"-",VLOOKUP(B185,Baza[],19,0)+VLOOKUP(B185,Baza[],20,0)),"") -> - | U185: =IFERROR(IF(VLOOKUP(B185,Baza[],21,0)=0,"-",VLOOKUP(B185,Baza[],21,0)),"") -> - | V185: =IFERROR(VLOOKUP(B185,Baza[],22,0),"") -> 0 | W185: =IFERROR(VLOOKUP(B185,Baza[],23,0),"") -> - | X185: =IFERROR(VLOOKUP(B185,Baza[],24,0),"") -> 2.2 | Y185: =IFERROR(IF(VLOOKUP(B185,Baza[],25,0)=0,"-",VLOOKUP(B185,Baza[],25,0)),"") -> - | Z185: =IFERROR(IF(VLOOKUP(B185,Baza[],26,0)=0,"-",VLOOKUP(B185,Baza[],26,0)),"") -> - | AA185: =IFERROR(VLOOKUP(B185,Baza[],27,0),"") -> -2.2 | AB185: =IFERROR(VLOOKUP(B185,Baza[],28,0),"") -> 600 | AC185: =IF(TOT[[#This Row],[Profit]]="","#Н/Д",SUM($AA$85:AA185)) -> 303.8298876 | AD185: =IF(TOT[[#This Row],[Grafik]]="#Н/Д",FALSE,TRUE) -> TRUE
A186: 101 | C186: =IFERROR(VLOOKUP(B186,Baza[],2,0),"") ->  | D186: =IF( TOT[[#This Row],[NN]]="","",TEXT( TOT[[#This Row],[Start]],"ч:мм")&" "&TOT[[#This Row],[V]]& TOT[[#This Row],[B]]&" "&"["& TOT[[#This Row],[Room]]&"] "& TOT[[#This Row],[Name]]) ->  | E186: =TOT[[#This Row],[V]]& TOT[[#This Row],[B]] ->  | F186: =IFERROR(VLOOKUP(B186,Baza[],3,0),"") ->  | G186: =IFERROR(VLOOKUP(B186,Baza[],4,0),"") ->  | H186: =IFERROR(VLOOKUP(B186,Baza[],5,0),"") ->  | I186: =IFERROR(VLOOKUP(B186,Baza[],6,0),"") ->  | J186: =IFERROR(VLOOKUP(B186,Baza[],7,0),"") ->  | K186: =IFERROR(VLOOKUP(B186,Baza[],8,0),"") ->  | L186: =IFERROR(VLOOKUP(B186,Baza[],9,0),"") ->  | M186: =IFERROR(VLOOKUP(B186,Baza[],10,0),"") ->  | N186: =IFERROR(VLOOKUP(B186,Baza[],12,0),"") ->  | O186: =IFERROR(VLOOKUP(B186,Baza[],14,0),"") ->  | P186: =IFERROR(VLOOKUP(B186,Baza[],15,0),"") ->  | Q186: =IFERROR(VLOOKUP(B186,Baza[],16,0),"") ->  | R186: =IFERROR(VLOOKUP(B186,Baza[],17,0),"") ->  | S186: =IFERROR(VLOOKUP(B186,Baza[],18,0),"") ->  | T186: =IFERROR(IF((VLOOKUP(B186,Baza[],19,0)+VLOOKUP(B186,Baza[],20,0))=0,"-",VLOOKUP(B186,Baza[],19,0)+VLOOKUP(B186,Baza[],20,0)),"") ->  | U186: =IFERROR(IF(VLOOKUP(B186,Baza[],21,0)=0,"-",VLOOKUP(B186,Baza[],21,0)),"") ->  | V186: =IFERROR(VLOOKUP(B186,Baza[],22,0),"") ->  | W186: =IFERROR(VLOOKUP(B186,Baza[],23,0),"") ->  | X186: =IFERROR(VLOOKUP(B186,Baza[],24,0),"") ->  | Y186: =IFERROR(IF(VLOOKUP(B186,Baza[],25,0)=0,"-",VLOOKUP(B186,Baza[],25,0)),"") ->  | Z186: =IFERROR(IF(VLOOKUP(B186,Baza[],26,0)=0,"-",VLOOKUP(B186,Baza[],26,0)),"") ->  | AA186: =IFERROR(VLOOKUP(B186,Baza[],27,0),"") ->  | AB186: =IFERROR(VLOOKUP(B186,Baza[],28,0),"") ->  | AC186: =IF(TOT[[#This Row],[Profit]]="","#Н/Д",SUM($AA$85:AA186)) -> #Н/Д | AD186: =IF(TOT[[#This Row],[Grafik]]="#Н/Д",FALSE,TRUE) -> FALSE
A187: 102 | C187: =IFERROR(VLOOKUP(B187,Baza[],2,0),"") ->  | D187: =IF( TOT[[#This Row],[NN]]="","",TEXT( TOT[[#This Row],[Start]],"ч:мм")&" "&TOT[[#This Row],[V]]& TOT[[#This Row],[B]]&" "&"["& TOT[[#This Row],[Room]]&"] "& TOT[[#This Row],[Name]]) ->  | E187: =TOT[[#This Row],[V]]& TOT[[#This Row],[B]] ->  | F187: =IFERROR(VLOOKUP(B187,Baza[],3,0),"") ->  | G187: =IFERROR(VLOOKUP(B187,Baza[],4,0),"") ->  | H187: =IFERROR(VLOOKUP(B187,Baza[],5,0),"") ->  | I187: =IFERROR(VLOOKUP(B187,Baza[],6,0),"") ->  | J187: =IFERROR(VLOOKUP(B187,Baza[],7,0),"") ->  | K187: =IFERROR(VLOOKUP(B187,Baza[],8,0),"") ->  | L187: =IFERROR(VLOOKUP(B187,Baza[],9,0),"") ->  | M187: =IFERROR(VLOOKUP(B187,Baza[],10,0),"") ->  | N187: =IFERROR(VLOOKUP(B187,Baza[],12,0),"") ->  | O187: =IFERROR(VLOOKUP(B187,Baza[],14,0),"") ->  | P187: =IFERROR(VLOOKUP(B187,Baza[],15,0),"") ->  | Q187: =IFERROR(VLOOKUP(B187,Baza[],16,0),"") ->  | R187: =IFERROR(VLOOKUP(B187,Baza[],17,0),"") ->  | S187: =IFERROR(VLOOKUP(B187,Baza[],18,0),"") ->  | T187: =IFERROR(IF((VLOOKUP(B187,Baza[],19,0)+VLOOKUP(B187,Baza[],20,0))=0,"-",VLOOKUP(B187,Baza[],19,0)+VLOOKUP(B187,Baza[],20,0)),"") ->  | U187: =IFERROR(IF(VLOOKUP(B187,Baza[],21,0)=0,"-",VLOOKUP(B187,Baza[],21,0)),"") ->  | V187: =IFERROR(VLOOKUP(B187,Baza[],22,0),"") ->  | W187: =IFERROR(VLOOKUP(B187,Baza[],23,0),"") ->  | X187: =IFERROR(VLOOKUP(B187,Baza[],24,0),"") ->  | Y187: =IFERROR(IF(VLOOKUP(B187,Baza[],25,0)=0,"-",VLOOKUP(B187,Baza[],25,0)),"") ->  | Z187: =IFERROR(IF(VLOOKUP(B187,Baza[],26,0)=0,"-",VLOOKUP(B187,Baza[],26,0)),"") ->  | AA187: =IFERROR(VLOOKUP(B187,Baza[],27,0),"") ->  | AB187: =IFERROR(VLOOKUP(B187,Baza[],28,0),"") ->  | AC187: =IF(TOT[[#This Row],[Profit]]="","#Н/Д",SUM($AA$85:AA187)) -> #Н/Д | AD187: =IF(TOT[[#This Row],[Grafik]]="#Н/Д",FALSE,TRUE) -> FALSE
A188: 103 | C188: =IFERROR(VLOOKUP(B188,Baza[],2,0),"") ->  | D188: =IF( TOT[[#This Row],[NN]]="","",TEXT( TOT[[#This Row],[Start]],"ч:мм")&" "&TOT[[#This Row],[V]]& TOT[[#This Row],[B]]&" "&"["& TOT[[#This Row],[Room]]&"] "& TOT[[#This Row],[Name]]) ->  | E188: =TOT[[#This Row],[V]]& TOT[[#This Row],[B]] ->  | F188: =IFERROR(VLOOKUP(B188,Baza[],3,0),"") ->  | G188: =IFERROR(VLOOKUP(B188,Baza[],4,0),"") ->  | H188: =IFERROR(VLOOKUP(B188,Baza[],5,0),"") ->  | I188: =IFERROR(VLOOKUP(B188,Baza[],6,0),"") ->  | J188: =IFERROR(VLOOKUP(B188,Baza[],7,0),"") ->  | K188: =IFERROR(VLOOKUP(B188,Baza[],8,0),"") ->  | L188: =IFERROR(VLOOKUP(B188,Baza[],9,0),"") ->  | M188: =IFERROR(VLOOKUP(B188,Baza[],10,0),"") ->  | N188: =IFERROR(VLOOKUP(B188,Baza[],12,0),"") ->  | O188: =IFERROR(VLOOKUP(B188,Baza[],14,0),"") ->  | P188: =IFERROR(VLOOKUP(B188,Baza[],15,0),"") ->  | Q188: =IFERROR(VLOOKUP(B188,Baza[],16,0),"") ->  | R188: =IFERROR(VLOOKUP(B188,Baza[],17,0),"") ->  | S188: =IFERROR(VLOOKUP(B188,Baza[],18,0),"") ->  | T188: =IFERROR(IF((VLOOKUP(B188,Baza[],19,0)+VLOOKUP(B188,Baza[],20,0))=0,"-",VLOOKUP(B188,Baza[],19,0)+VLOOKUP(B188,Baza[],20,0)),"") ->  | U188: =IFERROR(IF(VLOOKUP(B188,Baza[],21,0)=0,"-",VLOOKUP(B188,Baza[],21,0)),"") ->  | V188: =IFERROR(VLOOKUP(B188,Baza[],22,0),"") ->  | W188: =IFERROR(VLOOKUP(B188,Baza[],23,0),"") ->  | X188: =IFERROR(VLOOKUP(B188,Baza[],24,0),"") ->  | Y188: =IFERROR(IF(VLOOKUP(B188,Baza[],25,0)=0,"-",VLOOKUP(B188,Baza[],25,0)),"") ->  | Z188: =IFERROR(IF(VLOOKUP(B188,Baza[],26,0)=0,"-",VLOOKUP(B188,Baza[],26,0)),"") ->  | AA188: =IFERROR(VLOOKUP(B188,Baza[],27,0),"") ->  | AB188: =IFERROR(VLOOKUP(B188,Baza[],28,0),"") ->  | AC188: =IF(TOT[[#This Row],[Profit]]="","#Н/Д",SUM($AA$85:AA188)) -> #Н/Д | AD188: =IF(TOT[[#This Row],[Grafik]]="#Н/Д",FALSE,TRUE) -> FALSE
A189: 104 | C189: =IFERROR(VLOOKUP(B189,Baza[],2,0),"") ->  | D189: =IF( TOT[[#This Row],[NN]]="","",TEXT( TOT[[#This Row],[Start]],"ч:мм")&" "&TOT[[#This Row],[V]]& TOT[[#This Row],[B]]&" "&"["& TOT[[#This Row],[Room]]&"] "& TOT[[#This Row],[Name]]) ->  | E189: =TOT[[#This Row],[V]]& TOT[[#This Row],[B]] ->  | F189: =IFERROR(VLOOKUP(B189,Baza[],3,0),"") ->  | G189: =IFERROR(VLOOKUP(B189,Baza[],4,0),"") ->  | H189: =IFERROR(VLOOKUP(B189,Baza[],5,0),"") ->  | I189: =IFERROR(VLOOKUP(B189,Baza[],6,0),"") ->  | J189: =IFERROR(VLOOKUP(B189,Baza[],7,0),"") ->  | K189: =IFERROR(VLOOKUP(B189,Baza[],8,0),"") ->  | L189: =IFERROR(VLOOKUP(B189,Baza[],9,0),"") ->  | M189: =IFERROR(VLOOKUP(B189,Baza[],10,0),"") ->  | N189: =IFERROR(VLOOKUP(B189,Baza[],12,0),"") ->  | O189: =IFERROR(VLOOKUP(B189,Baza[],14,0),"") ->  | P189: =IFERROR(VLOOKUP(B189,Baza[],15,0),"") ->  | Q189: =IFERROR(VLOOKUP(B189,Baza[],16,0),"") ->  | R189: =IFERROR(VLOOKUP(B189,Baza[],17,0),"") ->  | S189: =IFERROR(VLOOKUP(B189,Baza[],18,0),"") ->  | T189: =IFERROR(IF((VLOOKUP(B189,Baza[],19,0)+VLOOKUP(B189,Baza[],20,0))=0,"-",VLOOKUP(B189,Baza[],19,0)+VLOOKUP(B189,Baza[],20,0)),"") ->  | U189: =IFERROR(IF(VLOOKUP(B189,Baza[],21,0)=0,"-",VLOOKUP(B189,Baza[],21,0)),"") ->  | V189: =IFERROR(VLOOKUP(B189,Baza[],22,0),"") ->  | W189: =IFERROR(VLOOKUP(B189,Baza[],23,0),"") ->  | X189: =IFERROR(VLOOKUP(B189,Baza[],24,0),"") ->  | Y189: =IFERROR(IF(VLOOKUP(B189,Baza[],25,0)=0,"-",VLOOKUP(B189,Baza[],25,0)),"") ->  | Z189: =IFERROR(IF(VLOOKUP(B189,Baza[],26,0)=0,"-",VLOOKUP(B189,Baza[],26,0)),"") ->  | AA189: =IFERROR(VLOOKUP(B189,Baza[],27,0),"") ->  | AB189: =IFERROR(VLOOKUP(B189,Baza[],28,0),"") ->  | AC189: =IF(TOT[[#This Row],[Profit]]="","#Н/Д",SUM($AA$85:AA189)) -> #Н/Д | AD189: =IF(TOT[[#This Row],[Grafik]]="#Н/Д",FALSE,TRUE) -> FALSE
A190: 105 | C190: =IFERROR(VLOOKUP(B190,Baza[],2,0),"") ->  | D190: =IF( TOT[[#This Row],[NN]]="","",TEXT( TOT[[#This Row],[Start]],"ч:мм")&" "&TOT[[#This Row],[V]]& TOT[[#This Row],[B]]&" "&"["& TOT[[#This Row],[Room]]&"] "& TOT[[#This Row],[Name]]) ->  | E190: =TOT[[#This Row],[V]]& TOT[[#This Row],[B]] ->  | F190: =IFERROR(VLOOKUP(B190,Baza[],3,0),"") ->  | G190: =IFERROR(VLOOKUP(B190,Baza[],4,0),"") ->  | H190: =IFERROR(VLOOKUP(B190,Baza[],5,0),"") ->  | I190: =IFERROR(VLOOKUP(B190,Baza[],6,0),"") ->  | J190: =IFERROR(VLOOKUP(B190,Baza[],7,0),"") ->  | K190: =IFERROR(VLOOKUP(B190,Baza[],8,0),"") ->  | L190: =IFERROR(VLOOKUP(B190,Baza[],9,0),"") ->  | M190: =IFERROR(VLOOKUP(B190,Baza[],10,0),"") ->  | N190: =IFERROR(VLOOKUP(B190,Baza[],12,0),"") ->  | O190: =IFERROR(VLOOKUP(B190,Baza[],14,0),"") ->  | P190: =IFERROR(VLOOKUP(B190,Baza[],15,0),"") ->  | Q190: =IFERROR(VLOOKUP(B190,Baza[],16,0),"") ->  | R190: =IFERROR(VLOOKUP(B190,Baza[],17,0),"") ->  | S190: =IFERROR(VLOOKUP(B190,Baza[],18,0),"") ->  | T190: =IFERROR(IF((VLOOKUP(B190,Baza[],19,0)+VLOOKUP(B190,Baza[],20,0))=0,"-",VLOOKUP(B190,Baza[],19,0)+VLOOKUP(B190,Baza[],20,0)),"") ->  | U190: =IFERROR(IF(VLOOKUP(B190,Baza[],21,0)=0,"-",VLOOKUP(B190,Baza[],21,0)),"") ->  | V190: =IFERROR(VLOOKUP(B190,Baza[],22,0),"") ->  | W190: =IFERROR(VLOOKUP(B190,Baza[],23,0),"") ->  | X190: =IFERROR(VLOOKUP(B190,Baza[],24,0),"") ->  | Y190: =IFERROR(IF(VLOOKUP(B190,Baza[],25,0)=0,"-",VLOOKUP(B190,Baza[],25,0)),"") ->  | Z190: =IFERROR(IF(VLOOKUP(B190,Baza[],26,0)=0,"-",VLOOKUP(B190,Baza[],26,0)),"") ->  | AA190: =IFERROR(VLOOKUP(B190,Baza[],27,0),"") ->  | AB190: =IFERROR(VLOOKUP(B190,Baza[],28,0),"") ->  | AC190: =IF(TOT[[#This Row],[Profit]]="","#Н/Д",SUM($AA$85:AA190)) -> #Н/Д | AD190: =IF(TOT[[#This Row],[Grafik]]="#Н/Д",FALSE,TRUE) -> FALSE
A191: 106 | C191: =IFERROR(VLOOKUP(B191,Baza[],2,0),"") ->  | D191: =IF( TOT[[#This Row],[NN]]="","",TEXT( TOT[[#This Row],[Start]],"ч:мм")&" "&TOT[[#This Row],[V]]& TOT[[#This Row],[B]]&" "&"["& TOT[[#This Row],[Room]]&"] "& TOT[[#This Row],[Name]]) ->  | E191: =TOT[[#This Row],[V]]& TOT[[#This Row],[B]] ->  | F191: =IFERROR(VLOOKUP(B191,Baza[],3,0),"") ->  | G191: =IFERROR(VLOOKUP(B191,Baza[],4,0),"") ->  | H191: =IFERROR(VLOOKUP(B191,Baza[],5,0),"") ->  | I191: =IFERROR(VLOOKUP(B191,Baza[],6,0),"") ->  | J191: =IFERROR(VLOOKUP(B191,Baza[],7,0),"") ->  | K191: =IFERROR(VLOOKUP(B191,Baza[],8,0),"") ->  | L191: =IFERROR(VLOOKUP(B191,Baza[],9,0),"") ->  | M191: =IFERROR(VLOOKUP(B191,Baza[],10,0),"") ->  | N191: =IFERROR(VLOOKUP(B191,Baza[],12,0),"") ->  | O191: =IFERROR(VLOOKUP(B191,Baza[],14,0),"") ->  | P191: =IFERROR(VLOOKUP(B191,Baza[],15,0),"") ->  | Q191: =IFERROR(VLOOKUP(B191,Baza[],16,0),"") ->  | R191: =IFERROR(VLOOKUP(B191,Baza[],17,0),"") ->  | S191: =IFERROR(VLOOKUP(B191,Baza[],18,0),"") ->  | T191: =IFERROR(IF((VLOOKUP(B191,Baza[],19,0)+VLOOKUP(B191,Baza[],20,0))=0,"-",VLOOKUP(B191,Baza[],19,0)+VLOOKUP(B191,Baza[],20,0)),"") ->  | U191: =IFERROR(IF(VLOOKUP(B191,Baza[],21,0)=0,"-",VLOOKUP(B191,Baza[],21,0)),"") ->  | V191: =IFERROR(VLOOKUP(B191,Baza[],22,0),"") ->  | W191: =IFERROR(VLOOKUP(B191,Baza[],23,0),"") ->  | X191: =IFERROR(VLOOKUP(B191,Baza[],24,0),"") ->  | Y191: =IFERROR(IF(VLOOKUP(B191,Baza[],25,0)=0,"-",VLOOKUP(B191,Baza[],25,0)),"") ->  | Z191: =IFERROR(IF(VLOOKUP(B191,Baza[],26,0)=0,"-",VLOOKUP(B191,Baza[],26,0)),"") ->  | AA191: =IFERROR(VLOOKUP(B191,Baza[],27,0),"") ->  | AB191: =IFERROR(VLOOKUP(B191,Baza[],28,0),"") ->  | AC191: =IF(TOT[[#This Row],[Profit]]="","#Н/Д",SUM($AA$85:AA191)) -> #Н/Д | AD191: =IF(TOT[[#This Row],[Grafik]]="#Н/Д",FALSE,TRUE) -> FALSE
A192: 107 | C192: =IFERROR(VLOOKUP(B192,Baza[],2,0),"") ->  | D192: =IF( TOT[[#This Row],[NN]]="","",TEXT( TOT[[#This Row],[Start]],"ч:мм")&" "&TOT[[#This Row],[V]]& TOT[[#This Row],[B]]&" "&"["& TOT[[#This Row],[Room]]&"] "& TOT[[#This Row],[Name]]) ->  | E192: =TOT[[#This Row],[V]]& TOT[[#This Row],[B]] ->  | F192: =IFERROR(VLOOKUP(B192,Baza[],3,0),"") ->  | G192: =IFERROR(VLOOKUP(B192,Baza[],4,0),"") ->  | H192: =IFERROR(VLOOKUP(B192,Baza[],5,0),"") ->  | I192: =IFERROR(VLOOKUP(B192,Baza[],6,0),"") ->  | J192: =IFERROR(VLOOKUP(B192,Baza[],7,0),"") ->  | K192: =IFERROR(VLOOKUP(B192,Baza[],8,0),"") ->  | L192: =IFERROR(VLOOKUP(B192,Baza[],9,0),"") ->  | M192: =IFERROR(VLOOKUP(B192,Baza[],10,0),"") ->  | N192: =IFERROR(VLOOKUP(B192,Baza[],12,0),"") ->  | O192: =IFERROR(VLOOKUP(B192,Baza[],14,0),"") ->  | P192: =IFERROR(VLOOKUP(B192,Baza[],15,0),"") ->  | Q192: =IFERROR(VLOOKUP(B192,Baza[],16,0),"") ->  | R192: =IFERROR(VLOOKUP(B192,Baza[],17,0),"") ->  | S192: =IFERROR(VLOOKUP(B192,Baza[],18,0),"") ->  | T192: =IFERROR(IF((VLOOKUP(B192,Baza[],19,0)+VLOOKUP(B192,Baza[],20,0))=0,"-",VLOOKUP(B192,Baza[],19,0)+VLOOKUP(B192,Baza[],20,0)),"") ->  | U192: =IFERROR(IF(VLOOKUP(B192,Baza[],21,0)=0,"-",VLOOKUP(B192,Baza[],21,0)),"") ->  | V192: =IFERROR(VLOOKUP(B192,Baza[],22,0),"") ->  | W192: =IFERROR(VLOOKUP(B192,Baza[],23,0),"") ->  | X192: =IFERROR(VLOOKUP(B192,Baza[],24,0),"") ->  | Y192: =IFERROR(IF(VLOOKUP(B192,Baza[],25,0)=0,"-",VLOOKUP(B192,Baza[],25,0)),"") ->  | Z192: =IFERROR(IF(VLOOKUP(B192,Baza[],26,0)=0,"-",VLOOKUP(B192,Baza[],26,0)),"") ->  | AA192: =IFERROR(VLOOKUP(B192,Baza[],27,0),"") ->  | AB192: =IFERROR(VLOOKUP(B192,Baza[],28,0),"") ->  | AC192: =IF(TOT[[#This Row],[Profit]]="","#Н/Д",SUM($AA$85:AA192)) -> #Н/Д | AD192: =IF(TOT[[#This Row],[Grafik]]="#Н/Д",FALSE,TRUE) -> FALSE
A193: 108 | C193: =IFERROR(VLOOKUP(B193,Baza[],2,0),"") ->  | D193: =IF( TOT[[#This Row],[NN]]="","",TEXT( TOT[[#This Row],[Start]],"ч:мм")&" "&TOT[[#This Row],[V]]& TOT[[#This Row],[B]]&" "&"["& TOT[[#This Row],[Room]]&"] "& TOT[[#This Row],[Name]]) ->  | E193: =TOT[[#This Row],[V]]& TOT[[#This Row],[B]] ->  | F193: =IFERROR(VLOOKUP(B193,Baza[],3,0),"") ->  | G193: =IFERROR(VLOOKUP(B193,Baza[],4,0),"") ->  | H193: =IFERROR(VLOOKUP(B193,Baza[],5,0),"") ->  | I193: =IFERROR(VLOOKUP(B193,Baza[],6,0),"") ->  | J193: =IFERROR(VLOOKUP(B193,Baza[],7,0),"") ->  | K193: =IFERROR(VLOOKUP(B193,Baza[],8,0),"") ->  | L193: =IFERROR(VLOOKUP(B193,Baza[],9,0),"") ->  | M193: =IFERROR(VLOOKUP(B193,Baza[],10,0),"") ->  | N193: =IFERROR(VLOOKUP(B193,Baza[],12,0),"") ->  | O193: =IFERROR(VLOOKUP(B193,Baza[],14,0),"") ->  | P193: =IFERROR(VLOOKUP(B193,Baza[],15,0),"") ->  | Q193: =IFERROR(VLOOKUP(B193,Baza[],16,0),"") ->  | R193: =IFERROR(VLOOKUP(B193,Baza[],17,0),"") ->  | S193: =IFERROR(VLOOKUP(B193,Baza[],18,0),"") ->  | T193: =IFERROR(IF((VLOOKUP(B193,Baza[],19,0)+VLOOKUP(B193,Baza[],20,0))=0,"-",VLOOKUP(B193,Baza[],19,0)+VLOOKUP(B193,Baza[],20,0)),"") ->  | U193: =IFERROR(IF(VLOOKUP(B193,Baza[],21,0)=0,"-",VLOOKUP(B193,Baza[],21,0)),"") ->  | V193: =IFERROR(VLOOKUP(B193,Baza[],22,0),"") ->  | W193: =IFERROR(VLOOKUP(B193,Baza[],23,0),"") ->  | X193: =IFERROR(VLOOKUP(B193,Baza[],24,0),"") ->  | Y193: =IFERROR(IF(VLOOKUP(B193,Baza[],25,0)=0,"-",VLOOKUP(B193,Baza[],25,0)),"") ->  | Z193: =IFERROR(IF(VLOOKUP(B193,Baza[],26,0)=0,"-",VLOOKUP(B193,Baza[],26,0)),"") ->  | AA193: =IFERROR(VLOOKUP(B193,Baza[],27,0),"") ->  | AB193: =IFERROR(VLOOKUP(B193,Baza[],28,0),"") ->  | AC193: =IF(TOT[[#This Row],[Profit]]="","#Н/Д",SUM($AA$85:AA193)) -> #Н/Д | AD193: =IF(TOT[[#This Row],[Grafik]]="#Н/Д",FALSE,TRUE) -> FALSE
A194: 109 | C194: =IFERROR(VLOOKUP(B194,Baza[],2,0),"") ->  | D194: =IF( TOT[[#This Row],[NN]]="","",TEXT( TOT[[#This Row],[Start]],"ч:мм")&" "&TOT[[#This Row],[V]]& TOT[[#This Row],[B]]&" "&"["& TOT[[#This Row],[Room]]&"] "& TOT[[#This Row],[Name]]) ->  | E194: =TOT[[#This Row],[V]]& TOT[[#This Row],[B]] ->  | F194: =IFERROR(VLOOKUP(B194,Baza[],3,0),"") ->  | G194: =IFERROR(VLOOKUP(B194,Baza[],4,0),"") ->  | H194: =IFERROR(VLOOKUP(B194,Baza[],5,0),"") ->  | I194: =IFERROR(VLOOKUP(B194,Baza[],6,0),"") ->  | J194: =IFERROR(VLOOKUP(B194,Baza[],7,0),"") ->  | K194: =IFERROR(VLOOKUP(B194,Baza[],8,0),"") ->  | L194: =IFERROR(VLOOKUP(B194,Baza[],9,0),"") ->  | M194: =IFERROR(VLOOKUP(B194,Baza[],10,0),"") ->  | N194: =IFERROR(VLOOKUP(B194,Baza[],12,0),"") ->  | O194: =IFERROR(VLOOKUP(B194,Baza[],14,0),"") ->  | P194: =IFERROR(VLOOKUP(B194,Baza[],15,0),"") ->  | Q194: =IFERROR(VLOOKUP(B194,Baza[],16,0),"") ->  | R194: =IFERROR(VLOOKUP(B194,Baza[],17,0),"") ->  | S194: =IFERROR(VLOOKUP(B194,Baza[],18,0),"") ->  | T194: =IFERROR(IF((VLOOKUP(B194,Baza[],19,0)+VLOOKUP(B194,Baza[],20,0))=0,"-",VLOOKUP(B194,Baza[],19,0)+VLOOKUP(B194,Baza[],20,0)),"") ->  | U194: =IFERROR(IF(VLOOKUP(B194,Baza[],21,0)=0,"-",VLOOKUP(B194,Baza[],21,0)),"") ->  | V194: =IFERROR(VLOOKUP(B194,Baza[],22,0),"") ->  | W194: =IFERROR(VLOOKUP(B194,Baza[],23,0),"") ->  | X194: =IFERROR(VLOOKUP(B194,Baza[],24,0),"") ->  | Y194: =IFERROR(IF(VLOOKUP(B194,Baza[],25,0)=0,"-",VLOOKUP(B194,Baza[],25,0)),"") ->  | Z194: =IFERROR(IF(VLOOKUP(B194,Baza[],26,0)=0,"-",VLOOKUP(B194,Baza[],26,0)),"") ->  | AA194: =IFERROR(VLOOKUP(B194,Baza[],27,0),"") ->  | AB194: =IFERROR(VLOOKUP(B194,Baza[],28,0),"") ->  | AC194: =IF(TOT[[#This Row],[Profit]]="","#Н/Д",SUM($AA$85:AA194)) -> #Н/Д | AD194: =IF(TOT[[#This Row],[Grafik]]="#Н/Д",FALSE,TRUE) -> FALSE
A195: 110 | C195: =IFERROR(VLOOKUP(B195,Baza[],2,0),"") ->  | D195: =IF( TOT[[#This Row],[NN]]="","",TEXT( TOT[[#This Row],[Start]],"ч:мм")&" "&TOT[[#This Row],[V]]& TOT[[#This Row],[B]]&" "&"["& TOT[[#This Row],[Room]]&"] "& TOT[[#This Row],[Name]]) ->  | E195: =TOT[[#This Row],[V]]& TOT[[#This Row],[B]] ->  | F195: =IFERROR(VLOOKUP(B195,Baza[],3,0),"") ->  | G195: =IFERROR(VLOOKUP(B195,Baza[],4,0),"") ->  | H195: =IFERROR(VLOOKUP(B195,Baza[],5,0),"") ->  | I195: =IFERROR(VLOOKUP(B195,Baza[],6,0),"") ->  | J195: =IFERROR(VLOOKUP(B195,Baza[],7,0),"") ->  | K195: =IFERROR(VLOOKUP(B195,Baza[],8,0),"") ->  | L195: =IFERROR(VLOOKUP(B195,Baza[],9,0),"") ->  | M195: =IFERROR(VLOOKUP(B195,Baza[],10,0),"") ->  | N195: =IFERROR(VLOOKUP(B195,Baza[],12,0),"") ->  | O195: =IFERROR(VLOOKUP(B195,Baza[],14,0),"") ->  | P195: =IFERROR(VLOOKUP(B195,Baza[],15,0),"") ->  | Q195: =IFERROR(VLOOKUP(B195,Baza[],16,0),"") ->  | R195: =IFERROR(VLOOKUP(B195,Baza[],17,0),"") ->  | S195: =IFERROR(VLOOKUP(B195,Baza[],18,0),"") ->  | T195: =IFERROR(IF((VLOOKUP(B195,Baza[],19,0)+VLOOKUP(B195,Baza[],20,0))=0,"-",VLOOKUP(B195,Baza[],19,0)+VLOOKUP(B195,Baza[],20,0)),"") ->  | U195: =IFERROR(IF(VLOOKUP(B195,Baza[],21,0)=0,"-",VLOOKUP(B195,Baza[],21,0)),"") ->  | V195: =IFERROR(VLOOKUP(B195,Baza[],22,0),"") ->  | W195: =IFERROR(VLOOKUP(B195,Baza[],23,0),"") ->  | X195: =IFERROR(VLOOKUP(B195,Baza[],24,0),"") ->  | Y195: =IFERROR(IF(VLOOKUP(B195,Baza[],25,0)=0,"-",VLOOKUP(B195,Baza[],25,0)),"") ->  | Z195: =IFERROR(IF(VLOOKUP(B195,Baza[],26,0)=0,"-",VLOOKUP(B195,Baza[],26,0)),"") ->  | AA195: =IFERROR(VLOOKUP(B195,Baza[],27,0),"") ->  | AB195: =IFERROR(VLOOKUP(B195,Baza[],28,0),"") ->  | AC195: =IF(TOT[[#This Row],[Profit]]="","#Н/Д",SUM($AA$85:AA195)) -> #Н/Д | AD195: =IF(TOT[[#This Row],[Grafik]]="#Н/Д",FALSE,TRUE) -> FALSE
A196: 111 | C196: =IFERROR(VLOOKUP(B196,Baza[],2,0),"") ->  | D196: =IF( TOT[[#This Row],[NN]]="","",TEXT( TOT[[#This Row],[Start]],"ч:мм")&" "&TOT[[#This Row],[V]]& TOT[[#This Row],[B]]&" "&"["& TOT[[#This Row],[Room]]&"] "& TOT[[#This Row],[Name]]) ->  | E196: =TOT[[#This Row],[V]]& TOT[[#This Row],[B]] ->  | F196: =IFERROR(VLOOKUP(B196,Baza[],3,0),"") ->  | G196: =IFERROR(VLOOKUP(B196,Baza[],4,0),"") ->  | H196: =IFERROR(VLOOKUP(B196,Baza[],5,0),"") ->  | I196: =IFERROR(VLOOKUP(B196,Baza[],6,0),"") ->  | J196: =IFERROR(VLOOKUP(B196,Baza[],7,0),"") ->  | K196: =IFERROR(VLOOKUP(B196,Baza[],8,0),"") ->  | L196: =IFERROR(VLOOKUP(B196,Baza[],9,0),"") ->  | M196: =IFERROR(VLOOKUP(B196,Baza[],10,0),"") ->  | N196: =IFERROR(VLOOKUP(B196,Baza[],12,0),"") ->  | O196: =IFERROR(VLOOKUP(B196,Baza[],14,0),"") ->  | P196: =IFERROR(VLOOKUP(B196,Baza[],15,0),"") ->  | Q196: =IFERROR(VLOOKUP(B196,Baza[],16,0),"") ->  | R196: =IFERROR(VLOOKUP(B196,Baza[],17,0),"") ->  | S196: =IFERROR(VLOOKUP(B196,Baza[],18,0),"") ->  | T196: =IFERROR(IF((VLOOKUP(B196,Baza[],19,0)+VLOOKUP(B196,Baza[],20,0))=0,"-",VLOOKUP(B196,Baza[],19,0)+VLOOKUP(B196,Baza[],20,0)),"") ->  | U196: =IFERROR(IF(VLOOKUP(B196,Baza[],21,0)=0,"-",VLOOKUP(B196,Baza[],21,0)),"") ->  | V196: =IFERROR(VLOOKUP(B196,Baza[],22,0),"") ->  | W196: =IFERROR(VLOOKUP(B196,Baza[],23,0),"") ->  | X196: =IFERROR(VLOOKUP(B196,Baza[],24,0),"") ->  | Y196: =IFERROR(IF(VLOOKUP(B196,Baza[],25,0)=0,"-",VLOOKUP(B196,Baza[],25,0)),"") ->  | Z196: =IFERROR(IF(VLOOKUP(B196,Baza[],26,0)=0,"-",VLOOKUP(B196,Baza[],26,0)),"") ->  | AA196: =IFERROR(VLOOKUP(B196,Baza[],27,0),"") ->  | AB196: =IFERROR(VLOOKUP(B196,Baza[],28,0),"") ->  | AC196: =IF(TOT[[#This Row],[Profit]]="","#Н/Д",SUM($AA$85:AA196)) -> #Н/Д | AD196: =IF(TOT[[#This Row],[Grafik]]="#Н/Д",FALSE,TRUE) -> FALSE
A197: 112 | C197: =IFERROR(VLOOKUP(B197,Baza[],2,0),"") ->  | D197: =IF( TOT[[#This Row],[NN]]="","",TEXT( TOT[[#This Row],[Start]],"ч:мм")&" "&TOT[[#This Row],[V]]& TOT[[#This Row],[B]]&" "&"["& TOT[[#This Row],[Room]]&"] "& TOT[[#This Row],[Name]]) ->  | E197: =TOT[[#This Row],[V]]& TOT[[#This Row],[B]] ->  | F197: =IFERROR(VLOOKUP(B197,Baza[],3,0),"") ->  | G197: =IFERROR(VLOOKUP(B197,Baza[],4,0),"") ->  | H197: =IFERROR(VLOOKUP(B197,Baza[],5,0),"") ->  | I197: =IFERROR(VLOOKUP(B197,Baza[],6,0),"") ->  | J197: =IFERROR(VLOOKUP(B197,Baza[],7,0),"") ->  | K197: =IFERROR(VLOOKUP(B197,Baza[],8,0),"") ->  | L197: =IFERROR(VLOOKUP(B197,Baza[],9,0),"") ->  | M197: =IFERROR(VLOOKUP(B197,Baza[],10,0),"") ->  | N197: =IFERROR(VLOOKUP(B197,Baza[],12,0),"") ->  | O197: =IFERROR(VLOOKUP(B197,Baza[],14,0),"") ->  | P197: =IFERROR(VLOOKUP(B197,Baza[],15,0),"") ->  | Q197: =IFERROR(VLOOKUP(B197,Baza[],16,0),"") ->  | R197: =IFERROR(VLOOKUP(B197,Baza[],17,0),"") ->  | S197: =IFERROR(VLOOKUP(B197,Baza[],18,0),"") ->  | T197: =IFERROR(IF((VLOOKUP(B197,Baza[],19,0)+VLOOKUP(B197,Baza[],20,0))=0,"-",VLOOKUP(B197,Baza[],19,0)+VLOOKUP(B197,Baza[],20,0)),"") ->  | U197: =IFERROR(IF(VLOOKUP(B197,Baza[],21,0)=0,"-",VLOOKUP(B197,Baza[],21,0)),"") ->  | V197: =IFERROR(VLOOKUP(B197,Baza[],22,0),"") ->  | W197: =IFERROR(VLOOKUP(B197,Baza[],23,0),"") ->  | X197: =IFERROR(VLOOKUP(B197,Baza[],24,0),"") ->  | Y197: =IFERROR(IF(VLOOKUP(B197,Baza[],25,0)=0,"-",VLOOKUP(B197,Baza[],25,0)),"") ->  | Z197: =IFERROR(IF(VLOOKUP(B197,Baza[],26,0)=0,"-",VLOOKUP(B197,Baza[],26,0)),"") ->  | AA197: =IFERROR(VLOOKUP(B197,Baza[],27,0),"") ->  | AB197: =IFERROR(VLOOKUP(B197,Baza[],28,0),"") ->  | AC197: =IF(TOT[[#This Row],[Profit]]="","#Н/Д",SUM($AA$85:AA197)) -> #Н/Д | AD197: =IF(TOT[[#This Row],[Grafik]]="#Н/Д",FALSE,TRUE) -> FALSE
A198: 113 | C198: =IFERROR(VLOOKUP(B198,Baza[],2,0),"") ->  | D198: =IF( TOT[[#This Row],[NN]]="","",TEXT( TOT[[#This Row],[Start]],"ч:мм")&" "&TOT[[#This Row],[V]]& TOT[[#This Row],[B]]&" "&"["& TOT[[#This Row],[Room]]&"] "& TOT[[#This Row],[Name]]) ->  | E198: =TOT[[#This Row],[V]]& TOT[[#This Row],[B]] ->  | F198: =IFERROR(VLOOKUP(B198,Baza[],3,0),"") ->  | G198: =IFERROR(VLOOKUP(B198,Baza[],4,0),"") ->  | H198: =IFERROR(VLOOKUP(B198,Baza[],5,0),"") ->  | I198: =IFERROR(VLOOKUP(B198,Baza[],6,0),"") ->  | J198: =IFERROR(VLOOKUP(B198,Baza[],7,0),"") ->  | K198: =IFERROR(VLOOKUP(B198,Baza[],8,0),"") ->  | L198: =IFERROR(VLOOKUP(B198,Baza[],9,0),"") ->  | M198: =IFERROR(VLOOKUP(B198,Baza[],10,0),"") ->  | N198: =IFERROR(VLOOKUP(B198,Baza[],12,0),"") ->  | O198: =IFERROR(VLOOKUP(B198,Baza[],14,0),"") ->  | P198: =IFERROR(VLOOKUP(B198,Baza[],15,0),"") ->  | Q198: =IFERROR(VLOOKUP(B198,Baza[],16,0),"") ->  | R198: =IFERROR(VLOOKUP(B198,Baza[],17,0),"") ->  | S198: =IFERROR(VLOOKUP(B198,Baza[],18,0),"") ->  | T198: =IFERROR(IF((VLOOKUP(B198,Baza[],19,0)+VLOOKUP(B198,Baza[],20,0))=0,"-",VLOOKUP(B198,Baza[],19,0)+VLOOKUP(B198,Baza[],20,0)),"") ->  | U198: =IFERROR(IF(VLOOKUP(B198,Baza[],21,0)=0,"-",VLOOKUP(B198,Baza[],21,0)),"") ->  | V198: =IFERROR(VLOOKUP(B198,Baza[],22,0),"") ->  | W198: =IFERROR(VLOOKUP(B198,Baza[],23,0),"") ->  | X198: =IFERROR(VLOOKUP(B198,Baza[],24,0),"") ->  | Y198: =IFERROR(IF(VLOOKUP(B198,Baza[],25,0)=0,"-",VLOOKUP(B198,Baza[],25,0)),"") ->  | Z198: =IFERROR(IF(VLOOKUP(B198,Baza[],26,0)=0,"-",VLOOKUP(B198,Baza[],26,0)),"") ->  | AA198: =IFERROR(VLOOKUP(B198,Baza[],27,0),"") ->  | AB198: =IFERROR(VLOOKUP(B198,Baza[],28,0),"") ->  | AC198: =IF(TOT[[#This Row],[Profit]]="","#Н/Д",SUM($AA$85:AA198)) -> #Н/Д | AD198: =IF(TOT[[#This Row],[Grafik]]="#Н/Д",FALSE,TRUE) -> FALSE
A199: 114 | C199: =IFERROR(VLOOKUP(B199,Baza[],2,0),"") ->  | D199: =IF( TOT[[#This Row],[NN]]="","",TEXT( TOT[[#This Row],[Start]],"ч:мм")&" "&TOT[[#This Row],[V]]& TOT[[#This Row],[B]]&" "&"["& TOT[[#This Row],[Room]]&"] "& TOT[[#This Row],[Name]]) ->  | E199: =TOT[[#This Row],[V]]& TOT[[#This Row],[B]] ->  | F199: =IFERROR(VLOOKUP(B199,Baza[],3,0),"") ->  | G199: =IFERROR(VLOOKUP(B199,Baza[],4,0),"") ->  | H199: =IFERROR(VLOOKUP(B199,Baza[],5,0),"") ->  | I199: =IFERROR(VLOOKUP(B199,Baza[],6,0),"") ->  | J199: =IFERROR(VLOOKUP(B199,Baza[],7,0),"") ->  | K199: =IFERROR(VLOOKUP(B199,Baza[],8,0),"") ->  | L199: =IFERROR(VLOOKUP(B199,Baza[],9,0),"") ->  | M199: =IFERROR(VLOOKUP(B199,Baza[],10,0),"") ->  | N199: =IFERROR(VLOOKUP(B199,Baza[],12,0),"") ->  | O199: =IFERROR(VLOOKUP(B199,Baza[],14,0),"") ->  | P199: =IFERROR(VLOOKUP(B199,Baza[],15,0),"") ->  | Q199: =IFERROR(VLOOKUP(B199,Baza[],16,0),"") ->  | R199: =IFERROR(VLOOKUP(B199,Baza[],17,0),"") ->  | S199: =IFERROR(VLOOKUP(B199,Baza[],18,0),"") ->  | T199: =IFERROR(IF((VLOOKUP(B199,Baza[],19,0)+VLOOKUP(B199,Baza[],20,0))=0,"-",VLOOKUP(B199,Baza[],19,0)+VLOOKUP(B199,Baza[],20,0)),"") ->  | U199: =IFERROR(IF(VLOOKUP(B199,Baza[],21,0)=0,"-",VLOOKUP(B199,Baza[],21,0)),"") ->  | V199: =IFERROR(VLOOKUP(B199,Baza[],22,0),"") ->  | W199: =IFERROR(VLOOKUP(B199,Baza[],23,0),"") ->  | X199: =IFERROR(VLOOKUP(B199,Baza[],24,0),"") ->  | Y199: =IFERROR(IF(VLOOKUP(B199,Baza[],25,0)=0,"-",VLOOKUP(B199,Baza[],25,0)),"") ->  | Z199: =IFERROR(IF(VLOOKUP(B199,Baza[],26,0)=0,"-",VLOOKUP(B199,Baza[],26,0)),"") ->  | AA199: =IFERROR(VLOOKUP(B199,Baza[],27,0),"") ->  | AB199: =IFERROR(VLOOKUP(B199,Baza[],28,0),"") ->  | AC199: =IF(TOT[[#This Row],[Profit]]="","#Н/Д",SUM($AA$85:AA199)) -> #Н/Д | AD199: =IF(TOT[[#This Row],[Grafik]]="#Н/Д",FALSE,TRUE) -> FALSE
A200: 115 | C200: =IFERROR(VLOOKUP(B200,Baza[],2,0),"") ->  | D200: =IF( TOT[[#This Row],[NN]]="","",TEXT( TOT[[#This Row],[Start]],"ч:мм")&" "&TOT[[#This Row],[V]]& TOT[[#This Row],[B]]&" "&"["& TOT[[#This Row],[Room]]&"] "& TOT[[#This Row],[Name]]) ->  | E200: =TOT[[#This Row],[V]]& TOT[[#This Row],[B]] ->  | F200: =IFERROR(VLOOKUP(B200,Baza[],3,0),"") ->  | G200: =IFERROR(VLOOKUP(B200,Baza[],4,0),"") ->  | H200: =IFERROR(VLOOKUP(B200,Baza[],5,0),"") ->  | I200: =IFERROR(VLOOKUP(B200,Baza[],6,0),"") ->  | J200: =IFERROR(VLOOKUP(B200,Baza[],7,0),"") ->  | K200: =IFERROR(VLOOKUP(B200,Baza[],8,0),"") ->  | L200: =IFERROR(VLOOKUP(B200,Baza[],9,0),"") ->  | M200: =IFERROR(VLOOKUP(B200,Baza[],10,0),"") ->  | N200: =IFERROR(VLOOKUP(B200,Baza[],12,0),"") ->  | O200: =IFERROR(VLOOKUP(B200,Baza[],14,0),"") ->  | P200: =IFERROR(VLOOKUP(B200,Baza[],15,0),"") ->  | Q200: =IFERROR(VLOOKUP(B200,Baza[],16,0),"") ->  | R200: =IFERROR(VLOOKUP(B200,Baza[],17,0),"") ->  | S200: =IFERROR(VLOOKUP(B200,Baza[],18,0),"") ->  | T200: =IFERROR(IF((VLOOKUP(B200,Baza[],19,0)+VLOOKUP(B200,Baza[],20,0))=0,"-",VLOOKUP(B200,Baza[],19,0)+VLOOKUP(B200,Baza[],20,0)),"") ->  | U200: =IFERROR(IF(VLOOKUP(B200,Baza[],21,0)=0,"-",VLOOKUP(B200,Baza[],21,0)),"") ->  | V200: =IFERROR(VLOOKUP(B200,Baza[],22,0),"") ->  | W200: =IFERROR(VLOOKUP(B200,Baza[],23,0),"") ->  | X200: =IFERROR(VLOOKUP(B200,Baza[],24,0),"") ->  | Y200: =IFERROR(IF(VLOOKUP(B200,Baza[],25,0)=0,"-",VLOOKUP(B200,Baza[],25,0)),"") ->  | Z200: =IFERROR(IF(VLOOKUP(B200,Baza[],26,0)=0,"-",VLOOKUP(B200,Baza[],26,0)),"") ->  | AA200: =IFERROR(VLOOKUP(B200,Baza[],27,0),"") ->  | AB200: =IFERROR(VLOOKUP(B200,Baza[],28,0),"") ->  | AC200: =IF(TOT[[#This Row],[Profit]]="","#Н/Д",SUM($AA$85:AA200)) -> #Н/Д | AD200: =IF(TOT[[#This Row],[Grafik]]="#Н/Д",FALSE,TRUE) -> FALSE
A201: 116 | C201: =IFERROR(VLOOKUP(B201,Baza[],2,0),"") ->  | D201: =IF( TOT[[#This Row],[NN]]="","",TEXT( TOT[[#This Row],[Start]],"ч:мм")&" "&TOT[[#This Row],[V]]& TOT[[#This Row],[B]]&" "&"["& TOT[[#This Row],[Room]]&"] "& TOT[[#This Row],[Name]]) ->  | E201: =TOT[[#This Row],[V]]& TOT[[#This Row],[B]] ->  | F201: =IFERROR(VLOOKUP(B201,Baza[],3,0),"") ->  | G201: =IFERROR(VLOOKUP(B201,Baza[],4,0),"") ->  | H201: =IFERROR(VLOOKUP(B201,Baza[],5,0),"") ->  | I201: =IFERROR(VLOOKUP(B201,Baza[],6,0),"") ->  | J201: =IFERROR(VLOOKUP(B201,Baza[],7,0),"") ->  | K201: =IFERROR(VLOOKUP(B201,Baza[],8,0),"") ->  | L201: =IFERROR(VLOOKUP(B201,Baza[],9,0),"") ->  | M201: =IFERROR(VLOOKUP(B201,Baza[],10,0),"") ->  | N201: =IFERROR(VLOOKUP(B201,Baza[],12,0),"") ->  | O201: =IFERROR(VLOOKUP(B201,Baza[],14,0),"") ->  | P201: =IFERROR(VLOOKUP(B201,Baza[],15,0),"") ->  | Q201: =IFERROR(VLOOKUP(B201,Baza[],16,0),"") ->  | R201: =IFERROR(VLOOKUP(B201,Baza[],17,0),"") ->  | S201: =IFERROR(VLOOKUP(B201,Baza[],18,0),"") ->  | T201: =IFERROR(IF((VLOOKUP(B201,Baza[],19,0)+VLOOKUP(B201,Baza[],20,0))=0,"-",VLOOKUP(B201,Baza[],19,0)+VLOOKUP(B201,Baza[],20,0)),"") ->  | U201: =IFERROR(IF(VLOOKUP(B201,Baza[],21,0)=0,"-",VLOOKUP(B201,Baza[],21,0)),"") ->  | V201: =IFERROR(VLOOKUP(B201,Baza[],22,0),"") ->  | W201: =IFERROR(VLOOKUP(B201,Baza[],23,0),"") ->  | X201: =IFERROR(VLOOKUP(B201,Baza[],24,0),"") ->  | Y201: =IFERROR(IF(VLOOKUP(B201,Baza[],25,0)=0,"-",VLOOKUP(B201,Baza[],25,0)),"") ->  | Z201: =IFERROR(IF(VLOOKUP(B201,Baza[],26,0)=0,"-",VLOOKUP(B201,Baza[],26,0)),"") ->  | AA201: =IFERROR(VLOOKUP(B201,Baza[],27,0),"") ->  | AB201: =IFERROR(VLOOKUP(B201,Baza[],28,0),"") ->  | AC201: =IF(TOT[[#This Row],[Profit]]="","#Н/Д",SUM($AA$85:AA201)) -> #Н/Д | AD201: =IF(TOT[[#This Row],[Grafik]]="#Н/Д",FALSE,TRUE) -> FALSE
A202: 117 | C202: =IFERROR(VLOOKUP(B202,Baza[],2,0),"") ->  | D202: =IF( TOT[[#This Row],[NN]]="","",TEXT( TOT[[#This Row],[Start]],"ч:мм")&" "&TOT[[#This Row],[V]]& TOT[[#This Row],[B]]&" "&"["& TOT[[#This Row],[Room]]&"] "& TOT[[#This Row],[Name]]) ->  | E202: =TOT[[#This Row],[V]]& TOT[[#This Row],[B]] ->  | F202: =IFERROR(VLOOKUP(B202,Baza[],3,0),"") ->  | G202: =IFERROR(VLOOKUP(B202,Baza[],4,0),"") ->  | H202: =IFERROR(VLOOKUP(B202,Baza[],5,0),"") ->  | I202: =IFERROR(VLOOKUP(B202,Baza[],6,0),"") ->  | J202: =IFERROR(VLOOKUP(B202,Baza[],7,0),"") ->  | K202: =IFERROR(VLOOKUP(B202,Baza[],8,0),"") ->  | L202: =IFERROR(VLOOKUP(B202,Baza[],9,0),"") ->  | M202: =IFERROR(VLOOKUP(B202,Baza[],10,0),"") ->  | N202: =IFERROR(VLOOKUP(B202,Baza[],12,0),"") ->  | O202: =IFERROR(VLOOKUP(B202,Baza[],14,0),"") ->  | P202: =IFERROR(VLOOKUP(B202,Baza[],15,0),"") ->  | Q202: =IFERROR(VLOOKUP(B202,Baza[],16,0),"") ->  | R202: =IFERROR(VLOOKUP(B202,Baza[],17,0),"") ->  | S202: =IFERROR(VLOOKUP(B202,Baza[],18,0),"") ->  | T202: =IFERROR(IF((VLOOKUP(B202,Baza[],19,0)+VLOOKUP(B202,Baza[],20,0))=0,"-",VLOOKUP(B202,Baza[],19,0)+VLOOKUP(B202,Baza[],20,0)),"") ->  | U202: =IFERROR(IF(VLOOKUP(B202,Baza[],21,0)=0,"-",VLOOKUP(B202,Baza[],21,0)),"") ->  | V202: =IFERROR(VLOOKUP(B202,Baza[],22,0),"") ->  | W202: =IFERROR(VLOOKUP(B202,Baza[],23,0),"") ->  | X202: =IFERROR(VLOOKUP(B202,Baza[],24,0),"") ->  | Y202: =IFERROR(IF(VLOOKUP(B202,Baza[],25,0)=0,"-",VLOOKUP(B202,Baza[],25,0)),"") ->  | Z202: =IFERROR(IF(VLOOKUP(B202,Baza[],26,0)=0,"-",VLOOKUP(B202,Baza[],26,0)),"") ->  | AA202: =IFERROR(VLOOKUP(B202,Baza[],27,0),"") ->  | AB202: =IFERROR(VLOOKUP(B202,Baza[],28,0),"") ->  | AC202: =IF(TOT[[#This Row],[Profit]]="","#Н/Д",SUM($AA$85:AA202)) -> #Н/Д | AD202: =IF(TOT[[#This Row],[Grafik]]="#Н/Д",FALSE,TRUE) -> FALSE
A203: 118 | C203: =IFERROR(VLOOKUP(B203,Baza[],2,0),"") ->  | D203: =IF( TOT[[#This Row],[NN]]="","",TEXT( TOT[[#This Row],[Start]],"ч:мм")&" "&TOT[[#This Row],[V]]& TOT[[#This Row],[B]]&" "&"["& TOT[[#This Row],[Room]]&"] "& TOT[[#This Row],[Name]]) ->  | E203: =TOT[[#This Row],[V]]& TOT[[#This Row],[B]] ->  | F203: =IFERROR(VLOOKUP(B203,Baza[],3,0),"") ->  | G203: =IFERROR(VLOOKUP(B203,Baza[],4,0),"") ->  | H203: =IFERROR(VLOOKUP(B203,Baza[],5,0),"") ->  | I203: =IFERROR(VLOOKUP(B203,Baza[],6,0),"") ->  | J203: =IFERROR(VLOOKUP(B203,Baza[],7,0),"") ->  | K203: =IFERROR(VLOOKUP(B203,Baza[],8,0),"") ->  | L203: =IFERROR(VLOOKUP(B203,Baza[],9,0),"") ->  | M203: =IFERROR(VLOOKUP(B203,Baza[],10,0),"") ->  | N203: =IFERROR(VLOOKUP(B203,Baza[],12,0),"") ->  | O203: =IFERROR(VLOOKUP(B203,Baza[],14,0),"") ->  | P203: =IFERROR(VLOOKUP(B203,Baza[],15,0),"") ->  | Q203: =IFERROR(VLOOKUP(B203,Baza[],16,0),"") ->  | R203: =IFERROR(VLOOKUP(B203,Baza[],17,0),"") ->  | S203: =IFERROR(VLOOKUP(B203,Baza[],18,0),"") ->  | T203: =IFERROR(IF((VLOOKUP(B203,Baza[],19,0)+VLOOKUP(B203,Baza[],20,0))=0,"-",VLOOKUP(B203,Baza[],19,0)+VLOOKUP(B203,Baza[],20,0)),"") ->  | U203: =IFERROR(IF(VLOOKUP(B203,Baza[],21,0)=0,"-",VLOOKUP(B203,Baza[],21,0)),"") ->  | V203: =IFERROR(VLOOKUP(B203,Baza[],22,0),"") ->  | W203: =IFERROR(VLOOKUP(B203,Baza[],23,0),"") ->  | X203: =IFERROR(VLOOKUP(B203,Baza[],24,0),"") ->  | Y203: =IFERROR(IF(VLOOKUP(B203,Baza[],25,0)=0,"-",VLOOKUP(B203,Baza[],25,0)),"") ->  | Z203: =IFERROR(IF(VLOOKUP(B203,Baza[],26,0)=0,"-",VLOOKUP(B203,Baza[],26,0)),"") ->  | AA203: =IFERROR(VLOOKUP(B203,Baza[],27,0),"") ->  | AB203: =IFERROR(VLOOKUP(B203,Baza[],28,0),"") ->  | AC203: =IF(TOT[[#This Row],[Profit]]="","#Н/Д",SUM($AA$85:AA203)) -> #Н/Д | AD203: =IF(TOT[[#This Row],[Grafik]]="#Н/Д",FALSE,TRUE) -> FALSE
A204: 119 | C204: =IFERROR(VLOOKUP(B204,Baza[],2,0),"") ->  | D204: =IF( TOT[[#This Row],[NN]]="","",TEXT( TOT[[#This Row],[Start]],"ч:мм")&" "&TOT[[#This Row],[V]]& TOT[[#This Row],[B]]&" "&"["& TOT[[#This Row],[Room]]&"] "& TOT[[#This Row],[Name]]) ->  | E204: =TOT[[#This Row],[V]]& TOT[[#This Row],[B]] ->  | F204: =IFERROR(VLOOKUP(B204,Baza[],3,0),"") ->  | G204: =IFERROR(VLOOKUP(B204,Baza[],4,0),"") ->  | H204: =IFERROR(VLOOKUP(B204,Baza[],5,0),"") ->  | I204: =IFERROR(VLOOKUP(B204,Baza[],6,0),"") ->  | J204: =IFERROR(VLOOKUP(B204,Baza[],7,0),"") ->  | K204: =IFERROR(VLOOKUP(B204,Baza[],8,0),"") ->  | L204: =IFERROR(VLOOKUP(B204,Baza[],9,0),"") ->  | M204: =IFERROR(VLOOKUP(B204,Baza[],10,0),"") ->  | N204: =IFERROR(VLOOKUP(B204,Baza[],12,0),"") ->  | O204: =IFERROR(VLOOKUP(B204,Baza[],14,0),"") ->  | P204: =IFERROR(VLOOKUP(B204,Baza[],15,0),"") ->  | Q204: =IFERROR(VLOOKUP(B204,Baza[],16,0),"") ->  | R204: =IFERROR(VLOOKUP(B204,Baza[],17,0),"") ->  | S204: =IFERROR(VLOOKUP(B204,Baza[],18,0),"") ->  | T204: =IFERROR(IF((VLOOKUP(B204,Baza[],19,0)+VLOOKUP(B204,Baza[],20,0))=0,"-",VLOOKUP(B204,Baza[],19,0)+VLOOKUP(B204,Baza[],20,0)),"") ->  | U204: =IFERROR(IF(VLOOKUP(B204,Baza[],21,0)=0,"-",VLOOKUP(B204,Baza[],21,0)),"") ->  | V204: =IFERROR(VLOOKUP(B204,Baza[],22,0),"") ->  | W204: =IFERROR(VLOOKUP(B204,Baza[],23,0),"") ->  | X204: =IFERROR(VLOOKUP(B204,Baza[],24,0),"") ->  | Y204: =IFERROR(IF(VLOOKUP(B204,Baza[],25,0)=0,"-",VLOOKUP(B204,Baza[],25,0)),"") ->  | Z204: =IFERROR(IF(VLOOKUP(B204,Baza[],26,0)=0,"-",VLOOKUP(B204,Baza[],26,0)),"") ->  | AA204: =IFERROR(VLOOKUP(B204,Baza[],27,0),"") ->  | AB204: =IFERROR(VLOOKUP(B204,Baza[],28,0),"") ->  | AC204: =IF(TOT[[#This Row],[Profit]]="","#Н/Д",SUM($AA$85:AA204)) -> #Н/Д | AD204: =IF(TOT[[#This Row],[Grafik]]="#Н/Д",FALSE,TRUE) -> FALSE
A205: 120 | C205: =IFERROR(VLOOKUP(B205,Baza[],2,0),"") ->  | D205: =IF( TOT[[#This Row],[NN]]="","",TEXT( TOT[[#This Row],[Start]],"ч:мм")&" "&TOT[[#This Row],[V]]& TOT[[#This Row],[B]]&" "&"["& TOT[[#This Row],[Room]]&"] "& TOT[[#This Row],[Name]]) ->  | E205: =TOT[[#This Row],[V]]& TOT[[#This Row],[B]] ->  | F205: =IFERROR(VLOOKUP(B205,Baza[],3,0),"") ->  | G205: =IFERROR(VLOOKUP(B205,Baza[],4,0),"") ->  | H205: =IFERROR(VLOOKUP(B205,Baza[],5,0),"") ->  | I205: =IFERROR(VLOOKUP(B205,Baza[],6,0),"") ->  | J205: =IFERROR(VLOOKUP(B205,Baza[],7,0),"") ->  | K205: =IFERROR(VLOOKUP(B205,Baza[],8,0),"") ->  | L205: =IFERROR(VLOOKUP(B205,Baza[],9,0),"") ->  | M205: =IFERROR(VLOOKUP(B205,Baza[],10,0),"") ->  | N205: =IFERROR(VLOOKUP(B205,Baza[],12,0),"") ->  | O205: =IFERROR(VLOOKUP(B205,Baza[],14,0),"") ->  | P205: =IFERROR(VLOOKUP(B205,Baza[],15,0),"") ->  | Q205: =IFERROR(VLOOKUP(B205,Baza[],16,0),"") ->  | R205: =IFERROR(VLOOKUP(B205,Baza[],17,0),"") ->  | S205: =IFERROR(VLOOKUP(B205,Baza[],18,0),"") ->  | T205: =IFERROR(IF((VLOOKUP(B205,Baza[],19,0)+VLOOKUP(B205,Baza[],20,0))=0,"-",VLOOKUP(B205,Baza[],19,0)+VLOOKUP(B205,Baza[],20,0)),"") ->  | U205: =IFERROR(IF(VLOOKUP(B205,Baza[],21,0)=0,"-",VLOOKUP(B205,Baza[],21,0)),"") ->  | V205: =IFERROR(VLOOKUP(B205,Baza[],22,0),"") ->  | W205: =IFERROR(VLOOKUP(B205,Baza[],23,0),"") ->  | X205: =IFERROR(VLOOKUP(B205,Baza[],24,0),"") ->  | Y205: =IFERROR(IF(VLOOKUP(B205,Baza[],25,0)=0,"-",VLOOKUP(B205,Baza[],25,0)),"") ->  | Z205: =IFERROR(IF(VLOOKUP(B205,Baza[],26,0)=0,"-",VLOOKUP(B205,Baza[],26,0)),"") ->  | AA205: =IFERROR(VLOOKUP(B205,Baza[],27,0),"") ->  | AB205: =IFERROR(VLOOKUP(B205,Baza[],28,0),"") ->  | AC205: =IF(TOT[[#This Row],[Profit]]="","#Н/Д",SUM($AA$85:AA205)) -> #Н/Д | AD205: =IF(TOT[[#This Row],[Grafik]]="#Н/Д",FALSE,TRUE) -> FALSE
A206: 121 | C206: =IFERROR(VLOOKUP(B206,Baza[],2,0),"") ->  | D206: =IF( TOT[[#This Row],[NN]]="","",TEXT( TOT[[#This Row],[Start]],"ч:мм")&" "&TOT[[#This Row],[V]]& TOT[[#This Row],[B]]&" "&"["& TOT[[#This Row],[Room]]&"] "& TOT[[#This Row],[Name]]) ->  | E206: =TOT[[#This Row],[V]]& TOT[[#This Row],[B]] ->  | F206: =IFERROR(VLOOKUP(B206,Baza[],3,0),"") ->  | G206: =IFERROR(VLOOKUP(B206,Baza[],4,0),"") ->  | H206: =IFERROR(VLOOKUP(B206,Baza[],5,0),"") ->  | I206: =IFERROR(VLOOKUP(B206,Baza[],6,0),"") ->  | J206: =IFERROR(VLOOKUP(B206,Baza[],7,0),"") ->  | K206: =IFERROR(VLOOKUP(B206,Baza[],8,0),"") ->  | L206: =IFERROR(VLOOKUP(B206,Baza[],9,0),"") ->  | M206: =IFERROR(VLOOKUP(B206,Baza[],10,0),"") ->  | N206: =IFERROR(VLOOKUP(B206,Baza[],12,0),"") ->  | O206: =IFERROR(VLOOKUP(B206,Baza[],14,0),"") ->  | P206: =IFERROR(VLOOKUP(B206,Baza[],15,0),"") ->  | Q206: =IFERROR(VLOOKUP(B206,Baza[],16,0),"") ->  | R206: =IFERROR(VLOOKUP(B206,Baza[],17,0),"") ->  | S206: =IFERROR(VLOOKUP(B206,Baza[],18,0),"") ->  | T206: =IFERROR(IF((VLOOKUP(B206,Baza[],19,0)+VLOOKUP(B206,Baza[],20,0))=0,"-",VLOOKUP(B206,Baza[],19,0)+VLOOKUP(B206,Baza[],20,0)),"") ->  | U206: =IFERROR(IF(VLOOKUP(B206,Baza[],21,0)=0,"-",VLOOKUP(B206,Baza[],21,0)),"") ->  | V206: =IFERROR(VLOOKUP(B206,Baza[],22,0),"") ->  | W206: =IFERROR(VLOOKUP(B206,Baza[],23,0),"") ->  | X206: =IFERROR(VLOOKUP(B206,Baza[],24,0),"") ->  | Y206: =IFERROR(IF(VLOOKUP(B206,Baza[],25,0)=0,"-",VLOOKUP(B206,Baza[],25,0)),"") ->  | Z206: =IFERROR(IF(VLOOKUP(B206,Baza[],26,0)=0,"-",VLOOKUP(B206,Baza[],26,0)),"") ->  | AA206: =IFERROR(VLOOKUP(B206,Baza[],27,0),"") ->  | AB206: =IFERROR(VLOOKUP(B206,Baza[],28,0),"") ->  | AC206: =IF(TOT[[#This Row],[Profit]]="","#Н/Д",SUM($AA$85:AA206)) -> #Н/Д | AD206: =IF(TOT[[#This Row],[Grafik]]="#Н/Д",FALSE,TRUE) -> FALSE
A207: 122 | C207: =IFERROR(VLOOKUP(B207,Baza[],2,0),"") ->  | D207: =IF( TOT[[#This Row],[NN]]="","",TEXT( TOT[[#This Row],[Start]],"ч:мм")&" "&TOT[[#This Row],[V]]& TOT[[#This Row],[B]]&" "&"["& TOT[[#This Row],[Room]]&"] "& TOT[[#This Row],[Name]]) ->  | E207: =TOT[[#This Row],[V]]& TOT[[#This Row],[B]] ->  | F207: =IFERROR(VLOOKUP(B207,Baza[],3,0),"") ->  | G207: =IFERROR(VLOOKUP(B207,Baza[],4,0),"") ->  | H207: =IFERROR(VLOOKUP(B207,Baza[],5,0),"") ->  | I207: =IFERROR(VLOOKUP(B207,Baza[],6,0),"") ->  | J207: =IFERROR(VLOOKUP(B207,Baza[],7,0),"") ->  | K207: =IFERROR(VLOOKUP(B207,Baza[],8,0),"") ->  | L207: =IFERROR(VLOOKUP(B207,Baza[],9,0),"") ->  | M207: =IFERROR(VLOOKUP(B207,Baza[],10,0),"") ->  | N207: =IFERROR(VLOOKUP(B207,Baza[],12,0),"") ->  | O207: =IFERROR(VLOOKUP(B207,Baza[],14,0),"") ->  | P207: =IFERROR(VLOOKUP(B207,Baza[],15,0),"") ->  | Q207: =IFERROR(VLOOKUP(B207,Baza[],16,0),"") ->  | R207: =IFERROR(VLOOKUP(B207,Baza[],17,0),"") ->  | S207: =IFERROR(VLOOKUP(B207,Baza[],18,0),"") ->  | T207: =IFERROR(IF((VLOOKUP(B207,Baza[],19,0)+VLOOKUP(B207,Baza[],20,0))=0,"-",VLOOKUP(B207,Baza[],19,0)+VLOOKUP(B207,Baza[],20,0)),"") ->  | U207: =IFERROR(IF(VLOOKUP(B207,Baza[],21,0)=0,"-",VLOOKUP(B207,Baza[],21,0)),"") ->  | V207: =IFERROR(VLOOKUP(B207,Baza[],22,0),"") ->  | W207: =IFERROR(VLOOKUP(B207,Baza[],23,0),"") ->  | X207: =IFERROR(VLOOKUP(B207,Baza[],24,0),"") ->  | Y207: =IFERROR(IF(VLOOKUP(B207,Baza[],25,0)=0,"-",VLOOKUP(B207,Baza[],25,0)),"") ->  | Z207: =IFERROR(IF(VLOOKUP(B207,Baza[],26,0)=0,"-",VLOOKUP(B207,Baza[],26,0)),"") ->  | AA207: =IFERROR(VLOOKUP(B207,Baza[],27,0),"") ->  | AB207: =IFERROR(VLOOKUP(B207,Baza[],28,0),"") ->  | AC207: =IF(TOT[[#This Row],[Profit]]="","#Н/Д",SUM($AA$85:AA207)) -> #Н/Д | AD207: =IF(TOT[[#This Row],[Grafik]]="#Н/Д",FALSE,TRUE) -> FALSE
A208: 123 | C208: =IFERROR(VLOOKUP(B208,Baza[],2,0),"") ->  | D208: =IF( TOT[[#This Row],[NN]]="","",TEXT( TOT[[#This Row],[Start]],"ч:мм")&" "&TOT[[#This Row],[V]]& TOT[[#This Row],[B]]&" "&"["& TOT[[#This Row],[Room]]&"] "& TOT[[#This Row],[Name]]) ->  | E208: =TOT[[#This Row],[V]]& TOT[[#This Row],[B]] ->  | F208: =IFERROR(VLOOKUP(B208,Baza[],3,0),"") ->  | G208: =IFERROR(VLOOKUP(B208,Baza[],4,0),"") ->  | H208: =IFERROR(VLOOKUP(B208,Baza[],5,0),"") ->  | I208: =IFERROR(VLOOKUP(B208,Baza[],6,0),"") ->  | J208: =IFERROR(VLOOKUP(B208,Baza[],7,0),"") ->  | K208: =IFERROR(VLOOKUP(B208,Baza[],8,0),"") ->  | L208: =IFERROR(VLOOKUP(B208,Baza[],9,0),"") ->  | M208: =IFERROR(VLOOKUP(B208,Baza[],10,0),"") ->  | N208: =IFERROR(VLOOKUP(B208,Baza[],12,0),"") ->  | O208: =IFERROR(VLOOKUP(B208,Baza[],14,0),"") ->  | P208: =IFERROR(VLOOKUP(B208,Baza[],15,0),"") ->  | Q208: =IFERROR(VLOOKUP(B208,Baza[],16,0),"") ->  | R208: =IFERROR(VLOOKUP(B208,Baza[],17,0),"") ->  | S208: =IFERROR(VLOOKUP(B208,Baza[],18,0),"") ->  | T208: =IFERROR(IF((VLOOKUP(B208,Baza[],19,0)+VLOOKUP(B208,Baza[],20,0))=0,"-",VLOOKUP(B208,Baza[],19,0)+VLOOKUP(B208,Baza[],20,0)),"") ->  | U208: =IFERROR(IF(VLOOKUP(B208,Baza[],21,0)=0,"-",VLOOKUP(B208,Baza[],21,0)),"") ->  | V208: =IFERROR(VLOOKUP(B208,Baza[],22,0),"") ->  | W208: =IFERROR(VLOOKUP(B208,Baza[],23,0),"") ->  | X208: =IFERROR(VLOOKUP(B208,Baza[],24,0),"") ->  | Y208: =IFERROR(IF(VLOOKUP(B208,Baza[],25,0)=0,"-",VLOOKUP(B208,Baza[],25,0)),"") ->  | Z208: =IFERROR(IF(VLOOKUP(B208,Baza[],26,0)=0,"-",VLOOKUP(B208,Baza[],26,0)),"") ->  | AA208: =IFERROR(VLOOKUP(B208,Baza[],27,0),"") ->  | AB208: =IFERROR(VLOOKUP(B208,Baza[],28,0),"") ->  | AC208: =IF(TOT[[#This Row],[Profit]]="","#Н/Д",SUM($AA$85:AA208)) -> #Н/Д | AD208: =IF(TOT[[#This Row],[Grafik]]="#Н/Д",FALSE,TRUE) -> FALSE
A209: 124 | C209: =IFERROR(VLOOKUP(B209,Baza[],2,0),"") ->  | D209: =IF( TOT[[#This Row],[NN]]="","",TEXT( TOT[[#This Row],[Start]],"ч:мм")&" "&TOT[[#This Row],[V]]& TOT[[#This Row],[B]]&" "&"["& TOT[[#This Row],[Room]]&"] "& TOT[[#This Row],[Name]]) ->  | E209: =TOT[[#This Row],[V]]& TOT[[#This Row],[B]] ->  | F209: =IFERROR(VLOOKUP(B209,Baza[],3,0),"") ->  | G209: =IFERROR(VLOOKUP(B209,Baza[],4,0),"") ->  | H209: =IFERROR(VLOOKUP(B209,Baza[],5,0),"") ->  | I209: =IFERROR(VLOOKUP(B209,Baza[],6,0),"") ->  | J209: =IFERROR(VLOOKUP(B209,Baza[],7,0),"") ->  | K209: =IFERROR(VLOOKUP(B209,Baza[],8,0),"") ->  | L209: =IFERROR(VLOOKUP(B209,Baza[],9,0),"") ->  | M209: =IFERROR(VLOOKUP(B209,Baza[],10,0),"") ->  | N209: =IFERROR(VLOOKUP(B209,Baza[],12,0),"") ->  | O209: =IFERROR(VLOOKUP(B209,Baza[],14,0),"") ->  | P209: =IFERROR(VLOOKUP(B209,Baza[],15,0),"") ->  | Q209: =IFERROR(VLOOKUP(B209,Baza[],16,0),"") ->  | R209: =IFERROR(VLOOKUP(B209,Baza[],17,0),"") ->  | S209: =IFERROR(VLOOKUP(B209,Baza[],18,0),"") ->  | T209: =IFERROR(IF((VLOOKUP(B209,Baza[],19,0)+VLOOKUP(B209,Baza[],20,0))=0,"-",VLOOKUP(B209,Baza[],19,0)+VLOOKUP(B209,Baza[],20,0)),"") ->  | U209: =IFERROR(IF(VLOOKUP(B209,Baza[],21,0)=0,"-",VLOOKUP(B209,Baza[],21,0)),"") ->  | V209: =IFERROR(VLOOKUP(B209,Baza[],22,0),"") ->  | W209: =IFERROR(VLOOKUP(B209,Baza[],23,0),"") ->  | X209: =IFERROR(VLOOKUP(B209,Baza[],24,0),"") ->  | Y209: =IFERROR(IF(VLOOKUP(B209,Baza[],25,0)=0,"-",VLOOKUP(B209,Baza[],25,0)),"") ->  | Z209: =IFERROR(IF(VLOOKUP(B209,Baza[],26,0)=0,"-",VLOOKUP(B209,Baza[],26,0)),"") ->  | AA209: =IFERROR(VLOOKUP(B209,Baza[],27,0),"") ->  | AB209: =IFERROR(VLOOKUP(B209,Baza[],28,0),"") ->  | AC209: =IF(TOT[[#This Row],[Profit]]="","#Н/Д",SUM($AA$85:AA209)) -> #Н/Д | AD209: =IF(TOT[[#This Row],[Grafik]]="#Н/Д",FALSE,TRUE) -> FALSE
A210: 125 | C210: =IFERROR(VLOOKUP(B210,Baza[],2,0),"") ->  | D210: =IF( TOT[[#This Row],[NN]]="","",TEXT( TOT[[#This Row],[Start]],"ч:мм")&" "&TOT[[#This Row],[V]]& TOT[[#This Row],[B]]&" "&"["& TOT[[#This Row],[Room]]&"] "& TOT[[#This Row],[Name]]) ->  | E210: =TOT[[#This Row],[V]]& TOT[[#This Row],[B]] ->  | F210: =IFERROR(VLOOKUP(B210,Baza[],3,0),"") ->  | G210: =IFERROR(VLOOKUP(B210,Baza[],4,0),"") ->  | H210: =IFERROR(VLOOKUP(B210,Baza[],5,0),"") ->  | I210: =IFERROR(VLOOKUP(B210,Baza[],6,0),"") ->  | J210: =IFERROR(VLOOKUP(B210,Baza[],7,0),"") ->  | K210: =IFERROR(VLOOKUP(B210,Baza[],8,0),"") ->  | L210: =IFERROR(VLOOKUP(B210,Baza[],9,0),"") ->  | M210: =IFERROR(VLOOKUP(B210,Baza[],10,0),"") ->  | N210: =IFERROR(VLOOKUP(B210,Baza[],12,0),"") ->  | O210: =IFERROR(VLOOKUP(B210,Baza[],14,0),"") ->  | P210: =IFERROR(VLOOKUP(B210,Baza[],15,0),"") ->  | Q210: =IFERROR(VLOOKUP(B210,Baza[],16,0),"") ->  | R210: =IFERROR(VLOOKUP(B210,Baza[],17,0),"") ->  | S210: =IFERROR(VLOOKUP(B210,Baza[],18,0),"") ->  | T210: =IFERROR(IF((VLOOKUP(B210,Baza[],19,0)+VLOOKUP(B210,Baza[],20,0))=0,"-",VLOOKUP(B210,Baza[],19,0)+VLOOKUP(B210,Baza[],20,0)),"") ->  | U210: =IFERROR(IF(VLOOKUP(B210,Baza[],21,0)=0,"-",VLOOKUP(B210,Baza[],21,0)),"") ->  | V210: =IFERROR(VLOOKUP(B210,Baza[],22,0),"") ->  | W210: =IFERROR(VLOOKUP(B210,Baza[],23,0),"") ->  | X210: =IFERROR(VLOOKUP(B210,Baza[],24,0),"") ->  | Y210: =IFERROR(IF(VLOOKUP(B210,Baza[],25,0)=0,"-",VLOOKUP(B210,Baza[],25,0)),"") ->  | Z210: =IFERROR(IF(VLOOKUP(B210,Baza[],26,0)=0,"-",VLOOKUP(B210,Baza[],26,0)),"") ->  | AA210: =IFERROR(VLOOKUP(B210,Baza[],27,0),"") ->  | AB210: =IFERROR(VLOOKUP(B210,Baza[],28,0),"") ->  | AC210: =IF(TOT[[#This Row],[Profit]]="","#Н/Д",SUM($AA$85:AA210)) -> #Н/Д | AD210: =IF(TOT[[#This Row],[Grafik]]="#Н/Д",FALSE,TRUE) -> FALSE
A211: 126 | C211: =IFERROR(VLOOKUP(B211,Baza[],2,0),"") ->  | D211: =IF( TOT[[#This Row],[NN]]="","",TEXT( TOT[[#This Row],[Start]],"ч:мм")&" "&TOT[[#This Row],[V]]& TOT[[#This Row],[B]]&" "&"["& TOT[[#This Row],[Room]]&"] "& TOT[[#This Row],[Name]]) ->  | E211: =TOT[[#This Row],[V]]& TOT[[#This Row],[B]] ->  | F211: =IFERROR(VLOOKUP(B211,Baza[],3,0),"") ->  | G211: =IFERROR(VLOOKUP(B211,Baza[],4,0),"") ->  | H211: =IFERROR(VLOOKUP(B211,Baza[],5,0),"") ->  | I211: =IFERROR(VLOOKUP(B211,Baza[],6,0),"") ->  | J211: =IFERROR(VLOOKUP(B211,Baza[],7,0),"") ->  | K211: =IFERROR(VLOOKUP(B211,Baza[],8,0),"") ->  | L211: =IFERROR(VLOOKUP(B211,Baza[],9,0),"") ->  | M211: =IFERROR(VLOOKUP(B211,Baza[],10,0),"") ->  | N211: =IFERROR(VLOOKUP(B211,Baza[],12,0),"") ->  | O211: =IFERROR(VLOOKUP(B211,Baza[],14,0),"") ->  | P211: =IFERROR(VLOOKUP(B211,Baza[],15,0),"") ->  | Q211: =IFERROR(VLOOKUP(B211,Baza[],16,0),"") ->  | R211: =IFERROR(VLOOKUP(B211,Baza[],17,0),"") ->  | S211: =IFERROR(VLOOKUP(B211,Baza[],18,0),"") ->  | T211: =IFERROR(IF((VLOOKUP(B211,Baza[],19,0)+VLOOKUP(B211,Baza[],20,0))=0,"-",VLOOKUP(B211,Baza[],19,0)+VLOOKUP(B211,Baza[],20,0)),"") ->  | U211: =IFERROR(IF(VLOOKUP(B211,Baza[],21,0)=0,"-",VLOOKUP(B211,Baza[],21,0)),"") ->  | V211: =IFERROR(VLOOKUP(B211,Baza[],22,0),"") ->  | W211: =IFERROR(VLOOKUP(B211,Baza[],23,0),"") ->  | X211: =IFERROR(VLOOKUP(B211,Baza[],24,0),"") ->  | Y211: =IFERROR(IF(VLOOKUP(B211,Baza[],25,0)=0,"-",VLOOKUP(B211,Baza[],25,0)),"") ->  | Z211: =IFERROR(IF(VLOOKUP(B211,Baza[],26,0)=0,"-",VLOOKUP(B211,Baza[],26,0)),"") ->  | AA211: =IFERROR(VLOOKUP(B211,Baza[],27,0),"") ->  | AB211: =IFERROR(VLOOKUP(B211,Baza[],28,0),"") ->  | AC211: =IF(TOT[[#This Row],[Profit]]="","#Н/Д",SUM($AA$85:AA211)) -> #Н/Д | AD211: =IF(TOT[[#This Row],[Grafik]]="#Н/Д",FALSE,TRUE) -> FALSE
A212: 127 | C212: =IFERROR(VLOOKUP(B212,Baza[],2,0),"") ->  | D212: =IF( TOT[[#This Row],[NN]]="","",TEXT( TOT[[#This Row],[Start]],"ч:мм")&" "&TOT[[#This Row],[V]]& TOT[[#This Row],[B]]&" "&"["& TOT[[#This Row],[Room]]&"] "& TOT[[#This Row],[Name]]) ->  | E212: =TOT[[#This Row],[V]]& TOT[[#This Row],[B]] ->  | F212: =IFERROR(VLOOKUP(B212,Baza[],3,0),"") ->  | G212: =IFERROR(VLOOKUP(B212,Baza[],4,0),"") ->  | H212: =IFERROR(VLOOKUP(B212,Baza[],5,0),"") ->  | I212: =IFERROR(VLOOKUP(B212,Baza[],6,0),"") ->  | J212: =IFERROR(VLOOKUP(B212,Baza[],7,0),"") ->  | K212: =IFERROR(VLOOKUP(B212,Baza[],8,0),"") ->  | L212: =IFERROR(VLOOKUP(B212,Baza[],9,0),"") ->  | M212: =IFERROR(VLOOKUP(B212,Baza[],10,0),"") ->  | N212: =IFERROR(VLOOKUP(B212,Baza[],12,0),"") ->  | O212: =IFERROR(VLOOKUP(B212,Baza[],14,0),"") ->  | P212: =IFERROR(VLOOKUP(B212,Baza[],15,0),"") ->  | Q212: =IFERROR(VLOOKUP(B212,Baza[],16,0),"") ->  | R212: =IFERROR(VLOOKUP(B212,Baza[],17,0),"") ->  | S212: =IFERROR(VLOOKUP(B212,Baza[],18,0),"") ->  | T212: =IFERROR(IF((VLOOKUP(B212,Baza[],19,0)+VLOOKUP(B212,Baza[],20,0))=0,"-",VLOOKUP(B212,Baza[],19,0)+VLOOKUP(B212,Baza[],20,0)),"") ->  | U212: =IFERROR(IF(VLOOKUP(B212,Baza[],21,0)=0,"-",VLOOKUP(B212,Baza[],21,0)),"") ->  | V212: =IFERROR(VLOOKUP(B212,Baza[],22,0),"") ->  | W212: =IFERROR(VLOOKUP(B212,Baza[],23,0),"") ->  | X212: =IFERROR(VLOOKUP(B212,Baza[],24,0),"") ->  | Y212: =IFERROR(IF(VLOOKUP(B212,Baza[],25,0)=0,"-",VLOOKUP(B212,Baza[],25,0)),"") ->  | Z212: =IFERROR(IF(VLOOKUP(B212,Baza[],26,0)=0,"-",VLOOKUP(B212,Baza[],26,0)),"") ->  | AA212: =IFERROR(VLOOKUP(B212,Baza[],27,0),"") ->  | AB212: =IFERROR(VLOOKUP(B212,Baza[],28,0),"") ->  | AC212: =IF(TOT[[#This Row],[Profit]]="","#Н/Д",SUM($AA$85:AA212)) -> #Н/Д | AD212: =IF(TOT[[#This Row],[Grafik]]="#Н/Д",FALSE,TRUE) -> FALSE
A213: 128 | C213: =IFERROR(VLOOKUP(B213,Baza[],2,0),"") ->  | D213: =IF( TOT[[#This Row],[NN]]="","",TEXT( TOT[[#This Row],[Start]],"ч:мм")&" "&TOT[[#This Row],[V]]& TOT[[#This Row],[B]]&" "&"["& TOT[[#This Row],[Room]]&"] "& TOT[[#This Row],[Name]]) ->  | E213: =TOT[[#This Row],[V]]& TOT[[#This Row],[B]] ->  | F213: =IFERROR(VLOOKUP(B213,Baza[],3,0),"") ->  | G213: =IFERROR(VLOOKUP(B213,Baza[],4,0),"") ->  | H213: =IFERROR(VLOOKUP(B213,Baza[],5,0),"") ->  | I213: =IFERROR(VLOOKUP(B213,Baza[],6,0),"") ->  | J213: =IFERROR(VLOOKUP(B213,Baza[],7,0),"") ->  | K213: =IFERROR(VLOOKUP(B213,Baza[],8,0),"") ->  | L213: =IFERROR(VLOOKUP(B213,Baza[],9,0),"") ->  | M213: =IFERROR(VLOOKUP(B213,Baza[],10,0),"") ->  | N213: =IFERROR(VLOOKUP(B213,Baza[],12,0),"") ->  | O213: =IFERROR(VLOOKUP(B213,Baza[],14,0),"") ->  | P213: =IFERROR(VLOOKUP(B213,Baza[],15,0),"") ->  | Q213: =IFERROR(VLOOKUP(B213,Baza[],16,0),"") ->  | R213: =IFERROR(VLOOKUP(B213,Baza[],17,0),"") ->  | S213: =IFERROR(VLOOKUP(B213,Baza[],18,0),"") ->  | T213: =IFERROR(IF((VLOOKUP(B213,Baza[],19,0)+VLOOKUP(B213,Baza[],20,0))=0,"-",VLOOKUP(B213,Baza[],19,0)+VLOOKUP(B213,Baza[],20,0)),"") ->  | U213: =IFERROR(IF(VLOOKUP(B213,Baza[],21,0)=0,"-",VLOOKUP(B213,Baza[],21,0)),"") ->  | V213: =IFERROR(VLOOKUP(B213,Baza[],22,0),"") ->  | W213: =IFERROR(VLOOKUP(B213,Baza[],23,0),"") ->  | X213: =IFERROR(VLOOKUP(B213,Baza[],24,0),"") ->  | Y213: =IFERROR(IF(VLOOKUP(B213,Baza[],25,0)=0,"-",VLOOKUP(B213,Baza[],25,0)),"") ->  | Z213: =IFERROR(IF(VLOOKUP(B213,Baza[],26,0)=0,"-",VLOOKUP(B213,Baza[],26,0)),"") ->  | AA213: =IFERROR(VLOOKUP(B213,Baza[],27,0),"") ->  | AB213: =IFERROR(VLOOKUP(B213,Baza[],28,0),"") ->  | AC213: =IF(TOT[[#This Row],[Profit]]="","#Н/Д",SUM($AA$85:AA213)) -> #Н/Д | AD213: =IF(TOT[[#This Row],[Grafik]]="#Н/Д",FALSE,TRUE) -> FALSE
A214: =A213+1 -> 129 | C214: =IFERROR(VLOOKUP(B214,Baza[],2,0),"") ->  | D214: =IF( TOT[[#This Row],[NN]]="","",TEXT( TOT[[#This Row],[Start]],"ч:мм")&" "&TOT[[#This Row],[V]]& TOT[[#This Row],[B]]&" "&"["& TOT[[#This Row],[Room]]&"] "& TOT[[#This Row],[Name]]) ->  | E214: =TOT[[#This Row],[V]]& TOT[[#This Row],[B]] ->  | F214: =IFERROR(VLOOKUP(B214,Baza[],3,0),"") ->  | G214: =IFERROR(VLOOKUP(B214,Baza[],4,0),"") ->  | H214: =IFERROR(VLOOKUP(B214,Baza[],5,0),"") ->  | I214: =IFERROR(VLOOKUP(B214,Baza[],6,0),"") ->  | J214: =IFERROR(VLOOKUP(B214,Baza[],7,0),"") ->  | K214: =IFERROR(VLOOKUP(B214,Baza[],8,0),"") ->  | L214: =IFERROR(VLOOKUP(B214,Baza[],9,0),"") ->  | M214: =IFERROR(VLOOKUP(B214,Baza[],10,0),"") ->  | N214: =IFERROR(VLOOKUP(B214,Baza[],12,0),"") ->  | O214: =IFERROR(VLOOKUP(B214,Baza[],14,0),"") ->  | P214: =IFERROR(VLOOKUP(B214,Baza[],15,0),"") ->  | Q214: =IFERROR(VLOOKUP(B214,Baza[],16,0),"") ->  | R214: =IFERROR(VLOOKUP(B214,Baza[],17,0),"") ->  | S214: =IFERROR(VLOOKUP(B214,Baza[],18,0),"") ->  | T214: =IFERROR(IF((VLOOKUP(B214,Baza[],19,0)+VLOOKUP(B214,Baza[],20,0))=0,"-",VLOOKUP(B214,Baza[],19,0)+VLOOKUP(B214,Baza[],20,0)),"") ->  | U214: =IFERROR(IF(VLOOKUP(B214,Baza[],21,0)=0,"-",VLOOKUP(B214,Baza[],21,0)),"") ->  | V214: =IFERROR(VLOOKUP(B214,Baza[],22,0),"") ->  | W214: =IFERROR(VLOOKUP(B214,Baza[],23,0),"") ->  | X214: =IFERROR(VLOOKUP(B214,Baza[],24,0),"") ->  | Y214: =IFERROR(IF(VLOOKUP(B214,Baza[],25,0)=0,"-",VLOOKUP(B214,Baza[],25,0)),"") ->  | Z214: =IFERROR(IF(VLOOKUP(B214,Baza[],26,0)=0,"-",VLOOKUP(B214,Baza[],26,0)),"") ->  | AA214: =IFERROR(VLOOKUP(B214,Baza[],27,0),"") ->  | AB214: =IFERROR(VLOOKUP(B214,Baza[],28,0),"") ->  | AC214: =IF(TOT[[#This Row],[Profit]]="","#Н/Д",SUM($AA$85:AA214)) -> #Н/Д | AD214: =IF(TOT[[#This Row],[Grafik]]="#Н/Д",FALSE,TRUE) -> FALSE
A215: 130 | C215: =IFERROR(VLOOKUP(B215,Baza[],2,0),"") ->  | D215: =IF( TOT[[#This Row],[NN]]="","",TEXT( TOT[[#This Row],[Start]],"ч:мм")&" "&TOT[[#This Row],[V]]& TOT[[#This Row],[B]]&" "&"["& TOT[[#This Row],[Room]]&"] "& TOT[[#This Row],[Name]]) ->  | E215: =TOT[[#This Row],[V]]& TOT[[#This Row],[B]] ->  | F215: =IFERROR(VLOOKUP(B215,Baza[],3,0),"") ->  | G215: =IFERROR(VLOOKUP(B215,Baza[],4,0),"") ->  | H215: =IFERROR(VLOOKUP(B215,Baza[],5,0),"") ->  | I215: =IFERROR(VLOOKUP(B215,Baza[],6,0),"") ->  | J215: =IFERROR(VLOOKUP(B215,Baza[],7,0),"") ->  | K215: =IFERROR(VLOOKUP(B215,Baza[],8,0),"") ->  | L215: =IFERROR(VLOOKUP(B215,Baza[],9,0),"") ->  | M215: =IFERROR(VLOOKUP(B215,Baza[],10,0),"") ->  | N215: =IFERROR(VLOOKUP(B215,Baza[],12,0),"") ->  | O215: =IFERROR(VLOOKUP(B215,Baza[],14,0),"") ->  | P215: =IFERROR(VLOOKUP(B215,Baza[],15,0),"") ->  | Q215: =IFERROR(VLOOKUP(B215,Baza[],16,0),"") ->  | R215: =IFERROR(VLOOKUP(B215,Baza[],17,0),"") ->  | S215: =IFERROR(VLOOKUP(B215,Baza[],18,0),"") ->  | T215: =IFERROR(IF((VLOOKUP(B215,Baza[],19,0)+VLOOKUP(B215,Baza[],20,0))=0,"-",VLOOKUP(B215,Baza[],19,0)+VLOOKUP(B215,Baza[],20,0)),"") ->  | U215: =IFERROR(IF(VLOOKUP(B215,Baza[],21,0)=0,"-",VLOOKUP(B215,Baza[],21,0)),"") ->  | V215: =IFERROR(VLOOKUP(B215,Baza[],22,0),"") ->  | W215: =IFERROR(VLOOKUP(B215,Baza[],23,0),"") ->  | X215: =IFERROR(VLOOKUP(B215,Baza[],24,0),"") ->  | Y215: =IFERROR(IF(VLOOKUP(B215,Baza[],25,0)=0,"-",VLOOKUP(B215,Baza[],25,0)),"") ->  | Z215: =IFERROR(IF(VLOOKUP(B215,Baza[],26,0)=0,"-",VLOOKUP(B215,Baza[],26,0)),"") ->  | AA215: =IFERROR(VLOOKUP(B215,Baza[],27,0),"") ->  | AB215: =IFERROR(VLOOKUP(B215,Baza[],28,0),"") ->  | AC215: =IF(TOT[[#This Row],[Profit]]="","#Н/Д",SUM($AA$85:AA215)) -> #Н/Д | AD215: =IF(TOT[[#This Row],[Grafik]]="#Н/Д",FALSE,TRUE) -> FALSE
A216: 131 | C216: =IFERROR(VLOOKUP(B216,Baza[],2,0),"") ->  | D216: =IF( TOT[[#This Row],[NN]]="","",TEXT( TOT[[#This Row],[Start]],"ч:мм")&" "&TOT[[#This Row],[V]]& TOT[[#This Row],[B]]&" "&"["& TOT[[#This Row],[Room]]&"] "& TOT[[#This Row],[Name]]) ->  | E216: =TOT[[#This Row],[V]]& TOT[[#This Row],[B]] ->  | F216: =IFERROR(VLOOKUP(B216,Baza[],3,0),"") ->  | G216: =IFERROR(VLOOKUP(B216,Baza[],4,0),"") ->  | H216: =IFERROR(VLOOKUP(B216,Baza[],5,0),"") ->  | I216: =IFERROR(VLOOKUP(B216,Baza[],6,0),"") ->  | J216: =IFERROR(VLOOKUP(B216,Baza[],7,0),"") ->  | K216: =IFERROR(VLOOKUP(B216,Baza[],8,0),"") ->  | L216: =IFERROR(VLOOKUP(B216,Baza[],9,0),"") ->  | M216: =IFERROR(VLOOKUP(B216,Baza[],10,0),"") ->  | N216: =IFERROR(VLOOKUP(B216,Baza[],12,0),"") ->  | O216: =IFERROR(VLOOKUP(B216,Baza[],14,0),"") ->  | P216: =IFERROR(VLOOKUP(B216,Baza[],15,0),"") ->  | Q216: =IFERROR(VLOOKUP(B216,Baza[],16,0),"") ->  | R216: =IFERROR(VLOOKUP(B216,Baza[],17,0),"") ->  | S216: =IFERROR(VLOOKUP(B216,Baza[],18,0),"") ->  | T216: =IFERROR(IF((VLOOKUP(B216,Baza[],19,0)+VLOOKUP(B216,Baza[],20,0))=0,"-",VLOOKUP(B216,Baza[],19,0)+VLOOKUP(B216,Baza[],20,0)),"") ->  | U216: =IFERROR(IF(VLOOKUP(B216,Baza[],21,0)=0,"-",VLOOKUP(B216,Baza[],21,0)),"") ->  | V216: =IFERROR(VLOOKUP(B216,Baza[],22,0),"") ->  | W216: =IFERROR(VLOOKUP(B216,Baza[],23,0),"") ->  | X216: =IFERROR(VLOOKUP(B216,Baza[],24,0),"") ->  | Y216: =IFERROR(IF(VLOOKUP(B216,Baza[],25,0)=0,"-",VLOOKUP(B216,Baza[],25,0)),"") ->  | Z216: =IFERROR(IF(VLOOKUP(B216,Baza[],26,0)=0,"-",VLOOKUP(B216,Baza[],26,0)),"") ->  | AA216: =IFERROR(VLOOKUP(B216,Baza[],27,0),"") ->  | AB216: =IFERROR(VLOOKUP(B216,Baza[],28,0),"") ->  | AC216: =IF(TOT[[#This Row],[Profit]]="","#Н/Д",SUM($AA$85:AA216)) -> #Н/Д | AD216: =IF(TOT[[#This Row],[Grafik]]="#Н/Д",FALSE,TRUE) -> FALSE
A217: 132 | C217: =IFERROR(VLOOKUP(B217,Baza[],2,0),"") ->  | D217: =IF( TOT[[#This Row],[NN]]="","",TEXT( TOT[[#This Row],[Start]],"ч:мм")&" "&TOT[[#This Row],[V]]& TOT[[#This Row],[B]]&" "&"["& TOT[[#This Row],[Room]]&"] "& TOT[[#This Row],[Name]]) ->  | E217: =TOT[[#This Row],[V]]& TOT[[#This Row],[B]] ->  | F217: =IFERROR(VLOOKUP(B217,Baza[],3,0),"") ->  | G217: =IFERROR(VLOOKUP(B217,Baza[],4,0),"") ->  | H217: =IFERROR(VLOOKUP(B217,Baza[],5,0),"") ->  | I217: =IFERROR(VLOOKUP(B217,Baza[],6,0),"") ->  | J217: =IFERROR(VLOOKUP(B217,Baza[],7,0),"") ->  | K217: =IFERROR(VLOOKUP(B217,Baza[],8,0),"") ->  | L217: =IFERROR(VLOOKUP(B217,Baza[],9,0),"") ->  | M217: =IFERROR(VLOOKUP(B217,Baza[],10,0),"") ->  | N217: =IFERROR(VLOOKUP(B217,Baza[],12,0),"") ->  | O217: =IFERROR(VLOOKUP(B217,Baza[],14,0),"") ->  | P217: =IFERROR(VLOOKUP(B217,Baza[],15,0),"") ->  | Q217: =IFERROR(VLOOKUP(B217,Baza[],16,0),"") ->  | R217: =IFERROR(VLOOKUP(B217,Baza[],17,0),"") ->  | S217: =IFERROR(VLOOKUP(B217,Baza[],18,0),"") ->  | T217: =IFERROR(IF((VLOOKUP(B217,Baza[],19,0)+VLOOKUP(B217,Baza[],20,0))=0,"-",VLOOKUP(B217,Baza[],19,0)+VLOOKUP(B217,Baza[],20,0)),"") ->  | U217: =IFERROR(IF(VLOOKUP(B217,Baza[],21,0)=0,"-",VLOOKUP(B217,Baza[],21,0)),"") ->  | V217: =IFERROR(VLOOKUP(B217,Baza[],22,0),"") ->  | W217: =IFERROR(VLOOKUP(B217,Baza[],23,0),"") ->  | X217: =IFERROR(VLOOKUP(B217,Baza[],24,0),"") ->  | Y217: =IFERROR(IF(VLOOKUP(B217,Baza[],25,0)=0,"-",VLOOKUP(B217,Baza[],25,0)),"") ->  | Z217: =IFERROR(IF(VLOOKUP(B217,Baza[],26,0)=0,"-",VLOOKUP(B217,Baza[],26,0)),"") ->  | AA217: =IFERROR(VLOOKUP(B217,Baza[],27,0),"") ->  | AB217: =IFERROR(VLOOKUP(B217,Baza[],28,0),"") ->  | AC217: =IF(TOT[[#This Row],[Profit]]="","#Н/Д",SUM($AA$85:AA217)) -> #Н/Д | AD217: =IF(TOT[[#This Row],[Grafik]]="#Н/Д",FALSE,TRUE) -> FALSE
A218: 133 | C218: =IFERROR(VLOOKUP(B218,Baza[],2,0),"") ->  | D218: =IF( TOT[[#This Row],[NN]]="","",TEXT( TOT[[#This Row],[Start]],"ч:мм")&" "&TOT[[#This Row],[V]]& TOT[[#This Row],[B]]&" "&"["& TOT[[#This Row],[Room]]&"] "& TOT[[#This Row],[Name]]) ->  | E218: =TOT[[#This Row],[V]]& TOT[[#This Row],[B]] ->  | F218: =IFERROR(VLOOKUP(B218,Baza[],3,0),"") ->  | G218: =IFERROR(VLOOKUP(B218,Baza[],4,0),"") ->  | H218: =IFERROR(VLOOKUP(B218,Baza[],5,0),"") ->  | I218: =IFERROR(VLOOKUP(B218,Baza[],6,0),"") ->  | J218: =IFERROR(VLOOKUP(B218,Baza[],7,0),"") ->  | K218: =IFERROR(VLOOKUP(B218,Baza[],8,0),"") ->  | L218: =IFERROR(VLOOKUP(B218,Baza[],9,0),"") ->  | M218: =IFERROR(VLOOKUP(B218,Baza[],10,0),"") ->  | N218: =IFERROR(VLOOKUP(B218,Baza[],12,0),"") ->  | O218: =IFERROR(VLOOKUP(B218,Baza[],14,0),"") ->  | P218: =IFERROR(VLOOKUP(B218,Baza[],15,0),"") ->  | Q218: =IFERROR(VLOOKUP(B218,Baza[],16,0),"") ->  | R218: =IFERROR(VLOOKUP(B218,Baza[],17,0),"") ->  | S218: =IFERROR(VLOOKUP(B218,Baza[],18,0),"") ->  | T218: =IFERROR(IF((VLOOKUP(B218,Baza[],19,0)+VLOOKUP(B218,Baza[],20,0))=0,"-",VLOOKUP(B218,Baza[],19,0)+VLOOKUP(B218,Baza[],20,0)),"") ->  | U218: =IFERROR(IF(VLOOKUP(B218,Baza[],21,0)=0,"-",VLOOKUP(B218,Baza[],21,0)),"") ->  | V218: =IFERROR(VLOOKUP(B218,Baza[],22,0),"") ->  | W218: =IFERROR(VLOOKUP(B218,Baza[],23,0),"") ->  | X218: =IFERROR(VLOOKUP(B218,Baza[],24,0),"") ->  | Y218: =IFERROR(IF(VLOOKUP(B218,Baza[],25,0)=0,"-",VLOOKUP(B218,Baza[],25,0)),"") ->  | Z218: =IFERROR(IF(VLOOKUP(B218,Baza[],26,0)=0,"-",VLOOKUP(B218,Baza[],26,0)),"") ->  | AA218: =IFERROR(VLOOKUP(B218,Baza[],27,0),"") ->  | AB218: =IFERROR(VLOOKUP(B218,Baza[],28,0),"") ->  | AC218: =IF(TOT[[#This Row],[Profit]]="","#Н/Д",SUM($AA$85:AA218)) -> #Н/Д | AD218: =IF(TOT[[#This Row],[Grafik]]="#Н/Д",FALSE,TRUE) -> FALSE
A219: 134 | C219: =IFERROR(VLOOKUP(B219,Baza[],2,0),"") ->  | D219: =IF( TOT[[#This Row],[NN]]="","",TEXT( TOT[[#This Row],[Start]],"ч:мм")&" "&TOT[[#This Row],[V]]& TOT[[#This Row],[B]]&" "&"["& TOT[[#This Row],[Room]]&"] "& TOT[[#This Row],[Name]]) ->  | E219: =TOT[[#This Row],[V]]& TOT[[#This Row],[B]] ->  | F219: =IFERROR(VLOOKUP(B219,Baza[],3,0),"") ->  | G219: =IFERROR(VLOOKUP(B219,Baza[],4,0),"") ->  | H219: =IFERROR(VLOOKUP(B219,Baza[],5,0),"") ->  | I219: =IFERROR(VLOOKUP(B219,Baza[],6,0),"") ->  | J219: =IFERROR(VLOOKUP(B219,Baza[],7,0),"") ->  | K219: =IFERROR(VLOOKUP(B219,Baza[],8,0),"") ->  | L219: =IFERROR(VLOOKUP(B219,Baza[],9,0),"") ->  | M219: =IFERROR(VLOOKUP(B219,Baza[],10,0),"") ->  | N219: =IFERROR(VLOOKUP(B219,Baza[],12,0),"") ->  | O219: =IFERROR(VLOOKUP(B219,Baza[],14,0),"") ->  | P219: =IFERROR(VLOOKUP(B219,Baza[],15,0),"") ->  | Q219: =IFERROR(VLOOKUP(B219,Baza[],16,0),"") ->  | R219: =IFERROR(VLOOKUP(B219,Baza[],17,0),"") ->  | S219: =IFERROR(VLOOKUP(B219,Baza[],18,0),"") ->  | T219: =IFERROR(IF((VLOOKUP(B219,Baza[],19,0)+VLOOKUP(B219,Baza[],20,0))=0,"-",VLOOKUP(B219,Baza[],19,0)+VLOOKUP(B219,Baza[],20,0)),"") ->  | U219: =IFERROR(IF(VLOOKUP(B219,Baza[],21,0)=0,"-",VLOOKUP(B219,Baza[],21,0)),"") ->  | V219: =IFERROR(VLOOKUP(B219,Baza[],22,0),"") ->  | W219: =IFERROR(VLOOKUP(B219,Baza[],23,0),"") ->  | X219: =IFERROR(VLOOKUP(B219,Baza[],24,0),"") ->  | Y219: =IFERROR(IF(VLOOKUP(B219,Baza[],25,0)=0,"-",VLOOKUP(B219,Baza[],25,0)),"") ->  | Z219: =IFERROR(IF(VLOOKUP(B219,Baza[],26,0)=0,"-",VLOOKUP(B219,Baza[],26,0)),"") ->  | AA219: =IFERROR(VLOOKUP(B219,Baza[],27,0),"") ->  | AB219: =IFERROR(VLOOKUP(B219,Baza[],28,0),"") ->  | AC219: =IF(TOT[[#This Row],[Profit]]="","#Н/Д",SUM($AA$85:AA219)) -> #Н/Д | AD219: =IF(TOT[[#This Row],[Grafik]]="#Н/Д",FALSE,TRUE) -> FALSE
A220: 135 | C220: =IFERROR(VLOOKUP(B220,Baza[],2,0),"") ->  | D220: =IF( TOT[[#This Row],[NN]]="","",TEXT( TOT[[#This Row],[Start]],"ч:мм")&" "&TOT[[#This Row],[V]]& TOT[[#This Row],[B]]&" "&"["& TOT[[#This Row],[Room]]&"] "& TOT[[#This Row],[Name]]) ->  | E220: =TOT[[#This Row],[V]]& TOT[[#This Row],[B]] ->  | F220: =IFERROR(VLOOKUP(B220,Baza[],3,0),"") ->  | G220: =IFERROR(VLOOKUP(B220,Baza[],4,0),"") ->  | H220: =IFERROR(VLOOKUP(B220,Baza[],5,0),"") ->  | I220: =IFERROR(VLOOKUP(B220,Baza[],6,0),"") ->  | J220: =IFERROR(VLOOKUP(B220,Baza[],7,0),"") ->  | K220: =IFERROR(VLOOKUP(B220,Baza[],8,0),"") ->  | L220: =IFERROR(VLOOKUP(B220,Baza[],9,0),"") ->  | M220: =IFERROR(VLOOKUP(B220,Baza[],10,0),"") ->  | N220: =IFERROR(VLOOKUP(B220,Baza[],12,0),"") ->  | O220: =IFERROR(VLOOKUP(B220,Baza[],14,0),"") ->  | P220: =IFERROR(VLOOKUP(B220,Baza[],15,0),"") ->  | Q220: =IFERROR(VLOOKUP(B220,Baza[],16,0),"") ->  | R220: =IFERROR(VLOOKUP(B220,Baza[],17,0),"") ->  | S220: =IFERROR(VLOOKUP(B220,Baza[],18,0),"") ->  | T220: =IFERROR(IF((VLOOKUP(B220,Baza[],19,0)+VLOOKUP(B220,Baza[],20,0))=0,"-",VLOOKUP(B220,Baza[],19,0)+VLOOKUP(B220,Baza[],20,0)),"") ->  | U220: =IFERROR(IF(VLOOKUP(B220,Baza[],21,0)=0,"-",VLOOKUP(B220,Baza[],21,0)),"") ->  | V220: =IFERROR(VLOOKUP(B220,Baza[],22,0),"") ->  | W220: =IFERROR(VLOOKUP(B220,Baza[],23,0),"") ->  | X220: =IFERROR(VLOOKUP(B220,Baza[],24,0),"") ->  | Y220: =IFERROR(IF(VLOOKUP(B220,Baza[],25,0)=0,"-",VLOOKUP(B220,Baza[],25,0)),"") ->  | Z220: =IFERROR(IF(VLOOKUP(B220,Baza[],26,0)=0,"-",VLOOKUP(B220,Baza[],26,0)),"") ->  | AA220: =IFERROR(VLOOKUP(B220,Baza[],27,0),"") ->  | AB220: =IFERROR(VLOOKUP(B220,Baza[],28,0),"") ->  | AC220: =IF(TOT[[#This Row],[Profit]]="","#Н/Д",SUM($AA$85:AA220)) -> #Н/Д | AD220: =IF(TOT[[#This Row],[Grafik]]="#Н/Д",FALSE,TRUE) -> FALSE
A221: 136 | C221: =IFERROR(VLOOKUP(B221,Baza[],2,0),"") ->  | D221: =IF( TOT[[#This Row],[NN]]="","",TEXT( TOT[[#This Row],[Start]],"ч:мм")&" "&TOT[[#This Row],[V]]& TOT[[#This Row],[B]]&" "&"["& TOT[[#This Row],[Room]]&"] "& TOT[[#This Row],[Name]]) ->  | E221: =TOT[[#This Row],[V]]& TOT[[#This Row],[B]] ->  | F221: =IFERROR(VLOOKUP(B221,Baza[],3,0),"") ->  | G221: =IFERROR(VLOOKUP(B221,Baza[],4,0),"") ->  | H221: =IFERROR(VLOOKUP(B221,Baza[],5,0),"") ->  | I221: =IFERROR(VLOOKUP(B221,Baza[],6,0),"") ->  | J221: =IFERROR(VLOOKUP(B221,Baza[],7,0),"") ->  | K221: =IFERROR(VLOOKUP(B221,Baza[],8,0),"") ->  | L221: =IFERROR(VLOOKUP(B221,Baza[],9,0),"") ->  | M221: =IFERROR(VLOOKUP(B221,Baza[],10,0),"") ->  | N221: =IFERROR(VLOOKUP(B221,Baza[],12,0),"") ->  | O221: =IFERROR(VLOOKUP(B221,Baza[],14,0),"") ->  | P221: =IFERROR(VLOOKUP(B221,Baza[],15,0),"") ->  | Q221: =IFERROR(VLOOKUP(B221,Baza[],16,0),"") ->  | R221: =IFERROR(VLOOKUP(B221,Baza[],17,0),"") ->  | S221: =IFERROR(VLOOKUP(B221,Baza[],18,0),"") ->  | T221: =IFERROR(IF((VLOOKUP(B221,Baza[],19,0)+VLOOKUP(B221,Baza[],20,0))=0,"-",VLOOKUP(B221,Baza[],19,0)+VLOOKUP(B221,Baza[],20,0)),"") ->  | U221: =IFERROR(IF(VLOOKUP(B221,Baza[],21,0)=0,"-",VLOOKUP(B221,Baza[],21,0)),"") ->  | V221: =IFERROR(VLOOKUP(B221,Baza[],22,0),"") ->  | W221: =IFERROR(VLOOKUP(B221,Baza[],23,0),"") ->  | X221: =IFERROR(VLOOKUP(B221,Baza[],24,0),"") ->  | Y221: =IFERROR(IF(VLOOKUP(B221,Baza[],25,0)=0,"-",VLOOKUP(B221,Baza[],25,0)),"") ->  | Z221: =IFERROR(IF(VLOOKUP(B221,Baza[],26,0)=0,"-",VLOOKUP(B221,Baza[],26,0)),"") ->  | AA221: =IFERROR(VLOOKUP(B221,Baza[],27,0),"") ->  | AB221: =IFERROR(VLOOKUP(B221,Baza[],28,0),"") ->  | AC221: =IF(TOT[[#This Row],[Profit]]="","#Н/Д",SUM($AA$85:AA221)) -> #Н/Д | AD221: =IF(TOT[[#This Row],[Grafik]]="#Н/Д",FALSE,TRUE) -> FALSE
A222: 137 | C222: =IFERROR(VLOOKUP(B222,Baza[],2,0),"") ->  | D222: =IF( TOT[[#This Row],[NN]]="","",TEXT( TOT[[#This Row],[Start]],"ч:мм")&" "&TOT[[#This Row],[V]]& TOT[[#This Row],[B]]&" "&"["& TOT[[#This Row],[Room]]&"] "& TOT[[#This Row],[Name]]) ->  | E222: =TOT[[#This Row],[V]]& TOT[[#This Row],[B]] ->  | F222: =IFERROR(VLOOKUP(B222,Baza[],3,0),"") ->  | G222: =IFERROR(VLOOKUP(B222,Baza[],4,0),"") ->  | H222: =IFERROR(VLOOKUP(B222,Baza[],5,0),"") ->  | I222: =IFERROR(VLOOKUP(B222,Baza[],6,0),"") ->  | J222: =IFERROR(VLOOKUP(B222,Baza[],7,0),"") ->  | K222: =IFERROR(VLOOKUP(B222,Baza[],8,0),"") ->  | L222: =IFERROR(VLOOKUP(B222,Baza[],9,0),"") ->  | M222: =IFERROR(VLOOKUP(B222,Baza[],10,0),"") ->  | N222: =IFERROR(VLOOKUP(B222,Baza[],12,0),"") ->  | O222: =IFERROR(VLOOKUP(B222,Baza[],14,0),"") ->  | P222: =IFERROR(VLOOKUP(B222,Baza[],15,0),"") ->  | Q222: =IFERROR(VLOOKUP(B222,Baza[],16,0),"") ->  | R222: =IFERROR(VLOOKUP(B222,Baza[],17,0),"") ->  | S222: =IFERROR(VLOOKUP(B222,Baza[],18,0),"") ->  | T222: =IFERROR(IF((VLOOKUP(B222,Baza[],19,0)+VLOOKUP(B222,Baza[],20,0))=0,"-",VLOOKUP(B222,Baza[],19,0)+VLOOKUP(B222,Baza[],20,0)),"") ->  | U222: =IFERROR(IF(VLOOKUP(B222,Baza[],21,0)=0,"-",VLOOKUP(B222,Baza[],21,0)),"") ->  | V222: =IFERROR(VLOOKUP(B222,Baza[],22,0),"") ->  | W222: =IFERROR(VLOOKUP(B222,Baza[],23,0),"") ->  | X222: =IFERROR(VLOOKUP(B222,Baza[],24,0),"") ->  | Y222: =IFERROR(IF(VLOOKUP(B222,Baza[],25,0)=0,"-",VLOOKUP(B222,Baza[],25,0)),"") ->  | Z222: =IFERROR(IF(VLOOKUP(B222,Baza[],26,0)=0,"-",VLOOKUP(B222,Baza[],26,0)),"") ->  | AA222: =IFERROR(VLOOKUP(B222,Baza[],27,0),"") ->  | AB222: =IFERROR(VLOOKUP(B222,Baza[],28,0),"") ->  | AC222: =IF(TOT[[#This Row],[Profit]]="","#Н/Д",SUM($AA$85:AA222)) -> #Н/Д | AD222: =IF(TOT[[#This Row],[Grafik]]="#Н/Д",FALSE,TRUE) -> FALSE
A223: 138 | C223: =IFERROR(VLOOKUP(B223,Baza[],2,0),"") ->  | D223: =IF( TOT[[#This Row],[NN]]="","",TEXT( TOT[[#This Row],[Start]],"ч:мм")&" "&TOT[[#This Row],[V]]& TOT[[#This Row],[B]]&" "&"["& TOT[[#This Row],[Room]]&"] "& TOT[[#This Row],[Name]]) ->  | E223: =TOT[[#This Row],[V]]& TOT[[#This Row],[B]] ->  | F223: =IFERROR(VLOOKUP(B223,Baza[],3,0),"") ->  | G223: =IFERROR(VLOOKUP(B223,Baza[],4,0),"") ->  | H223: =IFERROR(VLOOKUP(B223,Baza[],5,0),"") ->  | I223: =IFERROR(VLOOKUP(B223,Baza[],6,0),"") ->  | J223: =IFERROR(VLOOKUP(B223,Baza[],7,0),"") ->  | K223: =IFERROR(VLOOKUP(B223,Baza[],8,0),"") ->  | L223: =IFERROR(VLOOKUP(B223,Baza[],9,0),"") ->  | M223: =IFERROR(VLOOKUP(B223,Baza[],10,0),"") ->  | N223: =IFERROR(VLOOKUP(B223,Baza[],12,0),"") ->  | O223: =IFERROR(VLOOKUP(B223,Baza[],14,0),"") ->  | P223: =IFERROR(VLOOKUP(B223,Baza[],15,0),"") ->  | Q223: =IFERROR(VLOOKUP(B223,Baza[],16,0),"") ->  | R223: =IFERROR(VLOOKUP(B223,Baza[],17,0),"") ->  | S223: =IFERROR(VLOOKUP(B223,Baza[],18,0),"") ->  | T223: =IFERROR(IF((VLOOKUP(B223,Baza[],19,0)+VLOOKUP(B223,Baza[],20,0))=0,"-",VLOOKUP(B223,Baza[],19,0)+VLOOKUP(B223,Baza[],20,0)),"") ->  | U223: =IFERROR(IF(VLOOKUP(B223,Baza[],21,0)=0,"-",VLOOKUP(B223,Baza[],21,0)),"") ->  | V223: =IFERROR(VLOOKUP(B223,Baza[],22,0),"") ->  | W223: =IFERROR(VLOOKUP(B223,Baza[],23,0),"") ->  | X223: =IFERROR(VLOOKUP(B223,Baza[],24,0),"") ->  | Y223: =IFERROR(IF(VLOOKUP(B223,Baza[],25,0)=0,"-",VLOOKUP(B223,Baza[],25,0)),"") ->  | Z223: =IFERROR(IF(VLOOKUP(B223,Baza[],26,0)=0,"-",VLOOKUP(B223,Baza[],26,0)),"") ->  | AA223: =IFERROR(VLOOKUP(B223,Baza[],27,0),"") ->  | AB223: =IFERROR(VLOOKUP(B223,Baza[],28,0),"") ->  | AC223: =IF(TOT[[#This Row],[Profit]]="","#Н/Д",SUM($AA$85:AA223)) -> #Н/Д | AD223: =IF(TOT[[#This Row],[Grafik]]="#Н/Д",FALSE,TRUE) -> FALSE
A224: 139 | C224: =IFERROR(VLOOKUP(B224,Baza[],2,0),"") ->  | D224: =IF( TOT[[#This Row],[NN]]="","",TEXT( TOT[[#This Row],[Start]],"ч:мм")&" "&TOT[[#This Row],[V]]& TOT[[#This Row],[B]]&" "&"["& TOT[[#This Row],[Room]]&"] "& TOT[[#This Row],[Name]]) ->  | E224: =TOT[[#This Row],[V]]& TOT[[#This Row],[B]] ->  | F224: =IFERROR(VLOOKUP(B224,Baza[],3,0),"") ->  | G224: =IFERROR(VLOOKUP(B224,Baza[],4,0),"") ->  | H224: =IFERROR(VLOOKUP(B224,Baza[],5,0),"") ->  | I224: =IFERROR(VLOOKUP(B224,Baza[],6,0),"") ->  | J224: =IFERROR(VLOOKUP(B224,Baza[],7,0),"") ->  | K224: =IFERROR(VLOOKUP(B224,Baza[],8,0),"") ->  | L224: =IFERROR(VLOOKUP(B224,Baza[],9,0),"") ->  | M224: =IFERROR(VLOOKUP(B224,Baza[],10,0),"") ->  | N224: =IFERROR(VLOOKUP(B224,Baza[],12,0),"") ->  | O224: =IFERROR(VLOOKUP(B224,Baza[],14,0),"") ->  | P224: =IFERROR(VLOOKUP(B224,Baza[],15,0),"") ->  | Q224: =IFERROR(VLOOKUP(B224,Baza[],16,0),"") ->  | R224: =IFERROR(VLOOKUP(B224,Baza[],17,0),"") ->  | S224: =IFERROR(VLOOKUP(B224,Baza[],18,0),"") ->  | T224: =IFERROR(IF((VLOOKUP(B224,Baza[],19,0)+VLOOKUP(B224,Baza[],20,0))=0,"-",VLOOKUP(B224,Baza[],19,0)+VLOOKUP(B224,Baza[],20,0)),"") ->  | U224: =IFERROR(IF(VLOOKUP(B224,Baza[],21,0)=0,"-",VLOOKUP(B224,Baza[],21,0)),"") ->  | V224: =IFERROR(VLOOKUP(B224,Baza[],22,0),"") ->  | W224: =IFERROR(VLOOKUP(B224,Baza[],23,0),"") ->  | X224: =IFERROR(VLOOKUP(B224,Baza[],24,0),"") ->  | Y224: =IFERROR(IF(VLOOKUP(B224,Baza[],25,0)=0,"-",VLOOKUP(B224,Baza[],25,0)),"") ->  | Z224: =IFERROR(IF(VLOOKUP(B224,Baza[],26,0)=0,"-",VLOOKUP(B224,Baza[],26,0)),"") ->  | AA224: =IFERROR(VLOOKUP(B224,Baza[],27,0),"") ->  | AB224: =IFERROR(VLOOKUP(B224,Baza[],28,0),"") ->  | AC224: =IF(TOT[[#This Row],[Profit]]="","#Н/Д",SUM($AA$85:AA224)) -> #Н/Д | AD224: =IF(TOT[[#This Row],[Grafik]]="#Н/Д",FALSE,TRUE) -> FALSE
A225: 140 | C225: =IFERROR(VLOOKUP(B225,Baza[],2,0),"") ->  | D225: =IF( TOT[[#This Row],[NN]]="","",TEXT( TOT[[#This Row],[Start]],"ч:мм")&" "&TOT[[#This Row],[V]]& TOT[[#This Row],[B]]&" "&"["& TOT[[#This Row],[Room]]&"] "& TOT[[#This Row],[Name]]) ->  | E225: =TOT[[#This Row],[V]]& TOT[[#This Row],[B]] ->  | F225: =IFERROR(VLOOKUP(B225,Baza[],3,0),"") ->  | G225: =IFERROR(VLOOKUP(B225,Baza[],4,0),"") ->  | H225: =IFERROR(VLOOKUP(B225,Baza[],5,0),"") ->  | I225: =IFERROR(VLOOKUP(B225,Baza[],6,0),"") ->  | J225: =IFERROR(VLOOKUP(B225,Baza[],7,0),"") ->  | K225: =IFERROR(VLOOKUP(B225,Baza[],8,0),"") ->  | L225: =IFERROR(VLOOKUP(B225,Baza[],9,0),"") ->  | M225: =IFERROR(VLOOKUP(B225,Baza[],10,0),"") ->  | N225: =IFERROR(VLOOKUP(B225,Baza[],12,0),"") ->  | O225: =IFERROR(VLOOKUP(B225,Baza[],14,0),"") ->  | P225: =IFERROR(VLOOKUP(B225,Baza[],15,0),"") ->  | Q225: =IFERROR(VLOOKUP(B225,Baza[],16,0),"") ->  | R225: =IFERROR(VLOOKUP(B225,Baza[],17,0),"") ->  | S225: =IFERROR(VLOOKUP(B225,Baza[],18,0),"") ->  | T225: =IFERROR(IF((VLOOKUP(B225,Baza[],19,0)+VLOOKUP(B225,Baza[],20,0))=0,"-",VLOOKUP(B225,Baza[],19,0)+VLOOKUP(B225,Baza[],20,0)),"") ->  | U225: =IFERROR(IF(VLOOKUP(B225,Baza[],21,0)=0,"-",VLOOKUP(B225,Baza[],21,0)),"") ->  | V225: =IFERROR(VLOOKUP(B225,Baza[],22,0),"") ->  | W225: =IFERROR(VLOOKUP(B225,Baza[],23,0),"") ->  | X225: =IFERROR(VLOOKUP(B225,Baza[],24,0),"") ->  | Y225: =IFERROR(IF(VLOOKUP(B225,Baza[],25,0)=0,"-",VLOOKUP(B225,Baza[],25,0)),"") ->  | Z225: =IFERROR(IF(VLOOKUP(B225,Baza[],26,0)=0,"-",VLOOKUP(B225,Baza[],26,0)),"") ->  | AA225: =IFERROR(VLOOKUP(B225,Baza[],27,0),"") ->  | AB225: =IFERROR(VLOOKUP(B225,Baza[],28,0),"") ->  | AC225: =IF(TOT[[#This Row],[Profit]]="","#Н/Д",SUM($AA$85:AA225)) -> #Н/Д | AD225: =IF(TOT[[#This Row],[Grafik]]="#Н/Д",FALSE,TRUE) -> FALSE
A226: 141 | C226: =IFERROR(VLOOKUP(B226,Baza[],2,0),"") ->  | D226: =IF( TOT[[#This Row],[NN]]="","",TEXT( TOT[[#This Row],[Start]],"ч:мм")&" "&TOT[[#This Row],[V]]& TOT[[#This Row],[B]]&" "&"["& TOT[[#This Row],[Room]]&"] "& TOT[[#This Row],[Name]]) ->  | E226: =TOT[[#This Row],[V]]& TOT[[#This Row],[B]] ->  | F226: =IFERROR(VLOOKUP(B226,Baza[],3,0),"") ->  | G226: =IFERROR(VLOOKUP(B226,Baza[],4,0),"") ->  | H226: =IFERROR(VLOOKUP(B226,Baza[],5,0),"") ->  | I226: =IFERROR(VLOOKUP(B226,Baza[],6,0),"") ->  | J226: =IFERROR(VLOOKUP(B226,Baza[],7,0),"") ->  | K226: =IFERROR(VLOOKUP(B226,Baza[],8,0),"") ->  | L226: =IFERROR(VLOOKUP(B226,Baza[],9,0),"") ->  | M226: =IFERROR(VLOOKUP(B226,Baza[],10,0),"") ->  | N226: =IFERROR(VLOOKUP(B226,Baza[],12,0),"") ->  | O226: =IFERROR(VLOOKUP(B226,Baza[],14,0),"") ->  | P226: =IFERROR(VLOOKUP(B226,Baza[],15,0),"") ->  | Q226: =IFERROR(VLOOKUP(B226,Baza[],16,0),"") ->  | R226: =IFERROR(VLOOKUP(B226,Baza[],17,0),"") ->  | S226: =IFERROR(VLOOKUP(B226,Baza[],18,0),"") ->  | T226: =IFERROR(IF((VLOOKUP(B226,Baza[],19,0)+VLOOKUP(B226,Baza[],20,0))=0,"-",VLOOKUP(B226,Baza[],19,0)+VLOOKUP(B226,Baza[],20,0)),"") ->  | U226: =IFERROR(IF(VLOOKUP(B226,Baza[],21,0)=0,"-",VLOOKUP(B226,Baza[],21,0)),"") ->  | V226: =IFERROR(VLOOKUP(B226,Baza[],22,0),"") ->  | W226: =IFERROR(VLOOKUP(B226,Baza[],23,0),"") ->  | X226: =IFERROR(VLOOKUP(B226,Baza[],24,0),"") ->  | Y226: =IFERROR(IF(VLOOKUP(B226,Baza[],25,0)=0,"-",VLOOKUP(B226,Baza[],25,0)),"") ->  | Z226: =IFERROR(IF(VLOOKUP(B226,Baza[],26,0)=0,"-",VLOOKUP(B226,Baza[],26,0)),"") ->  | AA226: =IFERROR(VLOOKUP(B226,Baza[],27,0),"") ->  | AB226: =IFERROR(VLOOKUP(B226,Baza[],28,0),"") ->  | AC226: =IF(TOT[[#This Row],[Profit]]="","#Н/Д",SUM($AA$85:AA226)) -> #Н/Д | AD226: =IF(TOT[[#This Row],[Grafik]]="#Н/Д",FALSE,TRUE) -> FALSE
A227: 142 | C227: =IFERROR(VLOOKUP(B227,Baza[],2,0),"") ->  | D227: =IF( TOT[[#This Row],[NN]]="","",TEXT( TOT[[#This Row],[Start]],"ч:мм")&" "&TOT[[#This Row],[V]]& TOT[[#This Row],[B]]&" "&"["& TOT[[#This Row],[Room]]&"] "& TOT[[#This Row],[Name]]) ->  | E227: =TOT[[#This Row],[V]]& TOT[[#This Row],[B]] ->  | F227: =IFERROR(VLOOKUP(B227,Baza[],3,0),"") ->  | G227: =IFERROR(VLOOKUP(B227,Baza[],4,0),"") ->  | H227: =IFERROR(VLOOKUP(B227,Baza[],5,0),"") ->  | I227: =IFERROR(VLOOKUP(B227,Baza[],6,0),"") ->  | J227: =IFERROR(VLOOKUP(B227,Baza[],7,0),"") ->  | K227: =IFERROR(VLOOKUP(B227,Baza[],8,0),"") ->  | L227: =IFERROR(VLOOKUP(B227,Baza[],9,0),"") ->  | M227: =IFERROR(VLOOKUP(B227,Baza[],10,0),"") ->  | N227: =IFERROR(VLOOKUP(B227,Baza[],12,0),"") ->  | O227: =IFERROR(VLOOKUP(B227,Baza[],14,0),"") ->  | P227: =IFERROR(VLOOKUP(B227,Baza[],15,0),"") ->  | Q227: =IFERROR(VLOOKUP(B227,Baza[],16,0),"") ->  | R227: =IFERROR(VLOOKUP(B227,Baza[],17,0),"") ->  | S227: =IFERROR(VLOOKUP(B227,Baza[],18,0),"") ->  | T227: =IFERROR(IF((VLOOKUP(B227,Baza[],19,0)+VLOOKUP(B227,Baza[],20,0))=0,"-",VLOOKUP(B227,Baza[],19,0)+VLOOKUP(B227,Baza[],20,0)),"") ->  | U227: =IFERROR(IF(VLOOKUP(B227,Baza[],21,0)=0,"-",VLOOKUP(B227,Baza[],21,0)),"") ->  | V227: =IFERROR(VLOOKUP(B227,Baza[],22,0),"") ->  | W227: =IFERROR(VLOOKUP(B227,Baza[],23,0),"") ->  | X227: =IFERROR(VLOOKUP(B227,Baza[],24,0),"") ->  | Y227: =IFERROR(IF(VLOOKUP(B227,Baza[],25,0)=0,"-",VLOOKUP(B227,Baza[],25,0)),"") ->  | Z227: =IFERROR(IF(VLOOKUP(B227,Baza[],26,0)=0,"-",VLOOKUP(B227,Baza[],26,0)),"") ->  | AA227: =IFERROR(VLOOKUP(B227,Baza[],27,0),"") ->  | AB227: =IFERROR(VLOOKUP(B227,Baza[],28,0),"") ->  | AC227: =IF(TOT[[#This Row],[Profit]]="","#Н/Д",SUM($AA$85:AA227)) -> #Н/Д | AD227: =IF(TOT[[#This Row],[Grafik]]="#Н/Д",FALSE,TRUE) -> FALSE
A228: 143 | C228: =IFERROR(VLOOKUP(B228,Baza[],2,0),"") ->  | D228: =IF( TOT[[#This Row],[NN]]="","",TEXT( TOT[[#This Row],[Start]],"ч:мм")&" "&TOT[[#This Row],[V]]& TOT[[#This Row],[B]]&" "&"["& TOT[[#This Row],[Room]]&"] "& TOT[[#This Row],[Name]]) ->  | E228: =TOT[[#This Row],[V]]& TOT[[#This Row],[B]] ->  | F228: =IFERROR(VLOOKUP(B228,Baza[],3,0),"") ->  | G228: =IFERROR(VLOOKUP(B228,Baza[],4,0),"") ->  | H228: =IFERROR(VLOOKUP(B228,Baza[],5,0),"") ->  | I228: =IFERROR(VLOOKUP(B228,Baza[],6,0),"") ->  | J228: =IFERROR(VLOOKUP(B228,Baza[],7,0),"") ->  | K228: =IFERROR(VLOOKUP(B228,Baza[],8,0),"") ->  | L228: =IFERROR(VLOOKUP(B228,Baza[],9,0),"") ->  | M228: =IFERROR(VLOOKUP(B228,Baza[],10,0),"") ->  | N228: =IFERROR(VLOOKUP(B228,Baza[],12,0),"") ->  | O228: =IFERROR(VLOOKUP(B228,Baza[],14,0),"") ->  | P228: =IFERROR(VLOOKUP(B228,Baza[],15,0),"") ->  | Q228: =IFERROR(VLOOKUP(B228,Baza[],16,0),"") ->  | R228: =IFERROR(VLOOKUP(B228,Baza[],17,0),"") ->  | S228: =IFERROR(VLOOKUP(B228,Baza[],18,0),"") ->  | T228: =IFERROR(IF((VLOOKUP(B228,Baza[],19,0)+VLOOKUP(B228,Baza[],20,0))=0,"-",VLOOKUP(B228,Baza[],19,0)+VLOOKUP(B228,Baza[],20,0)),"") ->  | U228: =IFERROR(IF(VLOOKUP(B228,Baza[],21,0)=0,"-",VLOOKUP(B228,Baza[],21,0)),"") ->  | V228: =IFERROR(VLOOKUP(B228,Baza[],22,0),"") ->  | W228: =IFERROR(VLOOKUP(B228,Baza[],23,0),"") ->  | X228: =IFERROR(VLOOKUP(B228,Baza[],24,0),"") ->  | Y228: =IFERROR(IF(VLOOKUP(B228,Baza[],25,0)=0,"-",VLOOKUP(B228,Baza[],25,0)),"") ->  | Z228: =IFERROR(IF(VLOOKUP(B228,Baza[],26,0)=0,"-",VLOOKUP(B228,Baza[],26,0)),"") ->  | AA228: =IFERROR(VLOOKUP(B228,Baza[],27,0),"") ->  | AB228: =IFERROR(VLOOKUP(B228,Baza[],28,0),"") ->  | AC228: =IF(TOT[[#This Row],[Profit]]="","#Н/Д",SUM($AA$85:AA228)) -> #Н/Д | AD228: =IF(TOT[[#This Row],[Grafik]]="#Н/Д",FALSE,TRUE) -> FALSE
A229: 144 | C229: =IFERROR(VLOOKUP(B229,Baza[],2,0),"") ->  | D229: =IF( TOT[[#This Row],[NN]]="","",TEXT( TOT[[#This Row],[Start]],"ч:мм")&" "&TOT[[#This Row],[V]]& TOT[[#This Row],[B]]&" "&"["& TOT[[#This Row],[Room]]&"] "& TOT[[#This Row],[Name]]) ->  | E229: =TOT[[#This Row],[V]]& TOT[[#This Row],[B]] ->  | F229: =IFERROR(VLOOKUP(B229,Baza[],3,0),"") ->  | G229: =IFERROR(VLOOKUP(B229,Baza[],4,0),"") ->  | H229: =IFERROR(VLOOKUP(B229,Baza[],5,0),"") ->  | I229: =IFERROR(VLOOKUP(B229,Baza[],6,0),"") ->  | J229: =IFERROR(VLOOKUP(B229,Baza[],7,0),"") ->  | K229: =IFERROR(VLOOKUP(B229,Baza[],8,0),"") ->  | L229: =IFERROR(VLOOKUP(B229,Baza[],9,0),"") ->  | M229: =IFERROR(VLOOKUP(B229,Baza[],10,0),"") ->  | N229: =IFERROR(VLOOKUP(B229,Baza[],12,0),"") ->  | O229: =IFERROR(VLOOKUP(B229,Baza[],14,0),"") ->  | P229: =IFERROR(VLOOKUP(B229,Baza[],15,0),"") ->  | Q229: =IFERROR(VLOOKUP(B229,Baza[],16,0),"") ->  | R229: =IFERROR(VLOOKUP(B229,Baza[],17,0),"") ->  | S229: =IFERROR(VLOOKUP(B229,Baza[],18,0),"") ->  | T229: =IFERROR(IF((VLOOKUP(B229,Baza[],19,0)+VLOOKUP(B229,Baza[],20,0))=0,"-",VLOOKUP(B229,Baza[],19,0)+VLOOKUP(B229,Baza[],20,0)),"") ->  | U229: =IFERROR(IF(VLOOKUP(B229,Baza[],21,0)=0,"-",VLOOKUP(B229,Baza[],21,0)),"") ->  | V229: =IFERROR(VLOOKUP(B229,Baza[],22,0),"") ->  | W229: =IFERROR(VLOOKUP(B229,Baza[],23,0),"") ->  | X229: =IFERROR(VLOOKUP(B229,Baza[],24,0),"") ->  | Y229: =IFERROR(IF(VLOOKUP(B229,Baza[],25,0)=0,"-",VLOOKUP(B229,Baza[],25,0)),"") ->  | Z229: =IFERROR(IF(VLOOKUP(B229,Baza[],26,0)=0,"-",VLOOKUP(B229,Baza[],26,0)),"") ->  | AA229: =IFERROR(VLOOKUP(B229,Baza[],27,0),"") ->  | AB229: =IFERROR(VLOOKUP(B229,Baza[],28,0),"") ->  | AC229: =IF(TOT[[#This Row],[Profit]]="","#Н/Д",SUM($AA$85:AA229)) -> #Н/Д | AD229: =IF(TOT[[#This Row],[Grafik]]="#Н/Д",FALSE,TRUE) -> FALSE
A230: 145 | C230: =IFERROR(VLOOKUP(B230,Baza[],2,0),"") ->  | D230: =IF( TOT[[#This Row],[NN]]="","",TEXT( TOT[[#This Row],[Start]],"ч:мм")&" "&TOT[[#This Row],[V]]& TOT[[#This Row],[B]]&" "&"["& TOT[[#This Row],[Room]]&"] "& TOT[[#This Row],[Name]]) ->  | E230: =TOT[[#This Row],[V]]& TOT[[#This Row],[B]] ->  | F230: =IFERROR(VLOOKUP(B230,Baza[],3,0),"") ->  | G230: =IFERROR(VLOOKUP(B230,Baza[],4,0),"") ->  | H230: =IFERROR(VLOOKUP(B230,Baza[],5,0),"") ->  | I230: =IFERROR(VLOOKUP(B230,Baza[],6,0),"") ->  | J230: =IFERROR(VLOOKUP(B230,Baza[],7,0),"") ->  | K230: =IFERROR(VLOOKUP(B230,Baza[],8,0),"") ->  | L230: =IFERROR(VLOOKUP(B230,Baza[],9,0),"") ->  | M230: =IFERROR(VLOOKUP(B230,Baza[],10,0),"") ->  | N230: =IFERROR(VLOOKUP(B230,Baza[],12,0),"") ->  | O230: =IFERROR(VLOOKUP(B230,Baza[],14,0),"") ->  | P230: =IFERROR(VLOOKUP(B230,Baza[],15,0),"") ->  | Q230: =IFERROR(VLOOKUP(B230,Baza[],16,0),"") ->  | R230: =IFERROR(VLOOKUP(B230,Baza[],17,0),"") ->  | S230: =IFERROR(VLOOKUP(B230,Baza[],18,0),"") ->  | T230: =IFERROR(IF((VLOOKUP(B230,Baza[],19,0)+VLOOKUP(B230,Baza[],20,0))=0,"-",VLOOKUP(B230,Baza[],19,0)+VLOOKUP(B230,Baza[],20,0)),"") ->  | U230: =IFERROR(IF(VLOOKUP(B230,Baza[],21,0)=0,"-",VLOOKUP(B230,Baza[],21,0)),"") ->  | V230: =IFERROR(VLOOKUP(B230,Baza[],22,0),"") ->  | W230: =IFERROR(VLOOKUP(B230,Baza[],23,0),"") ->  | X230: =IFERROR(VLOOKUP(B230,Baza[],24,0),"") ->  | Y230: =IFERROR(IF(VLOOKUP(B230,Baza[],25,0)=0,"-",VLOOKUP(B230,Baza[],25,0)),"") ->  | Z230: =IFERROR(IF(VLOOKUP(B230,Baza[],26,0)=0,"-",VLOOKUP(B230,Baza[],26,0)),"") ->  | AA230: =IFERROR(VLOOKUP(B230,Baza[],27,0),"") ->  | AB230: =IFERROR(VLOOKUP(B230,Baza[],28,0),"") ->  | AC230: =IF(TOT[[#This Row],[Profit]]="","#Н/Д",SUM($AA$85:AA230)) -> #Н/Д | AD230: =IF(TOT[[#This Row],[Grafik]]="#Н/Д",FALSE,TRUE) -> FALSE
A231: 146 | C231: =IFERROR(VLOOKUP(B231,Baza[],2,0),"") ->  | D231: =IF( TOT[[#This Row],[NN]]="","",TEXT( TOT[[#This Row],[Start]],"ч:мм")&" "&TOT[[#This Row],[V]]& TOT[[#This Row],[B]]&" "&"["& TOT[[#This Row],[Room]]&"] "& TOT[[#This Row],[Name]]) ->  | E231: =TOT[[#This Row],[V]]& TOT[[#This Row],[B]] ->  | F231: =IFERROR(VLOOKUP(B231,Baza[],3,0),"") ->  | G231: =IFERROR(VLOOKUP(B231,Baza[],4,0),"") ->  | H231: =IFERROR(VLOOKUP(B231,Baza[],5,0),"") ->  | I231: =IFERROR(VLOOKUP(B231,Baza[],6,0),"") ->  | J231: =IFERROR(VLOOKUP(B231,Baza[],7,0),"") ->  | K231: =IFERROR(VLOOKUP(B231,Baza[],8,0),"") ->  | L231: =IFERROR(VLOOKUP(B231,Baza[],9,0),"") ->  | M231: =IFERROR(VLOOKUP(B231,Baza[],10,0),"") ->  | N231: =IFERROR(VLOOKUP(B231,Baza[],12,0),"") ->  | O231: =IFERROR(VLOOKUP(B231,Baza[],14,0),"") ->  | P231: =IFERROR(VLOOKUP(B231,Baza[],15,0),"") ->  | Q231: =IFERROR(VLOOKUP(B231,Baza[],16,0),"") ->  | R231: =IFERROR(VLOOKUP(B231,Baza[],17,0),"") ->  | S231: =IFERROR(VLOOKUP(B231,Baza[],18,0),"") ->  | T231: =IFERROR(IF((VLOOKUP(B231,Baza[],19,0)+VLOOKUP(B231,Baza[],20,0))=0,"-",VLOOKUP(B231,Baza[],19,0)+VLOOKUP(B231,Baza[],20,0)),"") ->  | U231: =IFERROR(IF(VLOOKUP(B231,Baza[],21,0)=0,"-",VLOOKUP(B231,Baza[],21,0)),"") ->  | V231: =IFERROR(VLOOKUP(B231,Baza[],22,0),"") ->  | W231: =IFERROR(VLOOKUP(B231,Baza[],23,0),"") ->  | X231: =IFERROR(VLOOKUP(B231,Baza[],24,0),"") ->  | Y231: =IFERROR(IF(VLOOKUP(B231,Baza[],25,0)=0,"-",VLOOKUP(B231,Baza[],25,0)),"") ->  | Z231: =IFERROR(IF(VLOOKUP(B231,Baza[],26,0)=0,"-",VLOOKUP(B231,Baza[],26,0)),"") ->  | AA231: =IFERROR(VLOOKUP(B231,Baza[],27,0),"") ->  | AB231: =IFERROR(VLOOKUP(B231,Baza[],28,0),"") ->  | AC231: =IF(TOT[[#This Row],[Profit]]="","#Н/Д",SUM($AA$85:AA231)) -> #Н/Д | AD231: =IF(TOT[[#This Row],[Grafik]]="#Н/Д",FALSE,TRUE) -> FALSE
A232: 147 | C232: =IFERROR(VLOOKUP(B232,Baza[],2,0),"") ->  | D232: =IF( TOT[[#This Row],[NN]]="","",TEXT( TOT[[#This Row],[Start]],"ч:мм")&" "&TOT[[#This Row],[V]]& TOT[[#This Row],[B]]&" "&"["& TOT[[#This Row],[Room]]&"] "& TOT[[#This Row],[Name]]) ->  | E232: =TOT[[#This Row],[V]]& TOT[[#This Row],[B]] ->  | F232: =IFERROR(VLOOKUP(B232,Baza[],3,0),"") ->  | G232: =IFERROR(VLOOKUP(B232,Baza[],4,0),"") ->  | H232: =IFERROR(VLOOKUP(B232,Baza[],5,0),"") ->  | I232: =IFERROR(VLOOKUP(B232,Baza[],6,0),"") ->  | J232: =IFERROR(VLOOKUP(B232,Baza[],7,0),"") ->  | K232: =IFERROR(VLOOKUP(B232,Baza[],8,0),"") ->  | L232: =IFERROR(VLOOKUP(B232,Baza[],9,0),"") ->  | M232: =IFERROR(VLOOKUP(B232,Baza[],10,0),"") ->  | N232: =IFERROR(VLOOKUP(B232,Baza[],12,0),"") ->  | O232: =IFERROR(VLOOKUP(B232,Baza[],14,0),"") ->  | P232: =IFERROR(VLOOKUP(B232,Baza[],15,0),"") ->  | Q232: =IFERROR(VLOOKUP(B232,Baza[],16,0),"") ->  | R232: =IFERROR(VLOOKUP(B232,Baza[],17,0),"") ->  | S232: =IFERROR(VLOOKUP(B232,Baza[],18,0),"") ->  | T232: =IFERROR(IF((VLOOKUP(B232,Baza[],19,0)+VLOOKUP(B232,Baza[],20,0))=0,"-",VLOOKUP(B232,Baza[],19,0)+VLOOKUP(B232,Baza[],20,0)),"") ->  | U232: =IFERROR(IF(VLOOKUP(B232,Baza[],21,0)=0,"-",VLOOKUP(B232,Baza[],21,0)),"") ->  | V232: =IFERROR(VLOOKUP(B232,Baza[],22,0),"") ->  | W232: =IFERROR(VLOOKUP(B232,Baza[],23,0),"") ->  | X232: =IFERROR(VLOOKUP(B232,Baza[],24,0),"") ->  | Y232: =IFERROR(IF(VLOOKUP(B232,Baza[],25,0)=0,"-",VLOOKUP(B232,Baza[],25,0)),"") ->  | Z232: =IFERROR(IF(VLOOKUP(B232,Baza[],26,0)=0,"-",VLOOKUP(B232,Baza[],26,0)),"") ->  | AA232: =IFERROR(VLOOKUP(B232,Baza[],27,0),"") ->  | AB232: =IFERROR(VLOOKUP(B232,Baza[],28,0),"") ->  | AC232: =IF(TOT[[#This Row],[Profit]]="","#Н/Д",SUM($AA$85:AA232)) -> #Н/Д | AD232: =IF(TOT[[#This Row],[Grafik]]="#Н/Д",FALSE,TRUE) -> FALSE
A233: 148 | C233: =IFERROR(VLOOKUP(B233,Baza[],2,0),"") ->  | D233: =IF( TOT[[#This Row],[NN]]="","",TEXT( TOT[[#This Row],[Start]],"ч:мм")&" "&TOT[[#This Row],[V]]& TOT[[#This Row],[B]]&" "&"["& TOT[[#This Row],[Room]]&"] "& TOT[[#This Row],[Name]]) ->  | E233: =TOT[[#This Row],[V]]& TOT[[#This Row],[B]] ->  | F233: =IFERROR(VLOOKUP(B233,Baza[],3,0),"") ->  | G233: =IFERROR(VLOOKUP(B233,Baza[],4,0),"") ->  | H233: =IFERROR(VLOOKUP(B233,Baza[],5,0),"") ->  | I233: =IFERROR(VLOOKUP(B233,Baza[],6,0),"") ->  | J233: =IFERROR(VLOOKUP(B233,Baza[],7,0),"") ->  | K233: =IFERROR(VLOOKUP(B233,Baza[],8,0),"") ->  | L233: =IFERROR(VLOOKUP(B233,Baza[],9,0),"") ->  | M233: =IFERROR(VLOOKUP(B233,Baza[],10,0),"") ->  | N233: =IFERROR(VLOOKUP(B233,Baza[],12,0),"") ->  | O233: =IFERROR(VLOOKUP(B233,Baza[],14,0),"") ->  | P233: =IFERROR(VLOOKUP(B233,Baza[],15,0),"") ->  | Q233: =IFERROR(VLOOKUP(B233,Baza[],16,0),"") ->  | R233: =IFERROR(VLOOKUP(B233,Baza[],17,0),"") ->  | S233: =IFERROR(VLOOKUP(B233,Baza[],18,0),"") ->  | T233: =IFERROR(IF((VLOOKUP(B233,Baza[],19,0)+VLOOKUP(B233,Baza[],20,0))=0,"-",VLOOKUP(B233,Baza[],19,0)+VLOOKUP(B233,Baza[],20,0)),"") ->  | U233: =IFERROR(IF(VLOOKUP(B233,Baza[],21,0)=0,"-",VLOOKUP(B233,Baza[],21,0)),"") ->  | V233: =IFERROR(VLOOKUP(B233,Baza[],22,0),"") ->  | W233: =IFERROR(VLOOKUP(B233,Baza[],23,0),"") ->  | X233: =IFERROR(VLOOKUP(B233,Baza[],24,0),"") ->  | Y233: =IFERROR(IF(VLOOKUP(B233,Baza[],25,0)=0,"-",VLOOKUP(B233,Baza[],25,0)),"") ->  | Z233: =IFERROR(IF(VLOOKUP(B233,Baza[],26,0)=0,"-",VLOOKUP(B233,Baza[],26,0)),"") ->  | AA233: =IFERROR(VLOOKUP(B233,Baza[],27,0),"") ->  | AB233: =IFERROR(VLOOKUP(B233,Baza[],28,0),"") ->  | AC233: =IF(TOT[[#This Row],[Profit]]="","#Н/Д",SUM($AA$85:AA233)) -> #Н/Д | AD233: =IF(TOT[[#This Row],[Grafik]]="#Н/Д",FALSE,TRUE) -> FALSE
A234: 149 | C234: =IFERROR(VLOOKUP(B234,Baza[],2,0),"") ->  | D234: =IF( TOT[[#This Row],[NN]]="","",TEXT( TOT[[#This Row],[Start]],"ч:мм")&" "&TOT[[#This Row],[V]]& TOT[[#This Row],[B]]&" "&"["& TOT[[#This Row],[Room]]&"] "& TOT[[#This Row],[Name]]) ->  | E234: =TOT[[#This Row],[V]]& TOT[[#This Row],[B]] ->  | F234: =IFERROR(VLOOKUP(B234,Baza[],3,0),"") ->  | G234: =IFERROR(VLOOKUP(B234,Baza[],4,0),"") ->  | H234: =IFERROR(VLOOKUP(B234,Baza[],5,0),"") ->  | I234: =IFERROR(VLOOKUP(B234,Baza[],6,0),"") ->  | J234: =IFERROR(VLOOKUP(B234,Baza[],7,0),"") ->  | K234: =IFERROR(VLOOKUP(B234,Baza[],8,0),"") ->  | L234: =IFERROR(VLOOKUP(B234,Baza[],9,0),"") ->  | M234: =IFERROR(VLOOKUP(B234,Baza[],10,0),"") ->  | N234: =IFERROR(VLOOKUP(B234,Baza[],12,0),"") ->  | O234: =IFERROR(VLOOKUP(B234,Baza[],14,0),"") ->  | P234: =IFERROR(VLOOKUP(B234,Baza[],15,0),"") ->  | Q234: =IFERROR(VLOOKUP(B234,Baza[],16,0),"") ->  | R234: =IFERROR(VLOOKUP(B234,Baza[],17,0),"") ->  | S234: =IFERROR(VLOOKUP(B234,Baza[],18,0),"") ->  | T234: =IFERROR(IF((VLOOKUP(B234,Baza[],19,0)+VLOOKUP(B234,Baza[],20,0))=0,"-",VLOOKUP(B234,Baza[],19,0)+VLOOKUP(B234,Baza[],20,0)),"") ->  | U234: =IFERROR(IF(VLOOKUP(B234,Baza[],21,0)=0,"-",VLOOKUP(B234,Baza[],21,0)),"") ->  | V234: =IFERROR(VLOOKUP(B234,Baza[],22,0),"") ->  | W234: =IFERROR(VLOOKUP(B234,Baza[],23,0),"") ->  | X234: =IFERROR(VLOOKUP(B234,Baza[],24,0),"") ->  | Y234: =IFERROR(IF(VLOOKUP(B234,Baza[],25,0)=0,"-",VLOOKUP(B234,Baza[],25,0)),"") ->  | Z234: =IFERROR(IF(VLOOKUP(B234,Baza[],26,0)=0,"-",VLOOKUP(B234,Baza[],26,0)),"") ->  | AA234: =IFERROR(VLOOKUP(B234,Baza[],27,0),"") ->  | AB234: =IFERROR(VLOOKUP(B234,Baza[],28,0),"") ->  | AC234: =IF(TOT[[#This Row],[Profit]]="","#Н/Д",SUM($AA$85:AA234)) -> #Н/Д | AD234: =IF(TOT[[#This Row],[Grafik]]="#Н/Д",FALSE,TRUE) -> FALSE
A235: 150 | C235: =IFERROR(VLOOKUP(B235,Baza[],2,0),"") ->  | D235: =IF( TOT[[#This Row],[NN]]="","",TEXT( TOT[[#This Row],[Start]],"ч:мм")&" "&TOT[[#This Row],[V]]& TOT[[#This Row],[B]]&" "&"["& TOT[[#This Row],[Room]]&"] "& TOT[[#This Row],[Name]]) ->  | E235: =TOT[[#This Row],[V]]& TOT[[#This Row],[B]] ->  | F235: =IFERROR(VLOOKUP(B235,Baza[],3,0),"") ->  | G235: =IFERROR(VLOOKUP(B235,Baza[],4,0),"") ->  | H235: =IFERROR(VLOOKUP(B235,Baza[],5,0),"") ->  | I235: =IFERROR(VLOOKUP(B235,Baza[],6,0),"") ->  | J235: =IFERROR(VLOOKUP(B235,Baza[],7,0),"") ->  | K235: =IFERROR(VLOOKUP(B235,Baza[],8,0),"") ->  | L235: =IFERROR(VLOOKUP(B235,Baza[],9,0),"") ->  | M235: =IFERROR(VLOOKUP(B235,Baza[],10,0),"") ->  | N235: =IFERROR(VLOOKUP(B235,Baza[],12,0),"") ->  | O235: =IFERROR(VLOOKUP(B235,Baza[],14,0),"") ->  | P235: =IFERROR(VLOOKUP(B235,Baza[],15,0),"") ->  | Q235: =IFERROR(VLOOKUP(B235,Baza[],16,0),"") ->  | R235: =IFERROR(VLOOKUP(B235,Baza[],17,0),"") ->  | S235: =IFERROR(VLOOKUP(B235,Baza[],18,0),"") ->  | T235: =IFERROR(IF((VLOOKUP(B235,Baza[],19,0)+VLOOKUP(B235,Baza[],20,0))=0,"-",VLOOKUP(B235,Baza[],19,0)+VLOOKUP(B235,Baza[],20,0)),"") ->  | U235: =IFERROR(IF(VLOOKUP(B235,Baza[],21,0)=0,"-",VLOOKUP(B235,Baza[],21,0)),"") ->  | V235: =IFERROR(VLOOKUP(B235,Baza[],22,0),"") ->  | W235: =IFERROR(VLOOKUP(B235,Baza[],23,0),"") ->  | X235: =IFERROR(VLOOKUP(B235,Baza[],24,0),"") ->  | Y235: =IFERROR(IF(VLOOKUP(B235,Baza[],25,0)=0,"-",VLOOKUP(B235,Baza[],25,0)),"") ->  | Z235: =IFERROR(IF(VLOOKUP(B235,Baza[],26,0)=0,"-",VLOOKUP(B235,Baza[],26,0)),"") ->  | AA235: =IFERROR(VLOOKUP(B235,Baza[],27,0),"") ->  | AB235: =IFERROR(VLOOKUP(B235,Baza[],28,0),"") ->  | AC235: =IF(TOT[[#This Row],[Profit]]="","#Н/Д",SUM($AA$85:AA235)) -> #Н/Д | AD235: =IF(TOT[[#This Row],[Grafik]]="#Н/Д",FALSE,TRUE) -> FALSE
A236: 151 | C236: =IFERROR(VLOOKUP(B236,Baza[],2,0),"") ->  | D236: =IF( TOT[[#This Row],[NN]]="","",TEXT( TOT[[#This Row],[Start]],"ч:мм")&" "&TOT[[#This Row],[V]]& TOT[[#This Row],[B]]&" "&"["& TOT[[#This Row],[Room]]&"] "& TOT[[#This Row],[Name]]) ->  | E236: =TOT[[#This Row],[V]]& TOT[[#This Row],[B]] ->  | F236: =IFERROR(VLOOKUP(B236,Baza[],3,0),"") ->  | G236: =IFERROR(VLOOKUP(B236,Baza[],4,0),"") ->  | H236: =IFERROR(VLOOKUP(B236,Baza[],5,0),"") ->  | I236: =IFERROR(VLOOKUP(B236,Baza[],6,0),"") ->  | J236: =IFERROR(VLOOKUP(B236,Baza[],7,0),"") ->  | K236: =IFERROR(VLOOKUP(B236,Baza[],8,0),"") ->  | L236: =IFERROR(VLOOKUP(B236,Baza[],9,0),"") ->  | M236: =IFERROR(VLOOKUP(B236,Baza[],10,0),"") ->  | N236: =IFERROR(VLOOKUP(B236,Baza[],12,0),"") ->  | O236: =IFERROR(VLOOKUP(B236,Baza[],14,0),"") ->  | P236: =IFERROR(VLOOKUP(B236,Baza[],15,0),"") ->  | Q236: =IFERROR(VLOOKUP(B236,Baza[],16,0),"") ->  | R236: =IFERROR(VLOOKUP(B236,Baza[],17,0),"") ->  | S236: =IFERROR(VLOOKUP(B236,Baza[],18,0),"") ->  | T236: =IFERROR(IF((VLOOKUP(B236,Baza[],19,0)+VLOOKUP(B236,Baza[],20,0))=0,"-",VLOOKUP(B236,Baza[],19,0)+VLOOKUP(B236,Baza[],20,0)),"") ->  | U236: =IFERROR(IF(VLOOKUP(B236,Baza[],21,0)=0,"-",VLOOKUP(B236,Baza[],21,0)),"") ->  | V236: =IFERROR(VLOOKUP(B236,Baza[],22,0),"") ->  | W236: =IFERROR(VLOOKUP(B236,Baza[],23,0),"") ->  | X236: =IFERROR(VLOOKUP(B236,Baza[],24,0),"") ->  | Y236: =IFERROR(IF(VLOOKUP(B236,Baza[],25,0)=0,"-",VLOOKUP(B236,Baza[],25,0)),"") ->  | Z236: =IFERROR(IF(VLOOKUP(B236,Baza[],26,0)=0,"-",VLOOKUP(B236,Baza[],26,0)),"") ->  | AA236: =IFERROR(VLOOKUP(B236,Baza[],27,0),"") ->  | AB236: =IFERROR(VLOOKUP(B236,Baza[],28,0),"") ->  | AC236: =IF(TOT[[#This Row],[Profit]]="","#Н/Д",SUM($AA$85:AA236)) -> #Н/Д | AD236: =IF(TOT[[#This Row],[Grafik]]="#Н/Д",FALSE,TRUE) -> FALSE
A237: 152 | C237: =IFERROR(VLOOKUP(B237,Baza[],2,0),"") ->  | D237: =IF( TOT[[#This Row],[NN]]="","",TEXT( TOT[[#This Row],[Start]],"ч:мм")&" "&TOT[[#This Row],[V]]& TOT[[#This Row],[B]]&" "&"["& TOT[[#This Row],[Room]]&"] "& TOT[[#This Row],[Name]]) ->  | E237: =TOT[[#This Row],[V]]& TOT[[#This Row],[B]] ->  | F237: =IFERROR(VLOOKUP(B237,Baza[],3,0),"") ->  | G237: =IFERROR(VLOOKUP(B237,Baza[],4,0),"") ->  | H237: =IFERROR(VLOOKUP(B237,Baza[],5,0),"") ->  | I237: =IFERROR(VLOOKUP(B237,Baza[],6,0),"") ->  | J237: =IFERROR(VLOOKUP(B237,Baza[],7,0),"") ->  | K237: =IFERROR(VLOOKUP(B237,Baza[],8,0),"") ->  | L237: =IFERROR(VLOOKUP(B237,Baza[],9,0),"") ->  | M237: =IFERROR(VLOOKUP(B237,Baza[],10,0),"") ->  | N237: =IFERROR(VLOOKUP(B237,Baza[],12,0),"") ->  | O237: =IFERROR(VLOOKUP(B237,Baza[],14,0),"") ->  | P237: =IFERROR(VLOOKUP(B237,Baza[],15,0),"") ->  | Q237: =IFERROR(VLOOKUP(B237,Baza[],16,0),"") ->  | R237: =IFERROR(VLOOKUP(B237,Baza[],17,0),"") ->  | S237: =IFERROR(VLOOKUP(B237,Baza[],18,0),"") ->  | T237: =IFERROR(IF((VLOOKUP(B237,Baza[],19,0)+VLOOKUP(B237,Baza[],20,0))=0,"-",VLOOKUP(B237,Baza[],19,0)+VLOOKUP(B237,Baza[],20,0)),"") ->  | U237: =IFERROR(IF(VLOOKUP(B237,Baza[],21,0)=0,"-",VLOOKUP(B237,Baza[],21,0)),"") ->  | V237: =IFERROR(VLOOKUP(B237,Baza[],22,0),"") ->  | W237: =IFERROR(VLOOKUP(B237,Baza[],23,0),"") ->  | X237: =IFERROR(VLOOKUP(B237,Baza[],24,0),"") ->  | Y237: =IFERROR(IF(VLOOKUP(B237,Baza[],25,0)=0,"-",VLOOKUP(B237,Baza[],25,0)),"") ->  | Z237: =IFERROR(IF(VLOOKUP(B237,Baza[],26,0)=0,"-",VLOOKUP(B237,Baza[],26,0)),"") ->  | AA237: =IFERROR(VLOOKUP(B237,Baza[],27,0),"") ->  | AB237: =IFERROR(VLOOKUP(B237,Baza[],28,0),"") ->  | AC237: =IF(TOT[[#This Row],[Profit]]="","#Н/Д",SUM($AA$85:AA237)) -> #Н/Д | AD237: =IF(TOT[[#This Row],[Grafik]]="#Н/Д",FALSE,TRUE) -> FALSE
A238: 153 | C238: =IFERROR(VLOOKUP(B238,Baza[],2,0),"") ->  | D238: =IF( TOT[[#This Row],[NN]]="","",TEXT( TOT[[#This Row],[Start]],"ч:мм")&" "&TOT[[#This Row],[V]]& TOT[[#This Row],[B]]&" "&"["& TOT[[#This Row],[Room]]&"] "& TOT[[#This Row],[Name]]) ->  | E238: =TOT[[#This Row],[V]]& TOT[[#This Row],[B]] ->  | F238: =IFERROR(VLOOKUP(B238,Baza[],3,0),"") ->  | G238: =IFERROR(VLOOKUP(B238,Baza[],4,0),"") ->  | H238: =IFERROR(VLOOKUP(B238,Baza[],5,0),"") ->  | I238: =IFERROR(VLOOKUP(B238,Baza[],6,0),"") ->  | J238: =IFERROR(VLOOKUP(B238,Baza[],7,0),"") ->  | K238: =IFERROR(VLOOKUP(B238,Baza[],8,0),"") ->  | L238: =IFERROR(VLOOKUP(B238,Baza[],9,0),"") ->  | M238: =IFERROR(VLOOKUP(B238,Baza[],10,0),"") ->  | N238: =IFERROR(VLOOKUP(B238,Baza[],12,0),"") ->  | O238: =IFERROR(VLOOKUP(B238,Baza[],14,0),"") ->  | P238: =IFERROR(VLOOKUP(B238,Baza[],15,0),"") ->  | Q238: =IFERROR(VLOOKUP(B238,Baza[],16,0),"") ->  | R238: =IFERROR(VLOOKUP(B238,Baza[],17,0),"") ->  | S238: =IFERROR(VLOOKUP(B238,Baza[],18,0),"") ->  | T238: =IFERROR(IF((VLOOKUP(B238,Baza[],19,0)+VLOOKUP(B238,Baza[],20,0))=0,"-",VLOOKUP(B238,Baza[],19,0)+VLOOKUP(B238,Baza[],20,0)),"") ->  | U238: =IFERROR(IF(VLOOKUP(B238,Baza[],21,0)=0,"-",VLOOKUP(B238,Baza[],21,0)),"") ->  | V238: =IFERROR(VLOOKUP(B238,Baza[],22,0),"") ->  | W238: =IFERROR(VLOOKUP(B238,Baza[],23,0),"") ->  | X238: =IFERROR(VLOOKUP(B238,Baza[],24,0),"") ->  | Y238: =IFERROR(IF(VLOOKUP(B238,Baza[],25,0)=0,"-",VLOOKUP(B238,Baza[],25,0)),"") ->  | Z238: =IFERROR(IF(VLOOKUP(B238,Baza[],26,0)=0,"-",VLOOKUP(B238,Baza[],26,0)),"") ->  | AA238: =IFERROR(VLOOKUP(B238,Baza[],27,0),"") ->  | AB238: =IFERROR(VLOOKUP(B238,Baza[],28,0),"") ->  | AC238: =IF(TOT[[#This Row],[Profit]]="","#Н/Д",SUM($AA$85:AA238)) -> #Н/Д | AD238: =IF(TOT[[#This Row],[Grafik]]="#Н/Д",FALSE,TRUE) -> FALSE
A239: 154 | C239: =IFERROR(VLOOKUP(B239,Baza[],2,0),"") ->  | D239: =IF( TOT[[#This Row],[NN]]="","",TEXT( TOT[[#This Row],[Start]],"ч:мм")&" "&TOT[[#This Row],[V]]& TOT[[#This Row],[B]]&" "&"["& TOT[[#This Row],[Room]]&"] "& TOT[[#This Row],[Name]]) ->  | E239: =TOT[[#This Row],[V]]& TOT[[#This Row],[B]] ->  | F239: =IFERROR(VLOOKUP(B239,Baza[],3,0),"") ->  | G239: =IFERROR(VLOOKUP(B239,Baza[],4,0),"") ->  | H239: =IFERROR(VLOOKUP(B239,Baza[],5,0),"") ->  | I239: =IFERROR(VLOOKUP(B239,Baza[],6,0),"") ->  | J239: =IFERROR(VLOOKUP(B239,Baza[],7,0),"") ->  | K239: =IFERROR(VLOOKUP(B239,Baza[],8,0),"") ->  | L239: =IFERROR(VLOOKUP(B239,Baza[],9,0),"") ->  | M239: =IFERROR(VLOOKUP(B239,Baza[],10,0),"") ->  | N239: =IFERROR(VLOOKUP(B239,Baza[],12,0),"") ->  | O239: =IFERROR(VLOOKUP(B239,Baza[],14,0),"") ->  | P239: =IFERROR(VLOOKUP(B239,Baza[],15,0),"") ->  | Q239: =IFERROR(VLOOKUP(B239,Baza[],16,0),"") ->  | R239: =IFERROR(VLOOKUP(B239,Baza[],17,0),"") ->  | S239: =IFERROR(VLOOKUP(B239,Baza[],18,0),"") ->  | T239: =IFERROR(IF((VLOOKUP(B239,Baza[],19,0)+VLOOKUP(B239,Baza[],20,0))=0,"-",VLOOKUP(B239,Baza[],19,0)+VLOOKUP(B239,Baza[],20,0)),"") ->  | U239: =IFERROR(IF(VLOOKUP(B239,Baza[],21,0)=0,"-",VLOOKUP(B239,Baza[],21,0)),"") ->  | V239: =IFERROR(VLOOKUP(B239,Baza[],22,0),"") ->  | W239: =IFERROR(VLOOKUP(B239,Baza[],23,0),"") ->  | X239: =IFERROR(VLOOKUP(B239,Baza[],24,0),"") ->  | Y239: =IFERROR(IF(VLOOKUP(B239,Baza[],25,0)=0,"-",VLOOKUP(B239,Baza[],25,0)),"") ->  | Z239: =IFERROR(IF(VLOOKUP(B239,Baza[],26,0)=0,"-",VLOOKUP(B239,Baza[],26,0)),"") ->  | AA239: =IFERROR(VLOOKUP(B239,Baza[],27,0),"") ->  | AB239: =IFERROR(VLOOKUP(B239,Baza[],28,0),"") ->  | AC239: =IF(TOT[[#This Row],[Profit]]="","#Н/Д",SUM($AA$85:AA239)) -> #Н/Д | AD239: =IF(TOT[[#This Row],[Grafik]]="#Н/Д",FALSE,TRUE) -> FALSE
A240: 155 | C240: =IFERROR(VLOOKUP(B240,Baza[],2,0),"") ->  | D240: =IF( TOT[[#This Row],[NN]]="","",TEXT( TOT[[#This Row],[Start]],"ч:мм")&" "&TOT[[#This Row],[V]]& TOT[[#This Row],[B]]&" "&"["& TOT[[#This Row],[Room]]&"] "& TOT[[#This Row],[Name]]) ->  | E240: =TOT[[#This Row],[V]]& TOT[[#This Row],[B]] ->  | F240: =IFERROR(VLOOKUP(B240,Baza[],3,0),"") ->  | G240: =IFERROR(VLOOKUP(B240,Baza[],4,0),"") ->  | H240: =IFERROR(VLOOKUP(B240,Baza[],5,0),"") ->  | I240: =IFERROR(VLOOKUP(B240,Baza[],6,0),"") ->  | J240: =IFERROR(VLOOKUP(B240,Baza[],7,0),"") ->  | K240: =IFERROR(VLOOKUP(B240,Baza[],8,0),"") ->  | L240: =IFERROR(VLOOKUP(B240,Baza[],9,0),"") ->  | M240: =IFERROR(VLOOKUP(B240,Baza[],10,0),"") ->  | N240: =IFERROR(VLOOKUP(B240,Baza[],12,0),"") ->  | O240: =IFERROR(VLOOKUP(B240,Baza[],14,0),"") ->  | P240: =IFERROR(VLOOKUP(B240,Baza[],15,0),"") ->  | Q240: =IFERROR(VLOOKUP(B240,Baza[],16,0),"") ->  | R240: =IFERROR(VLOOKUP(B240,Baza[],17,0),"") ->  | S240: =IFERROR(VLOOKUP(B240,Baza[],18,0),"") ->  | T240: =IFERROR(IF((VLOOKUP(B240,Baza[],19,0)+VLOOKUP(B240,Baza[],20,0))=0,"-",VLOOKUP(B240,Baza[],19,0)+VLOOKUP(B240,Baza[],20,0)),"") ->  | U240: =IFERROR(IF(VLOOKUP(B240,Baza[],21,0)=0,"-",VLOOKUP(B240,Baza[],21,0)),"") ->  | V240: =IFERROR(VLOOKUP(B240,Baza[],22,0),"") ->  | W240: =IFERROR(VLOOKUP(B240,Baza[],23,0),"") ->  | X240: =IFERROR(VLOOKUP(B240,Baza[],24,0),"") ->  | Y240: =IFERROR(IF(VLOOKUP(B240,Baza[],25,0)=0,"-",VLOOKUP(B240,Baza[],25,0)),"") ->  | Z240: =IFERROR(IF(VLOOKUP(B240,Baza[],26,0)=0,"-",VLOOKUP(B240,Baza[],26,0)),"") ->  | AA240: =IFERROR(VLOOKUP(B240,Baza[],27,0),"") ->  | AB240: =IFERROR(VLOOKUP(B240,Baza[],28,0),"") ->  | AC240: =IF(TOT[[#This Row],[Profit]]="","#Н/Д",SUM($AA$85:AA240)) -> #Н/Д | AD240: =IF(TOT[[#This Row],[Grafik]]="#Н/Д",FALSE,TRUE) -> FALSE
A241: 156 | C241: =IFERROR(VLOOKUP(B241,Baza[],2,0),"") ->  | D241: =IF( TOT[[#This Row],[NN]]="","",TEXT( TOT[[#This Row],[Start]],"ч:мм")&" "&TOT[[#This Row],[V]]& TOT[[#This Row],[B]]&" "&"["& TOT[[#This Row],[Room]]&"] "& TOT[[#This Row],[Name]]) ->  | E241: =TOT[[#This Row],[V]]& TOT[[#This Row],[B]] ->  | F241: =IFERROR(VLOOKUP(B241,Baza[],3,0),"") ->  | G241: =IFERROR(VLOOKUP(B241,Baza[],4,0),"") ->  | H241: =IFERROR(VLOOKUP(B241,Baza[],5,0),"") ->  | I241: =IFERROR(VLOOKUP(B241,Baza[],6,0),"") ->  | J241: =IFERROR(VLOOKUP(B241,Baza[],7,0),"") ->  | K241: =IFERROR(VLOOKUP(B241,Baza[],8,0),"") ->  | L241: =IFERROR(VLOOKUP(B241,Baza[],9,0),"") ->  | M241: =IFERROR(VLOOKUP(B241,Baza[],10,0),"") ->  | N241: =IFERROR(VLOOKUP(B241,Baza[],12,0),"") ->  | O241: =IFERROR(VLOOKUP(B241,Baza[],14,0),"") ->  | P241: =IFERROR(VLOOKUP(B241,Baza[],15,0),"") ->  | Q241: =IFERROR(VLOOKUP(B241,Baza[],16,0),"") ->  | R241: =IFERROR(VLOOKUP(B241,Baza[],17,0),"") ->  | S241: =IFERROR(VLOOKUP(B241,Baza[],18,0),"") ->  | T241: =IFERROR(IF((VLOOKUP(B241,Baza[],19,0)+VLOOKUP(B241,Baza[],20,0))=0,"-",VLOOKUP(B241,Baza[],19,0)+VLOOKUP(B241,Baza[],20,0)),"") ->  | U241: =IFERROR(IF(VLOOKUP(B241,Baza[],21,0)=0,"-",VLOOKUP(B241,Baza[],21,0)),"") ->  | V241: =IFERROR(VLOOKUP(B241,Baza[],22,0),"") ->  | W241: =IFERROR(VLOOKUP(B241,Baza[],23,0),"") ->  | X241: =IFERROR(VLOOKUP(B241,Baza[],24,0),"") ->  | Y241: =IFERROR(IF(VLOOKUP(B241,Baza[],25,0)=0,"-",VLOOKUP(B241,Baza[],25,0)),"") ->  | Z241: =IFERROR(IF(VLOOKUP(B241,Baza[],26,0)=0,"-",VLOOKUP(B241,Baza[],26,0)),"") ->  | AA241: =IFERROR(VLOOKUP(B241,Baza[],27,0),"") ->  | AB241: =IFERROR(VLOOKUP(B241,Baza[],28,0),"") ->  | AC241: =IF(TOT[[#This Row],[Profit]]="","#Н/Д",SUM($AA$85:AA241)) -> #Н/Д | AD241: =IF(TOT[[#This Row],[Grafik]]="#Н/Д",FALSE,TRUE) -> FALSE
A242: 157 | C242: =IFERROR(VLOOKUP(B242,Baza[],2,0),"") ->  | D242: =IF( TOT[[#This Row],[NN]]="","",TEXT( TOT[[#This Row],[Start]],"ч:мм")&" "&TOT[[#This Row],[V]]& TOT[[#This Row],[B]]&" "&"["& TOT[[#This Row],[Room]]&"] "& TOT[[#This Row],[Name]]) ->  | E242: =TOT[[#This Row],[V]]& TOT[[#This Row],[B]] ->  | F242: =IFERROR(VLOOKUP(B242,Baza[],3,0),"") ->  | G242: =IFERROR(VLOOKUP(B242,Baza[],4,0),"") ->  | H242: =IFERROR(VLOOKUP(B242,Baza[],5,0),"") ->  | I242: =IFERROR(VLOOKUP(B242,Baza[],6,0),"") ->  | J242: =IFERROR(VLOOKUP(B242,Baza[],7,0),"") ->  | K242: =IFERROR(VLOOKUP(B242,Baza[],8,0),"") ->  | L242: =IFERROR(VLOOKUP(B242,Baza[],9,0),"") ->  | M242: =IFERROR(VLOOKUP(B242,Baza[],10,0),"") ->  | N242: =IFERROR(VLOOKUP(B242,Baza[],12,0),"") ->  | O242: =IFERROR(VLOOKUP(B242,Baza[],14,0),"") ->  | P242: =IFERROR(VLOOKUP(B242,Baza[],15,0),"") ->  | Q242: =IFERROR(VLOOKUP(B242,Baza[],16,0),"") ->  | R242: =IFERROR(VLOOKUP(B242,Baza[],17,0),"") ->  | S242: =IFERROR(VLOOKUP(B242,Baza[],18,0),"") ->  | T242: =IFERROR(IF((VLOOKUP(B242,Baza[],19,0)+VLOOKUP(B242,Baza[],20,0))=0,"-",VLOOKUP(B242,Baza[],19,0)+VLOOKUP(B242,Baza[],20,0)),"") ->  | U242: =IFERROR(IF(VLOOKUP(B242,Baza[],21,0)=0,"-",VLOOKUP(B242,Baza[],21,0)),"") ->  | V242: =IFERROR(VLOOKUP(B242,Baza[],22,0),"") ->  | W242: =IFERROR(VLOOKUP(B242,Baza[],23,0),"") ->  | X242: =IFERROR(VLOOKUP(B242,Baza[],24,0),"") ->  | Y242: =IFERROR(IF(VLOOKUP(B242,Baza[],25,0)=0,"-",VLOOKUP(B242,Baza[],25,0)),"") ->  | Z242: =IFERROR(IF(VLOOKUP(B242,Baza[],26,0)=0,"-",VLOOKUP(B242,Baza[],26,0)),"") ->  | AA242: =IFERROR(VLOOKUP(B242,Baza[],27,0),"") ->  | AB242: =IFERROR(VLOOKUP(B242,Baza[],28,0),"") ->  | AC242: =IF(TOT[[#This Row],[Profit]]="","#Н/Д",SUM($AA$85:AA242)) -> #Н/Д | AD242: =IF(TOT[[#This Row],[Grafik]]="#Н/Д",FALSE,TRUE) -> FALSE
